Workbook

Sheet Print (hidden)
A2: Cost of Service Model Printing
A4: This worksheet has the Page Setup properties used by the print macros which are triggered by the buttons on the other worksheets.
A5: For example, when Rate Base button is hit, macro will print RB1 and RB2 below.
A6: There are 5 print buttons on Detail tab, 1 on Summary tab, 1 on Factors tab.
B9: RATE BASE | G9: REVENUE REQUIREMENTS | M9: SUMMARY PAGES
C11: Total $ By Schedule | D11: Classification %'s | E11: Classif. $'s/Commodity $ | F11: Demand $/Customer $ | G11: Total $ By Schedule | H11: Classification %'s | I11: Classif. $'s/Commodity $ | J11: Demand $/Customer $ | K11: Labor $ and Classif. %'s | L11: Labor $ by Schedule | M11: General Summary | N11: Allocation Factors
C12: GoTo | D12: GoTo | E12: GoTo | F12: GoTo | G12: GoTo | H12: GoTo | I12: GoTo | J12: GoTo | K12: GoTo | L12: GoTo | M12: GoTo | N12: GoTo
A14: Scenario Title | B14: Base Case
C15: RB1 | D15: RB2 | E15: RB3 | F15: RB4 | G15: RR1 | H15: RR2 | I15: RR3 | J15: RR4 | K15: RR5 | L15: RR6 | M15: SUM1 | N15: SUM2
C16: 1 print button | E16: 1 print button | G16: 1 print button | I16: 1 print button | K16: 1 print button | M16: 1 print button | N16: 1 print button
A18: Print Area | B18: 0 | C18: $E$7:$P$148 | D18: $Q$7:$AH$148 | E18: $AK$7:$AY$148 | F18: $BA$7:$BO$148 | G18: $E$165:$P$433 | H18: $Q$165:$AH$433 | I18: $AK$165:$AY$433 | J18: $BA$165:$BO$433 | K18: $BQ$165:$CK$333 | L18: $CK$165:$CR$333 | M18: $A$5:$K$52,$A$105:$K$179,$A$183:$K$257 | N18: $A$4:$Q$51,$A$67:$J$107
A19: Print Title Rows | B19: 1 | C19: $1:$6 | D19: =C19 -> $1:$6 | E19: =C19 -> $1:$6 | F19: =C19 -> $1:$6 | G19: $159:$164 | H19: =G19 -> $159:$164 | I19: =G19 -> $159:$164 | J19: =G19 -> $159:$164 | K19: =H19 -> $159:$164 | L19: =I19 -> $159:$164 | M19: $1:$4 | N19: $1:$3
A20: Print Title Columns | B20: 2 | C20: $A:$D | D20: =$C20 -> $A:$D | E20: =$C20 -> $A:$D | F20: =$C20 -> $A:$D | G20: $A:$D | H20: =$G20 -> $A:$D | I20: =$G20 -> $A:$D | J20: =$G20 -> $A:$D | L20: $BQ:$BR
A21: Fit Pgs Wide | B21: 3 | C21: 1 | D21: =C21 -> 1 | E21: =C21 -> 1 | F21: =C21 -> 1 | G21: 1 | H21: =G21 -> 1 | I21: =G21 -> 1 | J21: =G21 -> 1 | K21: =H21 -> 1 | L21: =I21 -> 1 | M21: =J21 -> 1 | N21: =K21 -> 1
A22: Fit Pgs Tall | B22: 4 | C22: 2 | D22: =C22 -> 2 | E22: =C22 -> 2 | F22: =C22 -> 2 | G22: 4 | H22: =G22 -> 4 | I22: =G22 -> 4 | J22: =G22 -> 4 | K22: 3 | L22: 3 | M22: 1 | N22: 1
A23: Zoom | B23: 5 | C23: FALSE | D23: =C23 -> FALSE | E23: =C23 -> FALSE | F23: =C23 -> FALSE | G23: FALSE | H23: =G23 -> FALSE | I23: =G23 -> FALSE | J23: =G23 -> FALSE | K23: =H23 -> FALSE | L23: =I23 -> FALSE | M23: =J23 -> FALSE | N23: =K23 -> FALSE
A24: Orientation | B24: 6 | C24: Landscape | D24: =C24 -> Landscape | E24: =C24 -> Landscape | F24: =C24 -> Landscape | G24: Landscape | H24: =G24 -> Landscape | I24: =G24 -> Landscape | J24: =G24 -> Landscape | K24: =H24 -> Landscape | L24: =I24 -> Landscape | M24: Portrait | N24: Landscape
A25: Left Header | B25: 7 | C25: ="AVISTA UTILITIES -- "&Scen&CHAR(10)&"Pro-Forma Rate Base Dollars" -> AVISTA UTILITIES -- Base Case Pro-Forma Rate Base Dollars | D25: ="AVISTA UTILITIES -- "&Scen&CHAR(10)&"Rate Base Classification %'s" -> AVISTA UTILITIES -- Base Case Rate Base Classification %'s | E25: ="AVISTA UTILITIES -- "&Scen&CHAR(10)&"Classification Dollars" -> AVISTA UTILITIES -- Base Case Classification Dollars | F25: =E25 -> AVISTA UTILITIES -- Base Case Classification Dollars | G25: ="AVISTA UTILITIES -- "&Scen&CHAR(10)&"Pro-Forma Revenue Requirement Dollars" -> AVISTA UTILITIES -- Base Case Pro-Forma Revenue Requirement Dollars | H25: ="AVISTA UTILITIES -- "&Scen&CHAR(10)&"Revenue Requirement Classification %'s" -> AVISTA UTILITIES -- Base Case Revenue Requirement Classification %'s | I25: ="AVISTA UTILITIES -- "&Scen&CHAR(10)&"Classification Dollars" -> AVISTA UTILITIES -- Base Case Classification Dollars | J25: =I25 -> AVISTA UTILITIES -- Base Case Classification Dollars | K25: ="AVISTA UTILITIES -- "&Scen&CHAR(10)&"Pro-Forma Labor Expense" -> AVISTA UTILITIES -- Base Case Pro-Forma Labor Expense | L25: ="AVISTA UTILITIES -- "&Scen&CHAR(10)&"Pro-Forma Labor Expense" -> AVISTA UTILITIES -- Base Case Pro-Forma Labor Expense | M25: ="AVISTA UTILITIES -- "&Scen&CHAR(10)&"Cost of Service General Summary" -> AVISTA UTILITIES -- Base Case Cost of Service General Summary | N25: ="AVISTA UTILITIES -- "&Scen&CHAR(10)&"Allocation Percentages" -> AVISTA UTILITIES -- Base Case Allocation Percentages
A26: Center Header | B26: 8
A27: Right Header | B27: 9 | C27: WA Gas | D27: =$C27 -> WA Gas | E27: =$C27 -> WA Gas | F27: =$C27 -> WA Gas | G27: WA Gas | H27: =$G27 -> WA Gas | I27: WA Gas | J27: WA Gas | K27: WA Gas | L27: WA Gas | M27: WA Gas | N27: WA Gas
A28: Left Footer | B28: 10 | C28: =MID(C42,C44+1,C46-1)&" "&C47 -> Exhibit No. CTM-5.xlsm Detail | D28: =MID(D42,D44+1,D46-1)&" "&D47 -> Exhibit No. CTM-5.xlsm Detail | E28: Exhibit No. CTM-5.xlsm Detail | F28: Exhibit No. CTM-5.xlsm Detail | G28: Exhibit No. CTM-5.xlsm Detail | H28: Exhibit No. CTM-5.xlsm Detail | I28: Exhibit No. CTM-5.xlsm Detail | J28: Exhibit No. CTM-5.xlsm Detail | K28: Exhibit No. CTM-5.xlsm Detail | L28: Exhibit No. CTM-5.xlsm Detail | M28: Exhibit No. CTM-5.xlsm Summary | N28: Exhibit No. CTM-5.xlsm Factors
A29: Center Footer | B29: 11 | C29: =TODAY() -> 2014-08-06 | D29: =$C$29 -> 2014-08-06 | E29: =$C$29 -> 2014-08-06 | F29: 2014-08-06 | G29: 2014-08-06 | H29: 2014-08-06 | I29: 2014-08-06 | J29: 2014-08-06 | K29: 2014-08-06 | L29: 2014-08-06 | M29: 2014-08-06 | N29: 2014-08-06
A30: Right Footer | B30: 12 | C30: ="Page &P of "&$P$35 -> Page &P of 35 | D30: Page &P of 35 | E30: Page &P of 35 | F30: Page &P of 35 | G30: Page &P of 35 | H30: Page &P of 35 | I30: Page &P of 35 | J30: Page &P of 35 | K30: Page &P of 35 | L30: Page &P of 35 | M30: Page &P of 35 | N30: Page &P of 35
A31: 1st Pg # | B31: 13 | C31: =M35+1 -> 4 | D31: =C31+C35 -> 6 | E31: =H31+H35 -> 16 | F31: =E31+E35 -> 18 | G31: =D31+D35 -> 8 | H31: =G31+G35 -> 12 | I31: =F31+F35 -> 20 | J31: =I31+I35 -> 24 | K31: =J31+J35 -> 28 | L31: =K31+K35 -> 31 | M31: 1 | N31: =L31+L35 -> 34
A32: Preview (False=Print) | B32: 14 | C32: TRUE | D32: =$C$32 -> TRUE | E32: TRUE | F32: TRUE | G32: TRUE | H32: TRUE | I32: TRUE | J32: TRUE | K32: TRUE | L32: TRUE | M32: TRUE | N32: TRUE
A33: Zoom % w/print to fit | B33: 15
A35: Total Pages | C35: =C21*C22 -> 2 | D35: =D21*D22 -> 2 | E35: 2 | F35: 2 | G35: 4 | H35: 4 | I35: 4 | J35: 4 | K35: 3 | L35: 3 | M35: 3 | N35: 2 | P35: =SUM(C35:O35) -> 35
A37: H/F examples: | C37: "&F" & Chr(10) & "&A" | D37: would print FileName on one line and TabName on next
C38: "Page &P of &N" | D38: would print: Page 1 of 3
C39: "&D , &T" | D39: would print: 1/31/08, 18:00 in whatever format
A42: Path of Filename | C42: =CELL("filename",$A$1) -> H:\GRC\Avista\UE-140188 and UG-140189\Testimony\[Exhibit No. CTM-5.xlsm]Print | D42: =CELL("filename",$A$1) -> H:\GRC\Avista\UE-140188 and UG-140189\Testimony\[Exhibit No. CTM-5.xlsm]Print | E42: H:\GRC\Avista\UE-140188 and UG-140189\Testimony\[Exhibit No. CTM-5.xlsm]Print | F42: H:\GRC\Avista\UE-140188 and UG-140189\Testimony\[Exhibit No. CTM-5.xlsm]Print | G42: H:\GRC\Avista\UE-140188 and UG-140189\Testimony\[Exhibit No. CTM-5.xlsm]Print | H42: H:\GRC\Avista\UE-140188 and UG-140189\Testimony\[Exhibit No. CTM-5.xlsm]Print | I42: H:\GRC\Avista\UE-140188 and UG-140189\Testimony\[Exhibit No. CTM-5.xlsm]Print | J42: H:\GRC\Avista\UE-140188 and UG-140189\Testimony\[Exhibit No. CTM-5.xlsm]Print | K42: H:\GRC\Avista\UE-140188 and UG-140189\Testimony\[Exhibit No. CTM-5.xlsm]Print | L42: H:\GRC\Avista\UE-140188 and UG-140189\Testimony\[Exhibit No. CTM-5.xlsm]Print | M42: H:\GRC\Avista\UE-140188 and UG-140189\Testimony\[Exhibit No. CTM-5.xlsm]Print | N42: H:\GRC\Avista\UE-140188 and UG-140189\Testimony\[Exhibit No. CTM-5.xlsm]Print
A43: Length of Path | C43: =LEN(C42) -> 77 | D43: =$C43 -> 77 | E43: =$C43 -> 77 | F43: 77 | G43: 77 | H43: 77 | I43: 77 | J43: 77 | K43: 77 | L43: 77 | M43: 77 | N43: 77
A44: Filename start pt | C44: =FIND("[",C42,1) -> 49 | D44: =$C44 -> 49 | E44: 49 | F44: 49 | G44: 49 | H44: 49 | I44: 49 | J44: 49 | K44: 49 | L44: 49 | M44: 49 | N44: 49
A45: Filename end pt | C45: =FIND("]",C42,1) -> 72 | D45: 72 | E45: 72 | F45: 72 | G45: 72 | H45: 72 | I45: 72 | J45: 72 | K45: 72 | L45: 72 | M45: 72 | N45: 72
A46: Filename length | C46: =C45-C44 -> 23 | D46: 23 | E46: 23 | F46: 23 | G46: 23 | H46: 23 | I46: 23 | J46: 23 | K46: 23 | L46: 23 | M46: 23 | N46: 23
A47: Tab Name | C47: Detail | D47: Detail | E47: Detail | F47: Detail | G47: Detail | H47: Detail | I47: Detail | J47: Detail | K47: Detail | L47: Detail | M47: Summary | N47: Factors

Sheet Detail (hidden)
A1: =ColHdr -> A | B1: =ColHdr -> B | C1: C | D1: D | E1: E | F1: F | G1: G | H1: H | I1: I | J1: J | K1: K | L1: L | M1: M | N1: N | O1: O | P1: P | Q1: Q | R1: R | S1: S | T1: T | U1: U | V1: V | W1: W | X1: X | Y1: Y | Z1: Z | AA1: AA | AB1: AB | AC1: AC | AD1: AD | AE1: AE | AF1: AF | AG1: AG | AH1: AH | AI1: AI | AJ1: AJ | AK1: AK | AL1: AL | AM1: AM | AN1: AN | AO1: AO | AP1: AP | AQ1: AQ | AR1: AR | AS1: AS | AT1: AT | AU1: AU | AV1: AV | AW1: AW | AX1: AX | AY1: AY | AZ1: AZ | BA1: BA | BB1: BB | BC1: BC | BD1: BD | BE1: BE | BF1: BF | BG1: BG | BH1: BH | BI1: BI | BJ1: BJ | BK1: BK | BL1: BL | BM1: BM | BN1: BN | BO1: =ColHdr -> BO | BP1: BP | BQ1: BQ | BR1: BR | BS1: BS | BT1: BT | BU1: BU | BV1: BV | BW1: BW | BX1: BX | BY1: BY | BZ1: BZ | CA1: CA | CB1: CB | CC1: CC | CD1: CD | CE1: CE | CF1: CF | CG1: CG | CH1: CH | CI1: CI | CJ1: CJ | CK1: CK | CL1: CL | CM1: CM | CN1: CN | CO1: CO | CP1: CP | CQ1: CQ | CR1: CR
A2: =RowHdr -> 2
A3: 3 | E3: Pro Forma | AS3: COMMODITY | BA3: DEMAND | BI3: CUSTOMER | CM3: Pro Forma
A4: 4 | E4: Cross Check | I4: =MATCH(I5,Factors!$C$58:$C$64,0) -> 1 | J4: =MATCH(J5,Factors!$C$58:$C$64,0) -> 2 | K4: =MATCH(K5,Factors!$C$58:$C$64,0) -> 3 | L4: =MATCH(L5,Factors!$C$58:$C$64,0) -> 4 | M4: =MATCH(M5,Factors!$C$58:$C$64,0) -> 5 | N4: =MATCH(N5,Factors!$C$58:$C$64,0) -> 6 | R4: COMMODITY | S4: COMMODITY | T4: COMMODITY | U4: COMMODITY | V4: COMMODITY | W4: DEMAND | X4: DEMAND | Y4: DEMAND | Z4: DEMAND | AA4: DEMAND | AB4: CUSTOMER | AC4: CUSTOMER | AD4: CUSTOMER | AE4: CUSTOMER | AF4: CUSTOMER | AG4: CUSTOMER | AH4: REVENUE | AT4: =MATCH(AT5,Factors!$C$58:$C$64,0) -> 1 | AU4: =MATCH(AU5,Factors!$C$58:$C$64,0) -> 2 | AV4: =MATCH(AV5,Factors!$C$58:$C$64,0) -> 3 | AW4: =MATCH(AW5,Factors!$C$58:$C$64,0) -> 4 | AX4: =MATCH(AX5,Factors!$C$58:$C$64,0) -> 5 | AY4: =MATCH(AY5,Factors!$C$58:$C$64,0) -> 6 | BB4: =MATCH(BB5,Factors!$C$58:$C$64,0) -> 1 | BC4: =MATCH(BC5,Factors!$C$58:$C$64,0) -> 2 | BD4: =MATCH(BD5,Factors!$C$58:$C$64,0) -> 3 | BE4: =MATCH(BE5,Factors!$C$58:$C$64,0) -> 4 | BF4: =MATCH(BF5,Factors!$C$58:$C$64,0) -> 5 | BG4: =MATCH(BG5,Factors!$C$58:$C$64,0) -> 6 | BJ4: =MATCH(BJ5,Factors!$C$58:$C$64,0) -> 1 | BK4: =MATCH(BK5,Factors!$C$58:$C$64,0) -> 2 | BL4: =MATCH(BL5,Factors!$C$58:$C$64,0) -> 3 | BM4: =MATCH(BM5,Factors!$C$58:$C$64,0) -> 4 | BN4: =MATCH(BN5,Factors!$C$58:$C$64,0) -> 5 | BO4: =MATCH(BO5,Factors!$C$58:$C$64,0) -> 6 | BR4: Proforma | CM4: Cross Check
A5: 5 | B5: Acct | C5: Func | D5: Description | E5: Totals | F5: classif. basis (line) | G5: derived classif. | H5: Total | I5: Sch 101 | J5: Sch 111 | K5: Sch 121 | L5: Sch 131 | M5: Sch 146 | N5: Open | P5: source | R5: Throughput | S5: Sales | T5: Therms - Small Mains | U5: Purchased Gas - Commodity | V5: GTI Expense | W5: Coincident Peak - All | X5: Coincident Peak - Small Mains | Y5: Purchased Gas - Demand | Z5: DA 131 | AA5: DA 146 | AB5: All Customers | AC5: Service Cost | AD5: Meter Cost | AE5: 4-Factor | AF5: Ind Meas & Reg Cost | AG5: DA 101 | AH5: Revenues From Retail Rates | AK5: Total | AL5: Commodity | AM5: Demand | AN5: Customer | AO5: Revenue | AQ5: source | AS5: Total | AT5: Sch 101 | AU5: Sch 111 | AV5: Sch 121 | AW5: Sch 131 | AX5: Sch 146 | AY5: Open | BA5: Total | BB5: Sch 101 | BC5: Sch 111 | BD5: Sch 121 | BE5: Sch 131 | BF5: Sch 146 | BG5: Open | BI5: Total | BJ5: Sch 101 | BK5: Sch 111 | BL5: Sch 121 | BM5: Sch 131 | BN5: Sch 146 | BO5: Open | BR5: Labor Totals | CM5: Labor Totals
A6: 6 | R6: E01 | S6: E04 | T6: E06 | U6: E07 | V6: E08 | W6: D01 | X6: D02 | Y6: D05 | Z6: D06 | AA6: D07 | AB6: C01 | AC6: C02 | AD6: C03 | AE6: C04 | AF6: C06 | AG6: C10 | AH6: R01 | BR6: (see below) | CM6: (see below)
A7: 7 | D7: Rate Base | AI7: =IF(SUM(R7:AH7)<>0,(ROUND(SUM(R7:AH7),8)<>1)+0,0) -> 0
A8: 8 | D8: Plant In Service | AI8: 0
A9: 9 | D9: Intangible Plant | AI9: 0
A10: 10 | B10: 303 | C10: D | D10: Intangible Gas Plant | E10: =PROFORMA!AW250 -> 1582000 | F10: ="as Distrib Plant ("&A$40&")" -> as Distrib Plant (40) | H10: =SUM(I10:N10) -> 1582000 | I10: =$E10*SUMPRODUCT($R10:$AH10,INDEX(AllocFactors,I$4,0)) -> 1232368.09 | J10: 244771.547 | K10: 20436.28217 | L10: 4972.43924 | M10: 79451.64198 | N10: 0 | P10: =E$1&$A10&"* Sum["&$R$1&$A10&":"&$AH$1&$A10&"* "&Factors!D$1&Factors!$A$58&":"&Factors!S$1&Factors!$A$64&"]" -> E10* Sum[R10:AH10* D588:S594] | R10: =R$40 -> 0.1038834589 | S10: =S$40 -> 0.08663983857 | T10: 0.01496099336 | U10: 0 | V10: 0 | W10: 0.3105632093 | X10: 0 | Y10: 0 | Z10: 0 | AA10: 0 | AB10: 0 | AC10: 0.3341974628 | AD10: 0.1420070731 | AE10: 0 | AF10: 0.00774796405 | AG10: 0 | AH10: 0 | AI10: =IF(SUM(R10:AH10)<>0,(ROUND(SUM(R10:AH10),8)<>1)+0,0) -> 0 | AK10: =SUM(AL10:AO10) -> 1582000 | AL10: =SUMIF($R$4:$AH$4,AL$5,$R10:$AH10)*$E10 -> 325076.1481 | AM10: 491310.9971 | AN10: 765612.8549 | AO10: 0 | AQ10: =E$1&$A10&"*["&R$1&$A10&":"&$AH$1&$A10&" when "&R$1&$A$4&":"&$AH$1&$A$4&" = E,D,C,or R]" -> E10*[R10:AH10 when R4:AH4 = E,D,C,or R] | AS10: =SUM(AT10:AY10) -> 325076.1481 | AT10: =$E10*SUMPRODUCT($R10:$V10,INDEX(AllocFactors_E,AT$4,0)) -> 206956.2354 | AU10: 81711.45686 | AV10: 10232.36168 | AW10: 2031.509596 | AX10: 24144.58456 | AY10: 0 | BA10: =SUM(BB10:BG10) -> 491310.9971 | BB10: =$E10*SUMPRODUCT($W10:$AA10,INDEX(AllocFactors_D,BB$4,0)) -> 313547.0081 | BC10: 118316.4194 | BD10: 8804.672439 | BE10: 2297.411722 | BF10: 48345.48533 | BG10: 0 | BI10: =SUM(BJ10:BO10) -> 765612.8549 | BJ10: =$E10*SUMPRODUCT($AB10:$AG10,INDEX(AllocFactors_C,BJ$4,0)) -> 711864.8461 | BK10: 44743.67067 | BL10: 1399.248055 | BM10: 643.5179223 | BN10: 6961.572084 | BO10: 0
A11: 11 | B11: 303.1 | C11: O | D11: Miscellaneous - Computer Software | E11: =PROFORMA!AW251 -> 7449000 | F11: Corporate Cost Allocator | H11: =SUM(I11:N11) -> 7449000 | I11: 6429552.995 | J11: 747372.1332 | K11: 61404.59854 | L11: 14839.17514 | M11: 195831.0979 | N11: 0 | P11: =E$1&$A11&"* """ -> E11* " | R11: =(R$114*0.25)+(R$251*0.25)+(BS$250*0.25) -> 0.06114769063 | S11: =(S$114*0.25)+(S$251*0.25)+(BT$250*0.25) -> 0.08778587751 | T11: 0.006712928065 | U11: 0 | V11: 0 | W11: 0.1446761069 | X11: 0 | Y11: 0 | Z11: 0 | AA11: 0 | AB11: =(AB$114*0.25)+(AB$251*0.25)+(CC$250*0.25)+0.25 -> 0.4544698471 | AC11: 0.1479191325 | AD11: 0.0908607995 | AE11: 0 | AF11: 0.006427617797 | AG11: 0 | AH11: 0 | AI11: 0 | AK11: =SUM(AL11:AO11) -> 7449000 | AL11: 1159410.75 | AM11: 1077692.32 | AN11: 5211896.93 | AO11: 0 | AQ11: =E$1&$A11&"* """ -> E11* " | AS11: =SUM(AT11:AY11) -> 1159410.75 | AT11: 751145.1577 | AU11: 296570.7462 | AV11: 37138.23318 | AW11: 7638.314503 | AX11: 66918.29861 | AY11: 0 | BA11: =SUM(BB11:BG11) -> 1077692.32 | BB11: 687766.4142 | BC11: 259527.4629 | BD11: 19313.07853 | BE11: 5039.38032 | BF11: 106045.9843 | BG11: 0 | BI11: =SUM(BJ11:BO11) -> 5211896.93 | BJ11: 4990641.423 | BK11: 191273.9241 | BL11: 4953.286826 | BM11: 2161.480318 | BN11: 22866.81505 | BO11: 0
A12: 12 | D12: Total Intangible Plant | E12: =SUM(E9:E11) -> 9031000 | H12: =IF(ROUND(SUM(H10:H11),3)<>ROUND(SUM(I12:N12),3),#VALUE!,SUM(H10:H11)) -> 9031000 | I12: =SUM(I10:I11) -> 7661921.085 | J12: 992143.6802 | K12: 81840.88071 | L12: 19811.61438 | M12: 275282.7399 | N12: 0 | P12: =A10&":"&A11 -> 10:11 | R12: =SUMPRODUCT($E10:$E11,R$10:R$11)/$E12 -> 0.06863390316 | S12: =SUMPRODUCT($E10:$E11,S$10:S$11)/$E12 -> 0.08758512083 | T12: 0.008157777947 | U12: 0 | V12: 0 | W12: 0.1737352804 | X12: 0 | Y12: 0 | Z12: 0 | AA12: 0 | AB12: 0.3748583646 | AC12: 0.1805503271 | AD12: 0.09982031725 | AE12: 0 | AF12: 0.006658908659 | AG12: 0 | AH12: 0 | AI12: 0 | AK12: =IF(ROUND(SUM(AK10:AK11),3)<>ROUND(SUM(AL12:AO12),3),#VALUE!,SUM(AK10:AK11)) -> 9031000 | AL12: =SUM(AL10:AL11) -> 1484486.898 | AM12: =SUM(AM10:AM11) -> 1569003.317 | AN12: =SUM(AN10:AN11) -> 5977509.784 | AO12: =SUM(AO10:AO11) -> 0 | AQ12: =$A10&":"&$A11 -> 10:11 | AS12: =IF(ROUND(SUM(AS10:AS11),3)<>ROUND(SUM(AT12:AY12),3),#VALUE!,SUM(AS10:AS11)) -> 1484486.898 | AT12: =SUM(AT10:AT11) -> 958101.3931 | AU12: 378282.2031 | AV12: 47370.59486 | AW12: 9669.824099 | AX12: 91062.88317 | AY12: 0 | BA12: =IF(ROUND(SUM(BA10:BA11),3)<>ROUND(SUM(BB12:BG12),3),#VALUE!,SUM(BA10:BA11)) -> 1569003.317 | BB12: =SUM(BB10:BB11) -> 1001313.422 | BC12: 377843.8824 | BD12: 28117.75097 | BE12: 7336.792042 | BF12: 154391.4696 | BG12: 0 | BI12: =IF(ROUND(SUM(BI10:BI11),3)<>ROUND(SUM(BJ12:BO12),3),#VALUE!,SUM(BI10:BI11)) -> 5977509.784 | BJ12: =SUM(BJ10:BJ11) -> 5702506.269 | BK12: 236017.5947 | BL12: 6352.53488 | BM12: 2804.99824 | BN12: 29828.38713 | BO12: 0
A13: 13 | AI13: 0
A14: 14 | D14: Underground Storage Plant | AI14: 0
A15: 15 | B15: 350 | C15: U | D15: Land & Land Rights | E15: =PROFORMA!AW255 -> 327000 | F15: Input - Settlement | H15: =SUM(I15:N15) -> 327000 | I15: =$E15*SUMPRODUCT($R15:$AH15,INDEX(AllocFactors,I$4,0)) -> 218149.5663 | J15: =$E15*SUMPRODUCT($R15:$AH15,INDEX(AllocFactors,J$4,0)) -> 86130.86165 | K15: =$E15*SUMPRODUCT($R15:$AH15,INDEX(AllocFactors,K$4,0)) -> 10785.78405 | L15: =$E15*SUMPRODUCT($R15:$AH15,INDEX(AllocFactors,L$4,0)) -> 2325.531136 | M15: =$E15*SUMPRODUCT($R15:$AH15,INDEX(AllocFactors,M$4,0)) -> 9608.256867 | N15: =$E15*SUMPRODUCT($R15:$AH15,INDEX(AllocFactors,N$4,0)) -> 0 | P15: =E$1&$A15&"* Sum["&$R$1&$A15&":"&$AH$1&$A15&"* "&Factors!D$1&Factors!$A$58&":"&Factors!S$1&Factors!$A$64&"]" -> E15* Sum[R15:AH15* D588:S594] | R15: 0.2 | S15: =1-R15 -> 0.8 | T15: 0 | U15: 0 | V15: 0 | W15: 0 | X15: 0 | Y15: 0 | Z15: 0 | AA15: 0 | AB15: 0 | AC15: 0 | AD15: 0 | AE15: 0 | AF15: 0 | AG15: 0 | AH15: 0 | AI15: 0 | AK15: =SUM(AL15:AO15) -> 327000 | AL15: =SUMIF($R$4:$AH$4,AL$5,$R15:$AH15)*$E15 -> 327000 | AM15: 0 | AN15: 0 | AO15: 0 | AQ15: =E$1&$A15&"*["&R$1&$A15&":"&$AH$1&$A15&" when "&R$1&$A$4&":"&$AH$1&$A$4&" = E,D,C,or R]" -> E15*[R15:AH15 when R4:AH4 = E,D,C,or R] | AS15: =SUM(AT15:AY15) -> 327000 | AT15: =$E15*SUMPRODUCT($R15:$V15,INDEX(AllocFactors_E,AT$4,0)) -> 218149.5663 | AU15: 86130.86165 | AV15: 10785.78405 | AW15: 2325.531136 | AX15: 9608.256867 | AY15: 0 | BA15: =SUM(BB15:BG15) -> 0 | BB15: =$E15*SUMPRODUCT($W15:$AA15,INDEX(AllocFactors_D,BB$4,0)) -> 0 | BC15: 0 | BD15: 0 | BE15: 0 | BF15: 0 | BG15: 0 | BI15: =SUM(BJ15:BO15) -> 0 | BJ15: =$E15*SUMPRODUCT($AB15:$AG15,INDEX(AllocFactors_C,BJ$4,0)) -> 0 | BK15: 0 | BL15: 0 | BM15: 0 | BN15: 0 | BO15: 0
A16: 16 | B16: 351 | C16: U | D16: Structures & Improvements | E16: =PROFORMA!AW256 -> 1009000 | F16: Input - Settlement | H16: 1009000 | I16: =$E16*SUMPRODUCT($R16:$AH16,INDEX(AllocFactors,I$4,0)) -> 673128.1725 | J16: 265767.7046 | K16: 33280.90553 | L16: 7175.721455 | M16: 29647.49596 | N16: 0 | P16: =E$1&$A16&"* """ -> E16* " | R16: =R15 -> 0.2 | S16: =S15 -> 0.8 | T16: 0 | U16: 0 | V16: 0 | W16: 0 | X16: 0 | Y16: 0 | Z16: 0 | AA16: 0 | AB16: 0 | AC16: 0 | AD16: 0 | AE16: 0 | AF16: 0 | AG16: 0 | AH16: 0 | AI16: 0 | AK16: 1009000 | AL16: 1009000 | AM16: 0 | AN16: 0 | AO16: 0 | AQ16: =E$1&$A16&"* """ -> E16* " | AS16: 1009000 | AT16: 673128.1725 | AU16: 265767.7046 | AV16: 33280.90553 | AW16: 7175.721455 | AX16: 29647.49596 | AY16: 0 | BA16: 0 | BB16: 0 | BC16: 0 | BD16: 0 | BE16: 0 | BF16: 0 | BG16: 0 | BI16: 0 | BJ16: 0 | BK16: 0 | BL16: 0 | BM16: 0 | BN16: 0 | BO16: 0
A17: 17 | B17: 352 | C17: U | D17: Wells | E17: =PROFORMA!AW257 -> 13339000 | F17: Input - Settlement | H17: =SUM(I17:N17) -> 13339000 | I17: 8898767.782 | J17: 3513454.323 | K17: 439974.2307 | L17: 94863.17987 | M17: 391940.4843 | N17: 0 | P17: E17* " | R17: =R16 -> 0.2 | S17: =S16 -> 0.8 | T17: 0 | U17: 0 | V17: 0 | W17: 0 | X17: 0 | Y17: 0 | Z17: 0 | AA17: 0 | AB17: 0 | AC17: 0 | AD17: 0 | AE17: 0 | AF17: 0 | AG17: 0 | AH17: 0 | AI17: 0 | AK17: 13339000 | AL17: 13339000 | AM17: 0 | AN17: 0 | AO17: 0 | AQ17: =E$1&$A17&"* """ -> E17* " | AS17: 13339000 | AT17: 8898767.782 | AU17: 3513454.323 | AV17: 439974.2307 | AW17: 94863.17987 | AX17: 391940.4843 | AY17: 0 | BA17: 0 | BB17: 0 | BC17: 0 | BD17: 0 | BE17: 0 | BF17: 0 | BG17: 0 | BI17: 0 | BJ17: 0 | BK17: 0 | BL17: 0 | BM17: 0 | BN17: 0 | BO17: 0
A18: 18 | B18: 353 | C18: U | D18: Lines | E18: =PROFORMA!AW258 -> 731000 | F18: Input - Settlement | H18: =SUM(I18:N18) -> 731000 | I18: 487667.6849 | J18: 192543.3023 | K18: 24111.33988 | L18: 5198.664404 | M18: 21479.00847 | N18: 0 | P18: E18* " | R18: 0.2 | S18: 0.8 | T18: 0 | U18: 0 | V18: 0 | W18: 0 | X18: 0 | Y18: 0 | Z18: 0 | AA18: 0 | AB18: 0 | AC18: 0 | AD18: 0 | AE18: 0 | AF18: 0 | AG18: 0 | AH18: 0 | AI18: 0 | AK18: 731000 | AL18: 731000 | AM18: 0 | AN18: 0 | AO18: 0 | AQ18: E18* " | AS18: 731000 | AT18: 487667.6849 | AU18: 192543.3023 | AV18: 24111.33988 | AW18: 5198.664404 | AX18: 21479.00847 | AY18: 0 | BA18: 0 | BB18: 0 | BC18: 0 | BD18: 0 | BE18: 0 | BF18: 0 | BG18: 0 | BI18: 0 | BJ18: 0 | BK18: 0 | BL18: 0 | BM18: 0 | BN18: 0 | BO18: 0
A19: 19 | B19: 354 | C19: U | D19: Compressor Station Equipment | E19: =PROFORMA!AW259 -> 8096000 | F19: Input - Settlement | H19: 8096000 | I19: 5401036.357 | J19: 2132463.168 | K19: 267038.8614 | L19: 57576.45283 | M19: 237885.1608 | N19: 0 | P19: E19* " | R19: 0.2 | S19: 0.8 | T19: 0 | U19: 0 | V19: 0 | W19: 0 | X19: 0 | Y19: 0 | Z19: 0 | AA19: 0 | AB19: 0 | AC19: 0 | AD19: 0 | AE19: 0 | AF19: 0 | AG19: 0 | AH19: 0 | AI19: 0 | AK19: 8096000 | AL19: 8096000 | AM19: 0 | AN19: 0 | AO19: 0 | AQ19: E19* " | AS19: 8096000 | AT19: 5401036.357 | AU19: 2132463.168 | AV19: 267038.8614 | AW19: 57576.45283 | AX19: 237885.1608 | AY19: 0 | BA19: 0 | BB19: 0 | BC19: 0 | BD19: 0 | BE19: 0 | BF19: 0 | BG19: 0 | BI19: 0 | BJ19: 0 | BK19: 0 | BL19: 0 | BM19: 0 | BN19: 0 | BO19: 0
A20: 20 | B20: 355 | C20: U | D20: Measuring & Regulating Equipment | E20: =PROFORMA!AW260 -> 193000 | F20: Input - Settlement | H20: 193000 | I20: 128754.9428 | J20: 50835.64617 | K20: 6365.921473 | L20: 1372.56119 | M20: 5670.928365 | N20: 0 | P20: E20* " | R20: 0.2 | S20: 0.8 | T20: 0 | U20: 0 | V20: 0 | W20: 0 | X20: 0 | Y20: 0 | Z20: 0 | AA20: 0 | AB20: 0 | AC20: 0 | AD20: 0 | AE20: 0 | AF20: 0 | AG20: 0 | AH20: 0 | AI20: 0 | AK20: 193000 | AL20: 193000 | AM20: 0 | AN20: 0 | AO20: 0 | AQ20: E20* " | AS20: 193000 | AT20: 128754.9428 | AU20: 50835.64617 | AV20: 6365.921473 | AW20: 1372.56119 | AX20: 5670.928365 | AY20: 0 | BA20: 0 | BB20: 0 | BC20: 0 | BD20: 0 | BE20: 0 | BF20: 0 | BG20: 0 | BI20: 0 | BJ20: 0 | BK20: 0 | BL20: 0 | BM20: 0 | BN20: 0 | BO20: 0
A21: 21 | B21: 356 | C21: U | D21: Purification Equipment | E21: =PROFORMA!AW261 -> 283000 | F21: Input - Settlement | H21: 283000 | I21: 188796.1078 | J21: 74541.38791 | K21: 9334.485891 | L21: 2012.615631 | M21: 8315.402732 | N21: 0 | P21: E21* " | R21: 0.2 | S21: 0.8 | T21: 0 | U21: 0 | V21: 0 | W21: 0 | X21: 0 | Y21: 0 | Z21: 0 | AA21: 0 | AB21: 0 | AC21: 0 | AD21: 0 | AE21: 0 | AF21: 0 | AG21: 0 | AH21: 0 | AI21: 0 | AK21: 283000 | AL21: 283000 | AM21: 0 | AN21: 0 | AO21: 0 | AQ21: E21* " | AS21: 283000 | AT21: 188796.1078 | AU21: 74541.38791 | AV21: 9334.485891 | AW21: 2012.615631 | AX21: 8315.402732 | AY21: 0 | BA21: 0 | BB21: 0 | BC21: 0 | BD21: 0 | BE21: 0 | BF21: 0 | BG21: 0 | BI21: 0 | BJ21: 0 | BK21: 0 | BL21: 0 | BM21: 0 | BN21: 0 | BO21: 0
A22: 22 | B22: 357 | C22: U | D22: Other Equipment | E22: =PROFORMA!AW262 -> 1097000 | F22: Input - Settlement | H22: 1097000 | I22: 731835.0894 | J22: 288946.6521 | K22: 36183.50185 | L22: 7801.552464 | M22: 32233.20423 | N22: 0 | P22: E22* " | R22: 0.2 | S22: 0.8 | T22: 0 | U22: 0 | V22: 0 | W22: 0 | X22: 0 | Y22: 0 | Z22: 0 | AA22: 0 | AB22: 0 | AC22: 0 | AD22: 0 | AE22: 0 | AF22: 0 | AG22: 0 | AH22: 0 | AI22: 0 | AK22: 1097000 | AL22: 1097000 | AM22: 0 | AN22: 0 | AO22: 0 | AQ22: E22* " | AS22: 1097000 | AT22: 731835.0894 | AU22: 288946.6521 | AV22: 36183.50185 | AW22: 7801.552464 | AX22: 32233.20423 | AY22: 0 | BA22: 0 | BB22: 0 | BC22: 0 | BD22: 0 | BE22: 0 | BF22: 0 | BG22: 0 | BI22: 0 | BJ22: 0 | BK22: 0 | BL22: 0 | BM22: 0 | BN22: 0 | BO22: 0
A23: 23 | D23: Total Underground Storage Plant | E23: =SUM(E15:E22) -> 25075000 | G23: UG Storage Plant (S14) | H23: =IF(ROUND(SUM(H14:H22),3)<>ROUND(SUM(I23:N23),3),#VALUE!,SUM(H14:H22)) -> 25075000 | I23: =SUM(I14:I22) -> 16728135.7 | J23: 6604683.045 | K23: 827075.0308 | L23: 178326.279 | M23: 736779.9417 | N23: 0 | P23: =$A14&":"&A22 -> 14:22 | R23: =SUMPRODUCT($E15:$E22,R$15:R$22)/$E23 -> 0.2 | S23: 0.8 | T23: 0 | U23: 0 | V23: 0 | W23: 0 | X23: 0 | Y23: 0 | Z23: 0 | AA23: 0 | AB23: 0 | AC23: 0 | AD23: 0 | AE23: 0 | AF23: 0 | AG23: 0 | AH23: 0 | AI23: 0 | AK23: =IF(ROUND(SUM(AK14:AK22),3)<>ROUND(SUM(AL23:AO23),3),#VALUE!,SUM(AK14:AK22)) -> 25075000 | AL23: =SUM(AL14:AL22) -> 25075000 | AM23: =SUM(AM14:AM22) -> 0 | AN23: =SUM(AN14:AN22) -> 0 | AO23: =SUM(AO14:AO22) -> 0 | AQ23: =$A14&":"&$A22 -> 14:22 | AS23: =IF(ROUND(SUM(AS14:AS22),3)<>ROUND(SUM(AT23:AY23),3),#VALUE!,SUM(AS14:AS22)) -> 25075000 | AT23: =SUM(AT14:AT22) -> 16728135.7 | AU23: 6604683.045 | AV23: 827075.0308 | AW23: 178326.279 | AX23: 736779.9417 | AY23: 0 | BA23: =IF(ROUND(SUM(BA14:BA22),3)<>ROUND(SUM(BB23:BG23),3),#VALUE!,SUM(BA14:BA22)) -> 0 | BB23: =SUM(BB14:BB22) -> 0 | BC23: 0 | BD23: 0 | BE23: 0 | BF23: 0 | BG23: 0 | BI23: =IF(ROUND(SUM(BI14:BI22),3)<>ROUND(SUM(BJ23:BO23),3),#VALUE!,SUM(BI14:BI22)) -> 0 | BJ23: =SUM(BJ14:BJ22) -> 0 | BK23: 0 | BL23: 0 | BM23: 0 | BN23: 0 | BO23: 0
A24: 24 | AI24: 0
A25: 25 | D25: Distribution Plant | AI25: 0
A26: 26 | B26: 374 | C26: D | D26: Land & Land Rights | E26: =PROFORMA!AW266 -> 65000 | F26: ="as other Dist Plt ("&A$28&"-"&A$38&")" -> as other Dist Plt (28-38) | H26: =SUM(I26:N26) -> 65000 | I26: =$E26*SUMPRODUCT($R26:$AH26,INDEX(AllocFactors,I$4,0)) -> 50634.59281 | J26: 10056.98518 | K26: 839.6702536 | L26: 204.3037615 | M26: 3264.447995 | N26: 0 | P26: =E$1&$A26&"* Sum["&$R$1&$A26&":"&$AH$1&$A26&"* "&Factors!D$1&Factors!$A$58&":"&Factors!S$1&Factors!$A$64&"]" -> E26* Sum[R26:AH26* D588:S594] | R26: =SUMPRODUCT($E$28:$E$38,R$28:R$38)/SUM($E$28:$E$38) -> 0.1038834589 | S26: 0.08663983857 | T26: =SUMPRODUCT($E$28:$E$38,T$28:T$38)/SUM($E$28:$E$38) -> 0.01496099336 | U26: 0 | V26: 0 | W26: 0.3105632093 | X26: 0 | Y26: 0 | Z26: 0 | AA26: 0 | AB26: =SUMPRODUCT($E$28:$E$38,AB$28:AB$38)/SUM($E$28:$E$38) -> 0 | AC26: 0.3341974628 | AD26: 0.1420070731 | AE26: 0 | AF26: 0.00774796405 | AG26: 0 | AH26: 0 | AI26: 0 | AK26: =SUM(AL26:AO26) -> 65000 | AL26: =SUMIF($R$4:$AH$4,AL$5,$R26:$AH26)*$E26 -> 13356.4789 | AM26: 20186.6086 | AN26: 31456.91249 | AO26: 0 | AQ26: =E$1&$A26&"*["&R$1&$A26&":"&$AH$1&$A26&" when "&R$1&$A$4&":"&$AH$1&$A$4&" = E,D,C,or R]" -> E26*[R26:AH26 when R4:AH4 = E,D,C,or R] | AS26: =SUM(AT26:AY26) -> 13356.4789 | AT26: =$E26*SUMPRODUCT($R26:$V26,INDEX(AllocFactors_E,AT$4,0)) -> 8503.258722 | AU26: 3357.297532 | AV26: 420.4194116 | AW26: 83.46910476 | AX26: 992.0341318 | AY26: 0 | BA26: =SUM(BB26:BG26) -> 20186.6086 | BB26: =$E26*SUMPRODUCT($W26:$AA26,INDEX(AllocFactors_D,BB$4,0)) -> 12882.77846 | BC26: 4861.294098 | BD26: 361.7596135 | BE26: 94.39428695 | BF26: 1986.382141 | BG26: 0 | BI26: =SUM(BJ26:BO26) -> 31456.91249 | BJ26: =$E26*SUMPRODUCT($AB26:$AG26,INDEX(AllocFactors_C,BJ$4,0)) -> 29248.55563 | BK26: 1838.393549 | BL26: 57.49122855 | BM26: 26.44036975 | BN26: 286.0317228 | BO26: 0
A27: 27 | B27: 375 | C27: D | D27: Structures & Improvements | E27: =PROFORMA!AW267 -> 27531000 | F27: ="as other Dist Plt ("&A$28&"-"&A$38&")" -> as other Dist Plt (28-38) | H27: 27531000 | I27: 21446476.53 | J27: 4259674.753 | K27: 355645.5654 | L27: 86533.64395 | M27: 1382669.504 | N27: 0 | P27: =E$1&$A27&"* """ -> E27* " | R27: =SUMPRODUCT($E$28:$E$38,R$28:R$38)/SUM($E$28:$E$38) -> 0.1038834589 | S27: 0.08663983857 | T27: =SUMPRODUCT($E$28:$E$38,T$28:T$38)/SUM($E$28:$E$38) -> 0.01496099336 | U27: 0 | V27: 0 | W27: 0.3105632093 | X27: 0 | Y27: 0 | Z27: 0 | AA27: 0 | AB27: 0 | AC27: 0.3341974628 | AD27: 0.1420070731 | AE27: 0 | AF27: 0.00774796405 | AG27: 0 | AH27: 0 | AI27: 0 | AK27: 27531000 | AL27: 5657188.01 | AM27: 8550115.715 | AN27: 13323696.28 | AO27: 0 | AQ27: =E$1&$A27&"* """ -> E27* " | AS27: 5657188.01 | AT27: 3601587.937 | AU27: 1421996.282 | AV27: 178070.2588 | AW27: 35353.66036 | AX27: 420179.872 | AY27: 0 | BA27: 8550115.715 | BB27: 5456550.367 | BC27: 2059019.813 | BD27: 153224.6757 | BE27: 39981.06329 | BF27: 841339.7957 | BG27: 0 | BI27: 13323696.28 | BJ27: 12388338.23 | BK27: 778658.6582 | BL27: 24350.63097 | BM27: 11198.9203 | BN27: 121149.8363 | BO27: 0
A28: 28 | B28: 376-All | C28: D | D28: Mains | E28: =PROFORMA!AW268+PROFORMA!AW269 -> 153960000 | F28: Input - Peak & Avg Calc | G28: oth Dist Plt (S05); (S06); (S21) | H28: 153960000 | I28: =$E28*SUMPRODUCT($R28:$AH28,INDEX(AllocFactors,I$4,0)) -> 98262105.34 | J28: 37762913.52 | K28: 3595178.304 | L28: 816375.7931 | M28: 13523427.05 | N28: 0 | P28: E28* " | R28: ='Mains Allocator'!E14+'Mains Allocator'!E15 -> 0.1947956749 | S28: ='Mains Allocator'!E16 -> 0.1734428725 | T28: ='Mains Allocator'!E17 -> 0.02995016733 | W28: ='Mains Allocator'!E9 -> 0.6018112853 | Z28: 0 | AB28: 0 | AC28: 0 | AD28: 0 | AE28: 0 | AF28: 0 | AG28: 0 | AH28: 0 | AI28: 0 | AK28: 153960000 | AL28: =SUMIF($R$4:$AH$4,AL$5,$R28:$AH28)*$E28 -> 61305134.52 | AM28: 92654865.48 | AN28: 0 | AO28: 0 | AQ28: =E$1&$A28&"* """ -> E28* " | AS28: 61305134.52 | AT28: =$E28*SUMPRODUCT($R28:$V28,INDEX(AllocFactors_E,AT$4,0)) -> 39131216.69 | AU28: =$E28*SUMPRODUCT($R28:$V28,INDEX(AllocFactors_E,AU$4,0)) -> 15449975.3 | AV28: 1934731.57 | AW28: 383113.8158 | AX28: 4406097.154 | AY28: 0 | BA28: 92654865.48 | BB28: 59130888.65 | BC28: 22312938.22 | BD28: 1660446.734 | BE28: 433261.9773 | BF28: 9117329.892 | BG28: 0 | BI28: 0 | BJ28: 0 | BK28: 0 | BL28: 0 | BM28: 0 | BN28: 0 | BO28: 0
A29: 29 | B29: 376 | C29: D | D29: Mains | F29: Input - Peak & Avg w/131&146 | G29: oth Dist Plt (S05); (S06); (S21) | H29: =SUM(I29:N29) -> 0 | I29: 0 | J29: 0 | K29: 0 | L29: 0 | M29: =$E29*SUMPRODUCT($R29:$AH29,INDEX(AllocFactors,M$4,0)) -> 0 | N29: 0 | P29: =E$1&$A29&"* """ -> E29* " | AI29: =IF(SUM(R29:AH29)<>0,(ROUND(SUM(R29:AH29),8)<>1)+0,0) -> 0 | AK29: =SUM(AL29:AO29) -> 0 | AL29: 0 | AM29: 0 | AN29: 0 | AO29: 0 | AQ29: =E$1&$A29&"* """ -> E29* " | AS29: =SUM(AT29:AY29) -> 0 | AT29: 0 | AU29: 0 | AV29: 0 | AW29: 0 | AX29: 0 | AY29: 0 | BA29: =SUM(BB29:BG29) -> 0 | BB29: =$E29*SUMPRODUCT($W29:$AA29,INDEX(AllocFactors_D,BB$4,0)) -> 0 | BC29: 0 | BD29: 0 | BE29: 0 | BF29: 0 | BG29: 0 | BI29: =SUM(BJ29:BO29) -> 0 | BJ29: 0 | BK29: 0 | BL29: 0 | BM29: 0 | BN29: 0 | BO29: 0
A30: 30 | B30: 376 | C30: D | D30: Mains | F30: Input - Peak & Avg w/131&146 | G30: oth Dist Plt (S05); (S06); (S21) | H30: 0 | I30: 0 | J30: 0 | K30: 0 | L30: 0 | M30: =$E30*SUMPRODUCT($R30:$AH30,INDEX(AllocFactors,M$4,0)) -> 0 | N30: 0 | P30: E30* " | AI30: =IF(SUM(R30:AH30)<>0,(ROUND(SUM(R30:AH30),8)<>1)+0,0) -> 0 | AK30: 0 | AL30: =SUMIF($R$4:$AH$4,AL$5,$R30:$AH30)*$E30 -> 0 | AM30: 0 | AN30: 0 | AO30: 0 | AQ30: E30* " | AS30: 0 | AT30: 0 | AU30: 0 | AV30: 0 | AW30: 0 | AX30: 0 | AY30: 0 | BA30: 0 | BB30: 0 | BC30: 0 | BD30: 0 | BE30: 0 | BF30: 0 | BG30: 0 | BI30: 0 | BJ30: 0 | BK30: 0 | BL30: 0 | BM30: 0 | BN30: 0 | BO30: 0
A31: 31 | B31: 378 | C31: D | D31: Meas & Reg Station Equip-General | E31: =PROFORMA!AW270 -> 3242000 | F31: Input - Peak & Avg Calc | G31: oth Dist Plt (S05); (S08) | H31: 3242000 | I31: 2002068.845 | J31: 768705.6411 | K31: 72388.72287 | L31: 17192.39616 | M31: 381644.395 | N31: 0 | P31: E31* " | R31: =PkAvg_E -> 0.3981887147 | W31: =PkAvg_D -> 0.6018112853 | AI31: 0 | AK31: 3242000 | AL31: 1290927.813 | AM31: 1951072.187 | AN31: 0 | AO31: 0 | AQ31: E31* " | AS31: 1290927.813 | AT31: 756925.0347 | AU31: 298852.7851 | AV31: 37424.00274 | AW31: 8069.01781 | AX31: 189656.9729 | AY31: 0 | BA31: 1951072.187 | BB31: 1245143.81 | BC31: 469852.8561 | BD31: 34964.72013 | BE31: 9123.378348 | BF31: 191987.4221 | BG31: 0 | BI31: 0 | BJ31: 0 | BK31: 0 | BL31: 0 | BM31: 0 | BN31: 0 | BO31: 0
A32: 32 | B32: 379 | C32: D | D32: Meas & Reg Station Equip-City Gate | E32: =PROFORMA!AW271 -> 1849000 | F32: Input - Peak & Avg Calc | G32: oth Dist Plt (S05); (S09) | H32: 1849000 | I32: 1141833.835 | J32: 438413.5504 | K32: 41285.24016 | L32: 9805.287013 | M32: 217662.0871 | N32: 0 | P32: E32* " | R32: =PkAvg_E -> 0.3981887147 | W32: =PkAvg_D -> 0.6018112853 | AI32: 0 | AK32: 1849000 | AL32: 736250.9336 | AM32: 1112749.066 | AN32: 0 | AO32: 0 | AQ32: E32* " | AS32: 736250.9336 | AT32: 431694.753 | AU32: 170443.8 | AV32: 21343.91767 | AW32: 4601.978387 | AX32: 108166.4845 | AY32: 0 | BA32: 1112749.066 | BB32: 710139.0823 | BC32: 267969.7504 | BD32: 19941.32249 | BE32: 5203.308626 | BF32: 109495.6026 | BG32: 0 | BI32: 0 | BJ32: 0 | BK32: 0 | BL32: 0 | BM32: 0 | BN32: 0 | BO32: 0
A33: 33 | B33: 380 | C33: D | D33: Services | E33: =PROFORMA!AW272 -> 103003000 | F33: Input - 100% Svcs cost | G33: oth Dist Plt (S05); (S06); (S20) | H33: 103003000 | I33: 101065613.5 | J33: 1703052.811 | K33: 51839.57805 | L33: 3702.827004 | M33: 178791.2935 | N33: 0 | P33: E33* " | AC33: 1 | AI33: 0 | AK33: 103003000 | AL33: 0 | AM33: 0 | AN33: 103003000 | AO33: 0 | AQ33: E33* " | AS33: 0 | AT33: 0 | AU33: 0 | AV33: 0 | AW33: 0 | AX33: 0 | AY33: 0 | BA33: 0 | BB33: 0 | BC33: 0 | BD33: 0 | BE33: 0 | BF33: 0 | BG33: 0 | BI33: 103003000 | BJ33: =$E33*SUMPRODUCT($AB33:$AG33,INDEX(AllocFactors_C,BJ$4,0)) -> 101065613.5 | BK33: 1703052.811 | BL33: 51839.57805 | BM33: 3702.827004 | BN33: 178791.2935 | BO33: 0
A34: 34 | B34: 381 | C34: D | D34: Meters | E34: =PROFORMA!AW273 -> 43768000 | F34: Input - 100% Mtrs cost | G34: oth Dist Plt (S05); (S07) | H34: 43768000 | I34: 37622037.73 | J34: 5157083.08 | K34: 143898.224 | L34: 79099.88239 | M34: 765881.0854 | N34: 0 | P34: E34* " | AD34: 1 | AI34: 0 | AK34: 43768000 | AL34: 0 | AM34: 0 | AN34: 43768000 | AO34: 0 | AQ34: E34* " | AS34: 0 | AT34: 0 | AU34: 0 | AV34: 0 | AW34: 0 | AX34: 0 | AY34: 0 | BA34: 0 | BB34: 0 | BC34: 0 | BD34: 0 | BE34: 0 | BF34: 0 | BG34: 0 | BI34: 43768000 | BJ34: 37622037.73 | BK34: 5157083.08 | BL34: 143898.224 | BM34: 79099.88239 | BN34: 765881.0854 | BO34: 0
A35: 35 | B35: 382 | C35: D | D35: Meter Installations | E35: =PROFORMA!AW274 -> 0 | F35: Input - 100% Install cost | G35: oth Dist Plt (S05); (S07) | H35: 0 | I35: 0 | J35: 0 | K35: 0 | L35: 0 | M35: 0 | N35: 0 | P35: E35* " | AB35: 1 | AI35: 0 | AK35: 0 | AL35: 0 | AM35: 0 | AN35: 0 | AO35: 0 | AQ35: E35* " | AS35: 0 | AT35: 0 | AU35: 0 | AV35: 0 | AW35: 0 | AX35: 0 | AY35: 0 | BA35: 0 | BB35: 0 | BC35: 0 | BD35: 0 | BE35: 0 | BF35: 0 | BG35: 0 | BI35: 0 | BJ35: 0 | BK35: 0 | BL35: 0 | BM35: 0 | BN35: 0 | BO35: 0
A36: 36 | B36: 383 | C36: D | D36: House Regulators | E36: =PROFORMA!AW275 -> 0 | F36: Input - 100% Reg. cost | G36: oth Dist Plt (S05); (S07) | H36: 0 | I36: 0 | J36: 0 | K36: 0 | L36: 0 | M36: 0 | N36: 0 | P36: E36* " | AI36: 0 | AK36: 0 | AL36: 0 | AM36: 0 | AN36: 0 | AO36: 0 | AQ36: E36* " | AS36: 0 | AT36: 0 | AU36: 0 | AV36: 0 | AW36: 0 | AX36: 0 | AY36: 0 | BA36: 0 | BB36: 0 | BC36: 0 | BD36: 0 | BE36: 0 | BF36: 0 | BG36: 0 | BI36: 0 | BJ36: 0 | BK36: 0 | BL36: 0 | BM36: 0 | BN36: 0 | BO36: 0
A37: 37 | B37: 384 | C37: D | D37: House Regulator Installations | E37: =PROFORMA!AW276 -> 0 | F37: Input - 100% Install cost | G37: oth Dist Plt (S05); (S07) | H37: 0 | I37: 0 | J37: 0 | K37: 0 | L37: 0 | M37: 0 | N37: 0 | P37: E37* " | AB37: 1 | AI37: 0 | AK37: 0 | AL37: 0 | AM37: 0 | AN37: 0 | AO37: 0 | AQ37: E37* " | AS37: 0 | AT37: 0 | AU37: 0 | AV37: 0 | AW37: 0 | AX37: 0 | AY37: 0 | BA37: 0 | BB37: 0 | BC37: 0 | BD37: 0 | BE37: 0 | BF37: 0 | BG37: 0 | BI37: 0 | BJ37: 0 | BK37: 0 | BL37: 0 | BM37: 0 | BN37: 0 | BO37: 0
A38: 38 | B38: 385 | C38: D | D38: Industrial Meas & Reg Station Equip | E38: =PROFORMA!AW277 -> 2388000 | F38: Input - 100% Ind Meas cost | G38: oth Dist Plt (S05); (S19) | H38: 2388000 | I38: 0 | J38: 1856960.657 | K38: 76867.91415 | L38: 42569.38847 | M38: 411602.0408 | N38: 0 | P38: E38* " | AF38: 1 | AI38: 0 | AK38: 2388000 | AL38: 0 | AM38: 0 | AN38: 2388000 | AO38: 0 | AQ38: E38* " | AS38: 0 | AT38: 0 | AU38: 0 | AV38: 0 | AW38: 0 | AX38: 0 | AY38: 0 | BA38: 0 | BB38: 0 | BC38: 0 | BD38: 0 | BE38: 0 | BF38: 0 | BG38: 0 | BI38: 2388000 | BJ38: 0 | BK38: 1856960.657 | BL38: 76867.91415 | BM38: 42569.38847 | BN38: 411602.0408 | BO38: 0
A39: 39 | B39: 387 | C39: D | D39: Other Equipment | E39: =PROFORMA!AW278 -> 0 | F39: ="as other Dist Plt ("&A$28&"-"&A$38&")" -> as other Dist Plt (28-38) | H39: 0 | I39: 0 | J39: 0 | K39: 0 | L39: 0 | M39: 0 | N39: 0 | P39: E39* " | R39: =SUMPRODUCT($E$28:$E$38,R$28:R$38)/SUM($E$28:$E$38) -> 0.1038834589 | S39: =SUMPRODUCT($E$28:$E$38,S$28:S$38)/SUM($E$28:$E$38) -> 0.08663983857 | T39: 0.01496099336 | U39: 0 | V39: 0 | W39: 0.3105632093 | X39: 0 | Y39: 0 | Z39: 0 | AA39: 0 | AB39: 0 | AC39: 0.3341974628 | AD39: 0.1420070731 | AE39: 0 | AF39: 0.00774796405 | AG39: 0 | AH39: 0 | AI39: 0 | AK39: 0 | AL39: 0 | AM39: 0 | AN39: 0 | AO39: 0 | AQ39: E39* " | AS39: 0 | AT39: 0 | AU39: 0 | AV39: 0 | AW39: 0 | AX39: 0 | AY39: 0 | BA39: 0 | BB39: 0 | BC39: 0 | BD39: 0 | BE39: 0 | BF39: 0 | BG39: 0 | BI39: 0 | BJ39: 0 | BK39: 0 | BL39: 0 | BM39: 0 | BN39: 0 | BO39: 0
A40: 40 | D40: Total Distribution Plant | E40: =SUM(E26:E39) -> 335806000 | G40: Distrib Plant (S15) | H40: =IF(ROUND(SUM(H25:H39),3)<>ROUND(SUM(I40:N40),3),#VALUE!,SUM(H25:H39)) -> 335806000 | I40: =SUM(I25:I39) -> 261590770.4 | J40: 51956861 | K40: 4337943.218 | L40: 1055483.522 | M40: 16864941.9 | N40: 0 | P40: =$A25&":"&A39 -> 25:39 | R40: =SUMPRODUCT($E26:$E39,R$26:R$39)/$E40 -> 0.1038834589 | S40: =SUMPRODUCT($E26:$E39,S$26:S$39)/$E40 -> 0.08663983857 | T40: =SUMPRODUCT($E26:$E39,T$26:T$39)/$E40 -> 0.01496099336 | U40: 0 | V40: 0 | W40: 0.3105632093 | X40: 0 | Y40: 0 | Z40: =SUMPRODUCT($E26:$E39,Z$26:Z$39)/$E40 -> 0 | AA40: 0 | AB40: 0 | AC40: 0.3341974628 | AD40: 0.1420070731 | AE40: 0 | AF40: 0.00774796405 | AG40: 0 | AH40: 0 | AI40: =IF(SUM(R40:AH40)<>0,(ROUND(SUM(R40:AH40),8)<>1)+0,0) -> 0 | AK40: =IF(ROUND(SUM(AK25:AK39),3)<>ROUND(SUM(AL40:AO40),3),#VALUE!,SUM(AK25:AK39)) -> 335806000 | AL40: =SUM(AL25:AL39) -> 69002857.76 | AM40: =SUM(AM25:AM39) -> 104288989.1 | AN40: =SUM(AN25:AN39) -> 162514153.2 | AO40: =SUM(AO25:AO39) -> 0 | AQ40: =$A25&":"&$A39 -> 25:39 | AS40: =IF(ROUND(SUM(AS25:AS39),3)<>ROUND(SUM(AT40:AY40),3),#VALUE!,SUM(AS25:AS39)) -> 69002857.76 | AT40: =SUM(AT25:AT39) -> 43929927.67 | AU40: 17344625.46 | AV40: 2171990.168 | AW40: 431221.9414 | AX40: 5125092.518 | AY40: 0 | BA40: =IF(ROUND(SUM(BA25:BA39),3)<>ROUND(SUM(BB40:BG40),3),#VALUE!,SUM(BA25:BA39)) -> 104288989.1 | BB40: =SUM(BB25:BB39) -> 66555604.69 | BC40: 25114641.94 | BD40: 1868939.212 | BE40: 487664.1219 | BF40: 10262139.09 | BG40: 0 | BI40: =IF(ROUND(SUM(BI25:BI39),3)<>ROUND(SUM(BJ40:BO40),3),#VALUE!,SUM(BI25:BI39)) -> 162514153.2 | BJ40: =SUM(BJ25:BJ39) -> 151105238 | BK40: 9497593.599 | BL40: 297013.8384 | BM40: 136597.4585 | BN40: 1477710.288 | BO40: 0
A41: 41 | H41: =H40/$H40 -> 1 | I41: 0.7789937356 | J41: 0.1547228489 | K41: 0.0129180039 | L41: 0.003143134792 | M41: 0.05022227685 | N41: 0 | AI41: =IF(SUM(R41:AH41)<>0,(ROUND(SUM(R41:AH41),8)<>1)+0,0) -> 0 | AT41: =IF(I40,AT40/I40,0) -> 0.167933783 | AU41: 0.3338274316 | AV41: 0.5006958503 | AW41: 0.4085539305 | AX41: 0.3038903157 | AY41: 0 | BB41: =IF(I40,BB40/I40,0) -> 0.2544264257 | BC41: 0.4833748894 | BD41: 0.4308353332 | BE41: 0.4620291192 | BF41: 0.6084894425 | BG41: 0 | BJ41: =IF(I40,BJ40/I40,0) -> 0.5776397913 | BK41: 0.182797679 | BL41: 0.06846881654 | BM41: 0.1294169503 | BN41: 0.08762024183 | BO41: 0
A42: 42 | D42: UG/D Plant | E42: =E23+E40 -> 360881000 | F42: ="("&A$23&"+"&A$40&")" -> (23+40) | G42: UG/D Plant (S03) | H42: =H23+H40 -> 360881000 | I42: =I23+I40 -> 278318906.1 | J42: 58561544.04 | K42: 5165018.249 | L42: 1233809.801 | M42: 17601721.84 | N42: 0 | R42: =($E23*R23+$E40*R40)/$E42 -> 0.1105618993 | S42: =($E23*S23+$E40*S40)/$E42 -> 0.1362060558 | T42: =($E23*T23+$E40*T40)/$E42 -> 0.01392146257 | U42: =($E23*U23+$E40*U40)/$E42 -> 0 | V42: =($E23*V23+$E40*V40)/$E42 -> 0 | W42: 0.2889844271 | X42: 0 | Y42: =($E23*Y23+$E40*Y40)/$E42 -> 0 | Z42: 0 | AA42: 0 | AB42: 0 | AC42: 0.310976508 | AD42: 0.1321400328 | AE42: 0 | AF42: 0.007209614294 | AG42: =($E23*AG23+$E40*AG40)/$E42 -> 0 | AH42: 0 | AI42: 0
A43: 43 | AI43: 0
A44: 44 | D44: General Plant | AI44: 0
A45: 45 | B45: 389 | C45: O | D45: Land & Land Rights | E45: =PROFORMA!AW282 -> 1158000 | F45: Corporate Cost Allocator | H45: =SUM(I45:N45) -> 1158000 | I45: =$E45*SUMPRODUCT($R45:$AH45,INDEX(AllocFactors,I$4,0)) -> 999519.7165 | J45: 116184.3107 | K45: 9545.781328 | L45: 2306.855258 | M45: 30443.3362 | N45: 0 | P45: =E$1&$A45&"* Sum["&$R$1&$A45&":"&$AH$1&$A45&"* "&Factors!D$1&Factors!$A$58&":"&Factors!S$1&Factors!$A$64&"]" -> E45* Sum[R45:AH45* D588:S594] | R45: =(R$114*0.25)+(R$251*0.25)+(BS$250*0.25) -> 0.06114769063 | S45: =(S$114*0.25)+(S$251*0.25)+(BT$250*0.25) -> 0.08778587751 | T45: 0.006712928065 | U45: 0 | V45: 0 | W45: 0.1446761069 | X45: 0 | Y45: 0 | Z45: 0 | AA45: 0 | AB45: =(AB$114*0.25)+(AB$251*0.25)+(CC$250*0.25)+0.25 -> 0.4544698471 | AC45: 0.1479191325 | AD45: 0.0908607995 | AE45: 0 | AF45: 0.006427617797 | AG45: 0 | AH45: 0 | AI45: 0 | AK45: =SUM(AL45:AO45) -> 1158000 | AL45: =SUMIF($R$4:$AH$4,AL$5,$R45:$AH45)*$E45 -> 180238.6426 | AM45: 167534.9318 | AN45: 810226.4256 | AO45: 0 | AQ45: =E$1&$A45&"*["&R$1&$A45&":"&$AH$1&$A45&" when "&R$1&$A$4&":"&$AH$1&$A$4&" = E,D,C,or R]" -> E45*[R45:AH45 when R4:AH4 = E,D,C,or R] | AS45: =SUM(AT45:AY45) -> 180238.6426 | AT45: =$E45*SUMPRODUCT($R45:$V45,INDEX(AllocFactors_E,AT$4,0)) -> 116770.8542 | AU45: 46104.03062 | AV45: 5773.40234 | AW45: 1187.430285 | AX45: 10402.9252 | AY45: 0 | BA45: =SUM(BB45:BG45) -> 167534.9318 | BB45: =$E45*SUMPRODUCT($W45:$AA45,INDEX(AllocFactors_D,BB$4,0)) -> 106918.178 | BC45: 40345.38892 | BD45: 3002.355341 | BE45: 783.4074923 | BF45: 16485.60206 | BG45: 0 | BI45: =SUM(BJ45:BO45) -> 810226.4256 | BJ45: =$E45*SUMPRODUCT($AB45:$AG45,INDEX(AllocFactors_C,BJ$4,0)) -> 775830.6844 | BK45: 29734.89114 | BL45: 770.0236467 | BM45: 336.01748 | BN45: 3554.808944 | BO45: 0
A46: 46 | B46: 390 | C46: O | D46: Structures & Improvements | E46: =PROFORMA!AW283 -> 37851000 | F46: Corporate Cost Allocator | H46: 37851000 | I46: 32670829.7 | J46: 3797661.782 | K46: 312018.4534 | L46: 75403.09011 | M46: 995086.9764 | N46: 0 | P46: =E$1&$A46&"* """ -> E46* " | R46: =(R$114*0.25)+(R$251*0.25)+(BS$250*0.25) -> 0.06114769063 | S46: 0.08778587751 | T46: 0.006712928065 | U46: 0 | V46: 0 | W46: 0.1446761069 | X46: 0 | Y46: 0 | Z46: 0 | AA46: 0 | AB46: =(AB$114*0.25)+(AB$251*0.25)+(CC$250*0.25)+0.25 -> 0.4544698471 | AC46: 0.1479191325 | AD46: 0.0908607995 | AE46: 0 | AF46: 0.006427617797 | AG46: 0 | AH46: 0 | AI46: 0 | AK46: 37851000 | AL46: 5891375.528 | AM46: 5476135.322 | AN46: 26483489.15 | AO46: 0 | AQ46: =E$1&$A46&"* """ -> E46* " | AS46: 5891375.528 | AT46: 3816833.852 | AU46: 1506980.711 | AV46: 188712.4801 | AW46: 38812.97386 | AX46: 340035.5109 | AY46: 0 | BA46: 5476135.322 | BB46: 3494784.071 | BC46: 1318750.705 | BD46: 98136.57343 | BE46: 25606.87132 | BF46: 538857.1016 | BG46: 0 | BI46: 26483489.15 | BJ46: 25359211.78 | BK46: 971930.3665 | BL46: 25169.39987 | BM46: 10983.24493 | BN46: 116194.3638 | BO46: 0
A47: 47 | B47: 391 | C47: O | D47: Office Furniture & Equipment | E47: =PROFORMA!AW284 -> 6562000 | F47: Corporate Cost Allocator | H47: 6562000 | I47: 5663945.06 | J47: 658377.7605 | K47: 54092.76086 | L47: 13072.17979 | M47: 172512.2385 | N47: 0 | P47: E47* " | R47: 0.06114769063 | S47: 0.08778587751 | T47: 0.006712928065 | U47: 0 | V47: 0 | W47: 0.1446761069 | X47: 0 | Y47: 0 | Z47: 0 | AA47: 0 | AB47: 0.4544698471 | AC47: 0.1479191325 | AD47: 0.0908607995 | AE47: 0 | AF47: 0.006427617797 | AG47: 0 | AH47: 0 | AI47: 0 | AK47: 6562000 | AL47: 1021352.308 | AM47: 949364.6134 | AN47: 4591283.079 | AO47: 0 | AQ47: =E$1&$A47&"* """ -> E47* " | AS47: 1021352.308 | AT47: 661701.5069 | AU47: 261256.1735 | AV47: 32715.94659 | AW47: 6728.771616 | AX47: 58949.90945 | AY47: 0 | BA47: 949364.6134 | BB47: 605869.6751 | BC47: 228623.8705 | BD47: 17013.34693 | BE47: 4439.309123 | BF47: 93418.41169 | BG47: 0 | BI47: 4591283.079 | BJ47: 4396373.878 | BK47: 168497.7164 | BL47: 4363.467331 | BM47: 1904.099053 | BN47: 20143.91735 | BO47: 0
A48: 48 | B48: 392 | C48: O | D48: Transportation Equipment | E48: =PROFORMA!AW285 -> 6712000 | F48: Corporate Cost Allocator | H48: 6712000 | I48: 5793416.526 | J48: 673427.5417 | K48: 55329.26103 | L48: 13370.99524 | M48: 176455.6758 | N48: 0 | P48: E48* " | R48: 0.06114769063 | S48: 0.08778587751 | T48: 0.006712928065 | U48: 0 | V48: 0 | W48: 0.1446761069 | X48: 0 | Y48: 0 | Z48: 0 | AA48: 0 | AB48: 0.4544698471 | AC48: 0.1479191325 | AD48: 0.0908607995 | AE48: 0 | AF48: 0.006427617797 | AG48: 0 | AH48: 0 | AI48: 0 | AK48: 6712000 | AL48: 1044699.283 | AM48: 971066.0294 | AN48: 4696234.688 | AO48: 0 | AQ48: E48* " | AS48: 1044699.283 | AT48: 676827.2652 | AU48: 267228.1982 | AV48: 33463.79664 | AW48: 6882.58383 | AX48: 60297.43862 | AY48: 0 | BA48: 971066.0294 | BB48: 619719.18 | BC48: 233849.9572 | BD48: 17402.25307 | BE48: 4540.786777 | BF48: 95553.85237 | BG48: 0 | BI48: 4696234.688 | BJ48: 4496870.081 | BK48: 172349.3863 | BL48: 4463.211327 | BM48: 1947.624634 | BN48: 20604.38483 | BO48: 0
A49: 49 | B49: 393 | C49: O | D49: Stores Equipment | E49: =PROFORMA!AW286 -> 399000 | F49: Corporate Cost Allocator | H49: 399000 | I49: 344394.0992 | J49: 40032.41793 | K49: 3289.090457 | L49: 794.8490913 | M49: 10489.5433 | N49: 0 | P49: E49* " | R49: 0.06114769063 | S49: 0.08778587751 | T49: 0.006712928065 | U49: 0 | V49: 0 | W49: 0.1446761069 | X49: 0 | Y49: 0 | Z49: 0 | AA49: 0 | AB49: 0.4544698471 | AC49: 0.1479191325 | AD49: 0.0908607995 | AE49: 0 | AF49: 0.006427617797 | AG49: 0 | AH49: 0 | AI49: 0 | AK49: 399000 | AL49: 62102.95199 | AM49: 57725.76665 | AN49: 279171.2814 | AO49: 0 | AQ49: E49* " | AS49: 62102.95199 | AT49: 40234.51711 | AU49: 15885.58568 | AV49: 1989.281117 | AW49: 409.1404869 | AX49: 3584.427594 | AY49: 0 | BA49: 57725.76665 | BB49: 36839.68308 | BC49: 13901.39048 | BD49: 1034.490312 | BE49: 269.9305608 | BF49: 5680.272213 | BG49: 0 | BI49: 279171.2814 | BJ49: 267319.899 | BK49: 10245.44176 | BL49: 265.3190285 | BM49: 115.7780436 | BN49: 1224.843496 | BO49: 0
A50: 50 | B50: 394 | C50: O | D50: Tools, Shop & Garage Equipment | E50: =PROFORMA!AW287 -> 4379000 | F50: Corporate Cost Allocator | H50: 4379000 | I50: 3779703.66 | J50: 439353.2785 | K50: 36097.56169 | L50: 8723.418975 | M50: 115122.0805 | N50: 0 | P50: E50* " | R50: 0.06114769063 | S50: 0.08778587751 | T50: 0.006712928065 | U50: 0 | V50: 0 | W50: 0.1446761069 | X50: 0 | Y50: 0 | Z50: 0 | AA50: 0 | AB50: 0.4544698471 | AC50: 0.1479191325 | AD50: 0.0908607995 | AE50: 0 | AF50: 0.006427617797 | AG50: 0 | AH50: 0 | AI50: 0 | AK50: 4379000 | AL50: 681576.0069 | AM50: 633536.672 | AN50: 3063887.321 | AO50: 0 | AQ50: E50* " | AS50: 681576.0069 | AT50: 441571.3043 | AU50: 174343.3075 | AV50: 21832.23562 | AW50: 4490.291208 | AX50: 39338.86825 | AY50: 0 | BA50: 633536.672 | BB50: 404313.2135 | BC50: 152566.8895 | BD50: 11353.46636 | BE50: 2962.470992 | BF50: 62340.63164 | BG50: 0 | BI50: 3063887.321 | BJ50: 2933819.143 | BK50: 112443.0814 | BL50: 2911.859714 | BM50: 1270.656774 | BN50: 13442.58063 | BO50: 0
A51: 51 | B51: 395 | C51: O | D51: Laboratory Equipment | E51: =PROFORMA!AW288 -> 239000 | F51: Corporate Cost Allocator | H51: 239000 | I51: 206291.2023 | J51: 23979.31801 | K51: 1970.156941 | L51: 476.1126136 | M51: 6283.210149 | N51: 0 | P51: E51* " | R51: 0.06114769063 | S51: 0.08778587751 | T51: 0.006712928065 | U51: 0 | V51: 0 | W51: 0.1446761069 | X51: 0 | Y51: 0 | Z51: 0 | AA51: 0 | AB51: 0.4544698471 | AC51: 0.1479191325 | AD51: 0.0908607995 | AE51: 0 | AF51: 0.006427617797 | AG51: 0 | AH51: 0 | AI51: 0 | AK51: 239000 | AL51: 37199.51259 | AM51: 34577.58955 | AN51: 167222.8979 | AO51: 0 | AQ51: E51* " | AS51: 37199.51259 | AT51: 24100.37491 | AU51: 9515.426009 | AV51: 1191.574403 | AW51: 245.0741262 | AX51: 2147.063145 | AY51: 0 | BA51: 34577.58955 | BB51: 22066.87783 | BC51: 8326.898059 | BD51: 619.6571041 | BE51: 161.6877294 | BF51: 3402.46882 | BG51: 0 | BI51: 167222.8979 | BJ51: 160123.9495 | BK51: 6136.993939 | BL51: 158.9254331 | BM51: 69.35075796 | BN51: 733.6781844 | BO51: 0
A52: 52 | B52: 396 | C52: O | D52: Power Operated Equipment | E52: =PROFORMA!AW289 -> 3623000 | F52: Corporate Cost Allocator | H52: 3623000 | I52: 3127167.472 | J52: 363502.3813 | K52: 29865.60082 | L52: 7217.389117 | M52: 95247.15636 | N52: 0 | P52: E52* " | R52: 0.06114769063 | S52: 0.08778587751 | T52: 0.006712928065 | U52: 0 | V52: 0 | W52: 0.1446761069 | X52: 0 | Y52: 0 | Z52: 0 | AA52: 0 | AB52: 0.4544698471 | AC52: 0.1479191325 | AD52: 0.0908607995 | AE52: 0 | AF52: 0.006427617797 | AG52: 0 | AH52: 0 | AI52: 0 | AK52: 3623000 | AL52: 563907.2558 | AM52: 524161.5352 | AN52: 2534931.209 | AO52: 0 | AQ52: E52* " | AS52: 563907.2558 | AT52: 365337.4824 | AU52: 144244.3031 | AV52: 18063.0714 | AW52: 3715.077654 | AX52: 32547.32123 | AY52: 0 | BA52: 524161.5352 | BB52: 334511.7088 | BC52: 126227.4128 | BD52: 9393.379449 | BE52: 2451.023614 | BF52: 51578.0106 | BG52: 0 | BI52: 2534931.209 | BJ52: 2427318.281 | BK52: 93030.66544 | BL52: 2409.149976 | BM52: 1051.28785 | BN52: 11121.82453 | BO52: 0
A53: 53 | B53: 397 | C53: O | D53: Communication Equipment | E53: =PROFORMA!AW290 -> 5179000 | F53: Corporate Cost Allocator | H53: 5179000 | I53: 4470218.145 | J53: 519618.7781 | K53: 42692.22927 | L53: 10317.10136 | M53: 136153.7463 | N53: 0 | P53: E53* " | R53: 0.06114769063 | S53: 0.08778587751 | T53: 0.006712928065 | U53: 0 | V53: 0 | W53: 0.1446761069 | X53: 0 | Y53: 0 | Z53: 0 | AA53: 0 | AB53: 0.4544698471 | AC53: 0.1479191325 | AD53: 0.0908607995 | AE53: 0 | AF53: 0.006427617797 | AG53: 0 | AH53: 0 | AI53: 0 | AK53: 5179000 | AL53: 806093.2039 | AM53: 749277.5576 | AN53: 3623629.239 | AO53: 0 | AQ53: E53* " | AS53: 806093.2039 | AT53: 522242.0153 | AU53: 206194.1059 | AV53: 25820.76919 | AW53: 5310.623012 | AX53: 46525.6905 | AY53: 0 | BA53: 749277.5576 | BB53: 478177.2398 | BC53: 180439.3517 | BD53: 13427.63239 | BE53: 3503.685149 | BF53: 73729.64861 | BG53: 0 | BI53: 3623629.239 | BJ53: 3469798.89 | BK53: 132985.3205 | BL53: 3443.827691 | BM53: 1502.793203 | BN53: 15898.40718 | BO53: 0
A54: 54 | B54: 398 | C54: O | D54: Miscellaneous Equipment | E54: =PROFORMA!AW291 -> 62000 | F54: Corporate Cost Allocator | H54: 62000 | I54: 53514.87256 | J54: 6220.576219 | K54: 511.0867378 | L54: 123.5103851 | M54: 1629.954097 | N54: 0 | P54: E54* " | R54: 0.06114769063 | S54: 0.08778587751 | T54: 0.006712928065 | U54: 0 | V54: 0 | W54: 0.1446761069 | X54: 0 | Y54: 0 | Z54: 0 | AA54: 0 | AB54: 0.4544698471 | AC54: 0.1479191325 | AD54: 0.0908607995 | AE54: 0 | AF54: 0.006427617797 | AG54: 0 | AH54: 0 | AI54: 0 | AK54: 62000 | AL54: 9650.082765 | AM54: 8969.918627 | AN54: 43379.99861 | AO54: 0 | AQ54: E54* " | AS54: 9650.082765 | AT54: 6251.980102 | AU54: 2468.436873 | AV54: 309.1113515 | AW54: 63.57571475 | AX54: 556.9787239 | AY54: 0 | BA54: 8969.918627 | BB54: 5724.462032 | BC54: 2160.115814 | BD54: 160.747868 | BE54: 41.94409717 | BF54: 882.6488151 | BG54: 0 | BI54: 43379.99861 | BJ54: 41538.43043 | BK54: 1592.023532 | BL54: 41.22751822 | BM54: 17.99057319 | BN54: 190.3265583 | BO54: 0
A55: 55 | D55: Total General Plant | E55: =SUM(E45:E54) -> 66164000 | G55: Genl Plant | H55: =IF(ROUND(SUM(H44:H54),3)<>ROUND(SUM(I55:N55),3),#VALUE!,SUM(H44:H54)) -> 66164000 | I55: =SUM(I44:I54) -> 57109000.45 | J55: 6638358.145 | K55: 545411.9825 | L55: 131805.502 | M55: 1739423.918 | N55: 0 | P55: =$A44&":"&$A54 -> 44:54 | R55: =SUMPRODUCT($E45:$E54,R$45:R$54)/$E55 -> 0.06114769063 | S55: =SUMPRODUCT($E45:$E54,S$45:S$54)/$E55 -> 0.08778587751 | T55: =SUMPRODUCT($E45:$E54,T$45:T$54)/$E55 -> 0.006712928065 | U55: =SUMPRODUCT($E45:$E54,U$45:U$54)/$E55 -> 0 | V55: =SUMPRODUCT($E45:$E54,V$45:V$54)/$E55 -> 0 | W55: 0.1446761069 | X55: 0 | Y55: =SUMPRODUCT($E45:$E54,Y$45:Y$54)/$E55 -> 0 | Z55: =SUMPRODUCT($E45:$E54,Z$45:Z$54)/$E55 -> 0 | AA55: 0 | AB55: =SUMPRODUCT($E45:$E54,AB$45:AB$54)/$E55 -> 0.4544698471 | AC55: 0.1479191325 | AD55: 0.0908607995 | AE55: =SUMPRODUCT($E45:$E54,AE$45:AE$54)/$E55 -> 0 | AF55: 0.006427617797 | AG55: =SUMPRODUCT($E45:$E54,AG$45:AG$54)/$E55 -> 0 | AH55: =SUMPRODUCT($E45:$E54,AH$45:AH$54)/$E55 -> 0 | AI55: 0 | AK55: =SUM(AK44:AK54) -> 66164000 | AL55: =SUM(AL44:AL54) -> 10298194.78 | AM55: =SUM(AM44:AM54) -> 9572349.936 | AN55: =SUM(AN44:AN54) -> 46293455.29 | AO55: =SUM(AO44:AO54) -> 0 | AQ55: =$A44&":"&$A54 -> 44:54 | AS55: =IF(ROUND(SUM(AS44:AS54),3)<>ROUND(SUM(AT55:AY55),3),#VALUE!,SUM(AS44:AS54)) -> 10298194.78 | AT55: =SUM(AT44:AT54) -> 6671871.153 | AU55: 2634220.278 | AV55: 329871.6687 | AW55: 67845.54179 | AX55: 594386.1336 | AY55: 0 | BA55: =IF(ROUND(SUM(BA44:BA54),3)<>ROUND(SUM(BB55:BG55),3),#VALUE!,SUM(BA44:BA54)) -> 9572349.936 | BB55: =SUM(BB44:BB54) -> 6108924.289 | BC55: 2305191.98 | BD55: 171543.9023 | BE55: 44761.11686 | BF55: 941928.6484 | BG55: 0 | BI55: =IF(ROUND(SUM(BI44:BI54),3)<>ROUND(SUM(BJ55:BO55),3),#VALUE!,SUM(BI44:BI54)) -> 46293455.29 | BJ55: =SUM(BJ44:BJ54) -> 44328205.01 | BK55: 1698945.887 | BL55: 43996.41154 | BM55: 19198.8433 | BN55: 203109.1355 | BO55: 0
A56: 56 | AI56: 0
A57: 57 | D57: Total Plant In Service | E57: =E12+E23+E40+E55 -> 436076000 | F57: ="("&A$12&"+"&A$23&"+"&A$40&"+"&A$55&")" -> (12+23+40+55) | G57: Plant in Service (S17) | H57: =H12+H23+H40+H55 -> 436076000 | I57: =I12+I23+I40+I55 -> 343089827.6 | J57: 66192045.87 | K57: 5792271.112 | L57: 1385426.917 | M57: 19616428.5 | N57: 0 | P57: ="Sum("&$A12&","&$A23&","&$A40&","&$A55&")" -> Sum(12,23,40,55) | R57: =($E12*R12+$E23*R23+$E40*R40+$E55*R55)/$E57 -> 0.1021961708 | S57: =($E12*S12+$E23*S23+$E40*S40+$E55*S55)/$E57 -> 0.1278525387 | T57: 0.01270837744 | U57: =($E12*U12+$E23*U23+$E40*U40+$E55*U55)/$E57 -> 0 | V57: =($E12*V12+$E23*V23+$E40*V40+$E55*V55)/$E57 -> 0 | W57: 0.2647023508 | X57: 0 | Y57: =($E12*Y12+$E23*Y23+$E40*Y40+$E55*Y55)/$E57 -> 0 | Z57: 0 | AA57: 0 | AB57: 0.07671802359 | AC57: 0.2835354036 | AD57: 0.1252075749 | AE57: 0 | AF57: 0.007079560269 | AG57: =($E12*AG12+$E23*AG23+$E40*AG40+$E55*AG55)/$E57 -> 0 | AH57: 0 | AI57: 0 | AK57: =AK12+AK23+AK40+AK55 -> 436076000 | AL57: =AL12+AL23+AL40+AL55 -> 105860539.4 | AM57: =AM12+AM23+AM40+AM55 -> 115430342.3 | AN57: =AN12+AN23+AN40+AN55 -> 214785118.3 | AO57: =AO12+AO23+AO40+AO55 -> 0 | AQ57: ="Sum("&$A12&","&$A23&","&$A40&","&$A55&")" -> Sum(12,23,40,55) | AS57: =AS12+AS23+AS40+AS55 -> 105860539.4 | AT57: =AT12+AT23+AT40+AT55 -> 68288035.92 | AU57: 26961810.99 | AV57: 3376307.463 | AW57: 687063.5863 | AX57: 6547321.476 | AY57: 0 | BA57: =BA12+BA23+BA40+BA55 -> 115430342.3 | BB57: =BB12+BB23+BB40+BB55 -> 73665842.4 | BC57: 27797677.8 | BD57: 2068600.865 | BE57: 539762.0308 | BF57: 11358459.21 | BG57: 0 | BI57: =BI12+BI23+BI40+BI55 -> 214785118.3 | BJ57: =BJ12+BJ23+BJ40+BJ55 -> 201135949.3 | BK57: 11432557.08 | BL57: 347362.7848 | BM57: 158601.3001 | BN57: 1710647.811 | BO57: 0
A58: 58 | E58: =(E57/1000)-PROFORMA!AW294 -> 0 | AI58: 0
A59: 59 | AI59: 0
A60: 60 | D60: Accumulated Reserve For Depreciation | AI60: 0
A61: 61 | D61: Underground Storage Plant Accumulated Depreciation | AI61: 0
A62: 62 | B62: 350 | C62: U | D62: Land & Land Rights Accum. Depr. | E62: =PROFORMA!AW308 -> -15000 | F62: ="as 350 Plant ("&A$15&")" -> as 350 Plant (15) | H62: =SUM(I62:N62) -> -15000 | I62: =$E62*SUMPRODUCT($R62:$AH62,INDEX(AllocFactors,I$4,0)) -> -10006.86084 | J62: -3950.956956 | K62: -494.7607363 | L62: -106.6757402 | M62: -440.7457279 | N62: 0 | P62: =E$1&$A62&"* Sum["&$R$1&$A62&":"&$AH$1&$A62&"* "&Factors!D$1&Factors!$A$58&":"&Factors!S$1&Factors!$A$64&"]" -> E62* Sum[R62:AH62* D588:S594] | R62: =R$15 -> 0.2 | S62: =S$15 -> 0.8 | T62: 0 | U62: 0 | V62: 0 | W62: 0 | X62: 0 | Y62: 0 | Z62: 0 | AA62: 0 | AB62: 0 | AC62: 0 | AD62: 0 | AE62: 0 | AF62: 0 | AG62: 0 | AH62: 0 | AI62: 0 | AK62: =SUM(AL62:AO62) -> -15000 | AL62: =SUMIF($R$4:$AH$4,AL$5,$R62:$AH62)*$E62 -> -15000 | AM62: 0 | AN62: 0 | AO62: 0 | AQ62: =E$1&$A62&"*["&R$1&$A62&":"&$AH$1&$A62&" when "&R$1&$A$4&":"&$AH$1&$A$4&" = E,D,C,or R]" -> E62*[R62:AH62 when R4:AH4 = E,D,C,or R] | AS62: =SUM(AT62:AY62) -> -15000 | AT62: =$E62*SUMPRODUCT($R62:$V62,INDEX(AllocFactors_E,AT$4,0)) -> -10006.86084 | AU62: -3950.956956 | AV62: -494.7607363 | AW62: -106.6757402 | AX62: -440.7457279 | AY62: 0 | BA62: =SUM(BB62:BG62) -> 0 | BB62: =$E62*SUMPRODUCT($W62:$AA62,INDEX(AllocFactors_D,BB$4,0)) -> 0 | BC62: 0 | BD62: 0 | BE62: 0 | BF62: 0 | BG62: 0 | BI62: =SUM(BJ62:BO62) -> 0 | BJ62: =$E62*SUMPRODUCT($AB62:$AG62,INDEX(AllocFactors_C,BJ$4,0)) -> 0 | BK62: 0 | BL62: 0 | BM62: 0 | BN62: 0 | BO62: 0
A63: 63 | B63: 351 | C63: U | D63: Structures & Improvements Accum. Depr. | E63: =PROFORMA!AW309 -> -541000 | F63: ="as 351 Plant ("&A$16&")" -> as 351 Plant (16) | H63: -541000 | I63: -360914.1143 | J63: -142497.8476 | K63: -17844.37056 | L63: -3847.438362 | M63: -15896.22925 | N63: 0 | P63: =E$1&$A63&"* """ -> E63* " | R63: =R$16 -> 0.2 | S63: =S$16 -> 0.8 | T63: 0 | U63: 0 | V63: 0 | W63: 0 | X63: 0 | Y63: 0 | Z63: 0 | AA63: 0 | AB63: 0 | AC63: 0 | AD63: 0 | AE63: 0 | AF63: 0 | AG63: 0 | AH63: 0 | AI63: 0 | AK63: -541000 | AL63: -541000 | AM63: 0 | AN63: 0 | AO63: 0 | AQ63: =E$1&$A63&"* """ -> E63* " | AS63: -541000 | AT63: -360914.1143 | AU63: -142497.8476 | AV63: -17844.37056 | AW63: -3847.438362 | AX63: -15896.22925 | AY63: 0 | BA63: 0 | BB63: 0 | BC63: 0 | BD63: 0 | BE63: 0 | BF63: 0 | BG63: 0 | BI63: 0 | BJ63: 0 | BK63: 0 | BL63: 0 | BM63: 0 | BN63: 0 | BO63: 0
A64: 64 | B64: 352 | C64: U | D64: Wells Accum. Depr. | E64: =PROFORMA!AW310 -> -6730000 | F64: ="as 352 Plant ("&A$17&")" -> as 352 Plant (17) | H64: -6730000 | I64: -4489744.897 | J64: -1772662.688 | K64: -221982.6503 | L64: -47861.84875 | M64: -197747.9166 | N64: 0 | P64: E64* " | R64: =R$17 -> 0.2 | S64: =S$17 -> 0.8 | T64: 0 | U64: 0 | V64: 0 | W64: 0 | X64: 0 | Y64: 0 | Z64: 0 | AA64: 0 | AB64: 0 | AC64: 0 | AD64: 0 | AE64: 0 | AF64: 0 | AG64: 0 | AH64: 0 | AI64: 0 | AK64: -6730000 | AL64: -6730000 | AM64: 0 | AN64: 0 | AO64: 0 | AQ64: =E$1&$A64&"* """ -> E64* " | AS64: -6730000 | AT64: -4489744.897 | AU64: -1772662.688 | AV64: -221982.6503 | AW64: -47861.84875 | AX64: -197747.9166 | AY64: 0 | BA64: 0 | BB64: 0 | BC64: 0 | BD64: 0 | BE64: 0 | BF64: 0 | BG64: 0 | BI64: 0 | BJ64: 0 | BK64: 0 | BL64: 0 | BM64: 0 | BN64: 0 | BO64: 0
A65: 65 | B65: 353 | C65: U | D65: Lines Accum. Depr. | E65: =PROFORMA!AW311 -> -348000 | F65: ="as 353 Plant ("&A$18&")" -> as 353 Plant (18) | H65: -348000 | I65: -232159.1715 | J65: -91662.20139 | K65: -11478.44908 | L65: -2474.877172 | M65: -10225.30089 | N65: 0 | P65: E65* " | R65: =R$18 -> 0.2 | S65: =S$18 -> 0.8 | T65: 0 | U65: 0 | V65: 0 | W65: 0 | X65: 0 | Y65: 0 | Z65: 0 | AA65: 0 | AB65: 0 | AC65: 0 | AD65: 0 | AE65: 0 | AF65: 0 | AG65: 0 | AH65: 0 | AI65: 0 | AK65: -348000 | AL65: -348000 | AM65: 0 | AN65: 0 | AO65: 0 | AQ65: E65* " | AS65: -348000 | AT65: -232159.1715 | AU65: -91662.20139 | AV65: -11478.44908 | AW65: -2474.877172 | AX65: -10225.30089 | AY65: 0 | BA65: 0 | BB65: 0 | BC65: 0 | BD65: 0 | BE65: 0 | BF65: 0 | BG65: 0 | BI65: 0 | BJ65: 0 | BK65: 0 | BL65: 0 | BM65: 0 | BN65: 0 | BO65: 0
A66: =RowHdr -> 66 | B66: 354 | C66: U | D66: Compressor Station Equip. Accum. Depr. | E66: =PROFORMA!AW312 -> -1459000 | F66: ="as 354 Plant ("&A$19&")" -> as 354 Plant (19) | H66: -1459000 | I66: -973333.9976 | J66: -384296.4133 | K66: -48123.72762 | L66: -10375.99366 | M66: -42869.8678 | N66: 0 | P66: E66* " | R66: =R$19 -> 0.2 | S66: =S$19 -> 0.8 | T66: 0 | U66: 0 | V66: 0 | W66: 0 | X66: 0 | Y66: 0 | Z66: 0 | AA66: 0 | AB66: 0 | AC66: 0 | AD66: 0 | AE66: 0 | AF66: 0 | AG66: 0 | AH66: 0 | AI66: 0 | AK66: -1459000 | AL66: -1459000 | AM66: 0 | AN66: 0 | AO66: 0 | AQ66: E66* " | AS66: -1459000 | AT66: -973333.9976 | AU66: -384296.4133 | AV66: -48123.72762 | AW66: -10375.99366 | AX66: -42869.8678 | AY66: 0 | BA66: 0 | BB66: 0 | BC66: 0 | BD66: 0 | BE66: 0 | BF66: 0 | BG66: 0 | BI66: 0 | BJ66: 0 | BK66: 0 | BL66: 0 | BM66: 0 | BN66: 0 | BO66: 0
A67: 67 | B67: 355 | C67: U | D67: Measuring & Regulating Equip. Accum. Depr. | E67: =PROFORMA!AW313 -> 252000 | F67: ="as 355 Plant ("&A$20&")" -> as 355 Plant (20) | H67: 252000 | I67: 168115.2621 | J67: 66376.07687 | K67: 8311.980369 | L67: 1792.152435 | M67: 7404.528228 | N67: 0 | P67: E67* " | R67: =R$20 -> 0.2 | S67: =S$20 -> 0.8 | T67: 0 | U67: 0 | V67: 0 | W67: 0 | X67: 0 | Y67: 0 | Z67: 0 | AA67: 0 | AB67: 0 | AC67: 0 | AD67: 0 | AE67: 0 | AF67: 0 | AG67: 0 | AH67: 0 | AI67: 0 | AK67: 252000 | AL67: 252000 | AM67: 0 | AN67: 0 | AO67: 0 | AQ67: E67* " | AS67: 252000 | AT67: 168115.2621 | AU67: 66376.07687 | AV67: 8311.980369 | AW67: 1792.152435 | AX67: 7404.528228 | AY67: 0 | BA67: 0 | BB67: 0 | BC67: 0 | BD67: 0 | BE67: 0 | BF67: 0 | BG67: 0 | BI67: 0 | BJ67: 0 | BK67: 0 | BL67: 0 | BM67: 0 | BN67: 0 | BO67: 0
A68: 68 | B68: 356 | C68: U | D68: Purification Equipment Accum. Depr. | E68: =PROFORMA!AW314 -> -255000 | F68: ="as 356 Plant ("&A$21&")" -> as 356 Plant (21) | H68: -255000 | I68: -170116.6343 | J68: -67166.26826 | K68: -8410.932517 | L68: -1813.487583 | M68: -7492.677374 | N68: 0 | P68: E68* " | R68: =R$21 -> 0.2 | S68: =S$21 -> 0.8 | T68: 0 | U68: 0 | V68: 0 | W68: 0 | X68: 0 | Y68: 0 | Z68: 0 | AA68: 0 | AB68: 0 | AC68: 0 | AD68: 0 | AE68: 0 | AF68: 0 | AG68: 0 | AH68: 0 | AI68: 0 | AK68: -255000 | AL68: -255000 | AM68: 0 | AN68: 0 | AO68: 0 | AQ68: E68* " | AS68: -255000 | AT68: -170116.6343 | AU68: -67166.26826 | AV68: -8410.932517 | AW68: -1813.487583 | AX68: -7492.677374 | AY68: 0 | BA68: 0 | BB68: 0 | BC68: 0 | BD68: 0 | BE68: 0 | BF68: 0 | BG68: 0 | BI68: 0 | BJ68: 0 | BK68: 0 | BL68: 0 | BM68: 0 | BN68: 0 | BO68: 0
A69: 69 | B69: 357 | C69: U | D69: Other Equipment Accum. Depr. | E69: =PROFORMA!AW315 -> -530000 | F69: ="as 357 Plant ("&A$22&")" -> as 357 Plant (22) | H69: -530000 | I69: -353575.7497 | J69: -139600.4791 | K69: -17481.54602 | L69: -3769.209486 | M69: -15573.01572 | N69: 0 | P69: E69* " | R69: =R$22 -> 0.2 | S69: =S$22 -> 0.8 | T69: 0 | U69: 0 | V69: 0 | W69: 0 | X69: 0 | Y69: 0 | Z69: 0 | AA69: 0 | AB69: 0 | AC69: 0 | AD69: 0 | AE69: 0 | AF69: 0 | AG69: 0 | AH69: 0 | AI69: 0 | AK69: -530000 | AL69: -530000 | AM69: 0 | AN69: 0 | AO69: 0 | AQ69: E69* " | AS69: -530000 | AT69: -353575.7497 | AU69: -139600.4791 | AV69: -17481.54602 | AW69: -3769.209486 | AX69: -15573.01572 | AY69: 0 | BA69: 0 | BB69: 0 | BC69: 0 | BD69: 0 | BE69: 0 | BF69: 0 | BG69: 0 | BI69: 0 | BJ69: 0 | BK69: 0 | BL69: 0 | BM69: 0 | BN69: 0 | BO69: 0
A70: 70 | D70: Total Transmission Plant Accum Depr | E70: =SUM(E62:E69) -> -9626000 | H70: =IF(ROUND(SUM(H61:H69),3)<>ROUND(SUM(I70:N70),3),#VALUE!,SUM(H61:H69)) -> -9626000 | I70: =SUM(I61:I69) -> -6421736.163 | J70: -2535460.777 | K70: -317504.4565 | L70: -68457.37832 | M70: -282841.2251 | N70: 0 | P70: =$A61&":"&A69 -> 61:69 | R70: =SUMPRODUCT($E62:$E69,R$62:R$69)/$E70 -> 0.2 | S70: 0.8 | T70: 0 | U70: 0 | V70: 0 | W70: 0 | X70: 0 | Y70: 0 | Z70: 0 | AA70: 0 | AB70: 0 | AC70: 0 | AD70: 0 | AE70: 0 | AF70: 0 | AG70: 0 | AH70: 0 | AI70: 0 | AK70: =IF(ROUND(SUM(AK61:AK69),3)<>ROUND(SUM(AL70:AO70),3),#VALUE!,SUM(AK61:AK69)) -> -9626000 | AL70: =SUM(AL61:AL69) -> -9626000 | AM70: =SUM(AM61:AM69) -> 0 | AN70: =SUM(AN61:AN69) -> 0 | AO70: =SUM(AO61:AO69) -> 0 | AQ70: =$A61&":"&$A69 -> 61:69 | AS70: =IF(ROUND(SUM(AS61:AS69),3)<>ROUND(SUM(AT70:AY70),3),#VALUE!,SUM(AS61:AS69)) -> -9626000 | AT70: =SUM(AT61:AT69) -> -6421736.163 | AU70: -2535460.777 | AV70: -317504.4565 | AW70: -68457.37832 | AX70: -282841.2251 | AY70: 0 | BA70: =IF(ROUND(SUM(BA61:BA69),3)<>ROUND(SUM(BB70:BG70),3),#VALUE!,SUM(BA61:BA69)) -> 0 | BB70: =SUM(BB61:BB69) -> 0 | BC70: 0 | BD70: 0 | BE70: 0 | BF70: 0 | BG70: 0 | BI70: =IF(ROUND(SUM(BI61:BI69),3)<>ROUND(SUM(BJ70:BO70),3),#VALUE!,SUM(BI61:BI69)) -> 0 | BJ70: =SUM(BJ61:BJ69) -> 0 | BK70: 0 | BL70: 0 | BM70: 0 | BN70: 0 | BO70: 0
A71: 71 | AI71: 0
A72: 72 | D72: Distribution Plant Accumulated Depreciation | AI72: =IF(SUM(R72:AH72)<>0,(ROUND(SUM(R72:AH72),8)<>1)+0,0) -> 0
A73: 73 | B73: 374 | C73: D | D73: Land & Land Rights Accum. Depr. | E73: =PROFORMA!AW319 -> 0 | F73: ="as 374 Plant ("&A$26&")" -> as 374 Plant (26) | H73: =SUM(I73:N73) -> 0 | I73: =$E73*SUMPRODUCT($R73:$AH73,INDEX(AllocFactors,I$4,0)) -> 0 | J73: 0 | K73: 0 | L73: 0 | M73: 0 | N73: 0 | P73: =E$1&$A73&"* Sum["&$R$1&$A73&":"&$AH$1&$A73&"* "&Factors!D$1&Factors!$A$58&":"&Factors!S$1&Factors!$A$64&"]" -> E73* Sum[R73:AH73* D588:S594] | R73: =R$26 -> 0.1038834589 | S73: =S$26 -> 0.08663983857 | T73: 0.01496099336 | U73: 0 | V73: 0 | W73: 0.3105632093 | X73: 0 | Y73: 0 | Z73: 0 | AA73: 0 | AB73: 0 | AC73: 0.3341974628 | AD73: 0.1420070731 | AE73: 0 | AF73: 0.00774796405 | AG73: 0 | AH73: 0 | AI73: 0 | AK73: =SUM(AL73:AO73) -> 0 | AL73: =SUMIF($R$4:$AH$4,AL$5,$R73:$AH73)*$E73 -> 0 | AM73: 0 | AN73: 0 | AO73: 0 | AQ73: =E$1&$A73&"*["&R$1&$A73&":"&$AH$1&$A73&" when "&R$1&$A$4&":"&$AH$1&$A$4&" = E,D,C,or R]" -> E73*[R73:AH73 when R4:AH4 = E,D,C,or R] | AS73: =SUM(AT73:AY73) -> 0 | AT73: =$E73*SUMPRODUCT($R73:$V73,INDEX(AllocFactors_E,AT$4,0)) -> 0 | AU73: 0 | AV73: 0 | AW73: 0 | AX73: 0 | AY73: 0 | BA73: =SUM(BB73:BG73) -> 0 | BB73: =$E73*SUMPRODUCT($W73:$AA73,INDEX(AllocFactors_D,BB$4,0)) -> 0 | BC73: 0 | BD73: 0 | BE73: 0 | BF73: 0 | BG73: 0 | BI73: =SUM(BJ73:BO73) -> 0 | BJ73: =$E73*SUMPRODUCT($AB73:$AG73,INDEX(AllocFactors_C,BJ$4,0)) -> 0 | BK73: 0 | BL73: 0 | BM73: 0 | BN73: 0 | BO73: 0
A74: 74 | B74: 375 | C74: D | D74: Structures & Improvements Accum. Depr. | E74: =PROFORMA!AW320 -> -12341000 | F74: ="as 375 Plant ("&A$27&")" -> as 375 Plant (27) | H74: -12341000 | I74: -9613561.69 | J74: -1909434.678 | K74: -159421.0862 | L74: -38789.42646 | M74: -619793.1186 | N74: 0 | P74: =E$1&$A74&"* """ -> E74* " | R74: =R$27 -> 0.1038834589 | S74: =S$27 -> 0.08663983857 | T74: 0.01496099336 | U74: 0 | V74: 0 | W74: 0.3105632093 | X74: 0 | Y74: 0 | Z74: 0 | AA74: 0 | AB74: 0 | AC74: 0.3341974628 | AD74: 0.1420070731 | AE74: 0 | AF74: 0.00774796405 | AG74: 0 | AH74: 0 | AI74: 0 | AK74: -12341000 | AL74: -2535881.633 | AM74: -3832660.566 | AN74: -5972457.801 | AO74: 0 | AQ74: =E$1&$A74&"* """ -> E74* " | AS74: -2535881.633 | AT74: -1614441.783 | AU74: -637421.6745 | AV74: -79821.47629 | AW74: -15847.57264 | AX74: -188349.1265 | AY74: 0 | BA74: -3832660.566 | BB74: -2445944.139 | BC74: -922972.7764 | BD74: -68684.23677 | BE74: -17921.84454 | BF74: -377137.5692 | BG74: 0 | BI74: -5972457.801 | BJ74: -5553175.769 | BK74: -349040.2274 | BL74: -10915.3731 | BM74: -5020.009279 | BN74: -54306.42294 | BO74: 0
A75: 75 | B75: 376-All | C75: D | D75: Mains Accum. Depr. | E75: =PROFORMA!AW321+PROFORMA!AW322 -> -53173000 | F75: ="as 376-SM Plant ("&A$30&")" -> as 376-SM Plant (30) | H75: =SUM(I75:N75) -> -53173000 | I75: -33936677.88 | J75: -13042136.92 | K75: -1241662.873 | L75: -281950.8317 | M75: -4670571.488 | N75: 0 | P75: =E$1&$A75&"* """ -> E75* " | R75: =R$28 -> 0.1947956749 | S75: =S$28 -> 0.1734428725 | T75: 0.02995016733 | U75: 0 | V75: 0 | W75: 0.6018112853 | X75: 0 | Y75: 0 | Z75: 0 | AA75: 0 | AB75: 0 | AC75: 0 | AD75: 0 | AE75: 0 | AF75: 0 | AG75: 0 | AH75: 0 | AI75: =IF(SUM(R75:AH75)<>0,(ROUND(SUM(R75:AH75),8)<>1)+0,0) -> 0 | AK75: =SUM(AL75:AO75) -> -53173000 | AL75: -21172888.53 | AM75: -32000111.47 | AN75: 0 | AO75: 0 | AQ75: =E$1&$A75&"* """ -> E75* " | AS75: =SUM(AT75:AY75) -> -21172888.53 | AT75: -13514706.32 | AU75: -5335941.391 | AV75: -668196.1662 | AW75: -132315.6075 | AX75: -1521729.046 | AY75: 0 | BA75: =SUM(BB75:BG75) -> -32000111.47 | BB75: -20421971.57 | BC75: -7706195.532 | BD75: -573466.7068 | BE75: -149635.2242 | BF75: -3148842.442 | BG75: 0 | BI75: =SUM(BJ75:BO75) -> 0 | BJ75: 0 | BK75: 0 | BL75: 0 | BM75: 0 | BN75: 0 | BO75: 0
A76: 76 | B76: 376 | C76: D | D76: Mains Accum. Depr. | F76: ="as 376-SM Plant ("&A$30&")" -> as 376-SM Plant (30) | H76: 0 | I76: 0 | J76: 0 | K76: 0 | L76: 0 | M76: 0 | N76: 0 | P76: E76* " | R76: =R$29 -> 0 | S76: =S$29 -> 0 | T76: 0 | U76: 0 | V76: 0 | W76: 0 | X76: 0 | Y76: 0 | Z76: 0 | AA76: 0 | AB76: 0 | AC76: 0 | AD76: 0 | AE76: 0 | AF76: 0 | AG76: 0 | AH76: 0 | AI76: 0 | AK76: 0 | AL76: 0 | AM76: 0 | AN76: 0 | AO76: 0 | AQ76: =E$1&$A76&"* """ -> E76* " | AS76: 0 | AT76: 0 | AU76: 0 | AV76: 0 | AW76: 0 | AX76: 0 | AY76: 0 | BA76: 0 | BB76: 0 | BC76: 0 | BD76: 0 | BE76: 0 | BF76: 0 | BG76: 0 | BI76: 0 | BJ76: 0 | BK76: 0 | BL76: 0 | BM76: 0 | BN76: 0 | BO76: 0
A77: 77 | B77: 378 | C77: D | D77: Meas & Reg Station Equip-Gen. Accum. Depr. | E77: =PROFORMA!AW323 -> -633000 | F77: ="as 378 Plant ("&A$31&")" -> as 378 Plant (31) | H77: -633000 | I77: -390903.6332 | J77: -150089.6579 | K77: -14133.88698 | L77: -3356.812698 | M77: -74516.00927 | N77: 0 | P77: E77* " | R77: =R$31 -> 0.3981887147 | S77: =S$31 -> 0 | T77: 0 | U77: 0 | V77: 0 | W77: 0.6018112853 | X77: 0 | Y77: 0 | Z77: 0 | AA77: 0 | AB77: 0 | AC77: 0 | AD77: 0 | AE77: 0 | AF77: 0 | AG77: 0 | AH77: 0 | AI77: 0 | AK77: -633000 | AL77: -252053.4564 | AM77: -380946.5436 | AN77: 0 | AO77: 0 | AQ77: E77* " | AS77: -252053.4564 | AT77: -147789.4963 | AU77: -58350.96019 | AV77: -7307.030764 | AW77: -1575.474483 | AX77: -37030.4947 | AY77: 0 | BA77: -380946.5436 | BB77: -243114.1369 | BC77: -91738.69769 | BD77: -6826.856213 | BE77: -1781.338215 | BF77: -37485.51456 | BG77: 0 | BI77: 0 | BJ77: 0 | BK77: 0 | BL77: 0 | BM77: 0 | BN77: 0 | BO77: 0
A78: 78 | B78: 379 | C78: D | D78: Meas & Reg Station Equip-City Gate Accum. Depr. | E78: =PROFORMA!AW324 -> -383000 | F78: ="as 379 Plant ("&A$32&")" -> as 379 Plant (32) | H78: -383000 | I78: -236518.312 | J78: -90812.54181 | K78: -8551.783115 | L78: -2031.057288 | M78: -45086.30576 | N78: 0 | P78: E78* " | R78: =R$32 -> 0.3981887147 | S78: =S$32 -> 0 | T78: 0 | U78: 0 | V78: 0 | W78: 0.6018112853 | X78: 0 | Y78: 0 | Z78: 0 | AA78: 0 | AB78: 0 | AC78: 0 | AD78: 0 | AE78: 0 | AF78: 0 | AG78: 0 | AH78: 0 | AI78: 0 | AK78: -383000 | AL78: -152506.2777 | AM78: -230493.7223 | AN78: 0 | AO78: 0 | AQ78: E78* " | AS78: -152506.2777 | AT78: -89420.81687 | AU78: -35305.55727 | AV78: -4421.157634 | AW78: -953.2491737 | AX78: -22405.4968 | AY78: 0 | BA78: -230493.7223 | BB78: -147097.4951 | BC78: -55506.98454 | BD78: -4130.625481 | BE78: -1077.808115 | BF78: -22680.80897 | BG78: 0 | BI78: 0 | BJ78: 0 | BK78: 0 | BL78: 0 | BM78: 0 | BN78: 0 | BO78: 0
A79: 79 | B79: 380 | C79: D | D79: Services Accum. Depr. | E79: =PROFORMA!AW325 -> -44476000 | F79: ="as 380 Plant ("&A$33&")" -> as 380 Plant (33) | H79: -44476000 | I79: -43639449.58 | J79: -735366.7061 | K79: -22383.97982 | L79: -1598.855701 | M79: -77200.87348 | N79: 0 | P79: E79* " | R79: =R$33 -> 0 | S79: =S$33 -> 0 | T79: 0 | U79: 0 | V79: 0 | W79: 0 | X79: 0 | Y79: 0 | Z79: 0 | AA79: 0 | AB79: 0 | AC79: 1 | AD79: 0 | AE79: 0 | AF79: 0 | AG79: 0 | AH79: 0 | AI79: 0 | AK79: -44476000 | AL79: 0 | AM79: 0 | AN79: -44476000 | AO79: 0 | AQ79: E79* " | AS79: 0 | AT79: 0 | AU79: 0 | AV79: 0 | AW79: 0 | AX79: 0 | AY79: 0 | BA79: 0 | BB79: 0 | BC79: 0 | BD79: 0 | BE79: 0 | BF79: 0 | BG79: 0 | BI79: -44476000 | BJ79: -43639449.58 | BK79: -735366.7061 | BL79: -22383.97982 | BM79: -1598.855701 | BN79: -77200.87348 | BO79: 0
A80: 80 | B80: 381 | C80: D | D80: Meters Accum. Depr. | E80: =PROFORMA!AW326 -> -9444000 | F80: ="as 381 Plant ("&A$34&")" -> as 381 Plant (34) | H80: -9444000 | I80: -8117860.636 | J80: -1112764.865 | K80: -31049.50711 | L80: -17067.70447 | M80: -165257.2878 | N80: 0 | P80: E80* " | R80: =R$34 -> 0 | S80: =S$34 -> 0 | T80: 0 | U80: 0 | V80: 0 | W80: 0 | X80: 0 | Y80: 0 | Z80: 0 | AA80: 0 | AB80: 0 | AC80: 0 | AD80: 1 | AE80: 0 | AF80: 0 | AG80: 0 | AH80: 0 | AI80: 0 | AK80: -9444000 | AL80: 0 | AM80: 0 | AN80: -9444000 | AO80: 0 | AQ80: E80* " | AS80: 0 | AT80: 0 | AU80: 0 | AV80: 0 | AW80: 0 | AX80: 0 | AY80: 0 | BA80: 0 | BB80: 0 | BC80: 0 | BD80: 0 | BE80: 0 | BF80: 0 | BG80: 0 | BI80: -9444000 | BJ80: -8117860.636 | BK80: -1112764.865 | BL80: -31049.50711 | BM80: -17067.70447 | BN80: -165257.2878 | BO80: 0
A81: 81 | B81: 382 | C81: D | D81: Meter Installations Accum. Depr. | E81: =PROFORMA!AW327 -> 0 | F81: ="as 382 Plant ("&A$35&")" -> as 382 Plant (35) | H81: 0 | I81: 0 | J81: 0 | K81: 0 | L81: 0 | M81: 0 | N81: 0 | P81: E81* " | R81: =R$35 -> 0 | S81: =S$35 -> 0 | T81: 0 | U81: 0 | V81: 0 | W81: 0 | X81: 0 | Y81: 0 | Z81: 0 | AA81: 0 | AB81: 1 | AC81: 0 | AD81: 0 | AE81: 0 | AF81: 0 | AG81: 0 | AH81: 0 | AI81: 0 | AK81: 0 | AL81: 0 | AM81: 0 | AN81: 0 | AO81: 0 | AQ81: E81* " | AS81: 0 | AT81: 0 | AU81: 0 | AV81: 0 | AW81: 0 | AX81: 0 | AY81: 0 | BA81: 0 | BB81: 0 | BC81: 0 | BD81: 0 | BE81: 0 | BF81: 0 | BG81: 0 | BI81: 0 | BJ81: 0 | BK81: 0 | BL81: 0 | BM81: 0 | BN81: 0 | BO81: 0
A82: 82 | B82: 383 | C82: D | D82: House Regulators Accum. Depr. | E82: =PROFORMA!AW328 -> 0 | F82: ="as 383 Plant ("&A$36&")" -> as 383 Plant (36) | H82: 0 | I82: 0 | J82: 0 | K82: 0 | L82: 0 | M82: 0 | N82: 0 | P82: E82* " | R82: =R$36 -> 0 | S82: =S$36 -> 0 | T82: 0 | U82: 0 | V82: 0 | W82: 0 | X82: 0 | Y82: 0 | Z82: 0 | AA82: 0 | AB82: 0 | AC82: 0 | AD82: 0 | AE82: 0 | AF82: 0 | AG82: 0 | AH82: 0 | AI82: 0 | AK82: 0 | AL82: 0 | AM82: 0 | AN82: 0 | AO82: 0 | AQ82: E82* " | AS82: 0 | AT82: 0 | AU82: 0 | AV82: 0 | AW82: 0 | AX82: 0 | AY82: 0 | BA82: 0 | BB82: 0 | BC82: 0 | BD82: 0 | BE82: 0 | BF82: 0 | BG82: 0 | BI82: 0 | BJ82: 0 | BK82: 0 | BL82: 0 | BM82: 0 | BN82: 0 | BO82: 0
A83: 83 | B83: 384 | C83: D | D83: House Regulator Installations Accum. Depr. | E83: =PROFORMA!AW329 -> 0 | F83: ="as 384 Plant ("&A$37&")" -> as 384 Plant (37) | H83: 0 | I83: 0 | J83: 0 | K83: 0 | L83: 0 | M83: 0 | N83: 0 | P83: E83* " | R83: =R$37 -> 0 | S83: =S$37 -> 0 | T83: 0 | U83: 0 | V83: 0 | W83: 0 | X83: 0 | Y83: 0 | Z83: 0 | AA83: 0 | AB83: 1 | AC83: 0 | AD83: 0 | AE83: 0 | AF83: 0 | AG83: 0 | AH83: 0 | AI83: 0 | AK83: 0 | AL83: 0 | AM83: 0 | AN83: 0 | AO83: 0 | AQ83: E83* " | AS83: 0 | AT83: 0 | AU83: 0 | AV83: 0 | AW83: 0 | AX83: 0 | AY83: 0 | BA83: 0 | BB83: 0 | BC83: 0 | BD83: 0 | BE83: 0 | BF83: 0 | BG83: 0 | BI83: 0 | BJ83: 0 | BK83: 0 | BL83: 0 | BM83: 0 | BN83: 0 | BO83: 0
A84: 84 | B84: 385 | C84: D | D84: Industrial Meas & Reg Station Equip Accum. Depr. | E84: =PROFORMA!AW330 -> -884000 | F84: ="as 385 Plant ("&A$38&")" -> as 385 Plant (38) | H84: -884000 | I84: 0 | J84: -687417.5965 | K84: -28455.2915 | L84: -15758.51734 | M84: -152368.5947 | N84: 0 | P84: E84* " | R84: =R$38 -> 0 | S84: =S$38 -> 0 | T84: 0 | U84: 0 | V84: 0 | W84: 0 | X84: 0 | Y84: 0 | Z84: 0 | AA84: 0 | AB84: 0 | AC84: 0 | AD84: 0 | AE84: 0 | AF84: 1 | AG84: 0 | AH84: 0 | AI84: 0 | AK84: -884000 | AL84: 0 | AM84: 0 | AN84: -884000 | AO84: 0 | AQ84: E84* " | AS84: 0 | AT84: 0 | AU84: 0 | AV84: 0 | AW84: 0 | AX84: 0 | AY84: 0 | BA84: 0 | BB84: 0 | BC84: 0 | BD84: 0 | BE84: 0 | BF84: 0 | BG84: 0 | BI84: -884000 | BJ84: 0 | BK84: -687417.5965 | BL84: -28455.2915 | BM84: -15758.51734 | BN84: -152368.5947 | BO84: 0
A85: 85 | B85: 387 | C85: D | D85: Other Equipment Accum. Depr. | E85: =PROFORMA!AW331 -> 0 | F85: ="as 387 Plant ("&A$39&")" -> as 387 Plant (39) | H85: 0 | I85: 0 | J85: 0 | K85: 0 | L85: 0 | M85: 0 | N85: 0 | P85: E85* " | R85: =R$39 -> 0.1038834589 | S85: =S$39 -> 0.08663983857 | T85: 0.01496099336 | U85: 0 | V85: 0 | W85: 0.3105632093 | X85: 0 | Y85: 0 | Z85: 0 | AA85: 0 | AB85: 0 | AC85: 0.3341974628 | AD85: 0.1420070731 | AE85: 0 | AF85: 0.00774796405 | AG85: 0 | AH85: 0 | AI85: 0 | AK85: 0 | AL85: 0 | AM85: 0 | AN85: 0 | AO85: 0 | AQ85: E85* " | AS85: 0 | AT85: 0 | AU85: 0 | AV85: 0 | AW85: 0 | AX85: 0 | AY85: 0 | BA85: 0 | BB85: 0 | BC85: 0 | BD85: 0 | BE85: 0 | BF85: 0 | BG85: 0 | BI85: 0 | BJ85: 0 | BK85: 0 | BL85: 0 | BM85: 0 | BN85: 0 | BO85: 0
A86: 86 | D86: Total Distribution Plant Accum Depr | E86: =SUM(E73:E85) -> -121334000 | H86: =IF(ROUND(SUM(H72:H85),3)<>ROUND(SUM(I86:N86),3),#VALUE!,SUM(H72:H85)) -> -121334000 | I86: =SUM(I72:I85) -> -95934971.74 | J86: -17728022.97 | K86: -1505658.408 | L86: -360553.2057 | M86: -5804793.678 | N86: 0 | P86: =$A72&":"&A85 -> 72:85 | R86: =SUMPRODUCT($E73:$E85,R$73:R$85)/$E86 -> 0.09926694846 | S86: 0.08482123812 | T86: 0.01464695688 | U86: 0 | V86: 0 | W86: 0.3003627368 | X86: 0 | Y86: 0 | Z86: 0 | AA86: 0 | AB86: 0 | AC86: 0.4005499768 | AD86: 0.09227841569 | AE86: 0 | AF86: 0.008073727268 | AG86: 0 | AH86: 0 | AI86: 0 | AK86: =IF(ROUND(SUM(AK72:AK85),3)<>ROUND(SUM(AL86:AO86),3),#VALUE!,SUM(AK72:AK85)) -> -121334000 | AL86: =SUM(AL72:AL85) -> -24113329.9 | AM86: =SUM(AM72:AM85) -> -36444212.3 | AN86: =SUM(AN72:AN85) -> -60776457.8 | AO86: =SUM(AO72:AO85) -> 0 | AQ86: =$A72&":"&$A85 -> 72:85 | AS86: =IF(ROUND(SUM(AS72:AS85),3)<>ROUND(SUM(AT86:AY86),3),#VALUE!,SUM(AS72:AS85)) -> -24113329.9 | AT86: =SUM(AT72:AT85) -> -15366358.41 | AU86: -6067019.583 | AV86: -759745.8309 | AW86: -150691.9038 | AX86: -1769514.164 | AY86: 0 | BA86: =IF(ROUND(SUM(BA72:BA85),3)<>ROUND(SUM(BB86:BG86),3),#VALUE!,SUM(BA72:BA85)) -> -36444212.3 | BB86: =SUM(BB72:BB85) -> -23258127.34 | BC86: -8776413.991 | BD86: -653108.4253 | BE86: -170416.2151 | BF86: -3586146.335 | BG86: 0 | BI86: =IF(ROUND(SUM(BI72:BI85),3)<>ROUND(SUM(BJ86:BO86),3),#VALUE!,SUM(BI72:BI85)) -> -60776457.8 | BJ86: =SUM(BJ72:BJ85) -> -57310485.99 | BK86: -2884589.395 | BL86: -92804.15153 | BM86: -39445.08679 | BN86: -449133.1789 | BO86: 0
A88: =RowHdr -> 88 | D88: UG/D Plant | E88: =E70+E86 -> -130960000 | F88: ="("&A$23&"+"&A$40&")" -> (23+40) | G88: UG/D Plant (S03) | H88: =H70+H86 -> -130960000 | I88: =I70+I86 -> -102356707.9 | J88: -20263483.75 | K88: -1823162.864 | L88: -429010.584 | M88: -6087634.903 | N88: =N69+N86 -> 0 | R88: =($E70*R70+$E86*R86)/$E88 -> 0.1066711662 | S88: =($E70*S70+$E86*S86)/$E88 -> 0.13738928 | T88: =($E70*T70+$E86*T86)/$E88 -> 0.01357035634 | U88: =($E70*U70+$E86*U86)/$E88 -> 0 | V88: 0 | W88: =($E70*W70+$E86*W86)/$E88 -> 0.2782850664 | X88: 0 | Y88: 0 | Z88: 0 | AA88: 0 | AB88: 0 | AC88: 0.3711082078 | AD88: 0.0854956421 | AE88: 0 | AF88: 0.007480281188 | AG88: 0 | AH88: 0 | AI88: =IF(SUM(R88:AH88)<>0,(ROUND(SUM(R88:AH88),8)<>1)+0,0) -> 0
A89: 89 | AI89: 0
A90: 90 | D90: General Plant Accumulated Depreciation | AI90: 0
A91: 91 | B91: 389 | C91: O | D91: Land & Land Rights Accum. Depr. | E91: =PROFORMA!AW335 -> 2000 | F91: ="as 389 Plant ("&A$45&")" -> as 389 Plant (45) | H91: =SUM(I91:N91) -> 2000 | I91: =$E91*SUMPRODUCT($R91:$AH91,INDEX(AllocFactors,I$4,0)) -> 1726.286212 | J91: 200.663749 | K91: 16.48666896 | L91: 3.984205972 | M91: 52.57916443 | N91: 0 | P91: =E$1&$A91&"* Sum["&$R$1&$A91&":"&$AH$1&$A91&"* "&Factors!D$1&Factors!$A$58&":"&Factors!S$1&Factors!$A$64&"]" -> E91* Sum[R91:AH91* D588:S594] | R91: =(R$114*0.25)+(R$251*0.25)+(BS$250*0.25) -> 0.06114769063 | S91: =(S$114*0.25)+(S$251*0.25)+(BT$250*0.25) -> 0.08778587751 | T91: 0.006712928065 | U91: 0 | V91: 0 | W91: 0.1446761069 | X91: 0 | Y91: 0 | Z91: 0 | AA91: 0 | AB91: =(AB$114*0.25)+(AB$251*0.25)+(CC$250*0.25)+0.25 -> 0.4544698471 | AC91: 0.1479191325 | AD91: 0.0908607995 | AE91: 0 | AF91: 0.006427617797 | AG91: 0 | AH91: 0 | AI91: 0 | AK91: =SUM(AL91:AO91) -> 2000 | AL91: =SUMIF($R$4:$AH$4,AL$5,$R91:$AH91)*$E91 -> 311.2929924 | AM91: 289.3522138 | AN91: 1399.354794 | AO91: 0 | AQ91: =E$1&$A91&"*["&R$1&$A91&":"&$AH$1&$A91&" when "&R$1&$A$4&":"&$AH$1&$A$4&" = E,D,C,or R]" -> E91*[R91:AH91 when R4:AH4 = E,D,C,or R] | AS91: =SUM(AT91:AY91) -> 311.2929924 | AT91: =$E91*SUMPRODUCT($R91:$V91,INDEX(AllocFactors_E,AT$4,0)) -> 201.6767775 | AU91: 79.62699589 | AV91: 9.97133392 | AW91: 2.050829508 | AX91: 17.96705561 | AY91: 0 | BA91: =SUM(BB91:BG91) -> 289.3522138 | BB91: =$E91*SUMPRODUCT($W91:$AA91,INDEX(AllocFactors_D,BB$4,0)) -> 184.6600656 | BC91: 69.6811553 | BD91: 5.185415097 | BE91: 1.353035393 | BF91: 28.47254242 | BG91: 0 | BI91: =SUM(BJ91:BO91) -> 1399.354794 | BJ91: =$E91*SUMPRODUCT($AB91:$AG91,INDEX(AllocFactors_C,BJ$4,0)) -> 1339.949369 | BK91: 51.35559782 | BL91: 1.329919942 | BM91: 0.5803410708 | BN91: 6.139566397 | BO91: 0
A92: 92 | B92: 390 | C92: O | D92: Structures & Improvements Accum. Depr. | E92: =PROFORMA!AW336 -> -8961000 | F92: ="as 390 Plant ("&A$46&")" -> as 390 Plant (46) | H92: -8961000 | I92: -7734625.371 | J92: -899073.9274 | K92: -73868.52027 | L92: -17851.23486 | M92: -235580.9462 | N92: 0 | P92: =E$1&$A92&"* """ -> E92* " | R92: =(R$114*0.25)+(R$251*0.25)+(BS$250*0.25) -> 0.06114769063 | S92: 0.08778587751 | T92: 0.006712928065 | U92: 0 | V92: 0 | W92: 0.1446761069 | X92: 0 | Y92: 0 | Z92: 0 | AA92: 0 | AB92: =(AB$114*0.25)+(AB$251*0.25)+(CC$250*0.25)+0.25 -> 0.4544698471 | AC92: 0.1479191325 | AD92: 0.0908607995 | AE92: 0 | AF92: 0.006427617797 | AG92: 0 | AH92: 0 | AI92: 0 | AK92: -8961000 | AL92: -1394748.253 | AM92: -1296442.594 | AN92: -6269809.154 | AO92: 0 | AQ92: =E$1&$A92&"* """ -> E92* " | AS92: -1394748.253 | AT92: -903612.8015 | AU92: -356768.7551 | AV92: -44676.56163 | AW92: -9188.741612 | AX92: -80501.39265 | AY92: 0 | BA92: -1296442.594 | BB92: -827369.4237 | BC92: -312206.4163 | BD92: -23233.25234 | BE92: -6062.275076 | BF92: -127571.2263 | BG92: 0 | BI92: -6269809.154 | BJ92: -6003643.146 | BK92: -230098.756 | BL92: -5958.706302 | BM92: -2600.218168 | BN92: -27508.32724 | BO92: 0
A93: 93 | B93: 391 | C93: O | D93: Office Furniture & Equipment Accum. Depr. | E93: =PROFORMA!AW337 -> -2783000 | F93: ="as 391 Plant ("&A$47&")" -> as 391 Plant (47) | H93: -2783000 | I93: -2402127.263 | J93: -279223.6067 | K93: -22941.19986 | L93: -5544.022609 | M93: -73163.9073 | N93: 0 | P93: E93* " | R93: 0.06114769063 | S93: 0.08778587751 | T93: 0.006712928065 | U93: 0 | V93: 0 | W93: 0.1446761069 | X93: 0 | Y93: 0 | Z93: 0 | AA93: 0 | AB93: 0.4544698471 | AC93: 0.1479191325 | AD93: 0.0908607995 | AE93: 0 | AF93: 0.006427617797 | AG93: 0 | AH93: 0 | AI93: 0 | AK93: -2783000 | AL93: -433164.1989 | AM93: -402633.6055 | AN93: -1947202.196 | AO93: 0 | AQ93: =E$1&$A93&"* """ -> E93* " | AS93: -433164.1989 | AT93: -280633.2359 | AU93: -110800.9648 | AV93: -13875.11115 | AW93: -2853.729261 | AX93: -25001.15788 | AY93: 0 | BA93: -402633.6055 | BB93: -256954.4812 | BC93: -96961.3276 | BD93: -7215.505108 | BE93: -1882.748749 | BF93: -39619.54278 | BG93: 0 | BI93: -1947202.196 | BJ93: -1864539.546 | BK93: -71461.31436 | BL93: -1850.5836 | BM93: -807.5446 | BN93: -8543.206641 | BO93: 0
A94: 94 | B94: 392 | C94: O | D94: Transportation Equipment Accum. Depr. | E94: =PROFORMA!AW338 -> -1264000 | F94: ="as 392 Plant ("&A$48&")" -> as 392 Plant (48) | H94: -1264000 | I94: -1091012.886 | J94: -126819.4894 | K94: -10419.57478 | L94: -2518.018174 | M94: -33230.03192 | N94: 0 | P94: E94* " | R94: 0.06114769063 | S94: 0.08778587751 | T94: 0.006712928065 | U94: 0 | V94: 0 | W94: 0.1446761069 | X94: 0 | Y94: 0 | Z94: 0 | AA94: 0 | AB94: 0.4544698471 | AC94: 0.1479191325 | AD94: 0.0908607995 | AE94: 0 | AF94: 0.006427617797 | AG94: 0 | AH94: 0 | AI94: 0 | AK94: -1264000 | AL94: -196737.1712 | AM94: -182870.5991 | AN94: -884392.2297 | AO94: 0 | AQ94: E94* " | AS94: -196737.1712 | AT94: -127459.7234 | AU94: -50324.2614 | AV94: -6301.883037 | AW94: -1296.124249 | AX94: -11355.17914 | AY94: 0 | BA94: -182870.5991 | BB94: -116705.1614 | BC94: -44038.49015 | BD94: -3277.182342 | BE94: -855.1183681 | BF94: -17994.64681 | BG94: 0 | BI94: -884392.2297 | BJ94: -846848.0009 | BK94: -32456.73782 | BL94: -840.5094036 | BM94: -366.7755567 | BN94: -3880.205963 | BO94: 0
A95: 95 | B95: 393 | C95: O | D95: Stores Equipment Accum. Depr. | E95: =PROFORMA!AW339 -> -104000 | F95: ="as 393 Plant ("&A$49&")" -> as 393 Plant (49) | H95: -104000 | I95: -89766.883 | J95: -10434.51495 | K95: -857.3067859 | L95: -207.1787105 | M95: -2734.11655 | N95: 0 | P95: E95* " | R95: 0.06114769063 | S95: 0.08778587751 | T95: 0.006712928065 | U95: 0 | V95: 0 | W95: 0.1446761069 | X95: 0 | Y95: 0 | Z95: 0 | AA95: 0 | AB95: 0.4544698471 | AC95: 0.1479191325 | AD95: 0.0908607995 | AE95: 0 | AF95: 0.006427617797 | AG95: 0 | AH95: 0 | AI95: 0 | AK95: -104000 | AL95: -16187.23561 | AM95: -15046.31512 | AN95: -72766.44928 | AO95: 0 | AQ95: E95* " | AS95: -16187.23561 | AT95: -10487.19243 | AU95: -4140.603786 | AV95: -518.5093638 | AW95: -106.6431344 | AX95: -934.2868916 | AY95: 0 | BA95: -15046.31512 | BB95: -9602.323409 | BC95: -3623.420076 | BD95: -269.6415851 | BE95: -70.35784041 | BF95: -1480.572206 | BG95: 0 | BI95: -72766.44928 | BJ95: -69677.36717 | BK95: -2670.491086 | BL95: -69.15583701 | BM95: -30.17773568 | BN95: -319.2574526 | BO95: 0
A96: 96 | B96: 394 | C96: O | D96: Tools, Shop & Garage Equip. Accum. Depr. | E96: =PROFORMA!AW340 -> -1377000 | F96: ="as 394 Plant ("&A$50&")" -> as 394 Plant (50) | H96: -1377000 | I96: -1188548.057 | J96: -138156.9912 | K96: -11351.07158 | L96: -2743.125811 | M96: -36200.75471 | N96: 0 | P96: E96* " | R96: 0.06114769063 | S96: 0.08778587751 | T96: 0.006712928065 | U96: 0 | V96: 0 | W96: 0.1446761069 | X96: 0 | Y96: 0 | Z96: 0 | AA96: 0 | AB96: 0.4544698471 | AC96: 0.1479191325 | AD96: 0.0908607995 | AE96: 0 | AF96: 0.006427617797 | AG96: 0 | AH96: 0 | AI96: 0 | AK96: -1377000 | AL96: -214325.2253 | AM96: -199218.9992 | AN96: -963455.7755 | AO96: 0 | AQ96: E96* " | AS96: -214325.2253 | AT96: -138854.4613 | AU96: -54823.18667 | AV96: -6865.263404 | AW96: -1411.996116 | AX96: -12370.31779 | AY96: 0 | BA96: -199218.9992 | BB96: -127138.4551 | BC96: -47975.47543 | BD96: -3570.158295 | BE96: -931.5648678 | BF96: -19603.34546 | BG96: 0 | BI96: -963455.7755 | BJ96: -922555.1403 | BK96: -35358.3291 | BL96: -915.6498804 | BM96: -399.5648272 | BN96: -4227.091464 | BO96: 0
A97: 97 | B97: 395 | C97: O | D97: Laboratory Equipment Accum. Depr. | E97: =PROFORMA!AW341 -> -87000 | F97: ="as 395 Plant ("&A$51&")" -> as 395 Plant (51) | H97: -87000 | I97: -75093.45021 | J97: -8728.873082 | K97: -717.1700997 | L97: -173.3129598 | M97: -2287.193653 | N97: 0 | P97: E97* " | R97: 0.06114769063 | S97: 0.08778587751 | T97: 0.006712928065 | U97: 0 | V97: 0 | W97: 0.1446761069 | X97: 0 | Y97: 0 | Z97: 0 | AA97: 0 | AB97: 0.4544698471 | AC97: 0.1479191325 | AD97: 0.0908607995 | AE97: 0 | AF97: 0.006427617797 | AG97: 0 | AH97: 0 | AI97: 0 | AK97: -87000 | AL97: -13541.24517 | AM97: -12586.8213 | AN97: -60871.93353 | AO97: 0 | AQ97: E97* " | AS97: -13541.24517 | AT97: -8772.939821 | AU97: -3463.774321 | AV97: -433.7530255 | AW97: -89.21108361 | AX97: -781.566919 | AY97: 0 | BA97: -12586.8213 | BB97: -8032.712852 | BC97: -3031.130256 | BD97: -225.5655567 | BE97: -58.85703958 | BF97: -1238.555595 | BG97: 0 | BI97: -60871.93353 | BJ97: -58287.79753 | BK97: -2233.968505 | BL97: -57.8515175 | BM97: -25.24483658 | BN97: -267.0711383 | BO97: 0
A98: 98 | B98: 396 | C98: O | D98: Power Operated Equipment Accum. Depr. | E98: =PROFORMA!AW342 -> -981000 | F98: ="as 396 Plant ("&A$52&")" -> as 396 Plant (52) | H98: -981000 | I98: -846743.3868 | J98: -98425.56889 | K98: -8086.711125 | L98: -1954.253029 | M98: -25790.08015 | N98: 0 | P98: E98* " | R98: 0.06114769063 | S98: 0.08778587751 | T98: 0.006712928065 | U98: 0 | V98: 0 | W98: 0.1446761069 | X98: 0 | Y98: 0 | Z98: 0 | AA98: 0 | AB98: 0.4544698471 | AC98: 0.1479191325 | AD98: 0.0908607995 | AE98: 0 | AF98: 0.006427617797 | AG98: 0 | AH98: 0 | AI98: 0 | AK98: -981000 | AL98: -152689.2128 | AM98: -141927.2609 | AN98: -686383.5264 | AO98: 0 | AQ98: E98* " | AS98: -152689.2128 | AT98: -98922.45936 | AU98: -39057.04149 | AV98: -4890.939288 | AW98: -1005.931874 | AX98: -8812.840776 | AY98: 0 | BA98: -141927.2609 | BB98: -90575.76215 | BC98: -34178.60668 | BD98: -2543.446105 | BE98: -663.66386 | BF98: -13965.78206 | BG98: 0 | BI98: -686383.5264 | BJ98: -657245.1653 | BK98: -25189.92073 | BL98: -652.3257318 | BM98: -284.6572952 | BN98: -3011.457318 | BO98: 0
A99: 99 | B99: 397 | C99: O | D99: Communication Equipment Accum. Depr. | E99: =PROFORMA!AW343 -> -2886000 | F99: ="as 397 Plant ("&A$53&")" -> as 397 Plant (53) | H99: -2886000 | I99: -2491031.003 | J99: -289557.7898 | K99: -23790.26331 | L99: -5749.209217 | M99: -75871.73427 | N99: 0 | P99: E99* " | R99: 0.06114769063 | S99: 0.08778587751 | T99: 0.006712928065 | U99: 0 | V99: 0 | W99: 0.1446761069 | X99: 0 | Y99: 0 | Z99: 0 | AA99: 0 | AB99: 0.4544698471 | AC99: 0.1479191325 | AD99: 0.0908607995 | AE99: 0 | AF99: 0.006427617797 | AG99: 0 | AH99: 0 | AI99: 0 | AK99: -2886000 | AL99: -449195.7881 | AM99: -417535.2445 | AN99: -2019268.967 | AO99: 0 | AQ99: E99* " | AS99: -449195.7881 | AT99: -291019.5899 | AU99: -114901.7551 | AV99: -14388.63485 | AW99: -2959.34698 | AX99: -25926.46124 | AY99: 0 | BA99: -417535.2445 | BB99: -266464.4746 | BC99: -100549.9071 | BD99: -7482.553986 | BE99: -1952.430071 | BF99: -41085.87872 | BG99: 0 | BI99: -2019268.967 | BJ99: -1933546.939 | BK99: -74106.12765 | BL99: -1919.074477 | BM99: -837.4321651 | BN99: -8859.394311 | BO99: 0
A100: 100 | B100: 398 | C100: O | D100: Miscellaneous Equipment Accum. Depr. | E100: =PROFORMA!AW344 -> 6000 | F100: ="as 398 Plant ("&A$54&")" -> as 398 Plant (54) | H100: 6000 | I100: 5178.858635 | J100: 601.991247 | K100: 49.46000688 | L100: 11.95261791 | M100: 157.7374933 | N100: 0 | P100: E100* " | R100: =(R$114*0.25)+(R$251*0.25)+(BS$250*0.25) -> 0.06114769063 | S100: 0.08778587751 | T100: 0.006712928065 | U100: 0 | V100: 0 | W100: 0.1446761069 | X100: 0 | Y100: 0 | Z100: 0 | AA100: 0 | AB100: 0.4544698471 | AC100: 0.1479191325 | AD100: 0.0908607995 | AE100: 0 | AF100: 0.006427617797 | AG100: 0 | AH100: 0 | AI100: 0 | AK100: 6000 | AL100: 933.8789772 | AM100: 868.0566413 | AN100: 4198.064381 | AO100: 0 | AQ100: E100* " | AS100: 933.8789772 | AT100: 605.0303325 | AU100: 238.8809877 | AV100: 29.91400176 | AW100: 6.152488525 | AX100: 53.90116683 | AY100: 0 | BA100: 868.0566413 | BB100: 553.9801967 | BC100: 209.0434659 | BD100: 15.55624529 | BE100: 4.059106178 | BF100: 85.41762727 | BG100: 0 | BI100: 4198.064381 | BJ100: 4019.848106 | BK100: 154.0667934 | BL100: 3.989759827 | BM100: 1.741023212 | BN100: 18.41869919 | BO100: 0
A101: 101 | D101: Total General Plant Accum Depreciation | E101: =SUM(E91:E100) -> -18435000 | H101: =IF(ROUND(SUM(H90:H100),3)<>ROUND(SUM(I101:N101),3),#VALUE!,SUM(H90:H100)) -> -18435000 | I101: =SUM(I90:I100) -> -15912043.16 | J101: -1849618.107 | K101: -151965.8711 | L101: -36724.41854 | M101: -484648.4481 | N101: 0 | P101: =$A90&":"&$A100 -> 90:100 | R101: =SUMPRODUCT($E91:$E100,R$91:R$100)/$E101 -> 0.06114769063 | S101: 0.08778587751 | T101: 0.006712928065 | U101: =SUMPRODUCT($E91:$E100,U$91:U$100)/$E101 -> 0 | V101: =SUMPRODUCT($E91:$E100,V$91:V$100)/$E101 -> 0 | W101: 0.1446761069 | X101: 0 | Y101: =SUMPRODUCT($E91:$E100,Y$91:Y$100)/$E101 -> 0 | Z101: 0 | AA101: 0 | AB101: 0.4544698471 | AC101: 0.1479191325 | AD101: 0.0908607995 | AE101: 0 | AF101: 0.006427617797 | AG101: =SUMPRODUCT($E91:$E100,AG$91:AG$100)/$E101 -> 0 | AH101: 0 | AI101: 0 | AK101: =IF(ROUND(SUM(AK90:AK100),3)<>ROUND(SUM(AL101:AO101),3),#VALUE!,SUM(AK90:AK100)) -> -18435000 | AL101: =SUM(AL90:AL100) -> -2869343.158 | AM101: =SUM(AM90:AM100) -> -2667104.03 | AN101: =SUM(AN90:AN100) -> -12898552.81 | AO101: =SUM(AO90:AO100) -> 0 | AQ101: =$A90&":"&$A100 -> 90:100 | AS101: =IF(ROUND(SUM(AS90:AS100),3)<>ROUND(SUM(AT101:AY101),3),#VALUE!,SUM(AS90:AS100)) -> -2869343.158 | AT101: =SUM(AT90:AT100) -> -1858955.696 | AU101: -733961.8346 | AV101: -91910.77041 | AW101: -18903.52099 | AX101: -165611.3351 | AY101: 0 | BA101: =IF(ROUND(SUM(BA90:BA100),3)<>ROUND(SUM(BB101:BG101),3),#VALUE!,SUM(BA90:BA100)) -> -2667104.03 | BB101: =SUM(BB90:BB100) -> -1702104.154 | BC101: -642286.049 | BD101: -47796.56366 | BE101: -12471.60373 | BF101: -262445.6598 | BG101: 0 | BI101: =IF(ROUND(SUM(BI90:BI100),3)<>ROUND(SUM(BJ101:BO101),3),#VALUE!,SUM(BI90:BI100)) -> -12898552.81 | BJ101: =SUM(BJ90:BJ100) -> -12350983.3 | BK101: -473370.2229 | BL101: -12258.53707 | BM101: -5349.29382 | BN101: -56591.45326 | BO101: 0
A102: 102 | AI102: 0
A103: 103 | D103: Total Accumulated Reserve for Depreciation | E103: =E70+E86+E101 -> -149395000 | F103: ="("&A$70&"+"&A$86&"+"&A$101&")" -> (70+86+101) | H103: =H70+H86+H101 -> -149395000 | I103: -118268751.1 | J103: -22113101.85 | K103: -1975128.735 | L103: -465735.0025 | M103: -6572283.351 | N103: 0 | P103: ="Sum("&$A70&","&$A86&","&$A101&")" -> Sum(70,86,101) | R103: =($E70*R70+$E86*R86+$E101*R101)/$E103 -> 0.1010536738 | S103: 0.131268334 | T103: 0.01272416544 | U103: 0 | V103: 0 | W103: 0.2617980276 | X103: 0 | Y103: 0 | Z103: 0 | AA103: 0 | AB103: 0.0560805357 | AC103: 0.3435671883 | AD103: 0.0861576902 | AE103: 0 | AF103: 0.007350384942 | AG103: 0 | AH103: 0 | AI103: 0 | AK103: =AK70+AK86+AK101 -> -149395000 | AL103: =AL70+AL86+AL101 -> -36608673.05 | AM103: =AM70+AM86+AM101 -> -39111316.33 | AN103: =AN70+AN86+AN101 -> -73675010.61 | AO103: =AO70+AO86+AO101 -> 0 | AQ103: ="Sum("&$A70&","&$A86&","&$A101&")" -> Sum(70,86,101) | AS103: =AS70+AS86+AS101 -> -36608673.05 | AT103: -23647050.27 | AU103: -9336442.195 | AV103: -1169161.058 | AW103: -238052.8031 | AX103: -2217966.724 | AY103: 0 | BA103: =BA70+BA86+BA101 -> -39111316.33 | BB103: -24960231.49 | BC103: -9418700.04 | BD103: -700904.9889 | BE103: -182887.8188 | BF103: -3848591.995 | BG103: 0 | BI103: =BI70+BI86+BI101 -> -73675010.61 | BJ103: -69661469.29 | BK103: -3357959.618 | BL103: -105062.6886 | BM103: -44794.38061 | BN103: -505724.6321 | BO103: 0
A104: 104 | AI104: 0
A105: 105 | D105: Amortization | AI105: 0
A106: 106 | B106: 303.1 | C106: O | D106: Accum Amort of Intangible Plant-Software | E106: =PROFORMA!AW350 -> -3573000 | F106: Corporate Cost Allocator | H106: =SUM(I106:N106) -> -3573000 | I106: =$E106*SUMPRODUCT($R106:$AH106,INDEX(AllocFactors,I$4,0)) -> -3084010.317 | J106: -358485.7876 | K106: -29453.4341 | L106: -7117.783968 | M106: -93932.67725 | N106: 0 | P106: =E$1&$A106&"* Sum["&$R$1&$A106&":"&$AH$1&$A106&"* "&Factors!D$1&Factors!$A$58&":"&Factors!S$1&Factors!$A$64&"]" -> E106* Sum[R106:AH106* D588:S594] | R106: =(R$114*0.25)+(R$251*0.25)+(BS$250*0.25) -> 0.06114769063 | S106: =(S$114*0.25)+(S$251*0.25)+(BT$250*0.25) -> 0.08778587751 | T106: 0.006712928065 | U106: 0 | V106: 0 | W106: 0.1446761069 | X106: 0 | Y106: 0 | Z106: 0 | AA106: 0 | AB106: =(AB$114*0.25)+(AB$251*0.25)+(CC$250*0.25)+0.25 -> 0.4544698471 | AC106: 0.1479191325 | AD106: 0.0908607995 | AE106: 0 | AF106: 0.006427617797 | AG106: 0 | AH106: =AH$42 -> 0 | AI106: =IF(SUM(R106:AH106)<>0,(ROUND(SUM(R106:AH106),8)<>1)+0,0) -> 0 | AK106: =SUM(AL106:AO106) -> -3573000 | AL106: =SUMIF($R$4:$AH$4,AL$5,$R106:$AH106)*$E106 -> -556124.9309 | AM106: -516927.7299 | AN106: -2499947.339 | AO106: 0 | AQ106: =E$1&$A106&"* """ -> E106* " | AS106: =SUM(AT106:AY106) -> -556124.9309 | AT106: =$E106*SUMPRODUCT($R106:$V106,INDEX(AllocFactors_E,AT$4,0)) -> -360295.563 | AU106: -142253.6282 | AV106: -17813.78805 | AW106: -3663.806916 | AX106: -32098.14484 | AY106: 0 | BA106: =SUM(BB106:BG106) -> -516927.7299 | BB106: =$E106*SUMPRODUCT($W106:$AA106,INDEX(AllocFactors_D,BB$4,0)) -> -329895.2071 | BC106: -124485.3839 | BD106: -9263.744071 | BE106: -2417.197729 | BF106: -50866.19704 | BG106: 0 | BI106: =SUM(BJ106:BO106) -> -2499947.339 | BJ106: =$E106*SUMPRODUCT($AB106:$AG106,INDEX(AllocFactors_C,BJ$4,0)) -> -2393819.547 | BK106: -91746.7755 | BL106: -2375.901977 | BM106: -1036.779323 | BN106: -10968.33537 | BO106: 0
A107: 107 | B107: 303 | C107: D | D107: Intangible Distribution Plant | E107: =PROFORMA!AW351 -> -379000 | F107: as Distrib Plant (40) | H107: =SUM(I107:N107) -> -379000 | I107: -295238.6258 | J107: -58639.95973 | K107: -4895.923479 | L107: -1191.248086 | M107: -19034.24293 | N107: 0 | P107: =E$1&$A107&"* """ -> E107* " | R107: =R$40 -> 0.1038834589 | S107: =S$40 -> 0.08663983857 | T107: 0.01496099336 | U107: 0 | V107: 0 | W107: 0.3105632093 | X107: 0 | Y107: 0 | Z107: 0 | AA107: 0 | AB107: 0 | AC107: 0.3341974628 | AD107: 0.1420070731 | AE107: 0 | AF107: 0.00774796405 | AG107: 0 | AH107: 0 | AI107: 0 | AK107: =SUM(AL107:AO107) -> -379000 | AL107: -77878.54622 | AM107: -117703.4563 | AN107: -183417.9975 | AO107: 0 | AQ107: =E$1&$A107&"* """ -> E107* " | AS107: =SUM(AT107:AY107) -> -77878.54622 | AT107: -49580.53932 | AU107: -19575.62715 | AV107: -2451.368569 | AW107: -486.6890878 | AX107: -5784.322091 | AY107: 0 | BA107: =SUM(BB107:BG107) -> -117703.4563 | BB107: -75116.50827 | BC107: -28345.08405 | BD107: -2109.336823 | BE107: -550.3913039 | BF107: -11582.13587 | BG107: 0 | BI107: =SUM(BJ107:BO107) -> -183417.9975 | BJ107: -170541.5782 | BK107: -10719.24854 | BL107: -335.2180865 | BM107: -154.1676944 | BN107: -1667.784968 | BO107: 0
A108: 108 | D108: Total Amortization | E108: =SUM(E105:E107) -> -3952000 | H108: =IF(ROUND(SUM(H105:H107),3)<>ROUND(SUM(I108:N108),3),#VALUE!,SUM(H105:H107)) -> -3952000 | I108: =SUM(I105:I107) -> -3379248.943 | J108: -417125.7473 | K108: -34349.35758 | L108: -8309.032054 | M108: -112966.9202 | N108: 0 | P108: =$A105&":"&$A107 -> 105:107 | R108: =SUMPRODUCT($E106:$E107,R106:R107)/$E108 -> 0.06524608541 | S108: =SUMPRODUCT($E106:$E107,S106:S107)/$E108 -> 0.08767597145 | T108: 0.007503924205 | U108: 0 | V108: 0 | W108: 0.1605848143 | X108: 0 | Y108: 0 | Z108: 0 | AA108: 0 | AB108: 0.4108858208 | AC108: 0.1657833752 | AD108: 0.09576576855 | AE108: 0 | AF108: 0.006554240072 | AG108: 0 | AH108: 0 | AI108: 0 | AK108: =IF(ROUND(SUM(AK105:AK107),3)<>ROUND(SUM(AL108:AO108),3),#VALUE!,SUM(AK105:AK107)) -> -3952000 | AL108: =SUM(AL105:AL107) -> -634003.4772 | AM108: =SUM(AM105:AM107) -> -634631.1862 | AN108: =SUM(AN105:AN107) -> -2683365.337 | AO108: =SUM(AO105:AO107) -> 0 | AQ108: =$A105&":"&$A107 -> 105:107 | AS108: =IF(ROUND(SUM(AS105:AS107),3)<>ROUND(SUM(AT108:AY108),3),#VALUE!,SUM(AS105:AS107)) -> -634003.4772 | AT108: =SUM(AT105:AT107) -> -409876.1023 | AU108: -161829.2553 | AV108: -20265.15662 | AW108: -4150.496004 | AX108: -37882.46694 | AY108: 0 | BA108: =IF(ROUND(SUM(BA105:BA107),3)<>ROUND(SUM(BB108:BG108),3),#VALUE!,SUM(BA105:BA107)) -> -634631.1862 | BB108: =SUM(BB105:BB107) -> -405011.7154 | BC108: -152830.468 | BD108: -11373.08089 | BE108: -2967.589033 | BF108: -62448.33291 | BG108: 0 | BI108: =IF(ROUND(SUM(BI105:BI107),3)<>ROUND(SUM(BJ108:BO108),3),#VALUE!,SUM(BI105:BI107)) -> -2683365.337 | BJ108: =SUM(BJ105:BJ107) -> -2564361.125 | BK108: -102466.024 | BL108: -2711.120064 | BM108: -1190.947017 | BN108: -12636.12034 | BO108: 0
A109: 109 | AI109: 0
A110: 110 | D110: Total Accum Reserve for Depr & Amort | E110: =E103+E108 -> -153347000 | F110: ="("&A$103&"+"&A$108&")" -> (103+108) | H110: =H103+H108 -> -153347000 | I110: -121648000 | J110: -22530227.6 | K110: -2009478.093 | L110: -474044.0346 | M110: -6685250.271 | N110: 0 | P110: =$A103&"+"&$A108 -> 103+108 | R110: =($E103*R103+$E108*R108)/$E110 -> 0.1001308544 | S110: =($E103*S103+$E108*S108)/$E110 -> 0.1301448884 | T110: 0.01258963138 | U110: 0 | V110: 0 | W110: 0.2591895995 | X110: 0 | Y110: 0 | Z110: 0 | AA110: 0 | AB110: 0.06522444127 | AC110: 0.3389854121 | AD110: 0.08640530591 | AE110: 0 | AF110: 0.007329867002 | AG110: 0 | AH110: 0 | AI110: 0 | AK110: =AK103+AK108 -> -153347000 | AL110: =AL103+AL108 -> -37242676.53 | AM110: =AM103+AM108 -> -39745947.52 | AN110: =AN103+AN108 -> -76358375.95 | AO110: =AO103+AO108 -> 0 | AQ110: =$A103&"+"&$A108 -> 103+108 | AS110: =AS103+AS108 -> -37242676.53 | AT110: -24056926.38 | AU110: -9498271.45 | AV110: -1189426.214 | AW110: -242203.2991 | AX110: -2255849.191 | AY110: 0 | BA110: =BA103+BA108 -> -39745947.52 | BB110: -25365243.21 | BC110: -9571530.508 | BD110: -712278.0698 | BE110: -185855.4079 | BF110: -3911040.327 | BG110: 0 | BI110: =BI103+BI108 -> -76358375.95 | BJ110: -72225830.42 | BK110: -3460425.642 | BL110: -107773.8087 | BM110: -45985.32763 | BN110: -518360.7525 | BO110: 0
A111: 111 | AI111: 0
A112: 112 | D112: Total Net Plant | E112: =E57+E110 -> 282729000 | F112: ="("&A$57&"+"&A$110&")" -> (57+110) | G112: Net Plant (S18) | H112: =H57+H110 -> 282729000 | I112: =I57+I110 -> 221441827.6 | J112: 43661818.27 | K112: 3782793.02 | L112: 911382.8826 | M112: 12931178.23 | N112: 0 | P112: =$A57&"+"&$A110 -> 57+110 | R112: =($E57*R57+$E110*R110)/$E112 -> 0.1033163603 | S112: =($E57*S57+$E110*S110)/$E112 -> 0.1266092104 | T112: 0.01277278311 | U112: 0 | V112: 0 | W112: 0.2676923654 | X112: 0 | Y112: 0 | Z112: 0 | AA112: 0 | AB112: 0.08295193086 | AC112: 0.2534603407 | AD112: 0.1462532106 | AE112: 0 | AF112: 0.006943798509 | AG112: 0 | AH112: 0 | AI112: 0 | AK112: =AK57+AK110 -> 282729000 | AL112: =AL57+AL110 -> 68617862.9 | AM112: =AM57+AM110 -> 75684394.79 | AN112: =AN57+AN110 -> 138426742.3 | AO112: =AO57+AO110 -> 0 | AQ112: =$A57&"+"&$A110 -> 57+110 | AS112: =AS57+AS110 -> 68617862.9 | AT112: 44231109.54 | AU112: 17463539.54 | AV112: 2186881.248 | AW112: 444860.2872 | AX112: 4291472.285 | AY112: 0 | BA112: =BA57+BA110 -> 75684394.79 | BB112: 48300599.19 | BC112: 18226147.29 | BD112: 1356322.795 | BE112: 353906.6229 | BF112: 7447418.886 | BG112: 0 | BI112: =BI57+BI110 -> 138426742.3 | BJ112: 128910118.9 | BK112: 7972131.439 | BL112: 239588.9761 | BM112: 112615.9725 | BN112: 1192287.058 | BO112: 0
A114: =RowHdr -> 114 | D114: Net UG/D Plant | E114: =E42+E88 -> 229921000 | F114: ="("&A$23&"+"&A$40&")" -> (23+40) | G114: UG/D Plant (S03) | H114: =H42+H88 -> 229921000 | I114: =I42+I88 -> 175962198.2 | J114: 38298060.3 | K114: 3341855.385 | L114: 804799.2169 | M114: 11514086.94 | N114: =N42+N88 -> 0 | R114: =($E42*R42+$E88*R88)/$E114 -> 0.1127780101 | S114: =($E42*S42+$E88*S88)/$E114 -> 0.1355321068 | T114: 0.0141214481 | U114: 0 | V114: 0 | W114: 0.2950786433 | X114: 0 | Y114: 0 | Z114: 0 | AA114: 0 | AB114: 0 | AC114: 0.2767262768 | AD114: 0.1587080689 | AE114: 0 | AF114: 0.007055445964 | AG114: 0 | AH114: 0 | AI114: =(AI42+AI88)/2 -> 0
A116: 116 | E116: =(E112/1000)-PROFORMA!AW354 -> 0 | AI116: 0
A117: 117 | C117: A | D117: Accumulated Deferred Income Taxes | E117: =PROFORMA!AW365*1000 -> -53349000 | F117: ="as Plant in Service ("&A$57&")" -> as Plant in Service (57) | H117: =SUM(I117:N117) -> -53349000 | I117: =$E117*SUMPRODUCT($R117:$AH117,INDEX(AllocFactors,I$4,0)) -> -41973186.35 | J117: =$E117*SUMPRODUCT($R117:$AH117,INDEX(AllocFactors,J$4,0)) -> -8097853.253 | K117: -708619.3039 | L117: -169491.4203 | M117: -2399849.668 | N117: 0 | P117: =E$1&$A117&"* Sum["&$R$1&$A117&":"&$AH$1&$A117&"* "&Factors!D$1&Factors!$A$58&":"&Factors!S$1&Factors!$A$64&"]" -> E117* Sum[R117:AH117* D588:S594] | R117: =R$57 -> 0.1021961708 | S117: =S$57 -> 0.1278525387 | T117: 0.01270837744 | U117: 0 | V117: 0 | W117: 0.2647023508 | X117: 0 | Y117: 0 | Z117: 0 | AA117: 0 | AB117: 0.07671802359 | AC117: 0.2835354036 | AD117: 0.1252075749 | AE117: 0 | AF117: 0.007079560269 | AG117: 0 | AH117: 0 | AI117: 0 | AK117: =SUM(AL117:AO117) -> -53349000 | AL117: =SUMIF($R$4:$AH$4,AL$5,$R117:$AH117)*$E117 -> -12950847.83 | AM117: =SUMIF($R$4:$AH$4,AM$5,$R117:$AH117)*$E117 -> -14121605.71 | AN117: =SUMIF($R$4:$AH$4,AN$5,$R117:$AH117)*$E117 -> -26276546.46 | AO117: =SUMIF($R$4:$AH$4,AO$5,$R117:$AH117)*$E117 -> 0 | AQ117: =E$1&$A117&"*["&R$1&$A117&":"&$AH$1&$A117&" when "&R$1&$A$4&":"&$AH$1&$A$4&" = E,D,C,or R]" -> E117*[R117:AH117 when R4:AH4 = E,D,C,or R] | AS117: =SUM(AT117:AY117) -> -12950847.83 | AT117: =$E117*SUMPRODUCT($R117:$V117,INDEX(AllocFactors_E,AT$4,0)) -> -8354274.09 | AU117: -3298474.703 | AV117: -413053.2908 | AW117: -84054.51175 | AX117: -800991.2342 | AY117: 0 | BA117: =SUM(BB117:BG117) -> -14121605.71 | BB117: =$E117*SUMPRODUCT($W117:$AA117,INDEX(AllocFactors_D,BB$4,0)) -> -9012188.302 | BC117: -3400733.617 | BD117: -253070.0785 | BE117: -66033.82112 | BF117: -1389579.891 | BG117: 0 | BI117: =SUM(BJ117:BO117) -> -26276546.46 | BJ117: =$E117*SUMPRODUCT($AB117:$AG117,INDEX(AllocFactors_C,BJ$4,0)) -> -24606723.96 | BK117: -1398644.933 | BL117: -42495.93467 | BM117: -19403.08744 | BN117: -209278.5433 | BO117: 0
A118: 118 | AI118: 0
A119: 119 | D119: Miscellaneous Rate Base Items | AI119: 0
A120: 120 | C120: D | D120: Customer Advances and Deposits | E120: =(PROFORMA!AW368+PROFORMA!AW369)*1000 -> -461000 | F120: input - DA 101 | H120: =SUM(I120:N120) -> -461000 | I120: =$E120*SUMPRODUCT($R120:$AH120,INDEX(AllocFactors,I$4,0)) -> -461000 | J120: 0 | K120: 0 | L120: 0 | M120: 0 | N120: 0 | P120: =E$1&$A120&"* Sum["&$R$1&$A120&":"&$AH$1&$A120&"* "&Factors!D$1&Factors!$A$58&":"&Factors!S$1&Factors!$A$64&"]" -> E120* Sum[R120:AH120* D588:S594] | S120: 0 | T120: 0 | U120: 0 | V120: 0 | W120: 0 | X120: 0 | Y120: 0 | Z120: 0 | AA120: 0 | AB120: 0 | AC120: 0 | AD120: 0 | AE120: 0 | AF120: 0 | AG120: 1 | AH120: 0 | AI120: 0 | AK120: =SUM(AL120:AO120) -> -461000 | AL120: =SUMIF($R$4:$AH$4,AL$5,$R120:$AH120)*$E120 -> 0 | AM120: 0 | AN120: -461000 | AO120: 0 | AQ120: =E$1&$A120&"*["&R$1&$A120&":"&$AH$1&$A120&" when "&R$1&$A$4&":"&$AH$1&$A$4&" = E,D,C,or R]" -> E120*[R120:AH120 when R4:AH4 = E,D,C,or R] | AS120: =SUM(AT120:AY120) -> 0 | AT120: =$E120*SUMPRODUCT($R120:$V120,INDEX(AllocFactors_E,AT$4,0)) -> 0 | AU120: 0 | AV120: 0 | AW120: 0 | AX120: 0 | AY120: 0 | BA120: =SUM(BB120:BG120) -> 0 | BB120: =$E120*SUMPRODUCT($W120:$AA120,INDEX(AllocFactors_D,BB$4,0)) -> 0 | BC120: 0 | BD120: 0 | BE120: 0 | BF120: 0 | BG120: 0 | BI120: =SUM(BJ120:BO120) -> -461000 | BJ120: =$E120*SUMPRODUCT($AB120:$AG120,INDEX(AllocFactors_C,BJ$4,0)) -> -461000 | BK120: 0 | BL120: 0 | BM120: 0 | BN120: 0 | BO120: 0
A121: 121 | C121: U | D121: Gas Inventory | E121: =PROFORMA!AW370*1000 -> 11341000 | F121: ="as UG Storage Plant ("&A$23&")" -> as UG Storage Plant (23) | H121: =SUM(I121:N121) -> 11341000 | I121: 7565853.919 | J121: 2987186.856 | K121: 374072.1007 | L121: 80653.97128 | M121: 333233.1533 | N121: 0 | P121: =E$1&$A121&"* """ -> E121* " | R121: =R$23 -> 0.2 | S121: =S$23 -> 0.8 | T121: 0 | U121: 0 | V121: 0 | W121: 0 | X121: 0 | Y121: 0 | Z121: 0 | AA121: 0 | AB121: 0 | AC121: 0 | AD121: 0 | AE121: 0 | AF121: 0 | AG121: 0 | AH121: 0 | AI121: 0 | AK121: =SUM(AL121:AO121) -> 11341000 | AL121: 11341000 | AM121: 0 | AN121: 0 | AO121: 0 | AQ121: =E$1&$A121&"* """ -> E121* " | AS121: =SUM(AT121:AY121) -> 11341000 | AT121: 7565853.919 | AU121: 2987186.856 | AV121: 374072.1007 | AW121: 80653.97128 | AX121: 333233.1533 | AY121: 0 | BA121: =SUM(BB121:BG121) -> 0 | BB121: 0 | BC121: 0 | BD121: 0 | BE121: 0 | BF121: 0 | BG121: 0 | BI121: =SUM(BJ121:BO121) -> 0 | BJ121: 0 | BK121: 0 | BL121: 0 | BM121: 0 | BN121: 0 | BO121: 0
A122: 122 | C122: O | D122: Working Capital | E122: =PROFORMA!AW371*1000 -> 9100000 | F122: as Plant in Service (56) | H122: =SUM(I122:N122) -> 9100000 | I122: =$E122*SUMPRODUCT($R122:$AH122,INDEX(AllocFactors,I$4,0)) -> 7159571.798 | J122: 1381290.457 | K122: 120872.6624 | L122: 28910.98099 | M122: 409354.1019 | N122: 0 | P122: =E$1&$A122&"* """ -> E122* " | R122: =R$57 -> 0.1021961708 | S122: =S$57 -> 0.1278525387 | T122: 0.01270837744 | U122: 0 | V122: 0 | W122: 0.2647023508 | X122: 0 | Y122: 0 | Z122: 0 | AA122: 0 | AB122: 0.07671802359 | AC122: 0.2835354036 | AD122: 0.1252075749 | AE122: 0 | AF122: 0.007079560269 | AG122: =AG$55 -> 0 | AH122: 0 | AI122: 0 | AK122: =SUM(AL122:AO122) -> 9100000 | AL122: 2209089.491 | AM122: 2408791.392 | AN122: 4482119.117 | AO122: 0 | AQ122: =E$1&$A122&"* """ -> E122* " | AS122: =SUM(AT122:AY122) -> 2209089.491 | AT122: 1425029.414 | AU122: 562636.9715 | AV122: 70456.52113 | AW122: 14337.5894 | AX122: 136628.9946 | AY122: 0 | BA122: =SUM(BB122:BG122) -> 2408791.392 | BB122: 1537253.061 | BC122: 580079.775 | BD122: 43167.40172 | BE122: 11263.71201 | BF122: 237027.4421 | BG122: 0 | BI122: =SUM(BJ122:BO122) -> 4482119.117 | BJ122: 4197289.322 | BK122: 238573.7106 | BL122: 7248.739535 | BM122: 3309.679576 | BN122: 35697.66526 | BO122: 0
A123: 123 | C123: M | D123: Demand Side Management Investment | E123: =0 -> 0 | F123: Input - Peak & Avg Calc | H123: =SUM(I123:N123) -> 0 | I123: 0 | J123: 0 | K123: 0 | L123: 0 | M123: 0 | N123: 0 | P123: =E$1&$A123&"* """ -> E123* " | R123: =PkAvg_E -> 0.3981887147 | S123: 0 | T123: 0 | U123: 0 | V123: 0 | W123: =PkAvg_D -> 0.6018112853 | X123: 0 | Y123: 0 | Z123: 0 | AA123: 0 | AB123: 0 | AC123: 0 | AD123: 0 | AE123: 0 | AF123: 0 | AG123: 0 | AH123: 0 | AI123: 0 | AK123: =SUM(AL123:AO123) -> 0 | AL123: 0 | AM123: 0 | AN123: 0 | AO123: 0 | AQ123: =E$1&$A123&"* """ -> E123* " | AS123: =SUM(AT123:AY123) -> 0 | AT123: 0 | AU123: 0 | AV123: 0 | AW123: 0 | AX123: 0 | AY123: 0 | BA123: =SUM(BB123:BG123) -> 0 | BB123: 0 | BC123: 0 | BD123: 0 | BE123: 0 | BF123: 0 | BG123: 0 | BI123: =SUM(BJ123:BO123) -> 0 | BJ123: 0 | BK123: 0 | BL123: 0 | BM123: 0 | BN123: 0 | BO123: 0
A124: 124 | C124: O | D124: Other | E124: =PROFORMA!AW373*1000 -> 0 | F124: as Plant in Service (56) | G124: Plant in Service (S17) | H124: =SUM(I124:N124) -> 0 | I124: =$E124*SUMPRODUCT($R124:$AH124,INDEX(AllocFactors,I$4,0)) -> 0 | J124: 0 | K124: 0 | L124: 0 | M124: 0 | N124: 0 | P124: =E$1&$A124&"* """ -> E124* " | R124: =R57 -> 0.1021961708 | S124: =S57 -> 0.1278525387 | T124: 0.01270837744 | U124: 0 | V124: 0 | W124: 0.2647023508 | X124: 0 | Y124: 0 | Z124: 0 | AA124: 0 | AB124: 0.07671802359 | AC124: 0.2835354036 | AD124: 0.1252075749 | AE124: 0 | AF124: 0.007079560269 | AG124: 0 | AH124: 0 | AI124: 0 | AK124: =SUM(AL124:AO124) -> 0 | AL124: 0 | AM124: 0 | AN124: 0 | AO124: 0 | AQ124: =E$1&$A124&"* """ -> E124* " | AS124: =SUM(AT124:AY124) -> 0 | AT124: 0 | AU124: 0 | AV124: 0 | AW124: 0 | AX124: 0 | AY124: 0 | BA124: =SUM(BB124:BG124) -> 0 | BB124: 0 | BC124: 0 | BD124: 0 | BE124: 0 | BF124: 0 | BG124: 0 | BI124: =SUM(BJ124:BO124) -> 0 | BJ124: 0 | BK124: 0 | BL124: 0 | BM124: 0 | BN124: 0 | BO124: 0
A125: 125 | AI125: 0
A126: 126 | D126: Total Other Rate Base Items | E126: =SUM(E117:E124) -> -33369000 | H126: =IF(ROUND(SUM(H117:H125),3)<>ROUND(SUM(I126:N126),3),#VALUE!,SUM(H117:H125)) -> -33369000 | I126: =SUM(I117:I125) -> -27708760.64 | J126: =SUM(J117:J125) -> -3729375.939 | K126: -213674.5409 | L126: -59926.46804 | M126: -1657262.413 | N126: 0 | P126: =$A117&":"&$A125 -> 117:125 | R126: =SUMPRODUCT($E117:$E125,R117:R125)/$E126 -> 0.06754407868 | S126: -0.1023540716 | T126: 0.0168519582 | U126: 0 | V126: 0 | W126: 0.3510088501 | X126: 0 | Y126: 0 | Z126: 0 | AA126: 0 | AB126: 0.1017320215 | AC126: 0.375982441 | AD126: 0.1660316455 | AE126: 0 | AF126: 0.009387858862 | AG126: 0.01381521772 | AH126: 0 | AI126: 0 | AK126: =IF(ROUND(SUM(AK117:AK125),3)<>ROUND(SUM(AL126:AO126),3),#VALUE!,SUM(AK117:AK125)) -> -33369000 | AL126: =SUM(AL117:AL125) -> 599241.6613 | AM126: =SUM(AM117:AM125) -> -11712814.32 | AN126: =SUM(AN117:AN125) -> -22255427.34 | AO126: =SUM(AO117:AO125) -> 0 | AQ126: =$A117&":"&$A125 -> 117:125 | AS126: =IF(ROUND(SUM(AS117:AS125),3)<>ROUND(SUM(AT126:AY126),3),#VALUE!,SUM(AS117:AS125)) -> 599241.6613 | AT126: =SUM(AT117:AT125) -> 636609.2426 | AU126: 251349.125 | AV126: 31475.33104 | AW126: 10937.04893 | AX126: -331129.0863 | AY126: 0 | BA126: =IF(ROUND(SUM(BA117:BA125),3)<>ROUND(SUM(BB126:BG126),3),#VALUE!,SUM(BA117:BA125)) -> -11712814.32 | BB126: =SUM(BB117:BB125) -> -7474935.241 | BC126: -2820653.842 | BD126: -209902.6768 | BE126: -54770.10911 | BF126: -1152552.449 | BG126: 0 | BI126: =IF(ROUND(SUM(BI117:BI125),3)<>ROUND(SUM(BJ126:BO126),3),#VALUE!,SUM(BI117:BI125)) -> -22255427.34 | BJ126: =SUM(BJ117:BJ125) -> -20870434.64 | BK126: -1160071.222 | BL126: -35247.19513 | BM126: -16093.40786 | BN126: -173580.878 | BO126: 0
A127: 127 | AI127: 0
A128: 128 | D128: Total Rate Base | E128: =E112+E126 -> 249360000 | F128: ="("&A$112&"+"&A$126&")" -> (112+126) | G128: Total Rate Base (S01) | H128: =H112+H126 -> 249360000 | I128: =I112+I126 -> 193733067 | J128: 39932442.33 | K128: 3569118.479 | L128: 851456.4145 | M128: 11273915.82 | N128: 0 | P128: =$A112&"+"&$A126 -> 112+126 | R128: =($E112*R112+$E126*R126)/$E128 -> 0.1081033561 | S128: 0.1572487507 | T128: 0.01222691371 | U128: 0 | V128: 0 | W128: 0.2565430721 | X128: 0 | Y128: 0 | Z128: 0 | AA128: 0 | AB128: 0.08043880588 | AC128: 0.2370646078 | AD128: 0.1436064886 | AE128: 0 | AF128: 0.006616737834 | AG128: -0.001848732756 | AH128: 0 | AI128: 0 | AK128: =AK112+AK126 -> 249360000 | AL128: =AL112+AL126 -> 69217104.56 | AM128: =AM112+AM126 -> 63971580.47 | AN128: =AN112+AN126 -> 116171315 | AO128: =AO112+AO126 -> 0 | AQ128: =$A112&"+"&$A126 -> 112+126 | AS128: =AS112+AS126 -> 69217104.56 | AT128: 44867718.78 | AU128: 17714888.66 | AV128: 2218356.579 | AW128: 455797.3361 | AX128: 3960343.199 | AY128: 0 | BA128: =BA112+BA126 -> 63971580.47 | BB128: 40825663.95 | BC128: 15405493.45 | BD128: 1146420.118 | BE128: 299136.5138 | BF128: 6294866.437 | BG128: 0 | BI128: =BI112+BI126 -> 116171315 | BJ128: 108039684.2 | BK128: 6812060.217 | BL128: 204341.781 | BM128: 96522.56459 | BN128: 1018706.18 | BO128: 0
A129: 129 | D129: Rate of Return | E129: =-E430/E128 -> 0.04856833494 | H129: =IF(H128,-H430/H128,0) -> 0.04856833488 | I129: =IF(I128,-I430/I128,0) -> 0.03958128346 | J129: =IF(J128,-J430/J128,0) -> 0.08831521865 | K129: 0.1013825662 | L129: 0.05158814076 | M129: 0.04527111404 | N129: 0 | P129: ="-"&$A430&"/"&$A128 -> -430/128 | AI129: 0 | AK129: =IF(AK128<>0,-AK430/AK128,0) -> 0.04856833494 | AL129: =IF(AL128<>0,-AL430/AL128,0) -> -0.5695346314 | AM129: =IF(AM128<>0,-AM430/AM128,0) -> -0.2322980257 | AN129: =IF(AN128<>0,-AN430/AN128,0) -> -0.1361034725 | AO129: =IF(AO128<>0,-AO430/AO128,0) -> 0 | AQ129: ="-"&$A430&"/"&$A128 -> -430/128
A130: 130 | E130: =E128/1000-PROFORMA!AW376 -> 0 | AI130: 0
A131: 131 | AI131: 0
A132: 132 | C132: U | D132: Underground Storage | E132: =SUMIF($C$7:$C$128,$C132,E$7:E$128) -> 26790000 | F132: ="sum where Func = "&$C132&" ("&A$7&"-"&A$128&")" -> sum where Func = U (7-128) | H132: =SUMIF($C$7:$C$128,$C132,H$7:H$128) -> 26790000 | I132: 17872253.46 | J132: 7056409.124 | K132: 883642.675 | L132: 190522.8719 | M132: 787171.8699 | N132: 0 | P132: =H$1&$A$7&":"&H$1&$A$128&", col "&C$1&"= T" -> H7:H128, col C= T | R132: =SUM(IF($C$7:$C$128=$C132,$E$7:$E$128*R$7:R$128))/$E132 -> 0.2 | S132: =SUM(IF($C$7:$C$128=$C132,$E$7:$E$128*S$7:S$128))/$E132 -> 0.8 | T132: =SUM(IF($C$7:$C$128=$C132,$E$7:$E$128*T$7:T$128))/$E132 -> 0 | U132: =SUM(IF($C$7:$C$128=$C132,$E$7:$E$128*U$7:U$128))/$E132 -> 0 | V132: =SUM(IF($C$7:$C$128=$C132,$E$7:$E$128*V$7:V$128))/$E132 -> 0 | W132: =SUM(IF($C$7:$C$128=$C132,$E$7:$E$128*W$7:W$128))/$E132 -> 0 | X132: =SUM(IF($C$7:$C$128=$C132,$E$7:$E$128*X$7:X$128))/$E132 -> 0 | Y132: =SUM(IF($C$7:$C$128=$C132,$E$7:$E$128*Y$7:Y$128))/$E132 -> 0 | Z132: =SUM(IF($C$7:$C$128=$C132,$E$7:$E$128*Z$7:Z$128))/$E132 -> 0 | AA132: =SUM(IF($C$7:$C$128=$C132,$E$7:$E$128*AA$7:AA$128))/$E132 -> 0 | AB132: =SUM(IF($C$7:$C$128=$C132,$E$7:$E$128*AB$7:AB$128))/$E132 -> 0 | AC132: =SUM(IF($C$7:$C$128=$C132,$E$7:$E$128*AC$7:AC$128))/$E132 -> 0 | AD132: =SUM(IF($C$7:$C$128=$C132,$E$7:$E$128*AD$7:AD$128))/$E132 -> 0 | AE132: =SUM(IF($C$7:$C$128=$C132,$E$7:$E$128*AE$7:AE$128))/$E132 -> 0 | AF132: =SUM(IF($C$7:$C$128=$C132,$E$7:$E$128*AF$7:AF$128))/$E132 -> 0 | AG132: =SUM(IF($C$7:$C$128=$C132,$E$7:$E$128*AG$7:AG$128))/$E132 -> 0 | AH132: =SUM(IF($C$7:$C$128=$C132,$E$7:$E$128*AH$7:AH$128))/$E132 -> 0 | AI132: 0 | AK132: =SUMIF($C$7:$C$128,$C132,AK$7:AK$128) -> 26790000 | AL132: 26790000 | AM132: 0 | AN132: 0 | AO132: 0 | AQ132: =E$1&$A132&"* """ -> E132* " | AS132: =SUM(AT132:AY132) -> 26790000 | AT132: =SUMIF($C$7:$C$128,$C132,AT$7:AT$128) -> 17872253.46 | AU132: 7056409.124 | AV132: 883642.675 | AW132: 190522.8719 | AX132: 787171.8699 | AY132: 0 | BA132: =SUM(BB132:BG132) -> 0 | BB132: =SUMIF($C$7:$C$128,$C132,BB$7:BB$128) -> 0 | BC132: 0 | BD132: 0 | BE132: 0 | BF132: 0 | BG132: 0 | BI132: =SUM(BJ132:BO132) -> 0 | BJ132: =SUMIF($C$7:$C$128,$C132,BJ$7:BJ$128) -> 0 | BK132: 0 | BL132: 0 | BM132: 0 | BN132: 0 | BO132: 0
A133: 133 | C133: D | D133: Distribution | E133: =SUMIF($C$7:$C$128,$C133,E$7:E$128) -> 215214000 | F133: ="sum where Func = "&$C133&" ("&A$7&"-"&A$128&")" -> sum where Func = D (7-128) | H133: 215214000 | I133: 166131928.1 | J133: 34414969.62 | K133: 2847825.169 | L133: 698711.5074 | M133: 11120565.62 | N133: 0 | P133: =H$1&$A$7&":"&H$1&$A$128&", col "&C$1&"= D" -> H7:H128, col C= D | R133: =SUM(IF($C$7:$C$128=$C133,$E$7:$E$128*R$7:R$128))/$E133 -> 0.1067086931 | S133: =SUM(IF($C$7:$C$128=$C133,$E$7:$E$128*S$7:S$128))/$E133 -> 0.08785072184 | T133: =SUM(IF($C$7:$C$128=$C133,$E$7:$E$128*T$7:T$128))/$E133 -> 0.01517008904 | U133: =SUM(IF($C$7:$C$128=$C133,$E$7:$E$128*U$7:U$128))/$E133 -> 0 | V133: =SUM(IF($C$7:$C$128=$C133,$E$7:$E$128*V$7:V$128))/$E133 -> 0 | W133: =SUM(IF($C$7:$C$128=$C133,$E$7:$E$128*W$7:W$128))/$E133 -> 0.3169793057 | X133: =SUM(IF($C$7:$C$128=$C133,$E$7:$E$128*X$7:X$128))/$E133 -> 0 | Y133: =SUM(IF($C$7:$C$128=$C133,$E$7:$E$128*Y$7:Y$128))/$E133 -> 0 | Z133: =SUM(IF($C$7:$C$128=$C133,$E$7:$E$128*Z$7:Z$128))/$E133 -> 0 | AA133: =SUM(IF($C$7:$C$128=$C133,$E$7:$E$128*AA$7:AA$128))/$E133 -> 0 | AB133: =SUM(IF($C$7:$C$128=$C133,$E$7:$E$128*AB$7:AB$128))/$E133 -> 0 | AC133: =SUM(IF($C$7:$C$128=$C133,$E$7:$E$128*AC$7:AC$128))/$E133 -> 0.2975049107 | AD133: =SUM(IF($C$7:$C$128=$C133,$E$7:$E$128*AD$7:AD$128))/$E133 -> 0.1703474328 | AE133: =SUM(IF($C$7:$C$128=$C133,$E$7:$E$128*AE$7:AE$128))/$E133 -> 0 | AF133: =SUM(IF($C$7:$C$128=$C133,$E$7:$E$128*AF$7:AF$128))/$E133 -> 0.007580900835 | AG133: =SUM(IF($C$7:$C$128=$C133,$E$7:$E$128*AG$7:AG$128))/$E133 -> -0.002142053956 | AH133: =SUM(IF($C$7:$C$128=$C133,$E$7:$E$128*AH$7:AH$128))/$E133 -> 0 | AI133: 0 | AK133: 215214000 | AL133: 45136725.46 | AM133: 68218384.29 | AN133: 101858890.2 | AO133: 0 | AQ133: =E$1&$A133&"* """ -> E133* " | AS133: =SUM(AT133:AY133) -> 45136725.46 | AT133: 28720944.95 | AU133: 11339741.71 | AV133: 1420025.33 | AW133: 282074.8582 | AX133: 3373938.616 | AY133: 0 | BA133: =SUM(BB133:BG133) -> 68218384.29 | BB133: 43535907.85 | BC133: 16428199.28 | BD133: 1222526.122 | BE133: 318994.9272 | BF133: 6712756.11 | BG133: 0 | BI133: =SUM(BJ133:BO133) -> 101858890.2 | BJ133: 93875075.28 | BK133: 6647028.627 | BL133: 205273.7168 | BM133: 97641.72197 | BN133: 1033870.896 | BO133: 0
A134: 134 | C134: M | D134: DSM | E134: =SUMIF($C$7:$C$128,$C134,E$7:E$128) -> 0 | F134: ="sum where Func = "&$C134&" ("&A$7&"-"&A$128&")" -> sum where Func = M (7-128) | H134: 0 | I134: 0 | J134: 0 | K134: 0 | L134: 0 | M134: 0 | N134: 0 | P134: =H$1&$A$7&":"&H$1&$A$128&", col "&C$1&"= D" -> H7:H128, col C= D | R134: =IF($E134,SUM(IF($C$7:$C$128=$C134,$E$7:$E$128*R$7:R$128))/$E134,0) -> 0 | S134: =IF($E134,SUM(IF($C$7:$C$128=$C134,$E$7:$E$128*S$7:S$128))/$E134,0) -> 0 | T134: =IF($E134,SUM(IF($C$7:$C$128=$C134,$E$7:$E$128*T$7:T$128))/$E134,0) -> 0 | U134: =IF($E134,SUM(IF($C$7:$C$128=$C134,$E$7:$E$128*U$7:U$128))/$E134,0) -> 0 | V134: =IF($E134,SUM(IF($C$7:$C$128=$C134,$E$7:$E$128*V$7:V$128))/$E134,0) -> 0 | W134: =IF($E134,SUM(IF($C$7:$C$128=$C134,$E$7:$E$128*W$7:W$128))/$E134,0) -> 0 | X134: =IF($E134,SUM(IF($C$7:$C$128=$C134,$E$7:$E$128*X$7:X$128))/$E134,0) -> 0 | Y134: =IF($E134,SUM(IF($C$7:$C$128=$C134,$E$7:$E$128*Y$7:Y$128))/$E134,0) -> 0 | Z134: =IF($E134,SUM(IF($C$7:$C$128=$C134,$E$7:$E$128*Z$7:Z$128))/$E134,0) -> 0 | AA134: =IF($E134,SUM(IF($C$7:$C$128=$C134,$E$7:$E$128*AA$7:AA$128))/$E134,0) -> 0 | AB134: =IF($E134,SUM(IF($C$7:$C$128=$C134,$E$7:$E$128*AB$7:AB$128))/$E134,0) -> 0 | AC134: =IF($E134,SUM(IF($C$7:$C$128=$C134,$E$7:$E$128*AC$7:AC$128))/$E134,0) -> 0 | AD134: =IF($E134,SUM(IF($C$7:$C$128=$C134,$E$7:$E$128*AD$7:AD$128))/$E134,0) -> 0 | AE134: =IF($E134,SUM(IF($C$7:$C$128=$C134,$E$7:$E$128*AE$7:AE$128))/$E134,0) -> 0 | AF134: =IF($E134,SUM(IF($C$7:$C$128=$C134,$E$7:$E$128*AF$7:AF$128))/$E134,0) -> 0 | AG134: =IF($E134,SUM(IF($C$7:$C$128=$C134,$E$7:$E$128*AG$7:AG$128))/$E134,0) -> 0 | AH134: =IF($E134,SUM(IF($C$7:$C$128=$C134,$E$7:$E$128*AH$7:AH$128))/$E134,0) -> 0 | AI134: 0 | AK134: 0 | AL134: 0 | AM134: 0 | AN134: 0 | AO134: 0 | AQ134: =E$1&$A134&"* """ -> E134* " | AS134: =SUM(AT134:AY134) -> 0 | AT134: 0 | AU134: 0 | AV134: 0 | AW134: 0 | AX134: 0 | AY134: 0 | BA134: =SUM(BB134:BG134) -> 0 | BB134: 0 | BC134: 0 | BD134: 0 | BE134: 0 | BF134: 0 | BG134: 0 | BI134: =SUM(BJ134:BO134) -> 0 | BJ134: 0 | BK134: 0 | BL134: 0 | BM134: 0 | BN134: 0 | BO134: 0
A135: =RowHdr -> 135 | C135: O | D135: Common | E135: =SUMIF($C$7:$C$128,$C135,E$7:E$128) -> 60705000 | F135: ="sum where Func = "&$C135&" ("&A$7&"-"&A$128&")" -> sum where Func = O (7-128) | H135: 60705000 | I135: 51702071.77 | J135: 6558916.841 | K135: 546269.9382 | L135: 131713.4556 | M135: 1766027.992 | N135: 0 | P135: =H$1&$A$7&":"&H$1&$A$128&", col "&C$1&"= O" -> H7:H128, col C= O | R135: =SUM(IF($C$7:$C$128=$C135,$E$7:$E$128*R$7:R$128))/$E135 -> 0.06730107453 | S135: =SUM(IF($C$7:$C$128=$C135,$E$7:$E$128*S$7:S$128))/$E135 -> 0.09379208156 | T135: =SUM(IF($C$7:$C$128=$C135,$E$7:$E$128*T$7:T$128))/$E135 -> 0.00761167758 | U135: =SUM(IF($C$7:$C$128=$C135,$E$7:$E$128*U$7:U$128))/$E135 -> 0 | V135: =SUM(IF($C$7:$C$128=$C135,$E$7:$E$128*V$7:V$128))/$E135 -> 0 | W135: =SUM(IF($C$7:$C$128=$C135,$E$7:$E$128*W$7:W$128))/$E135 -> 0.1626686745 | X135: =SUM(IF($C$7:$C$128=$C135,$E$7:$E$128*X$7:X$128))/$E135 -> 0 | Y135: =SUM(IF($C$7:$C$128=$C135,$E$7:$E$128*Y$7:Y$128))/$E135 -> 0 | Z135: =SUM(IF($C$7:$C$128=$C135,$E$7:$E$128*Z$7:Z$128))/$E135 -> 0 | AA135: =SUM(IF($C$7:$C$128=$C135,$E$7:$E$128*AA$7:AA$128))/$E135 -> 0 | AB135: =SUM(IF($C$7:$C$128=$C135,$E$7:$E$128*AB$7:AB$128))/$E135 -> 0.3978428544 | AC135: =SUM(IF($C$7:$C$128=$C135,$E$7:$E$128*AC$7:AC$128))/$E135 -> 0.1682487276 | AD135: =SUM(IF($C$7:$C$128=$C135,$E$7:$E$128*AD$7:AD$128))/$E135 -> 0.09600956246 | AE135: =SUM(IF($C$7:$C$128=$C135,$E$7:$E$128*AE$7:AE$128))/$E135 -> 0 | AF135: =SUM(IF($C$7:$C$128=$C135,$E$7:$E$128*AF$7:AF$128))/$E135 -> 0.006525347416 | AG135: =SUM(IF($C$7:$C$128=$C135,$E$7:$E$128*AG$7:AG$128))/$E135 -> 0 | AH135: =SUM(IF($C$7:$C$128=$C135,$E$7:$E$128*AH$7:AH$128))/$E135 -> 0 | AI135: 0 | AK135: 60705000 | AL135: 10241226.93 | AM135: 9874801.888 | AN135: 40588971.18 | AO135: 0 | AQ135: =E$1&$A135&"* """ -> E135* " | AS135: =SUM(AT135:AY135) -> 10241226.93 | AT135: 6628794.465 | AU135: 2617212.533 | AV135: 327741.8646 | AW135: 67254.11779 | AX135: 600223.9469 | AY135: 0 | BA135: =SUM(BB135:BG135) -> 9874801.888 | BB135: 6301944.402 | BC135: 2378027.785 | BD135: 176964.0748 | BE135: 46175.40773 | BF135: 971690.218 | BG135: 0 | BI135: =SUM(BJ135:BO135) -> 40588971.18 | BJ135: 38771332.91 | BK135: 1563676.523 | BL135: 41563.99885 | BM135: 18283.93005 | BN135: 194113.8272 | BO135: 0
A136: 136 | C136: A | D136: Allocated | E136: =SUMIF($C$7:$C$128,$C136,E$7:E$128) -> -53349000 | F136: ="sum where Func = "&$C136&" ("&A$7&"-"&A$128&")" -> sum where Func = A (7-128) | H136: -53349000 | I136: -41973186.35 | J136: -8097853.253 | K136: -708619.3039 | L136: -169491.4203 | M136: -2399849.668 | N136: 0 | P136: =H$1&$A$7&":"&H$1&$A$128&", col "&C$1&"= O" -> H7:H128, col C= O | R136: =SUM(IF($C$7:$C$128=$C136,$E$7:$E$128*R$7:R$128))/$E136 -> 0.1021961708 | S136: =SUM(IF($C$7:$C$128=$C136,$E$7:$E$128*S$7:S$128))/$E136 -> 0.1278525387 | T136: =SUM(IF($C$7:$C$128=$C136,$E$7:$E$128*T$7:T$128))/$E136 -> 0.01270837744 | U136: =SUM(IF($C$7:$C$128=$C136,$E$7:$E$128*U$7:U$128))/$E136 -> 0 | V136: =SUM(IF($C$7:$C$128=$C136,$E$7:$E$128*V$7:V$128))/$E136 -> 0 | W136: =SUM(IF($C$7:$C$128=$C136,$E$7:$E$128*W$7:W$128))/$E136 -> 0.2647023508 | X136: =SUM(IF($C$7:$C$128=$C136,$E$7:$E$128*X$7:X$128))/$E136 -> 0 | Y136: =SUM(IF($C$7:$C$128=$C136,$E$7:$E$128*Y$7:Y$128))/$E136 -> 0 | Z136: =SUM(IF($C$7:$C$128=$C136,$E$7:$E$128*Z$7:Z$128))/$E136 -> 0 | AA136: =SUM(IF($C$7:$C$128=$C136,$E$7:$E$128*AA$7:AA$128))/$E136 -> 0 | AB136: =SUM(IF($C$7:$C$128=$C136,$E$7:$E$128*AB$7:AB$128))/$E136 -> 0.07671802359 | AC136: =SUM(IF($C$7:$C$128=$C136,$E$7:$E$128*AC$7:AC$128))/$E136 -> 0.2835354036 | AD136: =SUM(IF($C$7:$C$128=$C136,$E$7:$E$128*AD$7:AD$128))/$E136 -> 0.1252075749 | AE136: =SUM(IF($C$7:$C$128=$C136,$E$7:$E$128*AE$7:AE$128))/$E136 -> 0 | AF136: =SUM(IF($C$7:$C$128=$C136,$E$7:$E$128*AF$7:AF$128))/$E136 -> 0.007079560269 | AG136: =SUM(IF($C$7:$C$128=$C136,$E$7:$E$128*AG$7:AG$128))/$E136 -> 0 | AH136: =SUM(IF($C$7:$C$128=$C136,$E$7:$E$128*AH$7:AH$128))/$E136 -> 0 | AI136: 0 | AK136: -53349000 | AL136: -12950847.83 | AM136: -14121605.71 | AN136: -26276546.46 | AO136: 0 | AQ136: =E$1&$A136&"* """ -> E136* " | AS136: =SUM(AT136:AY136) -> -12950847.83 | AT136: -8354274.09 | AU136: -3298474.703 | AV136: -413053.2908 | AW136: -84054.51175 | AX136: -800991.2342 | AY136: 0 | BA136: =SUM(BB136:BG136) -> -14121605.71 | BB136: -9012188.302 | BC136: -3400733.617 | BD136: -253070.0785 | BE136: -66033.82112 | BF136: -1389579.891 | BG136: 0 | BI136: =SUM(BJ136:BO136) -> -26276546.46 | BJ136: -24606723.96 | BK136: -1398644.933 | BL136: -42495.93467 | BM136: -19403.08744 | BN136: -209278.5433 | BO136: 0
A137: 137 | D137: Total Rate Base | E137: =SUM(E132:E136) -> 249360000 | H137: =SUM(H132:H136) -> 249360000 | I137: 193733067 | J137: 39932442.33 | K137: 3569118.479 | L137: 851456.4145 | M137: 11273915.82 | N137: 0 | P137: =A132&":"&$A135 -> 132:135 | AI137: 0 | AK137: =SUM(AK132:AK136) -> 249360000 | AL137: =SUM(AL132:AL136) -> 69217104.56 | AM137: =SUM(AM132:AM136) -> 63971580.47 | AN137: =SUM(AN132:AN136) -> 116171315 | AO137: =SUM(AO132:AO136) -> 0 | AQ137: =A132&":"&$A135 -> 132:135 | AS137: =IF(ROUND(SUM(AS132:AS136),3)<>ROUND(SUM(AT137:AY137),3),#VALUE!,SUM(AS132:AS136)) -> 69217104.56 | AT137: =SUM(AT132:AT136) -> 44867718.78 | AU137: 17714888.66 | AV137: 2218356.579 | AW137: 455797.3361 | AX137: 3960343.199 | AY137: 0 | BA137: =IF(ROUND(SUM(BA132:BA136),3)<>ROUND(SUM(BB137:BG137),3),#VALUE!,SUM(BA132:BA136)) -> 63971580.47 | BB137: =SUM(BB132:BB136) -> 40825663.95 | BC137: 15405493.45 | BD137: 1146420.118 | BE137: 299136.5138 | BF137: 6294866.437 | BG137: 0 | BI137: =IF(ROUND(SUM(BI132:BI136),3)<>ROUND(SUM(BJ137:BO137),3),#VALUE!,SUM(BI132:BI136)) -> 116171315 | BJ137: =SUM(BJ132:BJ136) -> 108039684.2 | BK137: 6812060.217 | BL137: 204341.781 | BM137: 96522.56459 | BN137: 1018706.18 | BO137: 0
A138: 138 | H138: =H137-$E137 -> 0 | AI138: 0 | AK138: =AK137-$E137 -> 0
A139: 139 | D139: Allocated Rate Base - ADFIT | AI139: 0
A140: 140 | D140: Underground Storage | E140: =$E$136*$E$23/$E$57 -> -3067644.573 | H140: =SUM(I140:N140) -> -3067644.573 | I140: =I$136*IF(I$57,I$23/I$57,0) -> -2046499.49 | J140: -808008.7778 | K140: -101183.3392 | L140: -21816.21703 | M140: -90136.74935 | N140: 0 | AI140: 0 | AK140: =SUM(AL140:AQ140) -> -3067644.573 | AL140: =AL$136*IF(AL$57,AL$23/AL$57,0) -> -3067644.573 | AM140: =AM$136*IF(AM$57,AM$23/AM$57,0) -> 0 | AN140: =AN$136*IF(AN$57,AN$23/AN$57,0) -> 0 | AO140: =AO$136*IF(AO$57,AO$23/AO$57,0) -> 0 | AS140: =SUM(AT140:AY140) -> -3067644.573 | AT140: =AT$136*IF(AT$57,AT$23/AT$57,0) -> -2046499.49 | AU140: -808008.7778 | AV140: -101183.3392 | AW140: -21816.21703 | AX140: -90136.74935 | AY140: 0 | BA140: =SUM(BB140:BG140) -> 0 | BB140: =BB$136*IF(BB$57,BB$23/BB$57,0) -> 0 | BC140: 0 | BD140: 0 | BE140: 0 | BF140: 0 | BG140: 0 | BI140: =SUM(BJ140:BO140) -> 0 | BJ140: =BJ$136*IF(BJ$57,BJ$23/BJ$57,0) -> 0 | BK140: 0 | BL140: 0 | BM140: 0 | BN140: 0 | BO140: 0
A141: 141 | D141: Distribution | E141: =$E$136*$E$40/$E$57 -> -41082091.87 | H141: =SUM(I141:N141) -> -41082091.87 | I141: =I$136*IF(I$57,I$40/I$57,0) -> -32002692.21 | J141: -6356338.293 | K141: -530698.6231 | L141: -129126.5523 | M141: -2063236.192 | N141: 0 | AI141: =IF(SUM(R141:AH141)<>0,(ROUND(SUM(R141:AH141),8)<>1)+0,0) -> 0 | AK141: =SUM(AL141:AQ141) -> -41082091.87 | AL141: =AL$136*IF(AL$57,AL$40/AL$57,0) -> -8441724.513 | AM141: =AM$136*IF(AM$57,AM$40/AM$57,0) -> -12758586.29 | AN141: =AN$136*IF(AN$57,AN$40/AN$57,0) -> -19881781.06 | AO141: =AO$136*IF(AO$57,AO$40/AO$57,0) -> 0 | AS141: =SUM(AT141:AY141) -> -8441724.513 | AT141: =AT$136*IF(AT$57,AT$40/AT$57,0) -> -5374333.169 | AU141: -2121920.087 | AV141: -265718.5983 | AW141: -52755.16046 | AX141: -626997.4975 | AY141: 0 | BA141: =SUM(BB141:BG141) -> -12758586.29 | BB141: =BB$136*IF(BB$57,BB$40/BB$57,0) -> -8142330.59 | BC141: -3072494.319 | BD141: -228643.7181 | BE141: -59660.2272 | BF141: -1255457.44 | BG141: 0 | BI141: =SUM(BJ141:BO141) -> -19881781.06 | BJ141: =BJ$136*IF(BJ$57,BJ$40/BJ$57,0) -> -18486028.45 | BK141: -1161923.887 | BL141: -36336.30666 | BM141: -16711.1646 | BN141: -180781.2541 | BO141: 0
A142: 142 | D142: Common | E142: =$E$136*SUM($E$12,$E$55)/$E$57 -> -9199263.557 | H142: =SUM(I142:N142) -> -9199263.557 | I142: =I$136*IF(I$57,SUM(I$12,I$55)/I$57,0) -> -7923994.655 | J142: -933506.1821 | K142: -76737.34166 | L142: -18548.65101 | M142: -246476.7276 | N142: 0 | AI142: 0 | AK142: =SUM(AL142:AQ142) -> -9199263.557 | AL142: =AL$136*IF(AL$57,SUM(AL$12,AL$55)/AL$57,0) -> -1441478.744 | AM142: =AM$136*IF(AM$57,SUM(AM$12,AM$55)/AM$57,0) -> -1363019.416 | AN142: =AN$136*IF(AN$57,SUM(AN$12,AN$55)/AN$57,0) -> -6394765.398 | AO142: =AO$136*IF(AO$57,SUM(AO$12,AO$55)/AO$57,0) -> 0 | AS142: =SUM(AT142:AY142) -> -1441478.744 | AT142: =AT$136*IF(AT$57,SUM(AT$12,AT$55)/AT$57,0) -> -933441.4307 | AU142: -368545.838 | AV142: -46151.35325 | AW142: -9483.134258 | AX142: -83856.98731 | AY142: 0 | BA142: =SUM(BB142:BG142) -> -1363019.416 | BB142: =BB$136*IF(BB$57,SUM(BB$12,BB$55)/BB$57,0) -> -869857.7121 | BC142: -328239.2982 | BD142: -24426.3604 | BE142: -6373.593919 | BF142: -134122.4511 | BG142: 0 | BI142: =SUM(BJ142:BO142) -> -6394765.398 | BJ142: =BJ$136*IF(BJ$57,SUM(BJ$12,BJ$55)/BJ$57,0) -> -6120695.512 | BK142: -236721.0458 | BL142: -6159.628006 | BM142: -2691.922836 | BN142: -28497.28923 | BO142: 0
A143: 143 | D143: Total Allocated Rate Base | E143: =SUM(E140:E142) -> -53349000 | H143: =SUM(H140:H142) -> -53349000 | I143: =SUM(I140:I142) -> -41973186.35 | J143: -8097853.253 | K143: -708619.3039 | L143: -169491.4203 | M143: -2399849.668 | N143: 0 | AI143: 0 | AK143: =SUM(AK140:AK142) -> -53349000 | AL143: =SUM(AL140:AL142) -> -12950847.83 | AM143: =SUM(AM140:AM142) -> -14121605.71 | AN143: =SUM(AN140:AN142) -> -26276546.46 | AO143: =SUM(AO140:AO142) -> 0 | AS143: =SUM(AS140:AS142) -> -12950847.83 | AT143: -8354274.09 | AU143: -3298474.703 | AV143: -413053.2908 | AW143: -84054.51175 | AX143: -800991.2342 | AY143: 0 | BA143: =SUM(BA140:BA142) -> -14121605.71 | BB143: -9012188.302 | BC143: -3400733.617 | BD143: -253070.0785 | BE143: -66033.82112 | BF143: -1389579.891 | BG143: 0 | BI143: =SUM(BI140:BI142) -> -26276546.46 | BJ143: -24606723.96 | BK143: -1398644.933 | BL143: -42495.93467 | BM143: -19403.08744 | BN143: -209278.5433 | BO143: 0
A144: 144 | H144: =H143-$E143 -> 0 | AI144: 0
A145: 145 | D145: Rate Base by Function | AI145: 0
A146: 146 | D146: Underground Storage | E146: =E132+E140 -> 23722355.43 | H146: =H132+H140 -> 23722355.43 | I146: 15825753.97 | J146: 6248400.346 | K146: 782459.3358 | L146: 168706.6549 | M146: 697035.1206 | N146: 0 | AI146: 0 | AK146: =AK132+AK140 -> 23722355.43 | AL146: 23722355.43 | AM146: 0 | AN146: 0 | AO146: 0 | AS146: =AS132+AS140 -> 23722355.43 | AT146: 15825753.97 | AU146: 6248400.346 | AV146: 782459.3358 | AW146: 168706.6549 | AX146: 697035.1206 | AY146: 0 | BA146: =BA132+BA140 -> 0 | BB146: 0 | BC146: 0 | BD146: 0 | BE146: 0 | BF146: 0 | BG146: 0 | BI146: =BI132+BI140 -> 0 | BJ146: 0 | BK146: 0 | BL146: 0 | BM146: 0 | BN146: 0 | BO146: 0
A147: 147 | D147: Distribution | E147: =E133+E141 -> 174131908.1 | H147: 174131908.1 | I147: 134129235.9 | J147: 28058631.32 | K147: 2317126.546 | L147: 569584.9551 | M147: 9057329.43 | N147: 0 | AI147: 0 | AK147: 174131908.1 | AL147: 36695000.95 | AM147: 55459798 | AN147: 81977109.18 | AO147: 0 | AS147: =AS133+AS141 -> 36695000.95 | AT147: 23346611.78 | AU147: 9217821.623 | AV147: 1154306.732 | AW147: 229319.6977 | AX147: 2746941.118 | AY147: 0 | BA147: =BA133+BA141 -> 55459798 | BB147: 35393577.26 | BC147: 13355704.96 | BD147: 993882.404 | BE147: 259334.7 | BF147: 5457298.67 | BG147: 0 | BI147: =BI133+BI141 -> 81977109.18 | BJ147: 75389046.83 | BK147: 5485104.74 | BL147: 168937.4101 | BM147: 80930.55737 | BN147: 853089.642 | BO147: 0
A148: 148 | D148: DSM | E148: =E134 -> 0 | H148: =H134 -> 0 | I148: 0 | J148: 0 | K148: 0 | L148: 0 | M148: 0 | N148: 0 | AI148: 0 | AK148: =AK134 -> 0 | AL148: =AL134 -> 0 | AM148: =AM134 -> 0 | AN148: =AN134 -> 0 | AO148: =AO134 -> 0 | AS148: =AS134 -> 0 | AT148: 0 | AU148: 0 | AV148: 0 | AW148: 0 | AX148: 0 | AY148: 0 | BA148: =BA134 -> 0 | BB148: 0 | BC148: 0 | BD148: 0 | BE148: 0 | BF148: 0 | BG148: 0 | BI148: =BI134 -> 0 | BJ148: 0 | BK148: 0 | BL148: 0 | BM148: 0 | BN148: 0 | BO148: 0
A149: 149 | D149: Common | E149: =E135+E142 -> 51505736.44 | H149: =H135+H142 -> 51505736.44 | I149: 43778077.12 | J149: 5625410.659 | K149: 469532.5966 | L149: 113164.8046 | M149: 1519551.264 | N149: 0 | AI149: 0 | AK149: =AK135+AK142 -> 51505736.44 | AL149: =AL135+AL142 -> 8799748.184 | AM149: =AM135+AM142 -> 8511782.472 | AN149: =AN135+AN142 -> 34194205.79 | AO149: =AO135+AO142 -> 0 | AS149: =AS135+AS142 -> 8799748.184 | AT149: 5695353.035 | AU149: 2248666.695 | AV149: 281590.5114 | AW149: 57770.98353 | AX149: 516366.9596 | AY149: 0 | BA149: =BA135+BA142 -> 8511782.472 | BB149: 5432086.69 | BC149: 2049788.486 | BD149: 152537.7144 | BE149: 39801.81381 | BF149: 837567.7669 | BG149: 0 | BI149: =BI135+BI142 -> 34194205.79 | BJ149: 32650637.39 | BK149: 1326955.477 | BL149: 35404.37084 | BM149: 15592.00722 | BN149: 165616.538 | BO149: 0
A150: 150 | D150: Total Allocated Rate Base | E150: =SUM(E146:E149) -> 249360000 | H150: =SUM(H146:H149) -> 249360000 | I150: 193733067 | J150: 39932442.33 | K150: 3569118.479 | L150: 851456.4145 | M150: 11273915.82 | N150: 0 | AI150: 0 | AK150: =SUM(AK146:AK149) -> 249360000 | AL150: =SUM(AL146:AL149) -> 69217104.56 | AM150: =SUM(AM146:AM149) -> 63971580.47 | AN150: =SUM(AN146:AN149) -> 116171315 | AO150: =SUM(AO146:AO149) -> 0 | AS150: =SUM(AS146:AS149) -> 69217104.56 | AT150: 44867718.78 | AU150: 17714888.66 | AV150: 2218356.579 | AW150: 455797.3361 | AX150: 3960343.199 | AY150: 0 | BA150: =SUM(BA146:BA149) -> 63971580.47 | BB150: 40825663.95 | BC150: 15405493.45 | BD150: 1146420.118 | BE150: 299136.5138 | BF150: 6294866.437 | BG150: 0 | BI150: =SUM(BI146:BI149) -> 116171315 | BJ150: 108039684.2 | BK150: 6812060.217 | BL150: 204341.781 | BM150: 96522.56459 | BN150: 1018706.18 | BO150: 0
A151: 151 | H151: =H150-$E150 -> 0 | AI151: 0 | AK151: =AK150-$E150 -> 0
A152: 152 | AI152: 0
A153: 153 | D153: Interest Expenses | AI153: 0
A154: 154 | C154: R | D154: Interest Expenses | E154: =PROFORMA!AW404*1000 -> 6702000 | F154: ="as Total Rate Base ("&A$128&")" -> as Total Rate Base (128) | H154: =SUM(I154:N154) -> 6702000 | I154: =$E154*SUMPRODUCT($R154:$AH154,INDEX(AllocFactors,I$4,0)) -> 5206925.789 | J154: 1073256.45 | K154: 95926.50002 | L154: 22884.4277 | M154: 303006.8327 | N154: 0 | P154: =E$1&$A154&"* Sum["&$R$1&$A154&":"&$AH$1&$A154&"* "&Factors!D$1&Factors!$A$58&":"&Factors!S$1&Factors!$A$64&"]" -> E154* Sum[R154:AH154* D588:S594] | R154: =R$128 -> 0.1081033561 | S154: 0.1572487507 | T154: 0.01222691371 | U154: 0 | V154: 0 | W154: 0.2565430721 | X154: 0 | Y154: 0 | Z154: 0 | AA154: 0 | AB154: 0.08043880588 | AC154: 0.2370646078 | AD154: 0.1436064886 | AE154: 0 | AF154: 0.006616737834 | AG154: -0.001848732756 | AH154: 0 | AI154: 0 | AK154: =SUM(AL154:AO154) -> 6702000 | AL154: =SUMIF($R$4:$AH$4,AL$5,$R154:$AH154)*$E154 -> 1860334.596 | AM154: =SUMIF($R$4:$AH$4,AM$5,$R154:$AH154)*$E154 -> 1719351.67 | AN154: =SUMIF($R$4:$AH$4,AN$5,$R154:$AH154)*$E154 -> 3122313.735 | AO154: =SUMIF($R$4:$AH$4,AO$5,$R154:$AH154)*$E154 -> 0 | AQ154: =E$1&$A154&"*["&R$1&$A154&":"&$AH$1&$A154&" when "&R$1&$A$4&":"&$AH$1&$A$4&" = E,D,C,or R]" -> E154*[R154:AH154 when R4:AH4 = E,D,C,or R]
A155: 155 | H155: =H154-E154 -> 0 | AI155: 0
A156: 156 | D156: Peak-Average Energy | E156: ='Demand - Pk-Avg'!R25 -> 0.3981887147 | H156: =H143-$E143 -> 0 | AI156: 0 | AK156: =AK143-$E143 -> 0
A157: 157 | D157: Peak-Average Demand | E157: ='Demand - Pk-Avg'!R24 -> 0.6018112853
A158: 158
A159: 159
A160: 160
A161: 161
A162: 162
A163: 163
A164: 164
A165: 165
A166: 166
A167: 167 | AS167: COMMODITY | BA167: DEMAND | BI167: CUSTOMER
A168: 168 | E168: Proforma | R168: COMMODITY | S168: COMMODITY | T168: COMMODITY | U168: COMMODITY | V168: COMMODITY | W168: DEMAND | X168: DEMAND | Y168: DEMAND | Z168: DEMAND | AA168: DEMAND | AB168: CUSTOMER | AC168: CUSTOMER | AD168: CUSTOMER | AE168: CUSTOMER | AF168: CUSTOMER | AG168: CUSTOMER | AH168: REVENUE | BR168: Proforma | BS168: COMMODITY | BT168: COMMODITY | BU168: COMMODITY | BV168: COMMODITY | BW168: COMMODITY | BX168: DEMAND | BY168: DEMAND | BZ168: DEMAND | CA168: DEMAND | CB168: DEMAND | CC168: CUSTOMER | CD168: CUSTOMER | CE168: CUSTOMER | CF168: COMMON | CG168: CUSTOMER | CH168: CUSTOMER | CI168: REVENUE | CM168: =MATCH(CM169,Factors!$C$58:$C$64,0) -> 1 | CN168: =MATCH(CN169,Factors!$C$58:$C$64,0) -> 2 | CO168: =MATCH(CO169,Factors!$C$58:$C$64,0) -> 3 | CP168: =MATCH(CP169,Factors!$C$58:$C$64,0) -> 4 | CQ168: =MATCH(CQ169,Factors!$C$58:$C$64,0) -> 5 | CR168: =MATCH(CR169,Factors!$C$58:$C$64,0) -> 6
A169: 169 | B169: Acct | C169: Func | D169: Description | E169: Totals | F169: classif. basis (line) | G169: derived classif. | H169: Total | I169: Sch 101 | J169: Sch 111 | K169: Sch 121 | L169: Sch 131 | M169: Sch 146 | N169: Open | P169: source | R169: Throughput | S169: Sales | T169: Therms - Small Mains | U169: Purchased Gas - Commodity | V169: GTI Expense | W169: Coincident Peak - All | X169: Coincident Peak - Small Mains | Y169: Purchased Gas - Demand | Z169: DA 131 | AA169: DA 146 | AB169: All Customers | AC169: Service Cost | AD169: Meter Cost | AE169: Regulator Cost | AF169: Ind Meas & Reg Cost | AG169: DA 101 | AH169: Revenues From Retail Rates | AK169: Total | AL169: Commodity | AM169: Demand | AN169: Customer | AO169: Revenue | AQ169: source | AS169: Total | AT169: Sch 101 | AU169: Sch 111 | AV169: Sch 121 | AW169: Sch 131 | AX169: Sch 146 | AY169: Open | BA169: Total | BB169: Sch 101 | BC169: Sch 111 | BD169: Sch 121 | BE169: Sch 131 | BF169: Sch 146 | BG169: Open | BI169: Total | BJ169: Sch 101 | BK169: Sch 111 | BL169: Sch 121 | BM169: Sch 131 | BN169: Sch 146 | BO169: Open | BQ169: Description | BR169: Labor Totals | BS169: Throughput | BT169: Sales | BU169: Therms - Small Mains | BV169: Purchased Gas - Commodity | BW169: GTI Expense | BX169: Coincident Peak - All | BY169: Coincident Peak - Small Mains | BZ169: Purchased Gas - Demand | CA169: DA 131 | CB169: DA 146 | CC169: All Customers | CD169: Service Cost | CE169: Meter Cost | CF169: 4-Factor | CG169: Ind Meas & Reg Cost | CH169: DA 101 | CI169: Revenues From Retail Rates | CK169: source | CM169: Sch 101 | CN169: Sch 111 | CO169: Sch 121 | CP169: Sch 131 | CQ169: Sch 146 | CR169: Open
A170: 170 | R170: E01 | S170: E04 | T170: E06 | U170: E07 | V170: E08 | W170: D01 | X170: D02 | Y170: D05 | Z170: D06 | AA170: D07 | AB170: C01 | AC170: C02 | AD170: C03 | AE170: C04 | AF170: C06 | AG170: C10 | AH170: R01 | BS170: E01 | BT170: E04 | BU170: E06 | BV170: E07 | BW170: E08 | BX170: D01 | BY170: D02 | BZ170: D05 | CA170: D06 | CB170: D07 | CC170: C01 | CD170: C02 | CE170: C03 | CF170: C04 | CG170: C06 | CH170: C10 | CI170: R01
A171: 171 | D171: Operation & Maintenance Expenses | BQ171: Operation & Maintenance Expenses
A172: 172 | D172: Purchased Gas Expenses | AI172: =IF(SUM(R172:AH172)<>0,(ROUND(SUM(R172:AH172),8)<>1)+0,0) -> 0 | BQ172: Purchased Gas Expenses
A173: 173 | B173: 804 | C173: P | D173: Proforma Purchased Gas Expense | E173: =PROFORMA!AW28*1000 -> 79159000 | F173: Input - from PF Gas Costs | H173: =SUM(I173:N173) -> 79159000 | I173: =$E173*SUMPRODUCT($R173:$AH173,INDEX(AllocFactors,I$4,0)) -> 54603550.26 | J173: 21442390.96 | K173: 2572110.442 | L173: 525421.3213 | M173: 15527.0124 | N173: 0 | P173: =E$1&$A173&"* Sum["&$R$1&$A173&":"&$AH$1&$A173&"* "&Factors!D$1&Factors!$A$58&":"&Factors!S$1&Factors!$A$64&"]" -> E173* Sum[R173:AH173* D588:S594] | R173: 0 | T173: 0 | U173: =ROUND((Factors!D7/(Factors!D7+Factors!D11)),4) -> 0.7653 | V173: 0 | W173: 0 | X173: 0 | Y173: =ROUND((Factors!D11/(Factors!D7+Factors!D11)),4) -> 0.2347 | Z173: 0 | AA173: 0 | AB173: 0 | AC173: 0 | AD173: 0 | AE173: 0 | AF173: 0 | AG173: 0 | AH173: 0 | AI173: =IF(SUM(R173:AH173)<>0,(ROUND(SUM(R173:AH173),8)<>1)+0,0) -> 0 | AK173: =SUM(AL173:AO173) -> 79159000 | AL173: =SUMIF($R$4:$AH$4,AL$5,$R173:$AH173)*$E173 -> 60580382.7 | AM173: 18578617.3 | AN173: 0 | AO173: 0 | AQ173: =E$1&$A173&"*["&R$1&$A173&":"&$AH$1&$A173&" when "&R$1&$A$4&":"&$AH$1&$A$4&" = E,D,C,or R]" -> E173*[R173:AH173 when R4:AH4 = E,D,C,or R] | AS173: =SUM(AT173:AY173) -> 60580382.7 | AT173: =$E173*SUMPRODUCT($R173:$V173,INDEX(AllocFactors_E,AT$4,0)) -> 41638084.93 | AU173: 16439749.16 | AV173: 2058676.099 | AW173: 443872.5082 | AX173: 0 | AY173: 0 | BA173: =SUM(BB173:BG173) -> 18578617.3 | BB173: =$E173*SUMPRODUCT($W173:$AA173,INDEX(AllocFactors_D,BB$4,0)) -> 12965465.33 | BC173: 5002641.805 | BD173: 513434.3428 | BE173: 81548.81306 | BF173: 15527.0124 | BG173: 0 | BI173: =SUM(BJ173:BO173) -> 0 | BJ173: =$E173*SUMPRODUCT($AB173:$AG173,INDEX(AllocFactors_C,BJ$4,0)) -> 0 | BK173: 0 | BL173: 0 | BM173: 0 | BN173: 0 | BO173: 0 | BQ173: Proforma Purchased Gas Expense | BR173: 0 | BS173: =R173 -> 0 | BT173: 0 | BU173: 0 | BV173: 0.7653 | BW173: 0 | BX173: 0 | BY173: 0 | BZ173: 0.2347 | CA173: 0 | CB173: 0 | CC173: 0 | CD173: 0 | CE173: 0 | CF173: 0 | CG173: =AF173 -> 0 | CH173: 0 | CI173: 0 | CK173: =F173 -> Input - from PF Gas Costs | CL173: =IF(SUM(BS173:CI173)<>0,(ROUND(SUM(BS173:CI173),4)<>1)+0,0) -> 0 | CM173: =$BR173*SUMPRODUCT($BS173:$CI173,INDEX(AllocFactors,CM$168,0)) -> 0 | CN173: 0 | CO173: 0 | CP173: 0 | CQ173: 0 | CR173: 0
A174: 174 | B174: 813-010 | C174: P | D174: Gas Research Institute Expense | E174: =PROFORMA!AW30 -> 73000 | F174: Input - 100% GTI | H174: =SUM(I174:N174) -> 73000 | I174: 53748.33386 | J174: 17157.54643 | K174: 1752.775156 | L174: 341.3445586 | M174: 0 | N174: 0 | P174: =E$1&$A174&"* """ -> E174* " | R174: 0 | S174: 0 | T174: 0 | V174: 1 | W174: 0 | X174: 0 | Z174: 0 | AA174: 0 | AB174: 0 | AC174: 0 | AD174: 0 | AE174: 0 | AF174: 0 | AG174: 0 | AH174: 0 | AI174: 0 | AK174: =SUM(AL174:AO174) -> 73000 | AL174: 73000 | AM174: 0 | AN174: 0 | AO174: 0 | AQ174: =E$1&$A174&"* """ -> E174* " | AS174: =SUM(AT174:AY174) -> 73000 | AT174: 53748.33386 | AU174: 17157.54643 | AV174: 1752.775156 | AW174: 341.3445586 | AX174: 0 | AY174: 0 | BA174: =SUM(BB174:BG174) -> 0 | BB174: 0 | BC174: 0 | BD174: 0 | BE174: 0 | BF174: 0 | BG174: 0 | BI174: =SUM(BJ174:BO174) -> 0 | BJ174: 0 | BK174: 0 | BL174: 0 | BM174: 0 | BN174: 0 | BO174: 0 | BQ174: Gas Research Contributions | BR174: 0 | BS174: 0 | BT174: 0 | BU174: 0 | BV174: 0 | BW174: 1 | BX174: 0 | BY174: 0 | BZ174: 0 | CA174: 0 | CB174: 0 | CC174: 0 | CD174: 0 | CE174: 0 | CF174: 0 | CG174: 0 | CH174: 0 | CI174: 0 | CK174: =F174 -> Input - 100% GTI | CL174: 0 | CM174: 0 | CN174: 0 | CO174: 0 | CP174: 0 | CQ174: 0 | CR174: 0
A175: 175 | B175: 813 | C175: P | D175: Other Gas Expenses | E175: =PROFORMA!AW31 -> 802000 | F175: Input - purch vs. sched analysis | H175: =SUM(I175:N175) -> 802000 | I175: 538564.4012 | J175: 212638.5888 | K175: 26627.78307 | L175: 5741.236642 | M175: 18427.99024 | N175: 0 | P175: =E$1&$A175&"* """ -> E175* " | R175: ='Acct 813'!E27 -> 0.1564 | S175: ='Acct 813'!E28 -> 0.8436 | T175: 0 | U175: 0 | V175: 0 | W175: 0 | X175: 0 | Y175: 0 | Z175: 0 | AA175: 0 | AB175: 0 | AC175: 0 | AD175: 0 | AE175: 0 | AF175: 0 | AG175: 0 | AH175: 0 | AI175: 0 | AK175: =SUM(AL175:AO175) -> 802000 | AL175: 802000 | AM175: 0 | AN175: 0 | AO175: 0 | AQ175: =E$1&$A175&"* """ -> E175* " | AS175: =SUM(AT175:AY175) -> 802000 | AT175: 538564.4012 | AU175: 212638.5888 | AV175: 26627.78307 | AW175: 5741.236642 | AX175: 18427.99024 | AY175: 0 | BA175: =SUM(BB175:BG175) -> 0 | BB175: 0 | BC175: 0 | BD175: 0 | BE175: 0 | BF175: 0 | BG175: 0 | BI175: =SUM(BJ175:BO175) -> 0 | BJ175: 0 | BK175: 0 | BL175: 0 | BM175: 0 | BN175: 0 | BO175: 0 | BQ175: Other Gas Expenses | BR175: 417188 | BS175: 0.1564 | BT175: 0.8436 | BU175: 0 | BV175: 0 | BW175: 0 | BX175: 0 | BY175: 0 | BZ175: 0 | CA175: 0 | CB175: 0 | CC175: 0 | CD175: 0 | CE175: 0 | CF175: 0 | CG175: 0 | CH175: 0 | CI175: 0 | CK175: =F175 -> Input - purch vs. sched analysis | CL175: 0 | CM175: 280152.8746 | CN175: 110611.3062 | CO175: 13851.36105 | CP175: 2986.502534 | CQ175: 9585.955604 | CR175: 0
A176: 176 | D176: Total Purchased Gas Expenses | E176: =SUM(E172:E175) -> 80034000 | H176: =IF(ROUND(SUM(H173:H175),3)<>ROUND(SUM(I176:N176),3),#VALUE!,SUM(H173:H175)) -> 80034000 | I176: =SUM(I173:I175) -> 55195863 | J176: 21672187.1 | K176: 2600491 | L176: 531503.9025 | M176: 33955.00264 | N176: 0 | P176: =A173&":"&A175 -> 173:175 | R176: =SUMPRODUCT($E173:$E175,R$173:R$175)/$E176 -> 0.001567243921 | S176: =SUMPRODUCT($E173:$E175,S$173:S$175)/$E176 -> 0.008453497264 | T176: 0 | U176: =SUMPRODUCT($E173:$E175,U$173:U$175)/$E176 -> 0.7569330872 | V176: 0.0009121123523 | W176: 0 | X176: 0 | Y176: 0.2321340593 | Z176: 0 | AA176: 0 | AB176: 0 | AC176: 0 | AD176: 0 | AE176: 0 | AF176: 0 | AG176: 0 | AH176: 0 | AI176: 0 | AK176: =IF(ROUND(SUM(AK173:AK175),3)<>ROUND(SUM(AL176:AO176),3),#VALUE!,SUM(AK173:AK175)) -> 80034000 | AL176: =SUM(AL173:AL175) -> 61455382.7 | AM176: =SUM(AM173:AM175) -> 18578617.3 | AN176: =SUM(AN173:AN175) -> 0 | AO176: =SUM(AO173:AO175) -> 0 | AQ176: =$A173&":"&$A175 -> 173:175 | AS176: =IF(ROUND(SUM(AS173:AS175),3)<>ROUND(SUM(AT176:AY176),3),#VALUE!,SUM(AS173:AS175)) -> 61455382.7 | AT176: =SUM(AT173:AT175) -> 42230397.67 | AU176: 16669545.29 | AV176: 2087056.657 | AW176: 449955.0894 | AX176: 18427.99024 | AY176: 0 | BA176: =IF(ROUND(SUM(BA173:BA175),3)<>ROUND(SUM(BB176:BG176),3),#VALUE!,SUM(BA173:BA175)) -> 18578617.3 | BB176: =SUM(BB173:BB175) -> 12965465.33 | BC176: 5002641.805 | BD176: 513434.3428 | BE176: 81548.81306 | BF176: 15527.0124 | BG176: 0 | BI176: =IF(ROUND(SUM(BI173:BI175),3)<>ROUND(SUM(BJ176:BO176),3),#VALUE!,SUM(BI173:BI175)) -> 0 | BJ176: =SUM(BJ173:BJ175) -> 0 | BK176: 0 | BL176: 0 | BM176: 0 | BN176: 0 | BO176: 0 | BQ176: Total Purchased Gas Expenses | BR176: =IF(ROUND(SUM(BR173:BR175),3)<>ROUND(SUM(CM176:CR176),3),#VALUE!,SUM(BR173:BR175)) -> 417188 | BS176: =SUMPRODUCT($BR$173:$BR$175,BS$173:BS$175)/$BR$176 -> 0.1564 | BT176: =SUMPRODUCT($BR$173:$BR$175,BT$173:BT$175)/$BR$176 -> 0.8436 | BU176: 0 | BV176: 0 | BW176: 0 | BX176: 0 | BY176: 0 | BZ176: 0 | CA176: 0 | CB176: 0 | CC176: 0 | CD176: 0 | CE176: 0 | CF176: 0 | CG176: 0 | CH176: 0 | CI176: 0 | CL176: 0 | CM176: =SUM(CM173:CM175) -> 280152.8746 | CN176: 110611.3062 | CO176: 13851.36105 | CP176: 2986.502534 | CQ176: 9585.955604 | CR176: 0
A177: 177 | AI177: 0 | CL177: 0
A178: 178 | D178: Underground Storage Expenses | AI178: 0 | BQ178: Underground Storage Expenses | CL178: 0
A179: 179 | B179: 814-OP | C179: U | D179: Supervision & Engineering | E179: =PROFORMA!AW35 -> 18000 | F179: ="as UG Storage Plant ("&A$23&")" -> as UG Storage Plant (23) | H179: =SUM(I179:N179) -> 18000 | I179: =$E179*SUMPRODUCT($R179:$AH179,INDEX(AllocFactors,I$4,0)) -> 12008.23301 | J179: 4741.148348 | K179: 593.7128835 | L179: 128.0108882 | M179: 528.8948734 | N179: 0 | P179: =E$1&$A179&"* Sum["&$R$1&$A179&":"&$AH$1&$A179&"* "&Factors!D$1&Factors!$A$58&":"&Factors!S$1&Factors!$A$64&"]" -> E179* Sum[R179:AH179* D588:S594] | R179: =R$23 -> 0.2 | S179: =S$23 -> 0.8 | T179: 0 | U179: 0 | V179: 0 | W179: 0 | X179: 0 | Y179: 0 | Z179: 0 | AA179: 0 | AB179: 0 | AC179: 0 | AD179: 0 | AE179: 0 | AF179: 0 | AG179: 0 | AH179: 0 | AI179: 0 | AK179: =SUM(AL179:AO179) -> 18000 | AL179: =SUMIF($R$4:$AH$4,AL$5,$R179:$AH179)*$E179 -> 18000 | AM179: 0 | AN179: 0 | AO179: 0 | AQ179: =E$1&$A179&"*["&R$1&$A179&":"&$AH$1&$A179&" when "&R$1&$A$4&":"&$AH$1&$A$4&" = E,D,C,or R]" -> E179*[R179:AH179 when R4:AH4 = E,D,C,or R] | AS179: =SUM(AT179:AY179) -> 18000 | AT179: =$E179*SUMPRODUCT($R179:$V179,INDEX(AllocFactors_E,AT$4,0)) -> 12008.23301 | AU179: 4741.148348 | AV179: 593.7128835 | AW179: 128.0108882 | AX179: 528.8948734 | AY179: 0 | BA179: =SUM(BB179:BG179) -> 0 | BB179: =$E179*SUMPRODUCT($W179:$AA179,INDEX(AllocFactors_D,BB$4,0)) -> 0 | BC179: 0 | BD179: 0 | BE179: 0 | BF179: 0 | BG179: 0 | BI179: =SUM(BJ179:BO179) -> 0 | BJ179: =$E179*SUMPRODUCT($AB179:$AG179,INDEX(AllocFactors_C,BJ$4,0)) -> 0 | BK179: 0 | BL179: 0 | BM179: 0 | BN179: 0 | BO179: 0 | BQ179: Supervision & Engineering | BR179: 9928 | BS179: =R179 -> 0.2 | BT179: =S179 -> 0.8 | BU179: =T179 -> 0 | BV179: =U179 -> 0 | BW179: =V179 -> 0 | BX179: =W179 -> 0 | BY179: =X179 -> 0 | BZ179: =Y179 -> 0 | CA179: =Z179 -> 0 | CB179: =AA179 -> 0 | CC179: =AB179 -> 0 | CD179: =AC179 -> 0 | CE179: =AD179 -> 0 | CF179: =AE179 -> 0 | CG179: =AF179 -> 0 | CH179: =AG179 -> 0 | CI179: =AH179 -> 0 | CK179: =F179 -> as UG Storage Plant (23) | CL179: 0 | CM179: =$BR179*SUMPRODUCT($BS179:$CI179,INDEX(AllocFactors,CM$168,0)) -> 6623.207627 | CN179: 2615.006711 | CO179: 327.4656393 | CP179: 70.60511656 | CQ179: 291.7149057 | CR179: 0
A180: 180 | B180: 815-OP | C180: U | D180: Maps & Records | E180: =PROFORMA!AW36 -> 0 | F180: ="as UG Storage Plant ("&A$23&")" -> as UG Storage Plant (23) | H180: 0 | I180: 0 | J180: 0 | K180: 0 | L180: 0 | M180: 0 | N180: 0 | P180: =E$1&$A180&"* """ -> E180* " | R180: 0.2 | S180: 0.8 | T180: 0 | U180: 0 | V180: 0 | W180: 0 | X180: 0 | Y180: 0 | Z180: 0 | AA180: 0 | AB180: 0 | AC180: 0 | AD180: 0 | AE180: 0 | AF180: 0 | AG180: 0 | AH180: 0 | AI180: 0 | AK180: =SUM(AL180:AO180) -> 0 | AL180: 0 | AM180: 0 | AN180: 0 | AO180: 0 | AQ180: =E$1&$A180&"* """ -> E180* " | AS180: 0 | AT180: 0 | AU180: 0 | AV180: 0 | AW180: 0 | AX180: 0 | AY180: 0 | BA180: =SUM(BB180:BG180) -> 0 | BB180: 0 | BC180: 0 | BD180: 0 | BE180: 0 | BF180: 0 | BG180: 0 | BI180: 0 | BJ180: 0 | BK180: 0 | BL180: 0 | BM180: 0 | BN180: 0 | BO180: 0 | BQ180: Maps & Records | BR180: 0 | BS180: 0.2 | BT180: 0.8 | BU180: 0 | BV180: 0 | BW180: 0 | BX180: 0 | BY180: 0 | BZ180: 0 | CA180: 0 | CB180: 0 | CC180: 0 | CD180: 0 | CE180: 0 | CF180: 0 | CG180: 0 | CH180: 0 | CI180: 0 | CK180: as UG Storage Plant (23) | CL180: 0 | CM180: 0 | CN180: 0 | CO180: 0 | CP180: 0 | CQ180: 0 | CR180: 0
A181: 181 | B181: 816-OP | C181: U | D181: Wells Expenses | E181: =PROFORMA!AW37 -> 0 | F181: as UG Storage Plant (23) | H181: 0 | I181: 0 | J181: 0 | K181: 0 | L181: 0 | M181: 0 | N181: 0 | P181: =E$1&$A181&"* """ -> E181* " | R181: 0.2 | S181: 0.8 | T181: 0 | U181: 0 | V181: 0 | W181: 0 | X181: 0 | Y181: 0 | Z181: 0 | AA181: 0 | AB181: 0 | AC181: 0 | AD181: 0 | AE181: 0 | AF181: 0 | AG181: 0 | AH181: 0 | AI181: 0 | AK181: =SUM(AL181:AO181) -> 0 | AL181: 0 | AM181: 0 | AN181: 0 | AO181: 0 | AQ181: =E$1&$A181&"* """ -> E181* " | AS181: 0 | AT181: 0 | AU181: 0 | AV181: 0 | AW181: 0 | AX181: 0 | AY181: 0 | BA181: =SUM(BB181:BG181) -> 0 | BB181: 0 | BC181: 0 | BD181: 0 | BE181: 0 | BF181: 0 | BG181: 0 | BI181: 0 | BJ181: 0 | BK181: 0 | BL181: 0 | BM181: 0 | BN181: 0 | BO181: 0 | BQ181: Wells Expenses | BR181: 0 | BS181: 0.2 | BT181: 0.8 | BU181: 0 | BV181: 0 | BW181: 0 | BX181: 0 | BY181: 0 | BZ181: 0 | CA181: 0 | CB181: 0 | CC181: 0 | CD181: 0 | CE181: 0 | CF181: 0 | CG181: 0 | CH181: 0 | CI181: 0 | CK181: as UG Storage Plant (23) | CL181: 0 | CM181: 0 | CN181: 0 | CO181: 0 | CP181: 0 | CQ181: 0 | CR181: 0
A182: 182 | B182: 817-OP | C182: U | D182: Lines Expenses | E182: =PROFORMA!AW38 -> 0 | F182: as UG Storage Plant (23) | H182: =SUM(I182:N182) -> 0 | I182: 0 | J182: 0 | K182: 0 | L182: 0 | M182: 0 | N182: 0 | R182: 0.2 | S182: 0.8 | T182: 0 | U182: 0 | V182: 0 | W182: 0 | X182: 0 | Y182: 0 | Z182: 0 | AA182: 0 | AB182: 0 | AC182: 0 | AD182: 0 | AE182: 0 | AF182: 0 | AG182: 0 | AH182: 0 | AI182: 0 | AK182: =SUM(AL182:AO182) -> 0 | AL182: 0 | AM182: 0 | AN182: 0 | AO182: 0 | AQ182: =E$1&$A182&"* """ -> E182* " | AS182: 0 | AT182: 0 | AU182: 0 | AV182: 0 | AW182: 0 | AX182: 0 | AY182: 0 | BA182: =SUM(BB182:BG182) -> 0 | BB182: 0 | BC182: 0 | BD182: 0 | BE182: 0 | BF182: 0 | BG182: 0 | BI182: 0 | BJ182: 0 | BK182: 0 | BL182: 0 | BM182: 0 | BN182: 0 | BO182: 0 | BQ182: Lines Expenses | BR182: 0 | BS182: 0.2 | BT182: 0.8 | BU182: 0 | BV182: 0 | BW182: 0 | BX182: 0 | BY182: 0 | BZ182: 0 | CA182: 0 | CB182: 0 | CC182: 0 | CD182: 0 | CE182: 0 | CF182: 0 | CG182: 0 | CH182: 0 | CI182: 0 | CK182: as UG Storage Plant (23) | CL182: 0 | CM182: 0 | CN182: 0 | CO182: 0 | CP182: 0 | CQ182: 0 | CR182: 0
A183: 183 | B183: 818-OP | C183: U | D183: Compressor Station Expenses | E183: =PROFORMA!AW39 -> 0 | F183: as UG Storage Plant (23) | H183: 0 | I183: 0 | J183: 0 | K183: 0 | L183: 0 | M183: 0 | N183: 0 | R183: 0.2 | S183: 0.8 | T183: 0 | U183: 0 | V183: 0 | W183: 0 | X183: 0 | Y183: 0 | Z183: 0 | AA183: 0 | AB183: 0 | AC183: 0 | AD183: 0 | AE183: 0 | AF183: 0 | AG183: 0 | AH183: 0 | AI183: 0 | AK183: 0 | AL183: 0 | AM183: 0 | AN183: 0 | AO183: 0 | AQ183: E183* " | AS183: 0 | AT183: 0 | AU183: 0 | AV183: 0 | AW183: 0 | AX183: 0 | AY183: 0 | BA183: 0 | BB183: 0 | BC183: 0 | BD183: 0 | BE183: 0 | BF183: 0 | BG183: 0 | BI183: 0 | BJ183: 0 | BK183: 0 | BL183: 0 | BM183: 0 | BN183: 0 | BO183: 0 | BQ183: Compressor Station Expenses | BR183: 0 | BS183: 0.2 | BT183: 0.8 | BU183: 0 | BV183: 0 | BW183: 0 | BX183: 0 | BY183: 0 | BZ183: 0 | CA183: 0 | CB183: 0 | CC183: 0 | CD183: 0 | CE183: 0 | CF183: 0 | CG183: 0 | CH183: 0 | CI183: 0 | CK183: as UG Storage Plant (23) | CL183: 0 | CM183: 0 | CN183: 0 | CO183: 0 | CP183: 0 | CQ183: 0 | CR183: 0
A184: 184 | B184: 819-OP | C184: U | D184: Compressor Station Fuel & Power | E184: =PROFORMA!AW40 -> 0 | F184: as UG Storage Plant (23) | H184: 0 | I184: 0 | J184: 0 | K184: 0 | L184: 0 | M184: 0 | N184: 0 | R184: 0.2 | S184: 0.8 | T184: 0 | U184: 0 | V184: 0 | W184: 0 | X184: 0 | Y184: 0 | Z184: 0 | AA184: 0 | AB184: 0 | AC184: 0 | AD184: 0 | AE184: 0 | AF184: 0 | AG184: 0 | AH184: 0 | AI184: 0 | AK184: 0 | AL184: 0 | AM184: 0 | AN184: 0 | AO184: 0 | AQ184: E184* " | AS184: 0 | AT184: 0 | AU184: 0 | AV184: 0 | AW184: 0 | AX184: 0 | AY184: 0 | BA184: 0 | BB184: 0 | BC184: 0 | BD184: 0 | BE184: 0 | BF184: 0 | BG184: 0 | BI184: 0 | BJ184: 0 | BK184: 0 | BL184: 0 | BM184: 0 | BN184: 0 | BO184: 0 | BQ184: Compressor Station Fuel & Power | BR184: 0 | BS184: 0.2 | BT184: 0.8 | BU184: 0 | BV184: 0 | BW184: 0 | BX184: 0 | BY184: 0 | BZ184: 0 | CA184: 0 | CB184: 0 | CC184: 0 | CD184: 0 | CE184: 0 | CF184: 0 | CG184: 0 | CH184: 0 | CI184: 0 | CK184: as UG Storage Plant (23) | CL184: 0 | CM184: 0 | CN184: 0 | CO184: 0 | CP184: 0 | CQ184: 0 | CR184: 0
A185: 185 | B185: 820-OP | C185: U | D185: Measuring & Regulator Station | E185: =PROFORMA!AW41 -> 0 | F185: as UG Storage Plant (23) | H185: 0 | I185: 0 | J185: 0 | K185: 0 | L185: 0 | M185: 0 | N185: 0 | R185: 0.2 | S185: 0.8 | T185: 0 | U185: 0 | V185: 0 | W185: 0 | X185: 0 | Y185: 0 | Z185: 0 | AA185: 0 | AB185: 0 | AC185: 0 | AD185: 0 | AE185: 0 | AF185: 0 | AG185: 0 | AH185: 0 | AI185: 0 | AK185: 0 | AL185: 0 | AM185: 0 | AN185: 0 | AO185: 0 | AQ185: E185* " | AS185: 0 | AT185: 0 | AU185: 0 | AV185: 0 | AW185: 0 | AX185: 0 | AY185: 0 | BA185: 0 | BB185: 0 | BC185: 0 | BD185: 0 | BE185: 0 | BF185: 0 | BG185: 0 | BI185: 0 | BJ185: 0 | BK185: 0 | BL185: 0 | BM185: 0 | BN185: 0 | BO185: 0 | BQ185: Measuring & Regulator Station | BR185: 0 | BS185: 0.2 | BT185: 0.8 | BU185: 0 | BV185: 0 | BW185: 0 | BX185: 0 | BY185: 0 | BZ185: 0 | CA185: 0 | CB185: 0 | CC185: 0 | CD185: 0 | CE185: 0 | CF185: 0 | CG185: 0 | CH185: 0 | CI185: 0 | CK185: as UG Storage Plant (23) | CL185: 0 | CM185: 0 | CN185: 0 | CO185: 0 | CP185: 0 | CQ185: 0 | CR185: 0
A186: 186 | B186: 821-OP | C186: U | D186: Purification Expenses | E186: =PROFORMA!AW42 -> 0 | F186: as UG Storage Plant (23) | H186: 0 | I186: 0 | J186: 0 | K186: 0 | L186: 0 | M186: 0 | N186: 0 | R186: 0.2 | S186: 0.8 | T186: 0 | U186: 0 | V186: 0 | W186: 0 | X186: 0 | Y186: 0 | Z186: 0 | AA186: 0 | AB186: 0 | AC186: 0 | AD186: 0 | AE186: 0 | AF186: 0 | AG186: 0 | AH186: 0 | AI186: 0 | AK186: 0 | AL186: 0 | AM186: 0 | AN186: 0 | AO186: 0 | AQ186: E186* " | AS186: 0 | AT186: 0 | AU186: 0 | AV186: 0 | AW186: 0 | AX186: 0 | AY186: 0 | BA186: 0 | BB186: 0 | BC186: 0 | BD186: 0 | BE186: 0 | BF186: 0 | BG186: 0 | BI186: 0 | BJ186: 0 | BK186: 0 | BL186: 0 | BM186: 0 | BN186: 0 | BO186: 0 | BQ186: Purification Expenses | BR186: 0 | BS186: 0.2 | BT186: 0.8 | BU186: 0 | BV186: 0 | BW186: 0 | BX186: 0 | BY186: 0 | BZ186: 0 | CA186: 0 | CB186: 0 | CC186: 0 | CD186: 0 | CE186: 0 | CF186: 0 | CG186: 0 | CH186: 0 | CI186: 0 | CK186: as UG Storage Plant (23) | CL186: 0 | CM186: 0 | CN186: 0 | CO186: 0 | CP186: 0 | CQ186: 0 | CR186: 0
A187: 187 | B187: 824-OP | C187: U | D187: Other Expenses | E187: =PROFORMA!AW43 -> 452000 | F187: as UG Storage Plant (23) | H187: 452000 | I187: 301540.0733 | J187: 119055.503 | K187: 14908.79019 | L187: 3214.495637 | M187: 13281.13793 | N187: 0 | P187: =E$1&$A187&"* """ -> E187* " | R187: 0.2 | S187: 0.8 | T187: 0 | U187: 0 | V187: 0 | W187: 0 | X187: 0 | Y187: 0 | Z187: 0 | AA187: 0 | AB187: 0 | AC187: 0 | AD187: 0 | AE187: 0 | AF187: 0 | AG187: 0 | AH187: 0 | AI187: 0 | AK187: 452000 | AL187: 452000 | AM187: 0 | AN187: 0 | AO187: 0 | AQ187: E187* " | AS187: 452000 | AT187: 301540.0733 | AU187: 119055.503 | AV187: 14908.79019 | AW187: 3214.495637 | AX187: 13281.13793 | AY187: 0 | BA187: 0 | BB187: 0 | BC187: 0 | BD187: 0 | BE187: 0 | BF187: 0 | BG187: 0 | BI187: 0 | BJ187: 0 | BK187: 0 | BL187: 0 | BM187: 0 | BN187: 0 | BO187: 0 | BQ187: Other Expenses | BR187: 0 | BS187: 0.2 | BT187: 0.8 | BU187: 0 | BV187: 0 | BW187: 0 | BX187: 0 | BY187: 0 | BZ187: 0 | CA187: 0 | CB187: 0 | CC187: 0 | CD187: 0 | CE187: 0 | CF187: 0 | CG187: 0 | CH187: 0 | CI187: 0 | CK187: as UG Storage Plant (23) | CL187: 0 | CM187: 0 | CN187: 0 | CO187: 0 | CP187: 0 | CQ187: 0 | CR187: 0
A188: 188 | B188: 825-OP | C188: U | D188: Storage Well Royalties & Rents | E188: =PROFORMA!AW44 -> 0 | F188: as UG Storage Plant (23) | H188: 0 | I188: 0 | J188: 0 | K188: 0 | L188: 0 | M188: 0 | N188: 0 | P188: =E$1&$A188&"* """ -> E188* " | R188: 0.2 | S188: 0.8 | T188: 0 | U188: 0 | V188: 0 | W188: 0 | X188: 0 | Y188: 0 | Z188: 0 | AA188: 0 | AB188: 0 | AC188: 0 | AD188: 0 | AE188: 0 | AF188: 0 | AG188: 0 | AH188: 0 | AI188: 0 | AK188: 0 | AL188: 0 | AM188: 0 | AN188: 0 | AO188: 0 | AQ188: E188* " | AS188: 0 | AT188: 0 | AU188: 0 | AV188: 0 | AW188: 0 | AX188: 0 | AY188: 0 | BA188: 0 | BB188: 0 | BC188: 0 | BD188: 0 | BE188: 0 | BF188: 0 | BG188: 0 | BI188: 0 | BJ188: 0 | BK188: 0 | BL188: 0 | BM188: 0 | BN188: 0 | BO188: 0 | BQ188: Storage Well Royalties & Rents | BR188: 0 | BS188: 0.2 | BT188: 0.8 | BU188: 0 | BV188: 0 | BW188: 0 | BX188: 0 | BY188: 0 | BZ188: 0 | CA188: 0 | CB188: 0 | CC188: 0 | CD188: 0 | CE188: 0 | CF188: 0 | CG188: 0 | CH188: 0 | CI188: 0 | CK188: as UG Storage Plant (23) | CL188: 0 | CM188: 0 | CN188: 0 | CO188: 0 | CP188: 0 | CQ188: 0 | CR188: 0
A189: 189 | B189: 826-OP | C189: U | D189: Rents | E189: =PROFORMA!AW45 -> 0 | F189: as UG Storage Plant (23) | H189: 0 | I189: 0 | J189: 0 | K189: 0 | L189: 0 | M189: 0 | N189: 0 | P189: =E$1&$A189&"* """ -> E189* " | R189: 0.2 | S189: 0.8 | T189: 0 | U189: 0 | V189: 0 | W189: 0 | X189: 0 | Y189: 0 | Z189: 0 | AA189: 0 | AB189: 0 | AC189: 0 | AD189: 0 | AE189: 0 | AF189: 0 | AG189: 0 | AH189: 0 | AI189: 0 | AK189: 0 | AL189: 0 | AM189: 0 | AN189: 0 | AO189: 0 | AQ189: E189* " | AS189: 0 | AT189: 0 | AU189: 0 | AV189: 0 | AW189: 0 | AX189: 0 | AY189: 0 | BA189: 0 | BB189: 0 | BC189: 0 | BD189: 0 | BE189: 0 | BF189: 0 | BG189: 0 | BI189: 0 | BJ189: 0 | BK189: 0 | BL189: 0 | BM189: 0 | BN189: 0 | BO189: 0 | BQ189: Rents | BR189: 0 | BS189: 0.2 | BT189: 0.8 | BU189: 0 | BV189: 0 | BW189: 0 | BX189: 0 | BY189: 0 | BZ189: 0 | CA189: 0 | CB189: 0 | CC189: 0 | CD189: 0 | CE189: 0 | CF189: 0 | CG189: 0 | CH189: 0 | CI189: 0 | CK189: as UG Storage Plant (23) | CL189: 0 | CM189: 0 | CN189: 0 | CO189: 0 | CP189: 0 | CQ189: 0 | CR189: 0
A190: 190 | D190: Total Underground Storage Operation | E190: =SUM(E178:E189) -> 470000 | H190: =IF(ROUND(SUM(H179:H189),3)<>ROUND(SUM(I190:N190),3),#VALUE!,SUM(H179:H189)) -> 470000 | I190: =SUM(I179:I189) -> 313548.3063 | J190: 123796.6513 | K190: 15502.50307 | L190: 3342.506525 | M190: 13810.03281 | N190: 0 | P190: =$A179&":"&$A189 -> 179:189 | R190: =SUMPRODUCT($E$179:$E$189,R$179:R$189)/$E190 -> 0.2 | S190: 0.8 | T190: 0 | U190: 0 | V190: 0 | W190: 0 | X190: 0 | Y190: 0 | Z190: 0 | AA190: 0 | AB190: 0 | AC190: 0 | AD190: 0 | AE190: 0 | AF190: 0 | AG190: 0 | AH190: 0 | AI190: 0 | AK190: =IF(ROUND(SUM(AK179:AK189),3)<>ROUND(SUM(AL190:AO190),3),#VALUE!,SUM(AK179:AK189)) -> 470000 | AL190: =SUM(AL179:AL189) -> 470000 | AM190: =SUM(AM179:AM189) -> 0 | AN190: =SUM(AN179:AN189) -> 0 | AO190: =SUM(AO179:AO189) -> 0 | AQ190: =$A179&":"&$A189 -> 179:189 | AS190: =IF(ROUND(SUM(AS179:AS189),3)<>ROUND(SUM(AT190:AY190),3),#VALUE!,SUM(AS179:AS189)) -> 470000 | AT190: =SUM(AT179:AT189) -> 313548.3063 | AU190: 123796.6513 | AV190: 15502.50307 | AW190: 3342.506525 | AX190: 13810.03281 | AY190: 0 | BA190: =IF(ROUND(SUM(BA179:BA189),3)<>ROUND(SUM(BB190:BG190),3),#VALUE!,SUM(BA179:BA189)) -> 0 | BB190: =SUM(BB179:BB189) -> 0 | BC190: 0 | BD190: 0 | BE190: 0 | BF190: 0 | BG190: 0 | BI190: =IF(ROUND(SUM(BI179:BI189),3)<>ROUND(SUM(BJ190:BO190),3),#VALUE!,SUM(BI179:BI189)) -> 0 | BJ190: =SUM(BJ179:BJ189) -> 0 | BK190: 0 | BL190: 0 | BM190: 0 | BN190: 0 | BO190: 0 | BQ190: Total Underground Storage Operation | BR190: =IF(ROUND(SUM(BR179:BR189),3)<>ROUND(SUM(CM190:CR190),3),#VALUE!,SUM(BR179:BR189)) -> 9928 | BS190: =SUMPRODUCT($BR$179:$BR$189,BS$179:BS$189)/$BR$190 -> 0.2 | BT190: =SUMPRODUCT($BR$179:$BR$189,BT$179:BT$189)/$BR$190 -> 0.8 | BU190: 0 | BV190: 0 | BW190: 0 | BX190: 0 | BY190: 0 | BZ190: 0 | CA190: 0 | CB190: 0 | CC190: 0 | CD190: 0 | CE190: 0 | CF190: 0 | CG190: 0 | CH190: 0 | CI190: 0 | CL190: 0 | CM190: =SUM(CM179:CM189) -> 6623.207627 | CN190: 2615.006711 | CO190: 327.4656393 | CP190: 70.60511656 | CQ190: 291.7149057 | CR190: 0
A191: 191 | B191: 830-MT | C191: U | D191: Supervision & Engineering | E191: =PROFORMA!AW47 -> 0 | F191: as UG Storage Plant (23) | H191: =SUM(I191:N191) -> 0 | I191: =$E191*SUMPRODUCT($R191:$AH191,INDEX(AllocFactors,I$4,0)) -> 0 | J191: 0 | K191: 0 | L191: 0 | M191: 0 | N191: 0 | P191: =E$1&$A191&"* Sum["&$R$1&$A191&":"&$AH$1&$A191&"* "&Factors!D$1&Factors!$A$58&":"&Factors!S$1&Factors!$A$64&"]" -> E191* Sum[R191:AH191* D588:S594] | R191: =R$23 -> 0.2 | S191: 0.8 | T191: 0 | U191: 0 | V191: 0 | W191: 0 | X191: 0 | Y191: 0 | Z191: 0 | AA191: 0 | AB191: 0 | AC191: 0 | AD191: 0 | AE191: 0 | AF191: 0 | AG191: 0 | AH191: 0 | AI191: 0 | AK191: =SUM(AL191:AO191) -> 0 | AL191: =SUMIF($R$4:$AH$4,AL$5,$R191:$AH191)*$E191 -> 0 | AM191: 0 | AN191: 0 | AO191: 0 | AQ191: =E$1&$A191&"*["&R$1&$A191&":"&$AH$1&$A191&" when "&R$1&$A$4&":"&$AH$1&$A$4&" = E,D,C,or R]" -> E191*[R191:AH191 when R4:AH4 = E,D,C,or R] | AS191: =SUM(AT191:AY191) -> 0 | AT191: =$E191*SUMPRODUCT($R191:$V191,INDEX(AllocFactors_E,AT$4,0)) -> 0 | AU191: 0 | AV191: 0 | AW191: 0 | AX191: 0 | AY191: 0 | BA191: =SUM(BB191:BG191) -> 0 | BB191: =$E191*SUMPRODUCT($W191:$AA191,INDEX(AllocFactors_D,BB$4,0)) -> 0 | BC191: 0 | BD191: 0 | BE191: 0 | BF191: 0 | BG191: 0 | BI191: =SUM(BJ191:BO191) -> 0 | BJ191: =$E191*SUMPRODUCT($AB191:$AG191,INDEX(AllocFactors_C,BJ$4,0)) -> 0 | BK191: 0 | BL191: 0 | BM191: 0 | BN191: 0 | BO191: 0 | BQ191: Supervision & Engineering | BR191: 0 | BS191: =R191 -> 0.2 | BT191: =S191 -> 0.8 | BU191: =T191 -> 0 | BV191: =U191 -> 0 | BW191: =V191 -> 0 | BX191: =W191 -> 0 | BY191: =X191 -> 0 | BZ191: =Y191 -> 0 | CA191: =Z191 -> 0 | CB191: =AA191 -> 0 | CC191: =AB191 -> 0 | CD191: =AC191 -> 0 | CE191: =AD191 -> 0 | CF191: =AE191 -> 0 | CG191: =AF191 -> 0 | CH191: =AG191 -> 0 | CI191: =AH191 -> 0 | CK191: =F191 -> as UG Storage Plant (23) | CL191: 0 | CM191: =$BR191*SUMPRODUCT($BS191:$CI191,INDEX(AllocFactors,CM$168,0)) -> 0 | CN191: 0 | CO191: 0 | CP191: 0 | CQ191: 0 | CR191: 0
A192: 192 | B192: 831-MT | C192: U | D192: Maps & Records | E192: =PROFORMA!AW48 -> 0 | F192: as UG Storage Plant (23) | H192: 0 | I192: 0 | J192: 0 | K192: 0 | L192: 0 | M192: 0 | N192: 0 | R192: =R$23 -> 0.2 | S192: 0.8 | T192: 0 | U192: 0 | V192: 0 | W192: 0 | X192: 0 | Y192: 0 | Z192: 0 | AA192: 0 | AB192: 0 | AC192: 0 | AD192: 0 | AE192: 0 | AF192: 0 | AG192: 0 | AH192: 0 | AI192: 0 | AK192: =SUM(AL192:AO192) -> 0 | AL192: 0 | AM192: 0 | AN192: 0 | AO192: 0 | AQ192: =E$1&$A192&"* """ -> E192* " | AS192: =SUM(AT192:AY192) -> 0 | AT192: 0 | AU192: 0 | AV192: 0 | AW192: 0 | AX192: 0 | AY192: 0 | BA192: =SUM(BB192:BG192) -> 0 | BB192: 0 | BC192: 0 | BD192: 0 | BE192: 0 | BF192: 0 | BG192: 0 | BI192: 0 | BJ192: 0 | BK192: 0 | BL192: 0 | BM192: 0 | BN192: 0 | BO192: 0 | BQ192: Maps & Records | BR192: 0 | BS192: 0.2 | BT192: 0.8 | BU192: 0 | BV192: 0 | BW192: 0 | BX192: 0 | BY192: 0 | BZ192: 0 | CA192: 0 | CB192: 0 | CC192: 0 | CD192: 0 | CE192: 0 | CF192: 0 | CG192: 0 | CH192: 0 | CI192: 0 | CK192: as UG Storage Plant (23) | CL192: 0 | CM192: 0 | CN192: 0 | CO192: 0 | CP192: 0 | CQ192: 0 | CR192: 0
A193: 193 | B193: 832-MT | C193: U | D193: Wells Expenses | E193: =PROFORMA!AW49 -> 0 | F193: as UG Storage Plant (23) | H193: 0 | I193: 0 | J193: 0 | K193: 0 | L193: 0 | M193: 0 | N193: 0 | R193: =R$23 -> 0.2 | S193: 0.8 | T193: 0 | U193: 0 | V193: 0 | W193: 0 | X193: 0 | Y193: 0 | Z193: 0 | AA193: 0 | AB193: 0 | AC193: 0 | AD193: 0 | AE193: 0 | AF193: 0 | AG193: 0 | AH193: 0 | AI193: 0 | AK193: 0 | AL193: 0 | AM193: 0 | AN193: 0 | AO193: 0 | AQ193: E193* " | AS193: 0 | AT193: 0 | AU193: 0 | AV193: 0 | AW193: 0 | AX193: 0 | AY193: 0 | BA193: 0 | BB193: 0 | BC193: 0 | BD193: 0 | BE193: 0 | BF193: 0 | BG193: 0 | BI193: 0 | BJ193: 0 | BK193: 0 | BL193: 0 | BM193: 0 | BN193: 0 | BO193: 0 | BQ193: Wells Expenses | BR193: 0 | BS193: 0.2 | BT193: 0.8 | BU193: 0 | BV193: 0 | BW193: 0 | BX193: 0 | BY193: 0 | BZ193: 0 | CA193: 0 | CB193: 0 | CC193: 0 | CD193: 0 | CE193: 0 | CF193: 0 | CG193: 0 | CH193: 0 | CI193: 0 | CK193: as UG Storage Plant (23) | CL193: 0 | CM193: 0 | CN193: 0 | CO193: 0 | CP193: 0 | CQ193: 0 | CR193: 0
A194: 194 | B194: 833-MT | C194: U | D194: Lines Expenses | E194: =PROFORMA!AW50 -> 0 | F194: as UG Storage Plant (23) | H194: 0 | I194: 0 | J194: 0 | K194: 0 | L194: 0 | M194: 0 | N194: 0 | R194: =R$23 -> 0.2 | S194: 0.8 | T194: 0 | U194: 0 | V194: =V$23 -> 0 | W194: 0 | X194: 0 | Y194: 0 | Z194: 0 | AA194: 0 | AB194: 0 | AC194: 0 | AD194: 0 | AE194: 0 | AF194: 0 | AG194: 0 | AH194: 0 | AI194: 0 | AK194: 0 | AL194: 0 | AM194: 0 | AN194: 0 | AO194: 0 | AQ194: E194* " | AS194: 0 | AT194: 0 | AU194: 0 | AV194: 0 | AW194: 0 | AX194: 0 | AY194: 0 | BA194: 0 | BB194: 0 | BC194: 0 | BD194: 0 | BE194: 0 | BF194: 0 | BG194: 0 | BI194: 0 | BJ194: 0 | BK194: 0 | BL194: 0 | BM194: 0 | BN194: 0 | BO194: 0 | BQ194: Lines Expenses | BR194: 0 | BS194: 0.2 | BT194: 0.8 | BU194: 0 | BV194: 0 | BW194: 0 | BX194: 0 | BY194: 0 | BZ194: 0 | CA194: 0 | CB194: 0 | CC194: 0 | CD194: 0 | CE194: 0 | CF194: 0 | CG194: 0 | CH194: 0 | CI194: 0 | CK194: as UG Storage Plant (23) | CL194: 0 | CM194: 0 | CN194: 0 | CO194: 0 | CP194: 0 | CQ194: 0 | CR194: 0
A195: 195 | B195: 834-MT | C195: U | D195: Compressor Station Expenses | E195: =PROFORMA!AW51 -> 0 | F195: as UG Storage Plant (23) | H195: 0 | I195: 0 | J195: 0 | K195: 0 | L195: 0 | M195: 0 | N195: 0 | P195: =E$1&$A195&"* """ -> E195* " | R195: =R$23 -> 0.2 | S195: =S$23 -> 0.8 | T195: =T$23 -> 0 | U195: =U$23 -> 0 | V195: 0 | W195: 0 | X195: 0 | Y195: 0 | Z195: 0 | AA195: 0 | AB195: 0 | AC195: 0 | AD195: 0 | AE195: 0 | AF195: 0 | AG195: 0 | AH195: 0 | AI195: 0 | AK195: 0 | AL195: 0 | AM195: 0 | AN195: 0 | AO195: 0 | AQ195: E195* " | AS195: 0 | AT195: 0 | AU195: 0 | AV195: 0 | AW195: 0 | AX195: 0 | AY195: 0 | BA195: 0 | BB195: 0 | BC195: 0 | BD195: 0 | BE195: 0 | BF195: 0 | BG195: 0 | BI195: 0 | BJ195: 0 | BK195: 0 | BL195: 0 | BM195: 0 | BN195: 0 | BO195: 0 | BQ195: Compressor Station Expenses | BR195: 0 | BS195: 0.2 | BT195: 0.8 | BU195: 0 | BV195: 0 | BW195: 0 | BX195: 0 | BY195: 0 | BZ195: 0 | CA195: 0 | CB195: 0 | CC195: 0 | CD195: 0 | CE195: 0 | CF195: 0 | CG195: 0 | CH195: 0 | CI195: 0 | CK195: as UG Storage Plant (23) | CL195: 0 | CM195: 0 | CN195: 0 | CO195: 0 | CP195: 0 | CQ195: 0 | CR195: 0
A196: 196 | B196: 835-MT | C196: U | D196: Compressor Station Fuel & Power | E196: =PROFORMA!AW52 -> 0 | F196: as UG Storage Plant (23) | H196: 0 | I196: 0 | J196: 0 | K196: 0 | L196: 0 | M196: 0 | N196: 0 | P196: =E$1&$A196&"* """ -> E196* " | R196: =R$23 -> 0.2 | S196: 0.8 | T196: 0 | U196: 0 | V196: 0 | W196: 0 | X196: 0 | Y196: 0 | Z196: 0 | AA196: 0 | AB196: 0 | AC196: 0 | AD196: 0 | AE196: 0 | AF196: =AF$23 -> 0 | AG196: 0 | AH196: 0 | AI196: 0 | AK196: 0 | AL196: 0 | AM196: 0 | AN196: 0 | AO196: 0 | AQ196: E196* " | AS196: 0 | AT196: 0 | AU196: 0 | AV196: 0 | AW196: 0 | AX196: 0 | AY196: 0 | BA196: 0 | BB196: 0 | BC196: 0 | BD196: 0 | BE196: 0 | BF196: 0 | BG196: 0 | BI196: 0 | BJ196: 0 | BK196: 0 | BL196: 0 | BM196: 0 | BN196: 0 | BO196: 0 | BQ196: Compressor Station Fuel & Power | BR196: 0 | BS196: 0.2 | BT196: 0.8 | BU196: 0 | BV196: 0 | BW196: 0 | BX196: 0 | BY196: 0 | BZ196: 0 | CA196: 0 | CB196: 0 | CC196: 0 | CD196: 0 | CE196: 0 | CF196: 0 | CG196: 0 | CH196: 0 | CI196: 0 | CK196: as UG Storage Plant (23) | CL196: 0 | CM196: 0 | CN196: 0 | CO196: 0 | CP196: 0 | CQ196: 0 | CR196: 0
A197: 197 | B197: 836-MT | C197: U | D197: Measuring and Regulator Station Expenses | E197: =PROFORMA!AW53 -> 0 | F197: as UG Storage Plant (23) | H197: 0 | I197: 0 | J197: 0 | K197: 0 | L197: 0 | M197: 0 | N197: 0 | P197: =E$1&$A197&"* """ -> E197* " | R197: 0.2 | S197: 0.8 | T197: 0 | U197: 0 | V197: 0 | W197: 0 | X197: 0 | Y197: 0 | Z197: 0 | AA197: 0 | AB197: 0 | AC197: 0 | AD197: 0 | AE197: 0 | AF197: 0 | AG197: 0 | AH197: 0 | AI197: 0 | AK197: 0 | AL197: 0 | AM197: 0 | AN197: 0 | AO197: 0 | AQ197: E197* " | AS197: 0 | AT197: 0 | AU197: 0 | AV197: 0 | AW197: 0 | AX197: 0 | AY197: 0 | BA197: 0 | BB197: 0 | BC197: 0 | BD197: 0 | BE197: 0 | BF197: 0 | BG197: 0 | BI197: 0 | BJ197: 0 | BK197: 0 | BL197: 0 | BM197: 0 | BN197: 0 | BO197: 0 | BQ197: Measuring and Regulator Station Expenses | BR197: 0 | BS197: 0.2 | BT197: 0.8 | BU197: 0 | BV197: 0 | BW197: 0 | BX197: 0 | BY197: 0 | BZ197: 0 | CA197: 0 | CB197: 0 | CC197: 0 | CD197: 0 | CE197: 0 | CF197: 0 | CG197: 0 | CH197: 0 | CI197: 0 | CK197: as UG Storage Plant (23) | CL197: 0 | CM197: 0 | CN197: 0 | CO197: 0 | CP197: 0 | CQ197: 0 | CR197: 0
A198: 198 | B198: 837-MT | C198: U | D198: Other Equipment | E198: =PROFORMA!AW54 -> 351000 | F198: as UG Storage Plant (23) | H198: 351000 | I198: 234160.5436 | J198: 92452.39278 | K198: 11577.40123 | L198: 2496.21232 | M198: 10313.45003 | N198: 0 | P198: =E$1&$A198&"* """ -> E198* " | R198: 0.2 | S198: 0.8 | T198: 0 | U198: 0 | V198: 0 | W198: 0 | X198: 0 | Y198: 0 | Z198: 0 | AA198: 0 | AB198: 0 | AC198: 0 | AD198: 0 | AE198: 0 | AF198: 0 | AG198: 0 | AH198: 0 | AI198: 0 | AK198: 351000 | AL198: 351000 | AM198: 0 | AN198: 0 | AO198: 0 | AQ198: E198* " | AS198: 351000 | AT198: 234160.5436 | AU198: 92452.39278 | AV198: 11577.40123 | AW198: 2496.21232 | AX198: 10313.45003 | AY198: 0 | BA198: 0 | BB198: 0 | BC198: 0 | BD198: 0 | BE198: 0 | BF198: 0 | BG198: 0 | BI198: 0 | BJ198: 0 | BK198: 0 | BL198: 0 | BM198: 0 | BN198: 0 | BO198: 0 | BQ198: Other Equipment | BR198: 0 | BS198: 0.2 | BT198: 0.8 | BU198: 0 | BV198: 0 | BW198: 0 | BX198: 0 | BY198: 0 | BZ198: 0 | CA198: 0 | CB198: 0 | CC198: 0 | CD198: 0 | CE198: 0 | CF198: 0 | CG198: 0 | CH198: 0 | CI198: 0 | CK198: as UG Storage Plant (23) | CL198: 0 | CM198: 0 | CN198: 0 | CO198: 0 | CP198: 0 | CQ198: 0 | CR198: 0
A199: 199 | D199: Total Underground Storage Maintenance | E199: =SUM(E191:E198) -> 351000 | H199: =IF(ROUND(SUM(H191:H198),3)<>ROUND(SUM(I199:N199),3),#VALUE!,SUM(H191:H198)) -> 351000 | I199: =SUM(I191:I198) -> 234160.5436 | J199: 92452.39278 | K199: 11577.40123 | L199: 2496.21232 | M199: 10313.45003 | N199: 0 | P199: =$A191&":"&$A198 -> 191:198 | R199: =SUMPRODUCT($E$191:$E$198,R$191:R$198)/$E199 -> 0.2 | S199: 0.8 | T199: 0 | U199: 0 | V199: 0 | W199: 0 | X199: 0 | Y199: 0 | Z199: 0 | AA199: 0 | AB199: 0 | AC199: 0 | AD199: 0 | AE199: 0 | AF199: 0 | AG199: 0 | AH199: 0 | AI199: 0 | AK199: =IF(ROUND(SUM(AK191:AK198),3)<>ROUND(SUM(AL199:AO199),3),#VALUE!,SUM(AK191:AK198)) -> 351000 | AL199: =SUM(AL191:AL198) -> 351000 | AM199: =SUM(AM191:AM198) -> 0 | AN199: =SUM(AN191:AN198) -> 0 | AO199: =SUM(AO191:AO198) -> 0 | AQ199: =$A191&":"&$A198 -> 191:198 | AS199: =IF(ROUND(SUM(AS191:AS198),3)<>ROUND(SUM(AT199:AY199),3),#VALUE!,SUM(AS191:AS198)) -> 351000 | AT199: =SUM(AT191:AT198) -> 234160.5436 | AU199: 92452.39278 | AV199: 11577.40123 | AW199: 2496.21232 | AX199: 10313.45003 | AY199: 0 | BA199: =IF(ROUND(SUM(BA191:BA198),3)<>ROUND(SUM(BB199:BG199),3),#VALUE!,SUM(BA191:BA198)) -> 0 | BB199: =SUM(BB191:BB198) -> 0 | BC199: 0 | BD199: 0 | BE199: 0 | BF199: 0 | BG199: 0 | BI199: =IF(ROUND(SUM(BI191:BI198),3)<>ROUND(SUM(BJ199:BO199),3),#VALUE!,SUM(BI191:BI198)) -> 0 | BJ199: =SUM(BJ191:BJ198) -> 0 | BK199: 0 | BL199: 0 | BM199: 0 | BN199: 0 | BO199: 0 | BQ199: Total Underground Storage Maintenance | BR199: =IF(ROUND(SUM(BR191:BR198),3)<>ROUND(SUM(CM199:CR199),3),#VALUE!,SUM(BR191:BR198)) -> 0 | BS199: =IF(SUM($BR$191:$BR$198)=0,0,SUMPRODUCT($BR$191:$BR$198,BS$191:BS$198)/$BR$199) -> 0 | BT199: =IF(SUM($BR$191:$BR$198)=0,0,SUMPRODUCT($BR$191:$BR$198,BT$191:BT$198)/$BR$199) -> 0 | BU199: 0 | BV199: 0 | BW199: 0 | BX199: 0 | BY199: 0 | BZ199: 0 | CA199: 0 | CB199: 0 | CC199: 0 | CD199: 0 | CE199: 0 | CF199: 0 | CG199: 0 | CH199: 0 | CI199: 0 | CL199: 0 | CM199: =SUM(CM191:CM198) -> 0 | CN199: 0 | CO199: 0 | CP199: 0 | CQ199: 0 | CR199: 0
A200: =RowHdr -> 200 | D200: Total Underground Storage Expenses | E200: =E190+E199 -> 821000 | H200: =H190+H199 -> 821000 | I200: 547708.8499 | J200: 216249.0441 | K200: 27079.9043 | L200: 5838.718845 | M200: 24123.48284 | N200: 0 | P200: =$A190&"+"&$A199 -> 190+199 | R200: =($E$190*R$190+$E$199*R$199)/SUM($E190,$E199) -> 0.2 | S200: 0.8 | T200: 0 | U200: =($E$190*U$190+$E$199*U$199)/SUM($E190,$E199) -> 0 | V200: =($E$190*V$190+$E$199*V$199)/SUM($E190,$E199) -> 0 | W200: 0 | X200: 0 | Y200: =($E$190*Y$190+$E$199*Y$199)/SUM($E190,$E199) -> 0 | Z200: 0 | AA200: 0 | AB200: 0 | AC200: 0 | AD200: 0 | AE200: 0 | AF200: 0 | AG200: =($E$190*AG$190+$E$199*AG$199)/SUM($E190,$E199) -> 0 | AH200: 0 | AI200: 0 | AK200: =AK190+AK199 -> 821000 | AL200: =AL190+AL199 -> 821000 | AM200: =AM190+AM199 -> 0 | AN200: =AN190+AN199 -> 0 | AO200: =AO190+AO199 -> 0 | AQ200: =$A190&"+"&$A199 -> 190+199 | AS200: =AS190+AS199 -> 821000 | AT200: 547708.8499 | AU200: 216249.0441 | AV200: 27079.9043 | AW200: 5838.718845 | AX200: 24123.48284 | AY200: 0 | BA200: =BA190+BA199 -> 0 | BB200: 0 | BC200: 0 | BD200: 0 | BE200: 0 | BF200: 0 | BG200: 0 | BI200: =BI190+BI199 -> 0 | BJ200: 0 | BK200: 0 | BL200: 0 | BM200: 0 | BN200: 0 | BO200: 0 | BQ200: Total Underground Storage Expenses | BR200: =BR190+BR199 -> 9928 | BS200: =($BR$190*BS$190+$BR$199*BS$199)/($BR$190+$BR$199) -> 0.2 | BT200: =($BR$190*BT$190+$BR$199*BT$199)/($BR$190+$BR$199) -> 0.8 | BU200: 0 | BV200: 0 | BW200: 0 | BX200: 0 | BY200: 0 | BZ200: 0 | CA200: 0 | CB200: 0 | CC200: 0 | CD200: 0 | CE200: 0 | CF200: 0 | CG200: 0 | CH200: 0 | CI200: 0 | CL200: 0 | CM200: =CM190+CM199 -> 6623.207627 | CN200: 2615.006711 | CO200: 327.4656393 | CP200: 70.60511656 | CQ200: 291.7149057 | CR200: 0
A201: 201 | AI201: 0 | CL201: 0
A202: 202 | D202: Distribution Expenses | AI202: 0 | BQ202: Distribution Expenses | CL202: 0
A203: 203 | B203: 870-OP | C203: D | D203: Supervision & Engineering | E203: =PROFORMA!AW70 -> 966000 | F203: ="as Distrib Plant ("&A$40&")" -> as Distrib Plant (40) | G203: all oth Dist Exp (S04) | H203: =SUM(I203:N203) -> 966000 | I203: =$E203*SUMPRODUCT($R203:$AH203,INDEX(AllocFactors,I$4,0)) -> 752507.9485 | J203: 149462.272 | K203: 12478.79177 | L203: 3036.268209 | M203: 48514.71944 | N203: 0 | P203: =E$1&$A203&"* Sum["&$R$1&$A203&":"&$AH$1&$A203&"* "&Factors!D$1&Factors!$A$58&":"&Factors!S$1&Factors!$A$64&"]" -> E203* Sum[R203:AH203* D588:S594] | R203: =R$40 -> 0.1038834589 | S203: =S$40 -> 0.08663983857 | T203: =T$40 -> 0.01496099336 | U203: 0 | V203: 0 | W203: 0.3105632093 | X203: 0 | Y203: 0 | Z203: =Z$40 -> 0 | AA203: 0 | AB203: =AB$40 -> 0 | AC203: 0.3341974628 | AD203: 0.1420070731 | AE203: =AE$40 -> 0 | AF203: 0.00774796405 | AG203: 0 | AH203: 0 | AI203: 0 | AK203: =SUM(AL203:AO203) -> 966000 | AL203: =SUMIF($R$4:$AH$4,AL$5,$R203:$AH203)*$E203 -> 198497.8249 | AM203: 300004.0602 | AN203: 467498.1149 | AO203: 0 | AQ203: =E$1&$A203&"*["&R$1&$A203&":"&$AH$1&$A203&" when "&R$1&$A$4&":"&$AH$1&$A$4&" = E,D,C,or R]" -> E203*[R203:AH203 when R4:AH4 = E,D,C,or R] | AS203: =SUM(AT203:AY203) -> 198497.8249 | AT203: =$E203*SUMPRODUCT($R203:$V203,INDEX(AllocFactors_E,AT$4,0)) -> 126371.5065 | AU203: 49894.6064 | AV203: 6248.079256 | AW203: 1240.479311 | AX203: 14743.1534 | AY203: 0 | BA203: =SUM(BB203:BG203) -> 300004.0602 | BB203: =$E203*SUMPRODUCT($W203:$AA203,INDEX(AllocFactors_D,BB$4,0)) -> 191457.9076 | BC203: 72246.30921 | BD203: 5376.30441 | BE203: 1402.844326 | BF203: 29520.69458 | BG203: 0 | BI203: =SUM(BJ203:BO203) -> 467498.1149 | BJ203: =$E203*SUMPRODUCT($AB203:$AG203,INDEX(AllocFactors_C,BJ$4,0)) -> 434678.5344 | BK203: 27321.35643 | BL203: 854.4081043 | BM203: 392.944572 | BN203: 4250.87145 | BO203: 0 | BQ203: Supervision & Engineering | BR203: 531588 | BS203: =R203 -> 0.1038834589 | BT203: =S203 -> 0.08663983857 | BU203: =T203 -> 0.01496099336 | BV203: =U203 -> 0 | BW203: =V203 -> 0 | BX203: =W203 -> 0.3105632093 | BY203: =X203 -> 0 | BZ203: =Y203 -> 0 | CA203: =Z203 -> 0 | CB203: =AA203 -> 0 | CC203: =AB203 -> 0 | CD203: =AC203 -> 0.3341974628 | CE203: =AD203 -> 0.1420070731 | CF203: =AE203 -> 0 | CG203: =AF203 -> 0.00774796405 | CH203: =AG203 -> 0 | CI203: =AH203 -> 0 | CK203: =F203 -> as Distrib Plant (40) | CL203: 0 | CM203: =$BR203*SUMPRODUCT($BS203:$CI203,INDEX(AllocFactors,CM$168,0)) -> 414103.7219 | CN203: 82248.8098 | CO203: 6867.055858 | CP203: 1670.852738 | CQ203: 26697.55971 | CR203: 0
... 242 more rows

Sheet Summary
B1: Avista | I1: =ColHdr -> I
B2: Natural Gas Cost of Service
C4: Total | D4: Sch 101 | E4: Sch 111 | F4: Sch 121 | G4: Sch 132 | H4: Sch 146 | I4: Open | K4: source
A5: Line | B5: A | C5: C | D5: D | E5: E | F5: F | G5: G | H5: H
A6: =A4+1 -> 1 | B6: Plant In Service
A7: =A6+1 -> 2 | B7: Underground Storage Plant | C7: =Detail!H23 -> 25075000 | D7: =Detail!I23 -> 16728135.7 | E7: =Detail!J23 -> 6604683.045 | F7: =Detail!K23 -> 827075.0308 | G7: =Detail!L23 -> 178326.279 | H7: =Detail!M23 -> 736779.9417 | I7: =Detail!N23 -> 0 | K7: =Detail!A$23 -> 23
A8: 3 | B8: Distribution Plant | C8: =Detail!H40 -> 335806000 | D8: =Detail!I40 -> 261590770.4 | E8: =Detail!J40 -> 51956861 | F8: =Detail!K40 -> 4337943.218 | G8: =Detail!L40 -> 1055483.522 | H8: =Detail!M40 -> 16864941.9 | I8: =Detail!N40 -> 0 | K8: =Detail!A$40 -> 40
A9: 4 | B9: Intangible Plant | C9: =Detail!H12 -> 9031000 | D9: =Detail!I12 -> 7661921.085 | E9: =Detail!J12 -> 992143.6802 | F9: =Detail!K12 -> 81840.88071 | G9: =Detail!L12 -> 19811.61438 | H9: =Detail!M12 -> 275282.7399 | I9: =Detail!N12 -> 0 | K9: =Detail!A$12 -> 12
A10: 5 | B10: General Plant | C10: =Detail!H55 -> 66164000 | D10: =Detail!I55 -> 57109000.45 | E10: =Detail!J55 -> 6638358.145 | F10: =Detail!K55 -> 545411.9825 | G10: =Detail!L55 -> 131805.502 | H10: =Detail!M55 -> 1739423.918 | I10: =Detail!N55 -> 0 | K10: =Detail!A$55 -> 55
A11: 6 | B11: Total Plant In Service | C11: =Detail!H57 -> 436076000 | D11: =Detail!I57 -> 343089827.6 | E11: =Detail!J57 -> 66192045.87 | F11: =Detail!K57 -> 5792271.112 | G11: =Detail!L57 -> 1385426.917 | H11: =Detail!M57 -> 19616428.5 | I11: =Detail!N57 -> 0 | K11: =Detail!A57 -> 57 | L11: ='Mains Allocator'!D20/C11 -> 0.3530577239
A12: 7 | C12: =ABS(ROUND(SUM(C7:C10)-C11,0)) -> 0 | D12: 0 | E12: 0 | F12: 0 | G12: 0 | H12: 0 | I12: 0
A13: 8 | B13: Accum Depreciation
A14: 9 | B14: Underground Storage Plant | C14: =Detail!H70 -> -9626000 | D14: =Detail!I70 -> -6421736.163 | E14: =Detail!J70 -> -2535460.777 | F14: =Detail!K70 -> -317504.4565 | G14: =Detail!L70 -> -68457.37832 | H14: =Detail!M70 -> -282841.2251 | I14: =Detail!N70 -> 0 | K14: =Detail!A$70 -> 70
A15: 10 | B15: Distribution Plant | C15: =Detail!H86 -> -121334000 | D15: =Detail!I86 -> -95934971.74 | E15: =Detail!J86 -> -17728022.97 | F15: =Detail!K86 -> -1505658.408 | G15: =Detail!L86 -> -360553.2057 | H15: =Detail!M86 -> -5804793.678 | I15: =Detail!N86 -> 0 | K15: =Detail!A$86 -> 86
A16: 11 | B16: Intangible Plant | C16: =Detail!H108 -> -3952000 | D16: =Detail!I108 -> -3379248.943 | E16: =Detail!J108 -> -417125.7473 | F16: =Detail!K108 -> -34349.35758 | G16: =Detail!L108 -> -8309.032054 | H16: =Detail!M108 -> -112966.9202 | I16: =Detail!N108 -> 0 | K16: =Detail!A$108 -> 108
A17: 12 | B17: General Plant | C17: =Detail!H101 -> -18435000 | D17: =Detail!I101 -> -15912043.16 | E17: =Detail!J101 -> -1849618.107 | F17: =Detail!K101 -> -151965.8711 | G17: =Detail!L101 -> -36724.41854 | H17: =Detail!M101 -> -484648.4481 | I17: =Detail!N101 -> 0 | K17: =Detail!A$101 -> 101
A18: 13 | B18: Total Accumulated Depreciation | C18: =Detail!H110 -> -153347000 | D18: =Detail!I110 -> -121648000 | E18: =Detail!J110 -> -22530227.6 | F18: =Detail!K110 -> -2009478.093 | G18: =Detail!L110 -> -474044.0346 | H18: =Detail!M110 -> -6685250.271 | I18: =Detail!N110 -> 0 | K18: =Detail!A110 -> 110
A19: 14 | C19: =ABS(ROUND(SUM(C14:C17)-C18,0)) -> 0 | D19: 0 | E19: 0 | F19: 0 | G19: 0 | H19: 0 | I19: 0
A20: 15 | B20: Net Plant | C20: =C11+C18 -> 282729000 | D20: 221441827.6 | E20: 43661818.27 | F20: 3782793.02 | G20: 911382.8826 | H20: 12931178.23 | I20: 0 | K20: =A11&"+"&A18 -> 6+13
A21: 16 | B21: Accumulated Deferred FIT | C21: =Detail!H117 -> -53349000 | D21: =Detail!I117 -> -41973186.35 | E21: =Detail!J117 -> -8097853.253 | F21: =Detail!K117 -> -708619.3039 | G21: =Detail!L117 -> -169491.4203 | H21: =Detail!M117 -> -2399849.668 | I21: =Detail!N117 -> 0 | K21: =Detail!A$117 -> 117
A22: 17 | B22: Miscellaneous Rate Base | C22: =Detail!H126-C21 -> 19980000 | D22: =Detail!I126-D21 -> 14264425.72 | E22: =Detail!J126-E21 -> 4368477.313 | F22: =Detail!K126-F21 -> 494944.7631 | G22: =Detail!L126-G21 -> 109564.9523 | H22: =Detail!M126-H21 -> 742587.2552 | I22: =Detail!N126-I21 -> 0 | K22: =Detail!A$126&"-"&A21 -> 126-16
A23: 18 | B23: Total Rate Base | C23: =IF(ROUND(Detail!H128,3)<>ROUND(SUM(D23:I23),3),#VALUE!,SUM(D23:I23)) -> 249360000 | D23: =Detail!I128 -> 193733067 | E23: =Detail!J128 -> 39932442.33 | F23: =Detail!K128 -> 3569118.479 | G23: =Detail!L128 -> 851456.4145 | H23: =Detail!M128 -> 11273915.82 | I23: =Detail!N128 -> 0 | K23: =Detail!A128 -> 128
A24: 19 | C24: =ABS(ROUND(SUM(C20:C22)-C23,0)) -> 0 | D24: 0 | E24: 0 | F24: 0 | G24: 0 | H24: 0 | I24: 0
A25: 20 | B25: Revenue From Retail Rates | C25: =-Detail!H417 -> 148485000 | D25: =-Detail!I417 -> 107941456.7 | E25: =-Detail!J417 -> 33798192.39 | F25: =-Detail!K417 -> 3762196.801 | G25: =-Detail!L417 -> 730099.8267 | H25: =-Detail!M417 -> 2253054.293 | I25: =-Detail!N417 -> 0 | K25: =Detail!A$417 -> 417
A26: 21 | B26: Other Operating Revenues | C26: =C27-C25 -> 1950000 | D26: =D27-D25 -> 1515027.401 | E26: 312191.2145 | F26: 27889.64853 | G26: 6654.334069 | H26: 88237.40177 | I26: 0 | K26: =A27&"-"&A25 -> 22-20
A27: 22 | B27: Total Revenues | C27: =-Detail!H428 -> 150435000 | D27: =-Detail!I428 -> 109456484.1 | E27: =-Detail!J428 -> 34110383.61 | F27: =-Detail!K428 -> 3790086.449 | G27: =-Detail!L428 -> 736754.1608 | H27: =-Detail!M428 -> 2341291.695 | I27: =-Detail!N428 -> 0 | K27: =Detail!A$428 -> 428
A28: 23 | C28: =ABS(ROUND(C25+C26-C27,0)) -> 0 | D28: =ABS(ROUND(D25+D26-D27,0)) -> 0 | E28: 0 | F28: 0 | G28: 0 | H28: 0 | I28: 0
A29: 24 | B29: Operating Expenses
A30: 25 | B30: Purchased Gas Costs | C30: =Detail!H176 -> 80034000 | D30: =Detail!I176 -> 55195863 | E30: =Detail!J176 -> 21672187.1 | F30: =Detail!K176 -> 2600491 | G30: =Detail!L176 -> 531503.9025 | H30: =Detail!M176 -> 33955.00264 | I30: =Detail!N176 -> 0 | K30: =Detail!A$176 -> 176
A31: 26 | B31: Underground Storage Expenses | C31: =Detail!H200 -> 821000 | D31: =Detail!I200 -> 547708.8499 | E31: =Detail!J200 -> 216249.0441 | F31: =Detail!K200 -> 27079.9043 | G31: =Detail!L200 -> 5838.718845 | H31: =Detail!M200 -> 24123.48284 | I31: =Detail!N200 -> 0 | K31: =Detail!A$200 -> 200
A32: 27 | B32: Distribution Expenses | C32: =Detail!H224 -> 10291000 | D32: =Detail!I224 -> 8225311.282 | E32: =Detail!J224 -> 1466439.218 | F32: =Detail!K224 -> 113079.3903 | G32: =Detail!L224 -> 29289.98364 | H32: =Detail!M224 -> 456880.1261 | I32: =Detail!N224 -> 0 | K32: =Detail!A$224 -> 224
A33: 28 | B33: Customer Accounting Expenses | C33: =Detail!H232 -> 5909000 | D33: =Detail!I232 -> 5631780.873 | E33: =Detail!J232 -> 243506.5068 | F33: =Detail!K232 -> 18457.50024 | G33: =Detail!L232 -> 3462.355725 | H33: =Detail!M232 -> 11792.76452 | I33: =Detail!N232 -> 0 | K33: =Detail!A$232 -> 232
A34: 29 | B34: Customer Information Expenses | C34: =Detail!H240 -> 1027000 | D34: =Detail!I240 -> 1009522.708 | E34: =Detail!J240 -> 17011.42878 | F34: =Detail!K240 -> 191.8260251 | G34: =Detail!L240 -> 13.70185893 | H34: =Detail!M240 -> 260.3353198 | I34: =Detail!N240 -> 0 | K34: =Detail!A$240 -> 240
A35: 30 | B35: Sales Expenses | C35: =Detail!H247 -> 5000 | D35: =Detail!I247 -> 4914.910945 | E35: =Detail!J247 -> 82.8209775 | F35: =Detail!K247 -> 0.9339144356 | G35: =Detail!L247 -> 0.06670817397 | H35: =Detail!M247 -> 1.267455306 | I35: =Detail!N247 -> 0 | K35: =Detail!A$247 -> 247
A36: 31 | B36: Admin & General Expenses | C36: =Detail!H338 -> 12426000.01 | D36: =Detail!I338 -> 10512301.32 | E36: =Detail!J338 -> 1401289.61 | F36: =Detail!K338 -> 118956.2949 | G36: =Detail!L338 -> 28307.57207 | H36: =Detail!M338 -> 365145.22 | I36: =Detail!N338 -> 0 | K36: =Detail!A$338 -> 338
A37: 32 | B37: Total O&M Expenses | C37: =Detail!H340 -> 110513000 | D37: =Detail!I340 -> 81127402.94 | E37: =Detail!J340 -> 25016765.73 | F37: =Detail!K340 -> 2878256.85 | G37: =Detail!L340 -> 598416.3014 | H37: =Detail!M340 -> 892158.1989 | I37: =Detail!N340 -> 0 | K37: =Detail!A$340 -> 340
A38: 33 | C38: =ABS(ROUND(SUM(C30:C36)-C37,0)) -> 0 | D38: =ABS(ROUND(SUM(D30:D36)-D37,0)) -> 0 | E38: =ABS(ROUND(SUM(E30:E36)-E37,0)) -> 0 | F38: 0 | G38: 0 | H38: 0 | I38: 0
A39: 34 | B39: Taxes Other Than Income Taxes | C39: =Detail!H348 -> 8970000 | D39: =Detail!I348 -> 6650117.084 | E39: =Detail!J348 -> 1859162.6 | F39: =Detail!K348 -> 196212.6027 | G39: =Detail!L348 -> 39700.73059 | H39: =Detail!M348 -> 224806.9824 | I39: =Detail!N348 -> 0 | K39: =Detail!A$348 -> 348
A40: 35 | B40: Depreciation Expense
A41: 36 | B41: Underground Storage Plant Depreciation | C41: =Detail!H360 -> 388000 | D41: =Detail!I360 -> 258844.1337 | E41: =Detail!J360 -> 102198.0866 | F41: =Detail!K360 -> 12797.81105 | G41: =Detail!L360 -> 2759.345812 | H41: =Detail!M360 -> 11400.62283 | I41: =Detail!N360 -> 0 | K41: =Detail!A$360 -> 360
A42: 37 | B42: Distribution Plant Depreciation | C42: =Detail!H376 -> 8593000 | D42: =Detail!I376 -> 6821932.929 | E42: =Detail!J376 -> 1248232.805 | F42: =Detail!K376 -> 101213.6409 | G42: =Detail!L376 -> 24960.31425 | H42: =Detail!M376 -> 396660.3114 | I42: =Detail!N376 -> 0 | K42: =Detail!A$376 -> 376
A43: 38 | B43: General Plant Depreciation | C43: =Detail!H389 -> 4592000 | D43: =Detail!I389 -> 3963553.142 | E43: =Detail!J389 -> 460723.9677 | F43: =Detail!K389 -> 37853.39193 | G43: =Detail!L389 -> 9147.736911 | H43: =Detail!M389 -> 120721.7615 | I43: =Detail!N389 -> 0 | K43: =Detail!A$389 -> 389
A44: 39 | B44: Amortization Expense | C44: =Detail!H399 -> 1395000 | D44: =Detail!I399 -> 1204084.633 | E44: =Detail!J399 -> 139962.9649 | F44: =Detail!K399 -> 11499.4516 | G44: =Detail!L399 -> 2778.983665 | H44: =Detail!M399 -> 36673.96719 | I44: =Detail!N399 -> 0 | K44: =Detail!A$399 -> 399
A45: 40 | B45: Total Depreciation Expense | C45: =Detail!H401 -> 14968000 | D45: =Detail!I401 -> 12248414.84 | E45: =Detail!J401 -> 1951117.824 | F45: =Detail!K401 -> 163364.2954 | G45: =Detail!L401 -> 39646.38064 | H45: =Detail!M401 -> 565456.663 | I45: =Detail!N401 -> 0 | K45: =Detail!A$401 -> 401
A46: 41 | B46: Income Tax | C46: =SUM(Detail!H408:H411) -> 3873000 | D46: =SUM(Detail!I408:I411) -> 1762345.792 | E46: =SUM(Detail!J408:J411) -> 1756695.08 | F46: =SUM(Detail!K408:K411) -> 190406.3109 | G46: =SUM(Detail!L408:L411) -> 15065.69481 | H46: =SUM(Detail!M408:M411) -> 148487.1223 | I46: =SUM(Detail!N408:N411) -> 0 | K46: =Detail!A$408&":"&Detail!A$411 -> 408:411
A47: 42 | B47: Total Operating Expenses | C47: =Detail!H414 -> 138324000 | D47: =Detail!I414 -> 101788280.7 | E47: =Detail!J414 -> 30583741.23 | F47: =Detail!K414 -> 3428240.059 | G47: =Detail!L414 -> 692829.1074 | H47: =Detail!M414 -> 1830908.967 | I47: =Detail!N414 -> 0 | K47: =Detail!A$414 -> 414
A48: 43 | I48: 0
A49: 44 | B49: Net Operating Income | C49: =IF(ROUND(-Detail!H430,3)<>ROUND(SUM(D49:I49),3),#VALUE!,SUM(D49:I49)) -> 12110999.99 | D49: =-Detail!I430 -> 7668203.438 | E49: =-Detail!J430 -> 3526642.375 | F49: =-Detail!K430 -> 361846.3905 | G49: =-Detail!L430 -> 43925.05337 | H49: =-Detail!M430 -> 510382.7285 | I49: =-Detail!N430 -> 0 | K49: =Detail!A$430 -> 430
A50: 45 | B50: Rate of Return | C50: =Detail!H129 -> 0.04856833488 | D50: =Detail!I129 -> 0.03958128346 | E50: =Detail!J129 -> 0.08831521865 | F50: =Detail!K129 -> 0.1013825662 | G50: =Detail!L129 -> 0.05158814076 | H50: =Detail!M129 -> 0.04527111404 | I50: =Detail!N129 -> 0 | K50: =Detail!A$129 -> 129
A51: 46 | B51: Return Ratio | C51: =C50/$C50 -> 1 | D51: =D50/$C50 -> 0.8149606848 | E51: 1.81837032 | F51: 2.087421083 | G51: 1.062176434 | H51: =H50/$C50 -> 0.9321117174 | I51: 0 | K51: ="% of "&C$1&$A50 -> % of 45
A52: 47 | G52: =((1-G51)/2)+G51 -> 1.031088217 | H52: =((1-H51)/2)+H51 -> 0.9660558587
A53: 48 | B53: Interest Expense | C53: =Detail!H154 -> 6702000 | D53: =Detail!I154 -> 5206925.789 | E53: =Detail!J154 -> 1073256.45 | F53: =Detail!K154 -> 95926.50002 | G53: =Detail!L154 -> 22884.4277 | H53: =Detail!M154 -> 303006.8327 | I53: =Detail!N154 -> 0 | K53: =Detail!A$154 -> 154
A54: 49 | B54: Income Tax / Net Oper Income | C54: =C46/C49 -> 0.3197919251
A55: 50
A56: 51
A57: 52 | B57: Proposed Rate Revenue Increase | C57: =SUM(D57:I57) -> 7085000 | D57: 6676966.923 | E57: 1.127081626e-08 | F57: -1.133207069e-09 | G57: 19494.54478 | H57: 388538.5321 | I57: 0 | K57: input from Ehrbar "ROR" tab | M57: =SUM(E57:H57)-9132000 -> -8723966.923
A58: 53 | B58: Proposed Misc Revenue Increase | C58: =ROUND(SUM(D58:I58),-3) -> 0 | D58: 0 | E58: 0 | F58: 0 | G58: 0 | H58: 0 | I58: 0 | K58: input
A59: 54 | B59: Total Revenue Increase | C59: =C57+C58 -> 7085000 | D59: =D57+D58 -> 6676966.923 | E59: 1.127081626e-08 | F59: -1.133207069e-09 | G59: 19494.54478 | H59: 388538.5321 | I59: 0 | K59: =A57&"+"&A58 -> 52+53
A60: 55
A61: 56 | B61: allocated Misc Rev increase | C61: =C58 -> 0 | D61: =$C61*D62 -> 0 | E61: =$C61*E62 -> 0 | F61: =$C61*F62 -> 0 | G61: 0 | H61: 0 | I61: 0 | K61: =C$1&A61&" * "&A62 -> 56 * 57
A62: 57 | B62: allocation basis - Dist Plant | C62: 11 | D62: =Detail!I421/Detail!$H421 -> 0.7789937356 | E62: =Detail!J421/Detail!$H421 -> 0.1547228489 | F62: =Detail!K421/Detail!$H421 -> 0.0129180039 | G62: =Detail!L421/Detail!$H421 -> 0.003143134792 | H62: =Detail!M421/Detail!$H421 -> 0.05022227685 | I62: =Detail!N421/Detail!$H421 -> 0 | K62: ="% of "&Detail!H$1&Detail!A421 -> % of H421
A63: 58
A64: 59 | B64: Proposed Rate Revenue | C64: =C25+C57 -> 155570000 | D64: 114618423.6 | E64: 33798192.39 | F64: 3762196.801 | G64: =G25+G57 -> 749594.3715 | H64: =H25+H57 -> 2641592.825 | I64: 0 | K64: =A25&"+"&A57 -> 20+52
A65: 60
A66: 61 | B66: Present Return b4 conversion items | C66: =SUM(D66:I66) -> 23403999.99 | D66: =-(Detail!I428+Detail!I403)+D92 -> 14824532.52 | E66: =-(Detail!J428+Detail!J403)+E92 -> 6972279.689 | F66: =-(Detail!K428+Detail!K403)+F92 -> 740254.8583 | G66: =-(Detail!L428+Detail!L403)+G92 -> 95474.84229 | H66: =-(Detail!M428+Detail!M403)+H92 -> 771458.0776 | I66: =-(Detail!N428+Detail!N403)+I92 -> 0 | K66: ="-"&Detail!A428&"-"&Detail!A403&"+"&A92 -> -428-403+87
A67: 62
A68: =A67+1 -> 63
A69: 64 | B69: present conversion items, new spread
A70: 65 | B70: Uncollectibles | C70: =Detail!$E230 -> 690000 | D70: =$C70*D$64/$C$64 -> 508367.3735 | E70: =$C70*E$64/$C$64 -> 149905.2051 | F70: 16686.48064 | G70: 3324.677742 | H70: 11716.26309 | I70: 0 | K70: =Detail!A230&" * % of "&A$64 -> 230 * % of 59
A71: 66 | B71: Commission Fees | C71: =Detail!$E315 -> 308000 | D71: =$C71*D$64/$C$64 -> 226923.4073 | E71: 66914.20747 | F71: 7448.458023 | G71: 1484.05905 | H71: 5229.868164 | I71: 0 | K71: =Detail!A315&" * % of "&A$64 -> 315 * % of 59
A72: 67 | B72: Washington Excise Tax | C72: =Detail!$E347 -> 6422000 | D72: =$C72*D$64/$C$64 -> 4731500.395 | E72: 1395204.677 | F72: 155305.1864 | G72: 30943.59487 | H72: 109046.1472 | I72: 0 | K72: =Detail!A347&" * % of "&A$64 -> 347 * % of 59
A73: 68 | B73: incremental conversion items, new spread
A74: 69 | B74: Uncollectibles | C74: =ROUND($C$59*$L74,-3) -> 32000 | D74: =$C74*D$64/$C$64 -> 23576.4579 | E74: 6952.125452 | F74: 773.8657687 | G74: 154.1879532 | H74: 543.3629261 | I74: 0 | K74: =C$1&$A$57&"*"&L$1&$A74&" * % of "&A$64 -> 52*69 * % of 59 | L74: 0.004449
A75: 70 | B75: Commission Fees | C75: =ROUND($C$59*$L75,-3) -> 14000 | D75: 10314.70033 | E75: 3041.554885 | F75: 338.5662738 | G75: 67.45722955 | H75: 237.7212802 | I75: 0 | K75: =C$1&$A$57&"*"&L$1&$A75&" * % of "&A$64 -> 52*70 * % of 59 | L75: 0.002
A76: 71 | B76: Washington Excise Tax | C76: =ROUND($C$59*$L76,-3) -> 272000 | D76: 200399.8922 | E76: 59093.06634 | F76: 6577.859034 | G76: 1310.597603 | H76: 4618.584872 | I76: 0 | K76: =C$1&$A$57&"*"&L$1&$A76&" * % of "&A$64 -> 52*71 * % of 59 | L76: 0.038349
A77: 72 | B77: less: Interest Expense | C77: =Detail!H154 -> 6702000 | D77: =Detail!I154 -> 5206925.789 | E77: =Detail!J154 -> 1073256.45 | F77: =Detail!K154 -> 95926.50002 | G77: =Detail!L154 -> 22884.4277 | H77: =Detail!M154 -> 303006.8327 | I77: =Detail!N154 -> 0 | K77: =Detail!A154 -> 154
A78: 73 | B78: Proposed Return b4 Tax, new spread | C78: =C57+C61+C66-SUM(C70:C77) -> 16048999.99 | D78: =D57+D61+D66-SUM(D70:D77) -> 10593491.43 | E78: =E57+E61+E66-SUM(E70:E77) -> 4217912.403 | F78: 457197.9421 | G78: 54800.38493 | H78: 725597.8295 | I78: 0 | K78: =A57&"+"&A61&"+"&A66&"+"&A70&":"&A76 -> 52+56+61+65:71 | L78: 0.334321
A79: 74 | B79: less: FIT--present | C79: =Detail!$E409 -> -284000 | D79: =$C79*D$78/$C$78 -> -187460.3756 | E79: =$C79*E$78/$C$78 -> -74639.36216 | F79: -8090.486365 | G79: -969.7370137 | H79: -12840.03887 | I79: 0 | K79: =Detail!E$1&Detail!A409&" * % of "&A78 -> E409 * % of 73
A80: 75 | B80: less: FIT--incremental | C80: =ROUND($C$59*$L78,-3) -> 2369000 | D80: =$C80*D$78/$C$78 -> 1563709.964 | E80: 622607.9189 | F80: 67487.19084 | G80: 8089.109104 | H80: 107105.8172 | I80: 0 | K80: =C$1&A$59&"*"&L$1&A$78&"* % of "&A$78 -> 54*73* % of 73
A81: 76 | B81: less: DFIT, SIT, ITC--present | C81: =Detail!E412-C79 -> 4157000 | D81: =$C81*D$78/$C$78 -> 2743918.244 | E81: 1092520.523 | F81: 118423.0698 | G81: 14194.35481 | H81: 187943.8083 | I81: 0 | K81: =Detail!E$1&Detail!A412&" - "&C$1&A79&"* % of "&A78 -> E412 - 74* % of 73
A82: 77 | B82: addback: Interest Expense | C82: =Detail!H154 -> 6702000 | D82: =Detail!I154 -> 5206925.789 | E82: =Detail!J154 -> 1073256.45 | F82: =Detail!K154 -> 95926.50002 | G82: =Detail!L154 -> 22884.4277 | H82: =Detail!M154 -> 303006.8327 | I82: =Detail!N154 -> 0 | K82: =Detail!A154 -> 154
A83: 78 | B83: Proposed Return | C83: =IF(ROUND(C78-C79-C80-C81+C82,0)<>ROUND(SUM(D83:I83),0),#VALUE!,ROUND(SUM(D83:I83),0)) -> 16509000 | D83: =D78-D79-D80-D81+D82 -> 11680249.38 | E83: 3650679.773 | F83: 375304.6679 | G83: 56371.08572 | H83: 746395.0755 | I83: 0 | K83: =A78&" - "&A79&":"&A81&" + "&A82 -> 73 - 74:76 + 77
A84: 79 | B84: Proposed Rate of Return | C84: =IF(C23,C83/C23,0) -> 0.06620548604 | D84: 0.06029042727 | E84: 0.09142139976 | F84: 0.1051533229 | G84: 0.06620548599 | H84: =IF(H23,H83/H23,0) -> 0.06620548599 | I84: 0 | K84: =A83&" / "&A23 -> 78 / 18
A85: 80 | B85: Proposed Return Ratio | C85: =C84/$C84 -> 1 | D85: =D84/$C84 -> 0.910656063 | E85: 1.380873478 | F85: =F84/$C84 -> 1.588287152 | G85: 0.9999999992 | H85: 0.9999999992 | I85: 0 | K85: ="% of "&C$1&$A84 -> % of 79
A86: 81
A87: 82 | B87: Rate Revenues at Uniform Present Rates | C87: =C130 -> 148485000 | D87: =D130 -> 111086371.4 | E87: =E130 -> 30931263.97 | F87: 3421710.361 | G87: 725455.4297 | H87: 2320198.836 | I87: 0 | K87: =A130 -> 125
A88: 83 | B88: Rate Change to get to Uniform Present Rates | C88: =SUM(D88:J88) -> 6.949994713e-08 | D88: =D87-D25 -> 3144914.718 | E88: =E87-E25 -> -2866928.424 | F88: -340486.4401 | G88: -4644.397022 | H88: =H87-H25 -> 67144.54265 | I88: 0 | K88: =A87&"-"&A25 -> 82-20
A89: 84 | B89: % Change to get to Uniform Rates | C89: =IF(C87,C88/C87,0) -> 4.680603908e-16 | D89: =IF(D87,D88/D87,0) -> 0.02831053601 | E89: =IF(E87,E88/E87,0) -> -0.09268707631 | F89: -0.09950767429 | G89: -0.006402043229 | H89: =IF(H87,H88/H87,0) -> 0.02893913298 | I89: 0 | K89: =A88&"/"&A87 -> 83/82
A90: 85
A91: 86
A92: 87 | B92: Revenue Related Op Exp., current | C92: =SUMIF(Detail!$C$170:$C$405,$L92,Detail!H$170:H$405) -> 7420000 | D92: =SUMIF(Detail!$C$170:$C$405,$L92,Detail!I$170:I$405) -> 5393983.289 | E92: =SUMIF(Detail!$C$170:$C$405,$L92,Detail!J$170:J$405) -> 1688942.234 | F92: =SUMIF(Detail!$C$170:$C$405,$L92,Detail!K$170:K$405) -> 188002.1569 | G92: =SUMIF(Detail!$C$170:$C$405,$L92,Detail!L$170:L$405) -> 36484.09411 | H92: =SUMIF(Detail!$C$170:$C$405,$L92,Detail!M$170:M$405) -> 112588.2268 | I92: =SUMIF(Detail!$C$170:$C$405,$L92,Detail!N$170:N$405) -> 0 | K92: =Detail!A$170&":"&Detail!A$405&", col "&Detail!C$1&"= " -> 170:405, col C= | L92: R
A93: 88 | B93: Rate Rev. excl Rev. Conversion Items, current | C93: =C25-C92 -> 141065000 | D93: =D25-D92 -> 102547473.4 | E93: 32109250.16 | F93: 3574194.644 | G93: 693615.7326 | H93: 2140466.066 | I93: 0 | K93: =A25&" - "&A92 -> 20 - 87
A94: 89 | B94: Revenue Conversion Item Ratio, current | C94: =IF(C93,C92/C93,0) -> 0.05259986531 | D94: =IF(D93,D92/D93,0) -> 0.05259986531 | E94: =IF(E93,E92/E93,0) -> 0.05259986531 | F94: 0.05259986531 | G94: 0.05259986531 | H94: 0.05259986531 | I94: 0 | K94: =A92&"/"&A93 -> 87/88
A95: 90
A96: 91 | B96: Adj. Revenue Conversion Items | C96: =SUM(C70:C72,C74:C76) -> 7738000 | D96: =SUM(D70:D72,D74:D76) -> 5701082.226 | E96: 1681110.836 | F96: 187130.4162 | G96: 37284.57444 | H96: 131391.9476 | I96: 0 | K96: =A70&":"&A72&" + "&A74&":"&A76 -> 65:67 + 69:71
A97: 92 | B97: Adj. Rate Rev. excl Conversion Items | C97: =C64-C96 -> 147832000 | D97: =D64-D96 -> 108917341.4 | E97: 32117081.56 | F97: 3575066.385 | G97: 712309.797 | H97: 2510200.878 | I97: 0 | K97: =A64&" - "&A96 -> 59 - 91
A98: 93 | B98: Adj. Revenue Conversion Ratio | C98: =IF(C97,C96/C97,0) -> 0.05234320039 | D98: =IF(D97,D96/D97,0) -> 0.05234320039 | E98: 0.05234320039 | F98: 0.05234320039 | G98: 0.05234320039 | H98: 0.05234320039 | I98: 0 | K98: =A96&"/"&A97 -> 91/92
A99: 94 | B99: Adj. Income Tax Items | C99: =SUM(C79:C81) -> 6242000 | D99: =SUM(D79:D81) -> 4120167.833 | E99: 1640489.08 | F99: 177819.7743 | G99: 21313.7269 | H99: 282209.5866 | I99: 0 | K99: =A79&":"&A81 -> 74:76
A100: 95 | B100: Adj. Return | C100: =C84*C23 -> 16509000 | D100: 11680249.38 | E100: 3650679.773 | F100: 375304.6679 | G100: 56371.08572 | H100: 746395.0755 | I100: 0 | K100: =A84&" * "&A23 -> 79 * 18
A101: 96 | B101: Adj. Income Tax Ratio | C101: =IF(C100,C99/C100,0) -> 0.3780967957 | D101: =IF(D100,D99/D100,0) -> 0.3527465636 | E101: 0.4493653734 | F101: 0.4738011261 | G101: 0.378096796 | H101: 0.378096796 | I101: 0 | K101: =A99&"/"&A100 -> 94/95
A102: 97 | B102: Adj. Income Tax Items - Uniform | C102: =C99 -> 6242000 | D102: =$C102*D$83/$C$83 -> 4416264.865 | E102: 1380310.324 | F102: 141901.4923 | G102: 21313.72688 | H102: 282209.5864 | I102: 0 | K102: =C$1&A99&" * % of "&A83 -> 94 * % of 78
A103: 98
A104: 99
A105: 100
A106: 101 | B106: SUMMARY BY FUNCTION WITH MARGIN ANALYSIS
A107: 102
A108: 103 | C108: Total | D108: Sch 101 | E108: Sch 111 | F108: Sch 121 | G108: Sch 131 | H108: Sch 146 | I108: Open
A109: 104 | B109: Functional Cost Components at Current Rates
A110: 105 | B110: Production | C110: =SUM(D110:I110) -> 84243777.62 | D110: =D282 -> 58099157.96 | E110: 22812141.22 | F110: 2737276.477 | G110: 559460.9362 | H110: 35741.03121 | I110: 0 | K110: =A282 -> 277
A111: 106 | B111: Underground Storage | C111: =SUM(D111:I111) -> 2973254.043 | D111: =D291 -> 1551098.261 | E111: 1162444.416 | F111: 164036.4683 | G111: 20194.00189 | H111: 75480.89608 | I111: 0 | K111: =A291 -> 286
A112: 107 | B112: Distribution | C112: =SUM(D112:I112) -> 39426158.06 | D112: =D302 -> 30136264.55 | E112: 7052592.544 | F112: 619294.6035 | G112: 102359.0471 | H112: 1515647.317 | I112: 0 | K112: =A302 -> 297
A113: 108 | B113: Common | C113: =SUM(D113:I113) -> 21841810.28 | D113: =D311 -> 18154935.92 | E113: 2771014.212 | F113: 241589.2525 | G113: 48085.84155 | H113: 626185.0488 | I113: 0 | K113: =A311 -> 306
A114: 109 | B114: Total Current Rate Revenue | C114: =IF(ROUND(SUM(C110:C113),3)<>ROUND(SUM(D114:I114),3),#VALUE!,SUM(D114:I114)) -> 148485000 | D114: =SUM(D110:D113) -> 107941456.7 | E114: 33798192.39 | F114: 3762196.801 | G114: 730099.8267 | H114: 2253054.293 | I114: 0 | K114: =A110&":"&A113 -> 105:108
A115: 110 | B115: Exclude Cost of Gas w / Revenue Exp. | C115: =SUM(D115:I115) -> 83322752.74 | D115: =SUM(D$277:D$278)*(1+D$94) -> 57475689.65 | E115: =SUM(E$277:E$278)*(1+E$94) -> 22570257.84 | F115: 2707403.105 | G115: 553058.412 | H115: 16343.73116 | I115: 0 | K115: =A277&":"&A278&"*(1+"&A94&")" -> 272:273*(1+89) | M115: Percentage of Current Margin
A116: 111 | B116: Total Margin Revenue at Current Rates | C116: =C114-C115 -> 65162247.26 | D116: =D114-D115 -> 50465767.04 | E116: 11227934.55 | F116: 1054793.696 | G116: 177041.4147 | H116: 2236710.562 | I116: 0 | K116: =A114&"-"&A115 -> 109-110 | M116: =D116/$C$116 -> 0.7744632691 | N116: =E116/$C$116 -> 0.1723073562 | O116: 0.01618719029 | P116: 0.002716932305 | Q116: 0.03432525206
A117: 112 | C117: =ABS(ROUND(C114-Detail!$E$433,0)) -> 0
A118: 113 | B118: Margin per Therm at Current Rates | L118: =C57/C116 -> 0.1087286013 | M118: =D57/D116 -> 0.132306855 | N118: =E57/E116 -> 1.003819198e-15 | O118: -1.074340009e-15 | P118: 0.1101129067 | Q118: 0.1737097945
A119: 114 | B119: Production | C119: =IF(C$178,(C110-C115)/C$178,0) -> 0.00470552531 | D119: =IF(D$178,(D110-D115)/D$178,0) -> 0.00543250606 | E119: =IF(E$178,(E110-E115)/E$178,0) -> 0.005338108927 | F119: 0.005264688934 | G119: 0.005233223223 | H119: 0.0006745453887 | I119: 0 | K119: ="("&A110&"-"&A115&")/"&A$178 -> (105-110)/173
A120: 115 | B120: Underground Storage | C120: =IF(C$178,C111/C$178,0) -> 0.01519038456 | D120: 0.01351528319 | E120: 0.02565391176 | F120: 0.02890872133 | G120: 0.01650594627 | H120: 0.002624864814 | I120: 0 | K120: =A111&"/"&A$178 -> 106/173 | M120: =$L$122*M116 -> 9398111.771 | N120: =$L$122*N116 -> 2090949.768 | O120: 196431.5542 | P120: 32969.97352 | Q120: 416536.9338
A121: 116 | B121: Distribution | C121: 0.2014286348 | D121: 0.2625882317 | E121: 0.1556432156 | F121: 0.109140457 | G121: 0.08366508729 | H121: 0.05270696984 | I121: 0 | K121: =A112&"/"&A$178 -> 107/173 | L121: =C57/C116 -> 0.1087286013 | M121: =D116*$L$121 -> 5487072.262 | N121: =E116*$L$121 -> 1220797.619 | O121: 114686.2432 | P121: 19249.46538 | Q121: 243194.4108
A122: 117 | B122: Common | C122: 0.1115900266 | D122: 0.1581905585 | E122: 0.06115333611 | F122: 0.0425761201 | G122: 0.03930386464 | H122: 0.02177572322 | I122: 0 | K122: =A113&"/"&A$178 -> 108/173 | L122: 12135000
A123: 118 | B123: Total Curr. Margin Melded Rate per Therm | C123: =IF(C$178,C116/C$178,0) -> 0.3329145713 | D123: =IF(D$178,D116/D$178,0) -> 0.4397265795 | E123: =IF(E$178,E116/E$178,0) -> 0.2477885724 | F123: 0.1858899873 | G123: 0.1447081214 | H123: 0.07778210327 | I123: 0 | K123: =A116&"/"&A$178 -> 111/173
A124: 119
A125: 120 | B125: Functional Cost Components at Uniform Current Return
A126: 121 | B126: Production | C126: =SUM(D126:I126) -> 84243777.62 | D126: =D$110 -> 58099157.96 | E126: 22812141.22 | F126: 2737276.477 | G126: 559460.9362 | H126: 35741.03121 | I126: 0 | K126: =A110 -> 105
A127: 122 | B127: Underground Storage | C127: =SUM(D127:I127) -> 2710142.819 | D127: =D320 -> 1808001.47 | E127: 713843.8416 | F127: 89391.48377 | G127: 19273.76608 | H127: 79632.25796 | I127: 0 | K127: =A320 -> 315
A128: 123 | B128: Distribution | C128: =SUM(D128:I128) -> 39418842.41 | D128: =D327 -> 32313616.17 | E128: 5038138.056 | F128: 398245.5759 | G128: 99252.16029 | H128: 1569590.441 | I128: 0 | K128: =A327 -> 322
A129: 124 | B129: Common | C129: =SUM(D129:I129) -> 22112237.15 | D129: =D334 -> 18865595.81 | E129: 2367140.85 | F129: 196796.8246 | G129: 47468.56711 | H129: 635235.1053 | I129: 0 | K129: =A334 -> 329
A130: 125 | B130: Total Uniform Current Cost | C130: =IF(ROUND(SUM(C126:C129),3)<>ROUND(SUM(D130:I130),3),#VALUE!,SUM(D130:I130)) -> 148485000 | D130: =SUM(D126:D129) -> 111086371.4 | E130: 30931263.97 | F130: 3421710.361 | G130: 725455.4297 | H130: 2320198.836 | I130: 0 | K130: =A126&":"&A129 -> 121:124
A131: 126 | B131: Exclude Cost of Gas w / Revenue Exp. | C131: =SUM(D131:I131) -> 83322752.74 | D131: =SUM(D$277:D$278)*(1+D$94) -> 57475689.65 | E131: =SUM(E$277:E$278)*(1+E$94) -> 22570257.84 | F131: 2707403.105 | G131: 553058.412 | H131: 16343.73116 | I131: 0 | K131: =A277&":"&A278&"*(1+"&A94&")" -> 272:273*(1+89)
A132: =A131+1 -> 127 | B132: Total Uniform Current Margin | C132: =C130-C131 -> 65162247.26 | D132: 53610681.75 | E132: 8361006.129 | F132: 714307.2561 | G132: 172397.0176 | H132: 2303855.105 | I132: 0 | K132: =A130&"-"&A131 -> 125-126
A133: 128 | C133: =ABS(ROUND(C130-Detail!$E$433,0)) -> 0
A134: 129 | B134: Margin per Therm at Uniform Current Return
A135: 130 | B135: Production | C135: =IF(C$178,(C126-C131)/C$178,0) -> 0.00470552531 | D135: 0.00543250606 | E135: 0.005338108927 | F135: 0.005264688934 | G135: 0.005233223223 | H135: 0.0006745453887 | I135: 0 | K135: ="("&A126&"-"&A131&")/"&A$178 -> (121-126)/173
A136: 131 | B136: Underground Storage | C136: =IF(C$178,C127/C$178,0) -> 0.0138461467 | D136: 0.01575377426 | E136: 0.01575377426 | F136: 0.01575377426 | G136: 0.01575377426 | H136: 0.002769229339 | I136: 0 | K136: =A127&"/"&A$178 -> 122/173
A137: 132 | B137: Distribution | C137: 0.2013912591 | D137: 0.2815602882 | E137: 0.1111863478 | F137: 0.07018421264 | G137: 0.0811256151 | H137: 0.05458285389 | I137: 0 | K137: =A128&"/"&A$178 -> 123/173
A138: 133 | B138: Common | C138: 0.1129716402 | D138: 0.1643827965 | E138: 0.05224028062 | F138: 0.03468219365 | G138: 0.0387993238 | H138: 0.02209044093 | I138: 0 | K138: =A129&"/"&A$178 -> 124/173
A139: 134 | B139: Total Curr. Uniform Margin @ Melded Rate | C139: =IF(C$178,C132/C$178,0) -> 0.3329145713 | D139: =IF(D$178,D132/D$178,0) -> 0.4671293651 | E139: 0.1845185116 | F139: 0.1258848695 | G139: 0.1409119364 | H139: 0.08011706955 | I139: 0 | K139: =A132&"/"&A$178 -> 127/173
A140: 135
A141: 136 | B141: Margin to Cost Ratio at Current Rates | C141: =IF(C132,C116/C132,0) -> 1 | D141: =IF(D132,D116/D132,0) -> 0.9413379085 | E141: =IF(E132,E116/E132,0) -> 1.342892755 | F141: 1.476666641 | G141: 1.026940124 | H141: =IF(H132,H116/H132,0) -> 0.9708555705 | I141: 0 | K141: =A116&"/"&A132 -> 111/127
A142: 137
A143: 138
A144: 139 | B144: Functional Cost Components at Proposed Rates
A145: 140 | B145: Production | C145: =SUM(D145:I145) -> 84223235.7 | D145: =D343 -> 58084991.11 | E145: 22806578.73 | F145: 2736609.022 | G145: 559324.5178 | H145: 35732.31615 | I145: 0 | K145: =A$343 -> 338
A146: 141 | B146: Underground Storage | C146: =SUM(D146:I146) -> 3549554.999 | D146: =D350 -> 2098301.189 | E146: 1163450.521 | F146: 164197.5853 | G146: 24086.97991 | H146: 99518.72352 | I146: 0 | K146: =A350 -> 345
A147: 142 | B147: Distribution | C147: =SUM(D147:I147) -> 44389636.23 | D147: =D357 -> 34769872.97 | E147: 7056663.63 | F147: 619739.1663 | G147: 115494.1283 | H147: 1827866.331 | I147: 0 | K147: =A357 -> 352
A148: 143 | B148: Common | C148: =SUM(D148:I148) -> 23407573.08 | D148: =D364 -> 19665258.34 | E148: 2771499.511 | F148: 241651.0276 | G148: 50688.74545 | H148: 678475.455 | I148: 0 | K148: =A364 -> 359
A149: 144 | B149: Total Proposed Rate Revenue | C149: =IF(ROUND(SUM(C145:C148),3)<>ROUND(SUM(D149:I149),3),#VALUE!,SUM(D149:I149)) -> 155570000 | D149: =SUM(D145:D148) -> 114618423.6 | E149: 33798192.39 | F149: 3762196.801 | G149: 749594.3715 | H149: 2641592.825 | I149: 0 | K149: =A145&":"&A148 -> 140:143
A150: 145 | B150: Exclude Cost of Gas w / Revenue Exp. | C150: =SUM(D150:I150) -> 83302435.4 | D150: =SUM(D$277:D$278)*(1+D$98) -> 57461674.83 | E150: 22564754.33 | F150: 2706742.934 | G150: 552923.5548 | H150: 16339.74592 | I150: 0 | K150: =A277&":"&A278&"*(1+"&A98&")" -> 272:273*(1+93)
A151: 146 | B151: Total Margin Revenue at Proposed Rates | C151: =C149-C150 -> 72267564.6 | D151: 57156748.78 | E151: 11233438.06 | F151: 1055453.867 | G151: 196670.8167 | H151: 2625253.079 | I151: 0 | K151: =A149&"-"&A150 -> 144-145
A152: 147
A153: 148 | B153: Margin per Therm at Proposed Rates
A154: 149 | B154: Production | C154: =IF(C$178,(C145-C150)/C$178,0) -> 0.00470437792 | D154: =IF(D$178,(D145-D150)/D$178,0) -> 0.005431181403 | E154: 0.005336807287 | F154: 0.005263405197 | G154: 0.005231947159 | H154: 0.0006743809082 | I154: 0 | K154: ="("&A145&"-"&A$150&")/"&A$178 -> (140-145)/173
A155: 150 | B155: Underground Storage | C155: =IF(C$178,C146/C$178,0) -> 0.0181347119 | D155: 0.01828326129 | E155: 0.02567611543 | F155: 0.02893711554 | G155: 0.01968794488 | H155: 0.003460785567 | I155: 0 | K155: =A146&"/"&A$178 -> 141/173
A156: 151 | B156: Distribution | C156: 0.2267870943 | D156: 0.3029625469 | E156: 0.1557330601 | F156: 0.1092188038 | G156: 0.09440129236 | H156: 0.06356445492 | I156: 0 | K156: =A147&"/"&A$178 -> 142/173
A157: 152 | B157: Common | C157: 0.1195895243 | D157: 0.1713505469 | E157: 0.06116404615 | F157: 0.04258700694 | G157: 0.04143139697 | H157: 0.02359413363 | I157: 0 | K157: =A148&"/"&A$178 -> 143/173
A158: 153 | B158: Total Proposed Margin @ Melded Rates | C158: =IF(C$178,C151/C$178,0) -> 0.3692157084 | D158: =IF(D$178,D151/D$178,0) -> 0.4980275365 | E158: 0.247910029 | F158: 0.1860063315 | G158: 0.1607525814 | H158: 0.09129375503 | I158: 0 | K158: =A149&"/"&A$178 -> 144/173
A159: 154
A160: 155 | B160: Functional Cost Components at Uniform Proposed Return
A161: 156 | B161: Production | C161: =SUM(D161:I161) -> 84223235.7 | D161: =D374 -> 58084991.11 | E161: 22806578.73 | F161: 2736609.022 | G161: 559324.5178 | H161: 35732.31615 | I161: 0 | K161: =A374 -> 369
A162: 157 | B162: Underground Storage | C162: =SUM(D162:I162) -> 3386943.444 | D162: =D381 -> 2259511.448 | E162: 892111.1841 | F162: 111715.1088 | G162: 24086.97992 | H162: 99518.72356 | I162: 0 | K162: =A381 -> 376
A163: 158 | B163: Distribution | C163: =SUM(D163:I163) -> 44382078.11 | D163: =D388 -> 36136190.73 | E163: 5838206.106 | F163: 464320.8154 | G163: 115494.1284 | H163: 1827866.331 | I163: 0 | K163: =A388 -> 383
A164: 159 | B164: Common | C164: =SUM(D164:I164) -> 23577742.76 | D164: =D395 -> 20111207.08 | E164: 2527213.756 | F164: 210157.7188 | G164: 50688.74545 | H164: 678475.455 | I164: 0 | K164: =A395 -> 390
A165: 160 | B165: Total Uniform Proposed Cost | C165: =IF(ROUND(SUM(C161:C164),3)<>ROUND(SUM(D165:I165),3),#VALUE!,SUM(D165:I165)) -> 155570000 | D165: =SUM(D161:D164) -> 116591900.4 | E165: 32064109.78 | F165: 3522802.665 | G165: 749594.3715 | H165: 2641592.826 | I165: 0 | K165: =A161&":"&A164 -> 156:159
A166: 161 | B166: Exclude Cost of Gas w / Revenue Exp. | C166: =SUM(D166:I166) -> 83302435.4 | D166: =SUM(D$369:D$370)*(1+$C$98) -> 57461674.83 | E166: =SUM(E$369:E$370)*(1+$C$98) -> 22564754.33 | F166: 2706742.934 | G166: 552923.5548 | H166: 16339.74592 | I166: 0 | K166: =A369&":"&A370&"*(1+"&A98&")" -> 364:365*(1+93)
A167: 162 | B167: Total Uniform Proposed Margin | C167: =C165-C166 -> 72267564.61 | D167: 59130225.54 | E167: 9499355.446 | F167: 816059.7305 | G167: 196670.8167 | H167: 2625253.08 | I167: 0 | K167: =A165&"-"&A166 -> 160-161
A168: 163
A169: 164 | B169: Margin per Therm at Uniform Proposed Return
A170: 165 | B170: Production | C170: =IF(C$178,(C161-C166)/C$178,0) -> 0.00470437792 | D170: 0.005431181403 | E170: 0.005336807287 | F170: 0.005263405197 | G170: 0.005231947159 | H170: 0.0006743809082 | I170: 0 | K170: ="("&A161&"-"&A$166&")/"&A$178 -> (156-161)/173
A171: 166 | B171: Underground Storage | C171: =IF(C$178,C162/C$178,0) -> 0.01730392784 | D171: 0.01968794489 | E171: 0.01968794489 | F171: 0.01968794489 | G171: 0.01968794489 | H171: 0.003460785568 | I171: 0 | K171: =A162&"/"&A$178 -> 157/173
A172: 167 | B172: Distribution | C172: =IF(C$178,C163/C$178,0) -> 0.2267484798 | D172: 0.3148677704 | E172: 0.1288429986 | F172: 0.0818288835 | G172: 0.09440129239 | H172: 0.06356445494 | I172: 0 | K172: =A163&"/"&A$178 -> 158/173
A173: 168 | B173: Common | C173: =IF(C$178,C164/C$178,0) -> 0.1204589229 | D173: 0.1752362605 | E173: 0.05577291938 | F173: 0.03703683083 | G173: 0.04143139698 | H173: 0.02359413364 | I173: 0 | K173: =A164&"/"&A$178 -> 159/173
A174: 169 | B174: Total Prop. Uniform Margin @ Melded Rates | C174: =IF(C$178,C167/C$178,0) -> 0.3692157085 | D174: =IF(D$178,D167/D$178,0) -> 0.5152231572 | E174: 0.2096406702 | F174: 0.1438170644 | G174: 0.1607525814 | H174: 0.09129375505 | I174: 0 | K174: =A165&"/"&A$178 -> 160/173
A175: 170
A176: 171 | B176: Margin to Cost Ratio at Proposed Rates | C176: =IF(C167,C151/C167,0) -> 0.9999999998 | D176: =IF(D167,D151/D167,0) -> 0.9666249072 | E176: =IF(E167,E151/E167,0) -> 1.182547398 | F176: 1.293353694 | G176: 0.9999999997 | H176: 0.9999999997 | I176: 0 | K176: =A151&"/"&A167 -> 146/162
A177: 172
A178: 173 | B178: Throughput Therms | C178: =SUM(D178:I178) -> 195732638 | D178: =Factors!E41 -> 114766242 | E178: =Factors!F41 -> 45312560 | F178: =Factors!G41 -> 5674290 | G178: =Factors!H41 -> 1223438 | H178: =Factors!I41 -> 28756108 | I178: =Factors!J41 -> 0 | K178: =Factors!A41 -> 571
A179: 174 | B179: Peak Therms | C179: =SUM(D179:I179) -> 1346732.8 | D179: =Factors!E42 -> 859463.8482 | E179: =Factors!F42 -> 324317.1917 | F179: =Factors!G42 -> 24134.49167 | G179: =Factors!H42 -> 6297.436328 | H179: =Factors!I42 -> 132519.8321 | I179: =Factors!J42 -> 0 | K179: =Factors!A42 -> 572
A180: 175 | B180: Number of Customers (Annualized) | C180: =SUM(D180:I180) -> 1798880 | D180: =Factors!E43 -> 1768267 | E180: =Factors!F43 -> 29797 | F180: =Factors!G43 -> 336 | G180: =Factors!H43 -> 24 | H180: =Factors!I43 -> 456 | I180: =Factors!J43 -> 0 | K180: =Factors!A43 -> 573
A181: 176
A182: 177
A183: 178
A184: 179 | B184: SUMMARY BY CLASSIFICATION WITH UNIT COST ANALYSIS
A185: 180
A186: 181 | C186: Total | D186: Sch 101 | E186: Sch 111 | F186: Sch 121 | G186: Sch 131 | H186: Sch 146 | I186: Open
A187: 182 | B187: Cost by Classification at Curr. Return by Schedule
A188: 183 | B188: Commodity | C188: =SUM(D188:I188) -> 78013125.3 | D188: =D411 -> 51853464.83 | E188: 22028158.21 | F188: 2810431.887 | G188: 558315.07 | H188: 762755.3017 | I188: 0 | K188: =A411 -> 406
A189: 184 | B189: Demand | C189: =SUM(D189:I189) -> 33304407.76 | D189: =D420 -> 21549541.5 | E189: 9478029.409 | F189: 880960.4706 | G189: 147785.0535 | H189: 1248091.328 | I189: 0 | K189: =A420 -> 415
A190: 185 | B190: Customer | C190: =SUM(D190:I190) -> 37500587.64 | D190: =D429 -> 34871571.06 | E190: 2292004.771 | F190: 70804.4434 | G190: 23999.70318 | H190: 242207.6641 | I190: 0 | K190: =A429 -> 424
A191: 186 | B191: Total Current Rate Revenue | C191: =IF(ROUND(SUM(C188:C190),3)<>ROUND(SUM(D191:I191),3),#VALUE!,SUM(D191:I191)) -> 148818120.7 | D191: =SUM(D187:D190) -> 108274577.4 | E191: 33798192.39 | F191: 3762196.801 | G191: 730099.8267 | H191: 2253054.293 | I191: 0 | K191: =A187&":"&A190 -> 182:185
A192: 187
A193: 188 | B193: Revenue per Therm at Current Rates
A194: 189 | B194: Commodity | C194: =IF(C$178,C188/C$178,0) -> 0.3985698353 | D194: =IF(D$178,D188/D$178,0) -> 0.451818095 | E194: 0.4861380203 | F194: 0.4952922545 | G194: 0.456349296 | H194: 0.0265249839 | I194: 0 | K194: =A188&"/"&A$178 -> 183/173
A195: 190 | B195: Demand | C195: =IF(C$178,C189/C$178,0) -> 0.1701525514 | D195: 0.1877689913 | E195: 0.2091700272 | F195: 0.1552547492 | G195: 0.1207948858 | H195: 0.04340265127 | I195: 0 | K195: =A189&"/"&A$178 -> 184/173
A196: =A195+1 -> 191 | B196: Customer | C196: =IF(C$178,C190/C$178,0) -> 0.1915908763 | D196: 0.3038486793 | E196: 0.05058210728 | F196: 0.01247811504 | G196: 0.01961660761 | H196: 0.008422824955 | I196: 0 | K196: =A190&"/"&A$178 -> 185/173
A197: 192 | B197: Total Revenue per Therm at Current Rates | C197: 0.7603132631 | D197: 0.9434357656 | E197: 0.7458901548 | F197: 0.6630251187 | G197: 0.5967607894 | H197: 0.07835046013 | I197: 0 | K197: =A191&"/"&A$178 -> 186/173
A198: 193
A199: 194 | B199: Cost per Unit at Current Rates
A200: 195 | B200: Commodity | C200: =C194 -> 0.3985698353 | D200: =D194 -> 0.451818095 | E200: 0.4861380203 | F200: 0.4952922545 | G200: 0.456349296 | H200: 0.0265249839 | I200: 0 | K200: =A194 -> 189
A201: 196 | B201: Demand | C201: =IF(C$179,C189/C$179,0) -> 24.72978141 | D201: 25.07323786 | E201: 29.22456672 | F201: 36.5021349 | G201: 23.46749467 | H201: 9.418147517 | I201: 0 | K201: =A189&"/"&A$179 -> 184/174
... 334 more rows

Sheet Factors (hidden)
A1: =ColHdr -> A | B1: =ColHdr -> B | C1: C | D1: D | E1: E | F1: F | G1: G | H1: H | I1: I | J1: J | K1: K | L1: L | M1: M | N1: N | O1: O | P1: P | Q1: Q | R1: R | S1: S | T1: T
A2: =Pg2Row+ROW(A2) -> 532 | E2: 1 | F2: 2 | G2: 3 | H2: 4 | I2: 5 | J2: 6
A3: 533 | B3: Allocation Factor | C3: Abbrev | D3: Total | E3: Sch 101 | F3: Sch 111 | G3: Sch 121 | H3: Sch 131 | I3: Sch 146 | J3: Open | K3: allocation basis
A4: 534 | B4: Throughput - All Schedules | C4: E01 | D4: =SUM(E4:J4) -> 195732638 | E4: =E$41 -> 114766242 | F4: 45312560 | G4: 5674290 | H4: 1223438 | I4: 28756108 | J4: 0 | K4: =K41 -> Input from Proforma Revenue Study
A5: 535 | B5: Sales - Excludes 146 | C5: E04 | D5: =SUM(E5:J5) -> 166976530 | E5: =E$41 -> 114766242 | F5: =F$41 -> 45312560 | G5: =G$41 -> 5674290 | H5: =H$41 -> 1223438 | I5: 0 | J5: =J$41 -> 0 | K5: same as Throughput, less Transport
A6: 536 | B6: Throughput - Excludes 132 & 146 | C6: E06 | D6: 165753092 | E6: =E$41 -> 114766242 | F6: =F$41 -> 45312560 | G6: =G$41 -> 5674290 | H6: 0 | I6: 0 | J6: =J$41 -> 0 | K6: same as Throughput, less Transport & Interruptible
A7: 537 | B7: Purchased Gas - Commodity | C7: E07 | D7: =SUM(E7:J7) -> 60579085 | E7: 41637193 | F7: 16439397 | G7: 2058632 | H7: 443863 | I7: 0 | J7: 0 | K7: Input from Proforma Gas Supply
A8: 538 | B8: GTI Expense | C8: E08 | D8: =SUM(E8:J8) -> 73260.49908 | E8: =GTI!E9 -> 53940.13374 | F8: =GTI!E10 -> 17218.7728 | G8: =GTI!E11 -> 1759.0299 | H8: =GTI!E12 -> 342.56264 | I8: 0 | J8: 0 | K8: Input GTI Contributions
A9: 539 | B9: Coincident Peak - All | C9: D01 | D9: 1346732.8 | E9: =E$42 -> 859463.8482 | F9: 324317.1917 | G9: 24134.49167 | H9: 6297.436328 | I9: 132519.8321 | J9: 0 | K9: Input from Peak Study
A10: 540 | B10: Coincident Peak - Small Mains | C10: D02 | D10: 1230013.391 | E10: =E$9 -> 859463.8482 | F10: =F$9 -> 324317.1917 | G10: =G$9 -> 24134.49167 | H10: 0 | I10: ='Mains - Direct Assign'!M56 -> 22097.85986 | J10: =J$9 -> 0 | K10: Input from Peak Study, D.A. for Int/Transp from Peak Study & Mains Study
A11: 541 | B11: Purchased Gas - Demand | C11: D05 | D11: =SUM(E11:J11) -> 18579799 | E11: 12966290 | F11: 5002960 | G11: 513467 | H11: 81554 | I11: 15528 | J11: 0 | K11: Input from Proforma Gas Supply
A12: 542 | B12: DA 131 | C12: D06 | D12: 100 | E12: 0 | F12: 0 | G12: 0 | H12: 100 | I12: 0 | J12: 0 | K12: Direct Assignment Schedule 131
A13: 543 | B13: DA 146 | C13: D07 | D13: 100 | E13: 0 | F13: 0 | G13: 0 | H13: 0 | I13: 100 | J13: 0 | K13: Direct Assignment Schedule 146
A14: 544 | B14: All Customers | C14: C01 | D14: 1798880 | E14: =E$43*E46 -> 1768267 | F14: 29797 | G14: 336 | H14: 24 | I14: 456 | J14: 0 | K14: Unweighted Customers | R14: Corporate Cost Allocator (4-Factor)
A15: 545 | B15: Service Cost | C15: C02 | D15: 1802163.956 | E15: =E$43*E47 -> 1768267 | F15: =F$43*F47 -> 29797 | G15: 906.9970685 | H15: 64.78550489 | I15: =I$43*I47 -> 3128.173207 | J15: 0 | K15: Wtd Avg Service Cost
A16: 546 | B16: Meter Cost | C16: C03 | D16: 2057132.328 | E16: 1768267 | F16: 242387.1852 | G16: 6763.335964 | H16: 3717.760126 | I16: 35997.04671 | J16: 0 | K16: Weighted Average Meter Cost
A17: 547 | B17: Regulator Cost | C17: C04 | D17: 1798880 | E17: =E43*E49 -> 1768267 | F17: =F43*F49 -> 29797 | G17: 336 | H17: 24 | I17: =I43*I49 -> 456 | J17: 0 | K17: - not used - | S17: Total | T17: Sch 101 | U17: Sch 111 | V17: Sch 121 | W17: Sch 131 | X17: Sch 146
A18: 548 | B18: Ind Meas & Reg Cost | C18: C06 | D18: 38318.11716 | E18: =E$43*E51 -> 0 | F18: =F$43*F51 -> 29797 | G18: 1233.431215 | H18: 683.0732056 | I18: 6604.61274 | J18: 0 | K18: Direct Assigned to Handbilled Customers | R18: Net UG/Dist Plant | S18: =Detail!H42+Detail!H88 -> 229921000 | T18: =Detail!I42+Detail!I88 -> 175962198.2 | U18: =Detail!J42+Detail!J88 -> 38298060.3 | V18: =Detail!K42+Detail!K88 -> 3341855.385 | W18: =Detail!L42+Detail!L88 -> 804799.2169 | X18: =Detail!M42+Detail!M88 -> 11514086.94
A19: 549 | B19: DA 101 | C19: C10 | D19: =SUM(E19:J19) -> 100 | E19: 100 | F19: 0 | G19: 0 | H19: 0 | I19: 0 | J19: 0 | K19: Direct Assigned to Residential | R19: O&M (less PG/Uncoll/Labor) | S19: =Detail!H250-Detail!CL250 -> 9896768 | T19: =Detail!I250-Detail!CM250 -> 8294448.607 | U19: =Detail!J250-Detail!CN250 -> 1183824.683 | V19: =Detail!K250-Detail!CO250 -> 103583.4729 | W19: =Detail!L250-Detail!CP250 -> 25040.70444 | X19: =Detail!M250-Detail!CQ250 -> 289870.5326
A20: 550 | B20: Revenues From Retail Rates | C20: R01 | D20: 148485442 | E20: 107941778 | F20: 33798293 | G20: 3762208 | H20: 730102 | I20: 2253061 | J20: 0 | K20: Input Revenue From Rates | R20: O&M Labor | S20: =Detail!CL250 -> 8268232 | T20: =Detail!CM250 -> 7161757.589 | U20: =Detail!CN250 -> 815044.9535 | V20: =Detail!CO250 -> 64371.18463 | W20: =Detail!CP250 -> 15912.63325 | X20: =Detail!CQ250 -> 211145.6392
A21: 551 | R21: Customers | S21: =D14 -> 1798880 | T21: =E14 -> 1768267 | U21: 29797 | V21: 336 | W21: 24 | X21: 456
A22: 552 | B22: Throughput | C22: E01 | D22: =SUM(E22:J22) -> 1 | E22: =E4/$D4 -> 0.5863418752 | F22: =F4/$D4 -> 0.231502321 | G22: 0.02899000421 | H22: 0.006250556946 | I22: 0.1469152426 | J22: 0
A23: 553 | B23: Sales | C23: E04 | D23: =SUM(E23:J23) -> 1 | E23: 0.6873196011 | F23: 0.2713708328 | G23: 0.0339825603 | H23: 0.007327005777 | I23: 0 | J23: 0
A24: 554 | B24: Therms - Small Mains | C24: E06 | D24: 1 | E24: 0.6923927669 | F24: 0.2733738445 | G24: 0.03423338854 | H24: 0 | I24: 0 | J24: 0 | R24: Net UG/Dist Plant | S24: =SUM(T24:X24) -> 1 | T24: =T18/$S$18 -> 0.7653159049 | U24: =U18/$S$18 -> 0.166570519 | V24: 0.01453479841 | W24: 0.003500329317 | X24: 0.05007844842
A25: 555 | B25: Purchased Gas - Commodity | C25: E07 | D25: 1 | E25: 0.6873196087 | F25: 0.271370837 | G25: 0.03398255355 | H25: 0.00732700073 | I25: 0 | J25: 0 | R25: O&M (less PG/Uncoll/Labor) | S25: =SUM(T25:X25) -> 1 | T25: =T19/$S$19 -> 0.8380967005 | U25: =U19/$S$19 -> 0.1196173017 | V25: 0.01046639397 | W25: 0.002530190102 | X25: 0.02928941373
A26: 556 | B26: GTI Expense | C26: E08 | D26: 1 | E26: 0.736278546 | F26: 0.2350348826 | G26: 0.02401061857 | H26: 0.004675952857 | I26: 0 | J26: 0 | R26: O&M Labor | S26: 1 | T26: =T20/$S$20 -> 0.866177629 | U26: =U20/$S$20 -> 0.09857548185 | V26: 0.007785362654 | W26: 0.001924550889 | X26: 0.02553697564
A27: 557 | B27: Coincident Peak - All | C27: D01 | D27: 1 | E27: 0.6381843883 | F27: 0.2408177715 | G27: 0.01792077216 | H27: 0.004676084468 | I27: 0.09840098354 | J27: 0 | R27: Customers | S27: 1 | T27: =T21/$S$21 -> 0.9829821889 | U27: =U21/$S$21 -> 0.0165641955 | V27: 0.0001867828871 | W27: 1.334163479e-05 | X27: 0.0002534910611
A28: 558 | B28: Coincident Peak - Small Mains | C28: D02 | D28: 1 | E28: 0.6987434886 | F28: 0.2636696429 | G28: 0.01962132432 | H28: 0 | I28: 0.01796554412 | J28: 0
A29: 559 | B29: Purchased Gas - Demand | C29: D05 | D29: 1 | E29: 0.6978703053 | F29: 0.2692687903 | G29: 0.02763576721 | H29: 0.004389390865 | I29: 0.0008357463932 | J29: 0 | R29: Average | S29: =SUM(T29:X29) -> 1 | T29: =AVERAGE(T24:T27) -> 0.8631431058 | U29: =AVERAGE(U24:U27) -> 0.1003318745 | V29: 0.00824333448 | W29: 0.001992102986 | X29: 0.02628958221
A30: 560 | B30: DA 131 | C30: D06 | D30: 1 | E30: 0 | F30: 0 | G30: 0 | H30: 1 | I30: 0 | J30: 0
A31: 561 | B31: DA 146 | C31: D07 | D31: 1 | E31: 0 | F31: 0 | G31: 0 | H31: 0 | I31: 1 | J31: 0 | R31: Corporate Cost Allocator | S31: =SUM(T31:X31) -> 1000 | T31: =T29*1000 -> 863.1431058 | U31: =U29*1000 -> 100.3318745 | V31: 8.24333448 | W31: 1.992102986 | X31: 26.28958221
A32: 562 | B32: All Customers | C32: C01 | D32: 1 | E32: =E14/$D14 -> 0.9829821889 | F32: 0.0165641955 | G32: 0.0001867828871 | H32: 1.334163479e-05 | I32: 0.0002534910611 | J32: 0
A33: 563 | B33: Service Cost | C33: C02 | D33: 1 | E33: =E15/$D15 -> 0.9811909701 | F33: 0.01653401174 | G33: 0.0005032822156 | H33: 3.594872968e-05 | I33: 0.001735787244 | J33: 0
A34: 564 | B34: Meter Cost | C34: C03 | D34: 1 | E34: 0.8595786357 | F34: 0.117827707 | G34: 0.003287749588 | H34: 0.001807253756 | I34: 0.01749865394 | J34: 0
A35: 565 | B35: Regulator Cost | C35: C04 | D35: 1 | E35: 0.9829821889 | F35: 0.0165641955 | G35: 0.0001867828871 | H35: 1.334163479e-05 | I35: 0.0002534910611 | J35: 0
A36: 566 | B36: Ind Meas & Reg Cost | C36: C06 | D36: 1 | E36: =E18/$D18 -> 0 | F36: 0.7776217155 | G36: 0.03218924378 | H36: 0.01782637708 | I36: 0.1723626637 | J36: 0
A37: 567 | B37: DA 101 | C37: C10 | D37: 1 | E37: =E19/$D19 -> 1 | F37: 0 | G37: 0 | H37: 0 | I37: 0 | J37: 0
A38: 568 | B38: Revenues From Retail Rates | C38: R01 | D38: 1 | E38: =E20/$D20 -> 0.7269519257 | F38: 0.2276202471 | G38: 0.02533721791 | H38: 0.004916993815 | I38: 0.01517361547 | J38: 0
A39: 569
A40: 570
A41: 571 | C41: Throughput Therms | E41: 114766242 | F41: 45312560 | G41: 5674290 | H41: 1223438 | I41: 28756108 | J41: 0 | K41: Input from Proforma Revenue Study
A42: 572 | C42: Peak Therms | E42: ='Demand - Pk-Avg'!Q8 -> 859463.8482 | F42: ='Demand - Pk-Avg'!Q9 -> 324317.1917 | G42: ='Demand - Pk-Avg'!Q10 -> 24134.49167 | H42: ='Demand - Pk-Avg'!Q13 -> 6297.436328 | I42: ='Demand - Pk-Avg'!Q16 -> 132519.8321 | J42: 0 | K42: Input from Peak Study
A43: 573 | C43: No. of Cust. Bills--Annual | E43: 1768267 | F43: 29797 | G43: 336 | H43: 24 | I43: 456 | K43: Input from Proforma Revenue Study
A44: 574
A45: 575 | C45: Customer Weightings
A46: 576 | C46: All Customers | E46: 1 | F46: 1 | G46: 1 | H46: 1 | I46: 1
A47: 577 | C47: Service Cost | E47: ='Typical Service Cost'!D20 -> 1 | F47: ='Typical Service Cost'!F20 -> 1 | G47: ='Typical Service Cost'!H20 -> 2.699396037 | H47: ='Typical Service Cost'!J20 -> 2.699396037 | I47: ='Typical Service Cost'!L20 -> 6.860028962 | K47: Input from Typical Service Cost Study
A48: 578 | C48: Meter Cost | E48: ='Average Meter Type'!G15 -> 1 | F48: ='Average Meter Type'!G23 -> 8.134617082 | G48: ='Average Meter Type'!G31 -> 20.12897608 | H48: ='Average Meter Type'!G39 -> 154.9066719 | I48: ='Average Meter Type'!G47 -> 78.9408919 | K48: Input from Meter Cost Study
A49: 579 | C49: Regulator Cost | E49: 1 | F49: 1 | G49: 1 | H49: 1 | I49: 1
A50: 580 | C50: Installations Cost | E50: 1 | F50: 1 | G50: 1 | H50: 1 | I50: 1
A51: 581 | C51: Ind Meas & Reg Cost | E51: ='Industrial Meter Installations'!G15 -> 0 | F51: ='Industrial Meter Installations'!G23 -> 1 | G51: ='Industrial Meter Installations'!G31 -> 3.670926234 | H51: ='Industrial Meter Installations'!G39 -> 28.46138357 | I51: ='Industrial Meter Installations'!G47 -> 14.48379987 | K51: Input from Meter Cost Study
A52: 582
A53: 583
A54: 584
A55: 585
A56: 586
A57: 587 | D57: E01 | E57: E04 | F57: E06 | G57: E07 | H57: E08 | I57: D01 | J57: D02 | K57: D05 | L57: D06 | M57: D07 | N57: C01 | O57: C02 | P57: C03 | Q57: C04 | R57: C06 | S57: C10 | T57: R01
A58: 588 | C58: Sch 101 | D58: =INDEX($E$22:$J$38,COLUMN(D57)-COLUMN($C57),ROW(C58)-ROW(C$57)) -> 0.5863418752 | E58: =INDEX($E$22:$J$38,COLUMN(E57)-COLUMN($C57),ROW(D58)-ROW(D$57)) -> 0.6873196011 | F58: =INDEX($E$22:$J$38,COLUMN(F57)-COLUMN($C57),ROW(E58)-ROW(E$57)) -> 0.6923927669 | G58: 0.6873196087 | H58: 0.736278546 | I58: 0.6381843883 | J58: 0.6987434886 | K58: 0.6978703053 | L58: 0 | M58: 0 | N58: =INDEX($E$22:$J$38,COLUMN(N57)-COLUMN($C57),ROW(M58)-ROW(M$57)) -> 0.9829821889 | O58: =INDEX($E$22:$J$38,COLUMN(O57)-COLUMN($C57),ROW(N58)-ROW(N$57)) -> 0.9811909701 | P58: 0.8595786357 | Q58: 0.9829821889 | R58: 0 | S58: 1 | T58: 0.7269519257
A59: 589 | C59: Sch 111 | D59: 0.231502321 | E59: 0.2713708328 | F59: 0.2733738445 | G59: 0.271370837 | H59: 0.2350348826 | I59: 0.2408177715 | J59: 0.2636696429 | K59: 0.2692687903 | L59: 0 | M59: 0 | N59: 0.0165641955 | O59: 0.01653401174 | P59: 0.117827707 | Q59: 0.0165641955 | R59: 0.7776217155 | S59: 0 | T59: 0.2276202471
A60: 590 | C60: Sch 121 | D60: 0.02899000421 | E60: 0.0339825603 | F60: 0.03423338854 | G60: 0.03398255355 | H60: 0.02401061857 | I60: 0.01792077216 | J60: 0.01962132432 | K60: 0.02763576721 | L60: 0 | M60: 0 | N60: 0.0001867828871 | O60: 0.0005032822156 | P60: 0.003287749588 | Q60: 0.0001867828871 | R60: 0.03218924378 | S60: 0 | T60: 0.02533721791
A61: 591 | C61: Sch 131 | D61: 0.006250556946 | E61: 0.007327005777 | F61: 0 | G61: 0.00732700073 | H61: 0.004675952857 | I61: 0.004676084468 | J61: 0 | K61: 0.004389390865 | L61: 1 | M61: 0 | N61: 1.334163479e-05 | O61: 3.594872968e-05 | P61: 0.001807253756 | Q61: 1.334163479e-05 | R61: 0.01782637708 | S61: 0 | T61: 0.004916993815
A62: 592 | C62: Sch 146 | D62: 0.1469152426 | E62: 0 | F62: 0 | G62: 0 | H62: 0 | I62: 0.09840098354 | J62: 0.01796554412 | K62: 0.0008357463932 | L62: 0 | M62: 1 | N62: 0.0002534910611 | O62: 0.001735787244 | P62: 0.01749865394 | Q62: 0.0002534910611 | R62: 0.1723626637 | S62: 0 | T62: 0.01517361547
A63: 593 | C63: Open | D63: 0 | E63: 0 | F63: 0 | G63: 0 | H63: 0 | I63: 0 | J63: 0 | K63: 0 | L63: 0 | M63: 0 | N63: 0 | O63: 0 | P63: 0 | Q63: 0 | R63: 0 | S63: 0 | T63: 0
A64: 594
A65: 595 | D65: range name: AllocFactors_E | I65: range name: AllocFactors_D | N65: range name: AllocFactors_C
A66: 596 | D66: all 3 ranges + R01, range name: AllocFactors
A67: 597 | B67: Allocated Dollars - Rate Base
A68: =Pg2Row+ROW(A68) -> 598 | B68: Throughput | C68: E01 | D68: =Detail!$E$128*INDEX(Detail!$R$128:$AH$128,$A68-$A$67) -> 26956652.88 | E68: =$D68*INDEX(AllocFactors,E$2,$A68-$A$67) -> 15805814.4 | F68: =$D68*INDEX(AllocFactors,F$2,$A68-$A$67) -> 6240527.71 | G68: 781473.4806 | H68: 168494.0939 | I68: 3960343.199 | J68: 0 | M68: =E68/D68 -> 0.5863418752
A69: 599 | B69: Sales | C69: E04 | D69: =Detail!$E$128*INDEX(Detail!$R$128:$AH$128,$A69-$A$67) -> 39211548.48 | E69: =$D69*INDEX(AllocFactors,E$2,$A69-$A$67) -> 26950865.86 | F69: 10640870.56 | G69: 1332508.811 | H69: 287303.2422 | I69: 0 | J69: 0 | M69: =E69/D69 -> 0.6873196011
A70: 600 | B70: Therms - Small Mains | C70: E06 | D70: =Detail!$E$128*INDEX(Detail!$R$128:$AH$128,$A70-$A$67) -> 3048903.203 | E70: 2111038.525 | F70: 833490.3901 | G70: 104374.288 | H70: 0 | I70: 0 | J70: 0 | M70: 0.6923927669
A71: 601 | B71: Purchased Gas - Commodity | C71: E07 | D71: =Detail!$E$128*INDEX(Detail!$R$128:$AH$128,$A71-$A$67) -> 0 | E71: 0 | F71: 0 | G71: 0 | H71: 0 | I71: 0 | J71: 0
A72: 602 | B72: GTI Expense | C72: E08 | D72: =Detail!$E$128*INDEX(Detail!$R$128:$AH$128,$A72-$A$67) -> 0 | E72: 0 | F72: 0 | G72: 0 | H72: 0 | I72: 0 | J72: 0
A73: 603 | B73: Coincident Peak - All | C73: D01 | D73: =Detail!$E$128*INDEX(Detail!$R$128:$AH$128,$A73-$A$67) -> 63971580.47 | E73: 40825663.95 | F73: 15405493.45 | G73: 1146420.118 | H73: 299136.5138 | I73: 6294866.437 | J73: 0 | M73: 0.6381843883
A74: 604 | B74: Coincident Peak - Small Mains | C74: D02 | D74: =Detail!$E$128*INDEX(Detail!$R$128:$AH$128,$A74-$A$67) -> 0 | E74: 0 | F74: 0 | G74: 0 | H74: 0 | I74: 0 | J74: 0
A75: 605 | B75: Purchased Gas - Demand | C75: D05 | D75: =Detail!$E$128*INDEX(Detail!$R$128:$AH$128,$A75-$A$67) -> 0 | E75: 0 | F75: 0 | G75: 0 | H75: 0 | I75: 0 | J75: 0
A76: 606 | B76: DA 131 | C76: D06 | D76: =Detail!$E$128*INDEX(Detail!$R$128:$AH$128,$A76-$A$67) -> 0 | E76: 0 | F76: 0 | G76: 0 | H76: 0 | I76: 0 | J76: 0
A77: 607 | B77: DA 146 | C77: D07 | D77: =Detail!$E$128*INDEX(Detail!$R$128:$AH$128,$A77-$A$67) -> 0 | E77: 0 | F77: 0 | G77: 0 | H77: 0 | I77: 0 | J77: 0
A78: 608 | B78: All Customers | C78: C01 | D78: =Detail!$E$128*INDEX(Detail!$R$128:$AH$128,$A78-$A$67) -> 20058220.63 | E78: =$D78*INDEX(AllocFactors,E$2,$A78-$A$67) -> 19716873.62 | F78: 332248.2879 | G78: 3746.532361 | H78: 267.6094543 | I78: 5084.579632 | J78: 0
A79: 609 | B79: Service Cost | C79: C02 | D79: =Detail!$E$128*INDEX(Detail!$R$128:$AH$128,$A79-$A$67) -> 59114430.6 | E79: 58002545.51 | F79: 977398.6895 | G79: 29751.2416 | H79: 2125.088686 | I79: 102610.0746 | J79: 0 | M79: 0.9811909701
A80: 610 | B80: Meter Cost | C80: C03 | D80: =Detail!$E$128*INDEX(Detail!$R$128:$AH$128,$A80-$A$67) -> 35809713.99 | E80: 30781265.1 | F80: 4219376.487 | G80: 117733.3724 | H80: 64717.2401 | I80: 626621.7926 | J80: 0 | M80: 0.8595786357
A81: 611 | B81: Regulator Cost | C81: C04 | D81: =Detail!$E$128*INDEX(Detail!$R$128:$AH$128,$A81-$A$67) -> 0 | E81: 0 | F81: 0 | G81: 0 | H81: 0 | I81: 0 | J81: 0
A82: 612 | B82: Ind Meas & Reg Cost | C82: C06 | D82: =Detail!$E$128*INDEX(Detail!$R$128:$AH$128,$A82-$A$67) -> 1649949.746 | E82: 0 | F82: 1283036.752 | G82: 53110.63462 | H82: 29412.62635 | I82: 284389.7332 | J82: 0 | M82: 0
A83: 613 | B83: DA 101 | C83: C10 | D83: =Detail!$E$128*INDEX(Detail!$R$128:$AH$128,$A83-$A$67) -> -461000 | E83: -461000 | F83: 0 | G83: 0 | H83: 0 | I83: 0 | J83: 0 | M83: 1
A84: 614 | B84: Revenues From Retail Rates | C84: R01 | D84: =Detail!$E$128*INDEX(Detail!$R$128:$AH$128,$A84-$A$67) -> 0 | E84: 0 | F84: 0 | G84: 0 | H84: 0 | I84: 0 | J84: 0
A85: 615
A86: 616 | B86: Total | D86: =IF(ROUND(SUM(D68:D85),3)<>ROUND(SUM(E86:J86),3),#VALUE!,SUM(E86:J86)) -> 249360000 | E86: =SUM(E68:E85) -> 193733067 | F86: 39932442.33 | G86: 3569118.479 | H86: 851456.4145 | I86: 11273915.82 | J86: 0
A87: 617
A88: 618 | B88: Allocated Dollars - Pre-tax Operating Expenses
A89: 619 | B89: Throughput | C89: E01 | D89: =Detail!$E$403*INDEX(Detail!$R$403:$AH$403,$A89-$A$88) -> 3567701.764 | E89: =$D89*INDEX(AllocFactors,E$2,$A89-$A$88) -> 2091892.943 | F89: 825931.2392 | G89: 103427.6892 | H89: 22300.12304 | I89: 524149.7703 | J89: 0 | M89: =E89/D89 -> 0.5863418752
A90: 620 | B90: Sales | C90: E04 | D90: =Detail!$E$403*INDEX(Detail!$R$403:$AH$403,$A90-$A$88) -> 4896799.799 | E90: 3365666.484 | F90: 1328848.639 | G90: 166405.7944 | H90: 35878.88041 | I90: 0 | J90: 0 | M90: =E90/D90 -> 0.6873196011
A91: 621 | B91: Therms - Small Mains | C91: E06 | D91: =Detail!$E$403*INDEX(Detail!$R$403:$AH$403,$A91-$A$88) -> 402863.0215 | E91: 278939.4422 | F91: 110132.213 | G91: 13791.36634 | H91: 0 | I91: 0 | J91: 0 | M91: 0.6923927669
A92: 622 | B92: Purchased Gas - Commodity | C92: E07 | D92: =Detail!$E$403*INDEX(Detail!$R$403:$AH$403,$A92-$A$88) -> 60580382.7 | E92: 41638084.93 | F92: 16439749.16 | G92: 2058676.099 | H92: 443872.5082 | I92: 0 | J92: 0 | M92: 0.6873196087
A93: 623 | B93: GTI Expense | C93: E08 | D93: =Detail!$E$403*INDEX(Detail!$R$403:$AH$403,$A93-$A$88) -> 73000 | E93: 53748.33386 | F93: 17157.54643 | G93: 1752.775156 | H93: 341.3445586 | I93: 0 | J93: 0 | M93: 0.736278546
A94: 624 | B94: Coincident Peak - All | C94: D01 | D94: =Detail!$E$403*INDEX(Detail!$R$403:$AH$403,$A94-$A$88) -> 8654555.643 | E94: 5523202.299 | F94: 2084170.803 | G94: 155096.3198 | H94: 40469.43322 | I94: 851616.7874 | J94: 0 | M94: 0.6381843883
A95: 625 | B95: Coincident Peak - Small Mains | C95: D02 | D95: =Detail!$E$403*INDEX(Detail!$R$403:$AH$403,$A95-$A$88) -> 0 | E95: 0 | F95: 0 | G95: 0 | H95: 0 | I95: 0 | J95: 0
A96: 626 | B96: Purchased Gas - Demand | C96: D05 | D96: =Detail!$E$403*INDEX(Detail!$R$403:$AH$403,$A96-$A$88) -> 18578617.3 | E96: 12965465.33 | F96: 5002641.805 | G96: 513434.3428 | H96: 81548.81306 | I96: 15527.0124 | J96: 0 | M96: 0.6978703053
A97: 627 | B97: DA 131 | C97: D06 | D97: =Detail!$E$403*INDEX(Detail!$R$403:$AH$403,$A97-$A$88) -> 0 | E97: 0 | F97: 0 | G97: 0 | H97: 0 | I97: 0 | J97: 0
A98: 628 | B98: DA 146 | C98: D07 | D98: =Detail!$E$403*INDEX(Detail!$R$403:$AH$403,$A98-$A$88) -> 0 | E98: 0 | F98: 0 | G98: 0 | H98: 0 | I98: 0 | J98: 0
A99: 629 | B99: All Customers | C99: C01 | D99: =Detail!$E$403*INDEX(Detail!$R$403:$AH$403,$A99-$A$88) -> 14758980.01 | E99: =$D99*INDEX(AllocFactors,E$2,$A99-$A$88) -> 14507814.48 | F99: =$D99*INDEX(AllocFactors,F$2,$A99-$A$88) -> 244470.6303 | G99: 2756.724898 | H99: 196.9089213 | I99: 3741.269504 | J99: 0 | M99: 0.9829821889
A100: 630 | B100: Service Cost | C100: C02 | D100: =Detail!$E$403*INDEX(Detail!$R$403:$AH$403,$A100-$A$88) -> 9704352.864 | E100: 9521823.401 | F100: 160451.8842 | G100: 4884.02821 | H100: 348.8591579 | I100: 16844.69192 | J100: 0 | M100: 0.9811909701
A101: 631 | B101: Meter Cost | C101: C03 | D101: =Detail!$E$403*INDEX(Detail!$R$403:$AH$403,$A101-$A$88) -> 5450710.056 | E101: 4685313.914 | F101: 642244.6674 | G101: 17920.56974 | H101: 9850.816221 | I101: 95380.08897 | J101: 0 | M101: 0.8595786357
A102: 632 | B102: Regulator Cost | C102: C04 | D102: =Detail!$E$403*INDEX(Detail!$R$403:$AH$403,$A102-$A$88) -> 0 | E102: 0 | F102: 0 | G102: 0 | H102: 0 | I102: 0 | J102: 0
A103: 633 | B103: Ind Meas & Reg Cost | C103: C06 | D103: =Detail!$E$403*INDEX(Detail!$R$403:$AH$403,$A103-$A$88) -> 363036.8412 | E103: 0 | F103: 282305.3312 | G103: 11685.88138 | H103: 6471.631625 | I103: 62573.99695 | J103: 0 | M103: 0
A104: 634 | B104: DA 101 | C104: C10 | D104: =Detail!$E$403*INDEX(Detail!$R$403:$AH$403,$A104-$A$88) -> 0 | E104: 0 | F104: 0 | G104: 0 | H104: 0 | I104: 0 | J104: 0
A105: 635 | B105: Revenues From Retail Rates | C105: R01 | D105: =Detail!$E$403*INDEX(Detail!$R$403:$AH$403,$A105-$A$88) -> 7420000 | E105: 5393983.289 | F105: 1688942.234 | G105: 188002.1569 | H105: 36484.09411 | I105: 112588.2268 | J105: 0 | M105: 0.7269519257
A106: 636
A107: 637 | B107: Total | D107: =IF(ROUND(SUM(D89:D106),3)<>ROUND(SUM(E107:J107),3),#VALUE!,SUM(E107:J107)) -> 134451000 | E107: =SUM(E89:E106) -> 100025934.8 | F107: 28827046.15 | G107: 3237833.748 | H107: 677763.4126 | I107: 1682421.844 | J107: 0
A108: 638
A109: 639
A110: 640
A111: 641
A112: 642
A113: 643
A114: 644

Sheet Avg Cust Unit Costs
B1: AVISTA
B2: MONTHLY CUSTOMER CHARGE
B3: FOR THE TWELVE MONTHS ENDED JUNE 30, 2013
B5: Line No. | C5: Description | D5: Total | E5: Sch. 101 (Residential) | F5: Sch. 111-112 (Large General) | G5: Sch. 121-122 (Extra Large General) | H5: Sch. 131 (Interruptible) | I5: Sch. 146 (Transportation)
C6: A | D6: B | E6: C | F6: D | G6: E | H6: F | I6: G
A7: 380 | B7: 1 | C7: Services | D7: =SUM(E7:I7) -> 103003000 | E7: =SUMIF(Detail!$B$26:$B$39,'Avg Cust Unit Costs'!$A$7,Detail!BJ26:BJ39) -> 101065613.5 | F7: =SUMIF(Detail!$B$26:$B$39,'Avg Cust Unit Costs'!$A$7,Detail!BK26:BK39) -> 1703052.811 | G7: =SUMIF(Detail!$B$26:$B$39,'Avg Cust Unit Costs'!$A$7,Detail!BL26:BL39) -> 51839.57805 | H7: =SUMIF(Detail!$B$26:$B$39,'Avg Cust Unit Costs'!$A$7,Detail!BM26:BM39) -> 3702.827004 | I7: =SUMIF(Detail!$B$26:$B$39,'Avg Cust Unit Costs'!$A$7,Detail!BN26:BN39) -> 178791.2935 | K7: =D7-Detail!E33 -> 0
A8: 380 | B8: =B7+1 -> 2 | C8: Services Accum. Depn. | D8: =SUM(E8:I8) -> -44476000 | E8: =SUMIF(Detail!$B$73:$B$85,'Avg Cust Unit Costs'!$A$8,Detail!BJ73:BJ85) -> -43639449.58 | F8: =SUMIF(Detail!$B$73:$B$85,'Avg Cust Unit Costs'!$A$8,Detail!BK73:BK85) -> -735366.7061 | G8: =SUMIF(Detail!$B$73:$B$85,'Avg Cust Unit Costs'!$A$8,Detail!BL73:BL85) -> -22383.97982 | H8: =SUMIF(Detail!$B$73:$B$85,'Avg Cust Unit Costs'!$A$8,Detail!BM73:BM85) -> -1598.855701 | I8: =SUMIF(Detail!$B$73:$B$85,'Avg Cust Unit Costs'!$A$8,Detail!BN73:BN85) -> -77200.87348 | K8: =D8-Detail!E79 -> 0
B9: =B8+1 -> 3 | C9: Total Services | D9: =SUM(D7:D8) -> 58527000 | E9: 57426163.91 | F9: 967686.105 | G9: 29455.59823 | H9: 2103.971302 | I9: 101590.42
B10: 4
A11: 381 | B11: 5 | C11: Meters | D11: =SUM(E11:I11) -> 43768000 | E11: =SUMIF(Detail!$B$26:$B$39,'Avg Cust Unit Costs'!$A$11,Detail!BJ26:BJ39) -> 37622037.73 | F11: =SUMIF(Detail!$B$26:$B$39,'Avg Cust Unit Costs'!$A$11,Detail!BK26:BK39) -> 5157083.08 | G11: =SUMIF(Detail!$B$26:$B$39,'Avg Cust Unit Costs'!$A$11,Detail!BL26:BL39) -> 143898.224 | H11: =SUMIF(Detail!$B$26:$B$39,'Avg Cust Unit Costs'!$A$11,Detail!BM26:BM39) -> 79099.88239 | I11: =SUMIF(Detail!$B$26:$B$39,'Avg Cust Unit Costs'!$A$11,Detail!BN26:BN39) -> 765881.0854 | K11: =D11-Detail!E34 -> 0
A12: 381 | B12: 6 | C12: Meters Accum. Depn. | D12: =SUM(E12:I12) -> -9444000 | E12: =SUMIF(Detail!$B$73:$B$85,'Avg Cust Unit Costs'!$A$12,Detail!BJ73:BJ85) -> -8117860.636 | F12: =SUMIF(Detail!$B$73:$B$85,'Avg Cust Unit Costs'!$A$12,Detail!BK73:BK85) -> -1112764.865 | G12: =SUMIF(Detail!$B$73:$B$85,'Avg Cust Unit Costs'!$A$12,Detail!BL73:BL85) -> -31049.50711 | H12: =SUMIF(Detail!$B$73:$B$85,'Avg Cust Unit Costs'!$A$12,Detail!BM73:BM85) -> -17067.70447 | I12: =SUMIF(Detail!$B$73:$B$85,'Avg Cust Unit Costs'!$A$12,Detail!BN73:BN85) -> -165257.2878 | K12: =D12-Detail!E80 -> 0
B13: 7 | C13: Total Meters | D13: =SUM(D11:D12) -> 34324000 | E13: 29504177.09 | F13: 4044318.215 | G13: 112848.7169 | H13: 62032.17792 | I13: 600623.7977
B14: 8
B15: 9 | C15: Total Rate Base (Ln 3+7) | D15: =D9+D13 -> 92851000 | E15: 86930341 | F15: 5012004.32 | G15: 142304.3151 | H15: 64136.14922 | I15: 702214.2177
B16: 10
B17: 11 | C17: ="Net of Tax Return on Rate Base @ "&TEXT(J17,"0.00%") -> Net of Tax Return on Rate Base @ 6.77% | D17: =D15*$J$17 -> 6286012.7 | E17: =E15*$J$17 -> 5885184.086 | F17: =F15*$J$17 -> 339312.6925 | G17: 9634.002131 | H17: =H15*$J$17 -> 4342.017302 | I17: 47539.90254 | J17: ='[1]RR SUMMARY'!$N$17 -> 0.0677
B18: 12 | C18: Net Operating Income Conversion Factor | D18: =1-SUM(Summary!L74:L78) -> 0.620881 | E18: =$D$18 -> 0.620881 | F18: =$D$18 -> 0.620881 | G18: 0.620881 | H18: 0.620881 | I18: 0.620881
B19: 13 | C19: Rate Base Revenue Requirement (Ln 11/12) | D19: =D17/D18 -> 10124343.8 | E19: 9478763.379 | F19: 546501.9746 | G19: 15516.66444 | H19: 6993.316436 | I19: 76568.46085
B20: 14
A21: 380 | B21: 15 | C21: Services Depn Exp. | D21: =SUM(E21:I21) -> 2782000 | E21: =SUMIF(Detail!$B$170:$B$404,'Avg Cust Unit Costs'!$A$21,Detail!BJ170:BJ404) -> 2729673.279 | F21: =SUMIF(Detail!$B$170:$B$404,'Avg Cust Unit Costs'!$A$21,Detail!BK170:BK404) -> 45997.62066 | G21: =SUMIF(Detail!$B$170:$B$404,'Avg Cust Unit Costs'!$A$21,Detail!BL170:BL404) -> 1400.131124 | H21: =SUMIF(Detail!$B$170:$B$404,'Avg Cust Unit Costs'!$A$21,Detail!BM170:BM404) -> 100.009366 | I21: =SUMIF(Detail!$B$170:$B$404,'Avg Cust Unit Costs'!$A$21,Detail!BN170:BN404) -> 4828.960114 | K21: =D21-Detail!E369 -> 0
A22: 381 | B22: 16 | C22: Meters Depn Exp. | D22: 1441000 | E22: =SUMIF(Detail!$B$170:$B$404,'Avg Cust Unit Costs'!$A$22,Detail!BJ170:BJ404) -> 1238652.814 | F22: =SUMIF(Detail!$B$170:$B$404,'Avg Cust Unit Costs'!$A$22,Detail!BK170:BK404) -> 169789.7258 | G22: =SUMIF(Detail!$B$170:$B$404,'Avg Cust Unit Costs'!$A$22,Detail!BL170:BL404) -> 4737.647156 | H22: =SUMIF(Detail!$B$170:$B$404,'Avg Cust Unit Costs'!$A$22,Detail!BM170:BM404) -> 2604.252662 | I22: =SUMIF(Detail!$B$170:$B$404,'Avg Cust Unit Costs'!$A$22,Detail!BN170:BN404) -> 25215.56032 | K22: =D22-Detail!E370 -> 0
A23: 892-MT | B23: 17 | C23: Services Op Exp. (Installation) | D23: 1069000 | E23: =SUMIF(Detail!$B$170:$B$404,'Avg Cust Unit Costs'!$A$23,Detail!BJ170:BJ404) -> 1048893.147 | F23: =SUMIF(Detail!$B$170:$B$404,'Avg Cust Unit Costs'!$A$23,Detail!BK170:BK404) -> 17674.85855 | G23: =SUMIF(Detail!$B$170:$B$404,'Avg Cust Unit Costs'!$A$23,Detail!BL170:BL404) -> 538.0086884 | H23: =SUMIF(Detail!$B$170:$B$404,'Avg Cust Unit Costs'!$A$23,Detail!BM170:BM404) -> 38.42919203 | I23: =SUMIF(Detail!$B$170:$B$404,'Avg Cust Unit Costs'!$A$23,Detail!BN170:BN404) -> 1855.556564 | K23: =D23-Detail!E220 -> 0
A24: 893-MT | B24: 18 | C24: Meters Op Exp. | D24: 1053000 | E24: =SUMIF(Detail!$B$170:$B$404,'Avg Cust Unit Costs'!$A$24,Detail!BJ170:BJ404) -> 905136.3034 | F24: =SUMIF(Detail!$B$170:$B$404,'Avg Cust Unit Costs'!$A$24,Detail!BK170:BK404) -> 124072.5755 | G24: =SUMIF(Detail!$B$170:$B$404,'Avg Cust Unit Costs'!$A$24,Detail!BL170:BL404) -> 3462.000316 | H24: =SUMIF(Detail!$B$170:$B$404,'Avg Cust Unit Costs'!$A$24,Detail!BM170:BM404) -> 1903.038205 | I24: =SUMIF(Detail!$B$170:$B$404,'Avg Cust Unit Costs'!$A$24,Detail!BN170:BN404) -> 18426.08259 | K24: =D24-Detail!E221 -> 0
A25: 902-OP | B25: 19 | C25: Meter Reading Exp. | D25: 1578000 | E25: =SUMIF(Detail!$B$170:$B$404,'Avg Cust Unit Costs'!$A$25,Detail!BJ170:BJ404) -> 1551145.894 | F25: =SUMIF(Detail!$B$170:$B$404,'Avg Cust Unit Costs'!$A$25,Detail!BK170:BK404) -> 26138.3005 | G25: =SUMIF(Detail!$B$170:$B$404,'Avg Cust Unit Costs'!$A$25,Detail!BL170:BL404) -> 294.7433959 | H25: =SUMIF(Detail!$B$170:$B$404,'Avg Cust Unit Costs'!$A$25,Detail!BM170:BM404) -> 21.05309971 | I25: =SUMIF(Detail!$B$170:$B$404,'Avg Cust Unit Costs'!$A$25,Detail!BN170:BN404) -> 400.0088944 | K25: =D25-Detail!E228 -> 0
A26: 903-OP | B26: 20 | C26: Billing Exp. | D26: 3380000 | E26: =SUMIF(Detail!$B$170:$B$404,'Avg Cust Unit Costs'!$A$26,Detail!BJ170:BJ404) -> 3322479.799 | F26: =SUMIF(Detail!$B$170:$B$404,'Avg Cust Unit Costs'!$A$26,Detail!BK170:BK404) -> 55986.98079 | G26: =SUMIF(Detail!$B$170:$B$404,'Avg Cust Unit Costs'!$A$26,Detail!BL170:BL404) -> 631.3261585 | H26: =SUMIF(Detail!$B$170:$B$404,'Avg Cust Unit Costs'!$A$26,Detail!BM170:BM404) -> 45.09472561 | I26: =SUMIF(Detail!$B$170:$B$404,'Avg Cust Unit Costs'!$A$26,Detail!BN170:BN404) -> 856.7997865 | K26: =D26-Detail!E229 -> 0
B27: 21 | C27: Net Expenses (Sum Ln 15-20) | D27: =SUM(D21:D26) -> 11303000 | E27: 10795981.24 | F27: 439660.0617 | G27: 11063.85684 | H27: 4711.877251 | I27: 51582.96827
B28: 22 | C28: Revenue Sensitive Conversion Factor | D28: =1-Summary!L74-Summary!L75-Summary!L76 -> 0.955202 | E28: =$D$28 -> 0.955202 | F28: =$D$28 -> 0.955202 | G28: 0.955202 | H28: 0.955202 | I28: 0.955202
B29: 23 | C29: Expense Revenue Requirement (Ln 21/22) | D29: =D27/D28 -> 11833099.18 | E29: =E27/E28 -> 11302301.75 | F29: 460279.6704 | G29: 11582.74045 | H29: 4932.85949 | I29: 54002.1569
B30: 24
B31: 25 | C31: Total Revenue Requirement (Ln 13+23) | D31: =D19+D29 -> 21957442.97 | E31: 20781065.13 | F31: 1006781.645 | G31: 27099.40488 | H31: 11926.17593 | I31: 130570.6177
B32: 26
B33: 27 | C33: Total Customers Bills (Annual) | D33: =SUM(E33:I33) -> 1798880 | E33: =Factors!E43 -> 1768267 | F33: =Factors!F43 -> 29797 | G33: =Factors!G43 -> 336 | H33: =Factors!H43 -> 24 | I33: =Factors!I43 -> 456 | K33: =SUM(Factors!E43:I43)-'Avg Cust Unit Costs'!D33 -> 0
B34: 28
B35: 29 | C35: Monthly Customer Charge (Ln 25/27) | D35: =D31/D33 -> 12.20617438 | E35: =E31/E33 -> 11.75222132 | F35: 33.78802044 | G35: 80.65299072 | H35: 496.9239969 | I35: 286.339074
B36: 30
B37: 31
B38: 32 | C38: Total Customer Related Costs | D38: =SUM(E38:I38) -> 42059563.7 | E38: =Summary!D244 -> 39701864.3 | F38: =Summary!E244 -> 1997035.277 | G38: =Summary!F244 -> 57133.73233 | H38: =Summary!G244 -> 26223.96769 | I38: =Summary!H244 -> 277306.4209
B39: 33 | C39: Customer Related Unit Cost per Month | D39: =D38/D33 -> 23.38097244 | E39: 22.45241488 | F39: 67.02135373 | G39: 170.04087 | H39: 1092.665321 | I39: 608.1281161
B40: 34
B41: 35 | C41: Other Non-Gas Cost and Return | D41: =[2]Summary!C166-D38 -> 32261016.69 | E41: =Summary!D167-E38 -> 19428361.24 | F41: =Summary!E167-F38 -> 7502320.169 | G41: =Summary!F167-G38 -> 758925.9981 | H41: =Summary!G167-H38 -> 170446.849 | I41: =Summary!H167-I38 -> 2347946.659
B42: 36 | C42: Other Non-Gas Unit Cost and Return per Month | D42: =D41/D33 -> 17.93394595 | E42: 10.98723283 | F42: 251.7810575 | G42: 2258.708328 | H42: 7101.952042 | I42: 5149.005831
B43: 37
B44: 38 | C44: Total Fixed Unit Cost per Month | D44: =D39+D42 -> 41.31491839 | E44: =E39+E42 -> 33.43964771 | F44: 318.8024112 | G44: 2428.749198 | H44: 8194.617363 | I44: 5757.133948

Sheet Mains Allocator
B1: Avista Corp
B2: 2014 Gas General Rate Case
B3: Peak-Average Allocation Factor for Mains
I5: GEN SERVICE | J5: LRG GEN SVC | K5: EX LRG GEN SVC | L5: INTERRUPTIBLE | M5: TRANSPORT | N5: S.C.
B6: Line | C6: Item | D6: Amount | G6: Percent | H6: Allocator | I6: SCHEDULE 101 | J6: SCH. 111&112 | K6: SCH. 121&122 | L6: SCH. 131&132 | M6: SCHEDULE 146 | N6: SCHEDULE 148 | O6: Check
C7: A | D7: B | E7: C | F7: D | G7: E | H7: F | I7: G | J7: H | K7: I | L7: J | M7: K
B8: 1 | C8: Peak | E8: Percentage | F8: Allocator | G8: =1-G11 -> 0.6018112853
B9: =B8+1 -> 2 | C9: Peak Related Costs | D9: =D$20*G8 -> 92654865.48 | E9: =D9/D20 -> 0.6018112853 | F9: D01 | H9: Peak | I9: =$D9*I$27 -> 59130888.65 | J9: =$D9*J$27 -> 22312938.22 | K9: =$D9*K$27 -> 1660446.734 | L9: =$D9*L$27 -> 433261.9773 | M9: =$D9*M$27 -> 9117329.892 | O9: =SUM(I9:M9)-D9 -> 0
B10: =B9+1 -> 3
B11: 4 | C11: Average | G11: ='Demand - Pk-Avg'!R25 -> 0.3981887147
B12: 5 | C12: Average Related Costs | D12: =D$20*G11 -> 61305134.52
B13: 6
B14: 7 | C14: Large Mains (=> 4") | D14: =D12-D15-D16-D17 -> 16659127.23 | E14: =D14/D20 -> 0.1082042559 | F14: E01 | H14: Volume | I14: =$D14*I$30 -> 9767943.9 | J14: =$D14*J$30 -> 3856626.621 | K14: 482948.1686 | L14: =$D14*L$30 -> 104128.8234 | M14: 2447479.719 | O14: =SUM(I14:M14)-D14 -> 0
B15: 8 | C15: Medium Mains (2-3") | D15: =($D$20*$G$11*('Mains - Weighted Cost'!D41))*G15 -> 13331614.88 | E15: =(D15/D20) -> 0.08659141909 | F15: E01 | G15: =1-G16 -> 0.333 | H15: Volume | I15: =$D15*I$30 -> 7816884.07 | J15: 3086299.789 | K15: 386483.5716 | L15: 83330.01801 | M15: 1958617.435 | O15: =SUM(I15:M15)-D15 -> 0
B16: 9 | C16: Medium Mains (2-3") | D16: =($D$20*$G$11*('Mains - Weighted Cost'!D41))*G16 -> 26703264.65 | E16: =(D16/D20) -> 0.1734428725 | F16: E04 | G16: 0.667 | H16: Volume Less 146 | I16: =$D16*I$33 -> 18353677.21 | J16: =$D16*J$33 -> 7246487.165 | K16: 907445.3011 | L16: 195654.9743 | M16: 0 | N16: 0
B17: 10 | C17: Small Mains (< 2") | D17: =D20*G11*('Mains - Weighted Cost'!D40) -> 4611127.762 | E17: =D17/D20 -> 0.02995016733 | F17: E06 | H17: Volume Less 132, 146 | I17: =$D17*I$36 -> 3192711.51 | J17: =$D17*J$36 -> 1260561.724 | K17: 157854.5283 | L17: 0 | M17: 0 | N17: 0 | O17: =SUM(I17:M17)-D17 -> 0
B18: 11 | C18: Total Average Related Costs | D18: =SUM(D14:D17) -> 61305134.52 | E18: =SUM(E9:E17) -> 1 | I18: =SUM(I14:I17) -> 39131216.69 | J18: 15449975.3 | K18: 1934731.57 | L18: 383113.8158 | M18: 4406097.154 | N18: 0 | O18: =SUM(I18:M18)-D18 -> 0
B19: 12
B20: 13 | C20: Total (MAINS) | D20: =Detail!E28 -> 153960000 | I20: =SUM(I18,I9) -> 98262105.34 | J20: =SUM(J18,J9) -> 37762913.52 | K20: =SUM(K18,K9) -> 3595178.304 | L20: =SUM(L18,L9) -> 816375.7931 | M20: =SUM(M18,M9) -> 13523427.05 | O20: =SUM(I20:M20)-D20 -> 0
B21: 14 | C21: Percent | D21: =SUM(I22:M22) -> 1 | O21: =SUM(I22:M22)-D21 -> 0
B22: 15 | H22: Staff's Method | I22: =I20/$D20 -> 0.6382313934 | J22: =J20/$D20 -> 0.2452774326 | K22: =K20/$D20 -> 0.02335137895 | L22: =L20/$D20 -> 0.005302518791 | M22: =M20/$D20 -> 0.08783727622
B23: 16 | H23: Current Method | I23: =Detail!I41 -> 0.7789937356 | J23: =Detail!J41 -> 0.1547228489 | K23: =Detail!K41 -> 0.0129180039 | L23: =Detail!L41 -> 0.003143134792 | M23: =Detail!M41 -> 0.05022227685 | O23: =SUM(I24:M24) -> 2.081668171e-16
B24: 17 | H24: Difference | I24: =I22-I23 -> -0.1407623421 | J24: =J22-J23 -> 0.09055458369 | K24: 0.01043337505 | L24: 0.002159384 | M24: 0.03761499937
B25: 18 | C25: Allocators
B26: 19 | C26: Peak | D26: =SUM(I26:M26) -> 1346732.8 | F26: D01 | I26: =Factors!E9 -> 859463.8482 | J26: =Factors!F9 -> 324317.1917 | K26: =Factors!G9 -> 24134.49167 | L26: =Factors!H9 -> 6297.436328 | M26: =Factors!I9 -> 132519.8321 | O26: =SUM(I26:M26)-D26 -> 0
B27: 20 | C27: Percent | D27: =SUM(I27:M27) -> 1 | I27: =I26/$D26 -> 0.6381843883 | J27: =J26/$D26 -> 0.2408177715 | K27: =K26/$D26 -> 0.01792077216 | L27: =L26/$D26 -> 0.004676084468 | M27: =M26/$D26 -> 0.09840098354 | O27: =SUM(I27:M27)-D27 -> 0
B28: 21
B29: 22 | C29: Total Annual Volume | D29: =SUM(I29:M29) -> 195732638 | F29: E01 | I29: =Factors!E4 -> 114766242 | J29: =Factors!F4 -> 45312560 | K29: =Factors!G4 -> 5674290 | L29: =Factors!H4 -> 1223438 | M29: =Factors!I4 -> 28756108 | O29: =SUM(I29:M29)-D29 -> 0
B30: 23 | C30: Percent | D30: =SUM(I30:M30) -> 1 | I30: =I29/$D29 -> 0.5863418752 | J30: =J29/$D$29 -> 0.231502321 | K30: =K29/$D$29 -> 0.02899000421 | L30: =L29/$D$29 -> 0.006250556946 | M30: =M29/$D$29 -> 0.1469152426 | O30: =SUM(I30:M30)-D30 -> 0
B31: 24
B32: 25 | C32: Volume Less 146 | D32: =SUM(I32:M32) -> 166976530 | F32: E04 | I32: =I29 -> 114766242 | J32: =J29 -> 45312560 | K32: =K29 -> 5674290 | L32: =L29 -> 1223438 | M32: 0 | O32: =SUM(I32:M32)-D32 -> 0
B33: 26 | C33: Percent | D33: =SUM(I33:M33) -> 1 | I33: =I32/$D32 -> 0.6873196011 | J33: =J32/$D32 -> 0.2713708328 | K33: =K32/$D32 -> 0.0339825603 | L33: =L32/$D32 -> 0.007327005777 | M33: =M32/$D32 -> 0 | O33: =SUM(I33:M33)-D33 -> 0
B34: 27
B35: 28 | C35: Volume Less 131, 146 | D35: =SUM(I35:M35) -> 165753092 | F35: E06 | I35: =I29 -> 114766242 | J35: =J29 -> 45312560 | K35: =K29 -> 5674290 | L35: 0 | M35: 0 | O35: =SUM(I35:M35)-D35 -> 0
B36: 29 | C36: Percent | D36: =SUM(I36:M36) -> 1 | I36: =I35/$D35 -> 0.6923927669 | J36: =J35/$D35 -> 0.2733738445 | K36: =K35/$D35 -> 0.03423338854 | L36: =L35/$D35 -> 0 | M36: =M35/$D35 -> 0 | O36: =SUM(I36:M36)-D36 -> 0
C39: Check | D39: =D20-SUM(D9,D12) -> 0

Sheet PROFORMA (hidden)
A1: 1 | B1: Proforma | J1: Natural Gas Utility | AN1: =$J$1 -> Natural Gas Utility | AQ1: =#REF! -> 
A2: 2 | B2: Pro Forma Results of Operations
A3: 3 | B3: Company Base Case
A4: 4
A5: 5 | G5: 1 | H5: =G5+0.01 -> 1.01 | I5: =H5+0.01 -> 1.02 | J5: =I5+0.01 -> 1.03 | K5: 2.01 | L5: 2.02 | M5: 2.03 | N5: 2.04 | O5: 2.05 | P5: 2.06 | Q5: 2.07 | R5: 2.08 | S5: 2.09 | T5: 2.1 | U5: 2.11 | V5: 2.12 | W5: 2.13 | X5: 2.14 | Y5: =X5+0.01 -> 2.15 | Z5: =3 -> 3 | AA5: 3.01 | AB5: 3.02 | AC5: 3.03 | AD5: 3.04 | AE5: 3.05 | AF5: =4 -> 4 | AG5: =AF5+0.01 -> 4.01 | AH5: =AG5+0.01 -> 4.02 | AI5: 4.03 | AJ5: 4.04 | AK5: 4.05 | AN5: =ColHdr -> (an) | AO5: (ao) | AP5: (ap) | AQ5: (aq) | AR5: (ar) | AS5: (as) | AT5: (at) | AU5: (au) | AV5: (av) | AW5: (aw)
A6: 6 | E6: Notes | F6: Salaries & | G6: Per Results | H6: Deferred FIT | I6: Deferred Debits | J6: Working | K6: Eliminate | L6: Restate | M6: Uncollectible | N6: Regulatory | O6: Injuries & | P6: FIT/DFIT | Q6: Office Space | R6: Restate | S6: Net Gains/ | T6: Revenue Normalization | U6: Restate | V6: Misc. Restating | W6: Restating | X6: Restate | Y6: Restate June 2013 | Z6: Pro Forma | AA6: Pro Forma | AB6: Pro Forma | AC6: Pro Forma | AD6: Pro Forma | AE6: Pro Forma | AF6: Planned Capital Add | AG6: Planned Capital Add | AH6: Planned Capital Add | AI6: Other | AJ6: O&M | AK6: 2014 Revenue | AN6: Open | AO6: Open | AP6: Open | AQ6: Open | AR6: Open | AS6: Open | AT6: Net Total | AU6: Total | AV6: check | AW6: Total
A7: 7 | B7: Account | C7: Description | F7: Wages | G7: Report | H7: Rate Base | I7: and Credits | J7: Capital | K7: B & O Taxes | L7: Property Taxes | M7: Expense | N7: Expense | O7: Damages | P7: Expense | Q7: Charges to Subs | R7: Excise Tax | S7: Losses | T7: & Gas Cost | U7: Atmospheric Testing | V7: Adjustments | W7: Incentive | X7: Debt Interest | Y7: Capital EOP | Z7: Non-Exec Labor | AA7: Exec Labor | AB7: Empl. Benefits | AC7: Insurance | AD7: Property Tax | AE7: Information Tech/Serv Exp | AF7: Dec 2013 EOP | AG7: 2014 EOP | AH7: 2015 EOP | AI7: Attrition | AJ7: Offsets | AK7: Normalization | AT7: of All | AW7: $000's | AX7: Case
A8: 8 | G8: Adj G-ROO | H8: G-DFIT | I8: G-DDC | J8: G-WC | K8: G-EBO | L8: G-RPT | M8: G-UE | N8: G-RE | O8: G-ID | P8: G-FIT | Q8: G-OSC | R8: G-RET | S8: G-NGL | T8: G-RNGC | U8: G-RAT | V8: G-MR | W8: G-RI | X8: G_DI | Y8: G-CAP | Z8: G-PLN | AA8: G-PLE | AB8: G-PEB | AC8: G-PI | AD8: G-PPT | AE8: G-ISIT | AF8: G-CAP13 | AG8: G-CAP14 | AH8: G-CAP15 | AI8: G-OTHER | AJ8: G-OFF | AK8: G-RNG-C | AT8: Adjustments | AW8: in bold | AX8: Pro Forma
A9: 9 | B9: Operation & Maintenance Expenses | AX9: Total | AY9: Diff
A10: 10 | C10: Purchased Gas Expenses
A11: 11 | B11: 804/805-000 | C11: Gas Purchases | G11: 131793000 | T11: =-G11 -> -131793000 | AT11: =SUM(H11:AS11) -> -131793000 | AU11: =G11+AT11 -> 0 | AW11: =ROUND(AU11/1000,0)*1000 -> 0
A12: 12 | B12: 804-001 | C12: Pipeline Demand Costs | T12: 0 | AT12: 0 | AU12: 0 | AW12: 0
A13: 13 | B13: 804-002 | C13: Transport Variable Charges | T13: 0 | AT13: 0 | AU13: 0 | AW13: 0
A14: 14 | B14: 804-017 | C14: Transaction Fees | T14: 0 | AT14: 0 | AU14: 0 | AW14: 0
A15: 15 | B15: 804-730 | C15: Gas Costs - Intracompany LDC Gas | T15: 0 | AT15: 0 | AU15: 0 | AW15: 0
A16: 16 | B16: 804-170 | C16: Gas Transaction Fees | T16: 0 | AT16: 0 | AU16: 0 | AW16: 0
A17: 17 | B17: 804-600 | C17: Gas Purchases - Financial | T17: 0 | AT17: 0 | AU17: 0 | AW17: 0
A18: 18 | B18: 804-700 | C18: Off System Gas Purchases - Bookout | T18: 0 | AT18: 0 | AU18: 0 | AW18: 0
A19: 19 | B19: 804-711 | C19: Off System Bookout Offset | T19: 0 | AT19: 0 | AU19: 0 | AW19: 0
A20: 20 | B20: 804-010 | C20: Gas Costs - Fixed Hedge | T20: 0 | AT20: 0 | AU20: 0 | AW20: 0
A21: 21 | B21: 805-110 | C21: Gas Exp - Rate Amortizations | T21: 0 | AT21: 0 | AU21: 0 | AW21: 0
A22: 22 | B22: 805-120 | C22: Gas Expense - Rate Deferrals | T22: 0 | AT22: 0 | AU22: 0 | AW22: 0
A23: 23 | B23: 805-980 | C23: Gas Expense - Estimated Amortizations | T23: 0 | AT23: 0 | AU23: 0 | AW23: 0
A24: 24 | B24: 805-990 | C24: Gas Expense - Estimated Deferrals | T24: 0 | AT24: 0 | AU24: 0 | AW24: 0
A25: 25 | B25: Open | C25: Open | T25: 0 | AT25: 0 | AU25: 0 | AW25: 0
A26: 26 | B26: 808-xxx | C26: Net Natural Gas Storage Transactions | G26: 4865000 | T26: -4865000 | AT26: -4865000 | AU26: 0 | AW26: 0
A27: 27 | B27: 804.xx | C27: Proforma Purchased Gas Expense | T27: =80026000-868000+1000 -> 79159000 | AT27: 79159000 | AU27: 79159000 | AW27: 79159000
A28: 28 | C28: Total Purchased Gas Cost | G28: =SUM(G11:G27) -> 136658000 | H28: 0 | I28: 0 | J28: 0 | K28: =SUM(K11:K27) -> 0 | L28: =SUM(L11:L27) -> 0 | M28: 0 | N28: 0 | O28: 0 | P28: 0 | Q28: =SUM(Q11:Q27) -> 0 | R28: 0 | S28: 0 | T28: =SUM(T11:T27) -> -57499000 | U28: =SUM(U11:U27) -> 0 | V28: 0 | W28: 0 | X28: 0 | Y28: =SUM(Y11:Y27) -> 0 | Z28: 0 | AA28: 0 | AB28: 0 | AC28: 0 | AD28: 0 | AE28: 0 | AF28: 0 | AG28: 0 | AH28: 0 | AI28: =SUM(AI11:AI27) -> 0 | AJ28: =SUM(AJ11:AJ27) -> 0 | AK28: 0 | AN28: =SUM(AN11:AN27) -> 0 | AO28: 0 | AP28: 0 | AQ28: 0 | AR28: 0 | AS28: 0 | AT28: -57499000 | AU28: 79159000 | AV28: =IF(ROUND(SUM(G28:AS28),0)=ROUND(AU28,0),"ok","crossfoot error") -> ok | AW28: =SUM(AW11:AW27)/1000 -> 79159
A29: 29 | B29: 811-00 | C29: Gas Used for Products Extraction | F29: 0 | G29: -633000 | T29: =-G29 -> 633000 | AT29: =SUM(H29:AS29) -> 633000 | AU29: =G29+AT29 -> 0 | AW29: =ROUND(AU29/1000,0)*1000 -> 0
A30: 30 | B30: 813-010 | C30: GTI Expenses | F30: 0 | G30: 71000 | T30: 2000 | AT30: =SUM(H30:AS30) -> 2000 | AU30: =G30+AT30 -> 73000 | AW30: =ROUND(AU30/1000,0)*1000 -> 73000
A31: 31 | B31: 813-xxx | C31: Other Gas Expenses | F31: 417188 | G31: =795000-1000 -> 794000 | Z31: 16000 | AA31: 1000 | AB31: -9000 | AT31: =SUM(H31:AS31) -> 8000 | AU31: =G31+AT31 -> 802000 | AW31: =ROUND(AU31/1000,0)*1000 -> 802000
A32: 32 | C32: Total Purchased Gas Expenses | F32: =SUM(F28:F31) -> 417188 | G32: 136890000 | H32: 0 | I32: 0 | J32: 0 | K32: =SUM(K28:K31) -> 0 | L32: 0 | M32: 0 | N32: 0 | O32: 0 | P32: 0 | Q32: =SUM(Q28:Q31) -> 0 | R32: 0 | S32: 0 | T32: =SUM(T28:T31) -> -56864000 | U32: =SUM(U28:U31) -> 0 | V32: 0 | W32: 0 | X32: 0 | Y32: =SUM(Y28:Y31) -> 0 | Z32: 16000 | AA32: 1000 | AB32: -9000 | AC32: 0 | AD32: 0 | AE32: 0 | AF32: 0 | AG32: 0 | AH32: 0 | AI32: =SUM(AI28:AI31) -> 0 | AJ32: =SUM(AJ28:AJ31) -> 0 | AK32: 0 | AN32: =SUM(AN28:AN31) -> 0 | AO32: 0 | AP32: 0 | AQ32: 0 | AR32: 0 | AS32: 0 | AT32: -56856000 | AU32: 80034000 | AV32: =IF(ROUND(SUM(G32:AS32),0)=ROUND(AU32,0),"ok","crossfoot error") -> ok | AW32: =AW28+SUM(AW29:AW31)/1000 -> 80034 | AX32: ='[1]ADJ DETAIL INPUT'!$AP$25 -> 0 | AY32: =AW32-AX32 -> 80034
A33: 33
A34: 34 | C34: Underground Storage Expenses
A35: 35 | B35: 814-OP | C35: Supervision & Engineering | F35: 9928 | G35: 18000 | AT35: =SUM(H35:AS35) -> 0 | AU35: =G35+AT35 -> 18000 | AW35: =ROUND(AU35/1000,0)*1000 -> 18000
A36: 36 | B36: 815-OP | C36: Maps & Records | G36: 0 | AT36: 0 | AU36: 0
A37: 37 | B37: 816-OP | C37: Wells Expenses | G37: 0 | AT37: 0 | AU37: 0
A38: 38 | B38: 817-OP | C38: Lines Expenses | G38: 0 | AT38: 0 | AU38: 0
A39: 39 | B39: 818-OP | C39: Compressor Station Expenses | G39: 0 | AT39: 0 | AU39: 0
A40: 40 | B40: 819-OP | C40: Compressor Station Fuel & Power | G40: 0 | AT40: 0 | AU40: 0
A41: 41 | B41: 820-OP | C41: Measuring & Regulator Station | G41: 0 | AT41: 0 | AU41: 0
A42: 42 | B42: 821-OP | C42: Purification Expenses | G42: 0 | AT42: 0 | AU42: 0
A43: 43 | B43: 824-OP | C43: Other Expenses | G43: =453000-1000 -> 452000 | AT43: 0 | AU43: 452000 | AW43: =ROUND(AU43/1000,0)*1000 -> 452000
A44: 44 | B44: 825-OP | C44: Storage Well Royalties & Rents | G44: 0 | AT44: 0 | AU44: 0
A45: 45 | B45: 826-OP | C45: Rents | G45: 0 | AT45: 0 | AU45: 0
A46: 46
A47: 47 | B47: 830-MT | C47: Supervision & Engineering | G47: 0 | AT47: =SUM(H47:AS47) -> 0 | AU47: =G47+AT47 -> 0
A48: 48 | B48: 831-MT | C48: Maps & Records | G48: 0 | AT48: 0 | AU48: 0
A49: 49 | B49: 832-MT | C49: Wells Expenses | G49: 0 | AT49: 0 | AU49: 0
A50: 50 | B50: 833-MT | C50: Lines Expenses | G50: 0 | AT50: 0 | AU50: 0
A51: 51 | B51: 834-MT | C51: Compressor Station Expenses | G51: 0 | AT51: 0 | AU51: 0
A52: 52 | B52: 835-MT | C52: Compressor Station Fuel & Power | G52: 0 | AT52: 0 | AU52: 0
A53: 53 | B53: 836-MT | C53: Measuring and Regulator Station Expenses | G53: 0 | AT53: 0 | AU53: 0
A54: 54 | B54: 837-MT | C54: Other Equipment | G54: 351000 | AT54: 0 | AU54: 351000 | AW54: =ROUND(AU54/1000,0)*1000 -> 351000
A55: 55 | C55: Total Underground Storage Expenses | F55: =SUM(F35:F51)+SUM(F52:F54) -> 9928 | G55: =SUM(G35:G54) -> 821000 | H55: 0 | I55: 0 | J55: 0 | K55: =SUM(K35:K54) -> 0 | L55: 0 | M55: 0 | N55: 0 | O55: 0 | P55: 0 | Q55: =SUM(Q35:Q54) -> 0 | R55: 0 | S55: 0 | T55: =SUM(T35:T54) -> 0 | U55: =SUM(U35:U54) -> 0 | V55: 0 | W55: 0 | X55: 0 | Y55: =SUM(Y35:Y54) -> 0 | Z55: 0 | AA55: 0 | AB55: 0 | AC55: 0 | AD55: 0 | AE55: 0 | AF55: 0 | AG55: 0 | AH55: 0 | AI55: =SUM(AI35:AI54) -> 0 | AJ55: =SUM(AJ35:AJ54) -> 0 | AK55: 0 | AN55: =SUM(AN35:AN54) -> 0 | AO55: 0 | AP55: 0 | AQ55: 0 | AR55: 0 | AS55: 0 | AT55: 0 | AU55: 821000 | AV55: =IF(ROUND(SUM(G55:AS55),0)=ROUND(AU55,0),"ok","crossfoot error") -> ok | AW55: =SUM(AW35:AW54)/1000 -> 821 | AX55: ='[1]ADJ DETAIL INPUT'!$AP$28 -> 0 | AY55: =AW55-AX55 -> 821
A56: 56
A57: 57
A58: 59
A59: 60
A60: 61 | B60: =$B$1 -> Proforma | J60: =$J$1 -> Natural Gas Utility | AB60: Natural Gas Utility | AN60: =$J$1 -> Natural Gas Utility | AQ60: =#REF! -> 
A61: 62 | B61: =$B$2 -> Pro Forma Results of Operations | E61: Operation and Maintenance Expenses | P61: =$E61 -> Operation and Maintenance Expenses | AB61: =$E61 -> Operation and Maintenance Expenses
A62: 63 | B62: =$B$3 -> Company Base Case
A63: 64
A64: 65 | G64: =G5 -> 1 | H64: 1.01 | I64: 1.02 | J64: 1.03 | K64: =K5 -> 2.01 | L64: 2.02 | M64: 2.03 | N64: 2.04 | O64: 2.05 | P64: 2.06 | Q64: =Q5 -> 2.07 | R64: 2.08 | S64: 2.09 | T64: =T5 -> 2.1 | U64: =U5 -> 2.11 | V64: 2.12 | W64: 2.13 | X64: 2.14 | Y64: =Y5 -> 2.15 | Z64: 3 | AA64: 3.01 | AB64: 3.02 | AC64: 3.03 | AD64: 3.04 | AE64: 3.05 | AF64: 4 | AG64: 4.01 | AH64: 4.02 | AI64: =AI5 -> 4.03 | AJ64: 4.04 | AK64: 4.05 | AN64: =AN$5 -> (an) | AO64: (ao) | AP64: (ap) | AQ64: (aq) | AR64: (ar) | AS64: (as) | AT64: (at) | AU64: (au) | AV64: (av) | AW64: (aw)
A65: 66 | B65: =IF(ISBLANK(B$6),"",B$6) ->  | C65: =IF(ISBLANK(C$6),"",C$6) ->  | D65: =IF(ISBLANK(D$6),"",D$6) ->  | E65: =IF(ISBLANK(E$6),"",E$6) -> Notes | F65: =IF(ISBLANK(F$6),"",F$6) -> Salaries & | G65: Balance | H65: =H6 -> Deferred FIT | I65: Deferred Debits | J65: Working | K65: =K6 -> Eliminate | L65: Restate | M65: Uncollectible | N65: Regulatory | O65: Injuries & | P65: FIT/DFIT | Q65: =Q6 -> Office Space | R65: Restate | S65: Net Gains/ | T65: =T6 -> Revenue Normalization | U65: =U6 -> Restate | V65: Misc. Restating | W65: Restating | X65: Restate | Y65: =Y6 -> Restate June 2013 | Z65: Pro Forma | AA65: Pro Forma | AB65: Pro Forma | AC65: Pro Forma | AD65: Pro Forma | AE65: Pro Forma | AF65: Planned Capital Add | AG65: Planned Capital Add | AH65: Planned Capital Add | AI65: =AI6 -> Other | AJ65: O&M | AK65: 2014 Revenue | AN65: =IF(ISBLANK(AN$6),"",AN$6) -> Open | AO65: Open | AP65: Open | AQ65: Open | AR65: Open | AS65: Open | AT65: Net Total | AU65: Total | AV65: check | AW65: Total
A66: 67 | B66: =IF(ISBLANK(B$7),"",B$7) -> Account | C66: =IF(ISBLANK(C$7),"",C$7) -> Description | E66: =IF(ISBLANK(E$7),"",E$7) ->  | F66: =IF(ISBLANK(F$7),"",F$7) -> Wages | G66: per Books | H66: =H7 -> Rate Base | I66: and Credits | J66: Capital | K66: =K7 -> B & O Taxes | L66: Property Taxes | M66: Expense | N66: Expense | O66: Damages | P66: Expense | Q66: =Q7 -> Charges to Subs | R66: Excise Tax | S66: Losses | T66: =T7 -> & Gas Cost | U66: =U7 -> Atmospheric Testing | V66: Adjustments | W66: Incentive | X66: Debt Interest | Y66: =Y7 -> Capital EOP | Z66: Non-Exec Labor | AA66: Exec Labor | AB66: Empl. Benefits | AC66: Insurance | AD66: Property Tax | AE66: Information Tech/Serv Exp | AF66: Dec 2013 EOP | AG66: 2014 EOP | AH66: 2015 EOP | AI66: =AI7 -> Attrition | AJ66: Offsets | AK66: Normalization | AN66: =IF(ISBLANK(AN$7),"",AN$7) ->  | AT66: of All | AW66: $000's
A67: 68 | B67: =IF(ISBLANK(B$8),"",B$8) ->  | C67: =IF(ISBLANK(C$8),"",C$8) ->  | D67: =IF(ISBLANK(D$8),"",D$8) ->  | E67: =IF(ISBLANK(E$8),"",E$8) ->  | F67: =IF(ISBLANK(F$8),"",F$8) ->  | H67: =H8 -> G-DFIT | I67: G-DDC | J67: G-WC | K67: =K8 -> G-EBO | L67: G-RPT | M67: G-UE | N67: G-RE | O67: G-ID | P67: G-FIT | Q67: =Q8 -> G-OSC | R67: G-RET | S67: G-NGL | T67: =T8 -> G-RNGC | U67: =U8 -> G-RAT | V67: G-MR | W67: G-RI | X67: G_DI | Y67: =Y8 -> G-CAP | Z67: G-PLN | AA67: G-PLE | AB67: G-PEB | AC67: G-PI | AD67: G-PPT | AE67: G-ISIT | AF67: G-CAP13 | AG67: G-CAP14 | AH67: G-CAP15 | AI67: =AI8 -> G-OTHER | AJ67: G-OFF | AK67: G-RNG-C | AN67: =IF(ISBLANK(AN$8),"",AN$8) ->  | AT67: Adjustments | AW67: in bold
A68: 69 | C68: Distribution Expenses
A69: 70 | C69: Operation Expense
A70: 71 | B70: 870-OP | C70: Supervision & Engineering | F70: 531588 | G70: 979000 | Z70: 22000 | AA70: -23000 | AB70: -12000 | AT70: =SUM(H70:AS70) -> -13000 | AU70: =G70+AT70 -> 966000 | AW70: =ROUND(AU70/1000,0)*1000 -> 966000
A71: 72 | B71: 871-OP | C71: Distribution Load Dispatching | F71: 0 | G71: 0 | AT71: 0 | AU71: 0 | AW71: 0
A72: 73 | B72: 872-OP | C72: Compressor Station Labor & Expenses | F72: 0 | G72: 0 | AT72: 0 | AU72: 0 | AW72: 0
A73: 74 | B73: 874-OP | C73: Mains & Services Expense | F73: 1018235 | G73: 2572000 | Z73: 45000 | AB73: -22000 | AT73: 23000 | AU73: 2595000 | AW73: 2595000
A74: 75 | B74: 875-OP | C74: Measuring & Regulating Stations-General | F74: 39204 | G74: 74000 | Z74: 2000 | AB74: -1000 | AT74: 1000 | AU74: 75000 | AW74: 75000
A75: 76 | B75: 876-OP | C75: Measuring & Regulating Stations-Industrial | F75: 1263 | G75: 2000 | Z75: 0 | AT75: 0 | AU75: 2000 | AW75: 2000
A76: 77 | B76: 877-OP | C76: Measuring & Regulating Stations-City Gate | F76: 36137 | G76: 78000 | Z76: 2000 | AB76: -1000 | AT76: 1000 | AU76: 79000 | AW76: 79000
A77: 78 | B77: 878-OP | C77: Meters & House Regulators Expenses | F77: 299351 | G77: 821000 | U77: -453000 | Z77: 13000 | AB77: -6000 | AT77: -446000 | AU77: 375000 | AW77: 375000
A78: 79 | B78: 879-OP | C78: Customer Installations | F78: 597871 | G78: 973000 | Z78: 26000 | AB78: -13000 | AT78: 13000 | AU78: 986000 | AW78: 986000
A79: 80 | B79: 880-OP | C79: Other Distribution Expense | F79: 648426 | G79: =1277000+2000 -> 1279000 | V79: -1000 | Z79: 29000 | AB79: -13000 | AT79: 15000 | AU79: 1294000 | AW79: 1294000
A80: 81 | B80: 881-OP | C80: Rents | F80: 0 | G80: 22000 | Z80: 0 | AT80: 0 | AU80: 22000 | AW80: 22000
A81: 82 | C81: Total Distribution Operation Expense | F81: =SUM(F70:F80) -> 3172075 | G81: 6800000 | H81: 0 | I81: 0 | J81: 0 | K81: =SUM(K70:K80) -> 0 | L81: 0 | M81: 0 | N81: 0 | O81: 0 | P81: 0 | Q81: =SUM(Q70:Q80) -> 0 | R81: 0 | S81: 0 | T81: =SUM(T70:T80) -> 0 | U81: =SUM(U70:U80) -> -453000 | V81: -1000 | W81: 0 | X81: 0 | Y81: =SUM(Y70:Y80) -> 0 | Z81: 139000 | AA81: -23000 | AB81: -68000 | AC81: 0 | AD81: 0 | AE81: 0 | AF81: 0 | AG81: 0 | AH81: 0 | AI81: =SUM(AI70:AI80) -> 0 | AJ81: =SUM(AJ70:AJ80) -> 0 | AK81: 0 | AN81: =SUM(AN70:AN80) -> 0 | AO81: 0 | AP81: 0 | AQ81: 0 | AR81: 0 | AS81: 0 | AT81: -406000 | AU81: 6394000 | AV81: =IF(ROUND(SUM(G81:AS81),0)=ROUND(AU81,0),"ok","crossfoot error") -> ok
A82: 83 | C82: Maintenance Expense
A83: 84 | B83: 885-MT | C83: Supervision & Engineering | F83: 32896 | G83: 65000 | Z83: 1000 | AB83: -1000 | AT83: =SUM(H83:AS83) -> 0 | AU83: =G83+AT83 -> 65000 | AW83: =ROUND(AU83/1000,0)*1000 -> 65000
A84: 85 | B84: 887-MT | C84: Mains | F84: 547879 | G84: 1226000 | Z84: 24000 | AB84: -11000 | AT84: 13000 | AU84: 1239000 | AW84: 1239000
A85: 86 | B85: 888-MT | C85: Compressor Station Equipment | F85: 0 | G85: 0 | Z85: 0 | AT85: 0 | AU85: 0 | AW85: 0
A86: 87 | B86: 889-MT | C86: Measuring & Regulating Stations-General | F86: 59177 | G86: 136000 | Z86: 3000 | AB86: -1000 | AT86: 2000 | AU86: 138000 | AW86: 138000
A87: 88 | B87: 890-MT | C87: Measuring & Regulating Stations-Industrial | F87: 39159 | G87: 140000 | Z87: 2000 | AB87: -1000 | AT87: 1000 | AU87: 141000 | AW87: 141000
A88: 89 | B88: 891-MT | C88: Measuring & Regulating Stations-City Gate | F88: 20826 | G88: 54000 | Z88: 1000 | AB88: 0 | AT88: 1000 | AU88: 55000 | AW88: 55000
A89: 90 | B89: 892-MT | C89: Services | F89: 487236 | G89: 1058000 | Z89: 21000 | AB89: -10000 | AT89: 11000 | AU89: 1069000 | AW89: 1069000
A90: 91 | B90: 893-MT | C90: Meters & House Regulators | F90: 486604 | G90: 1042000 | Z90: 21000 | AB90: -10000 | AT90: 11000 | AU90: 1053000 | AW90: 1053000
A91: 92 | B91: 894-MT | C91: Other Equipment | F91: 65201 | G91: 135000 | Z91: 3000 | AB91: -1000 | AT91: 2000 | AU91: 137000 | AW91: 137000
A92: 93 | C92: Total Distribution Maintenance Expense | F92: =SUM(F83:F87)+ SUM(F88:F91) -> 1738978 | G92: 3856000 | H92: 0 | I92: 0 | J92: 0 | K92: =SUM(K83:K87)+ SUM(K88:K91) -> 0 | L92: 0 | M92: 0 | N92: 0 | O92: 0 | P92: 0 | Q92: =SUM(Q83:Q87)+ SUM(Q88:Q91) -> 0 | R92: 0 | S92: 0 | T92: =SUM(T83:T87)+ SUM(T88:T91) -> 0 | U92: =SUM(U83:U87)+ SUM(U88:U91) -> 0 | V92: 0 | W92: 0 | X92: 0 | Y92: =SUM(Y83:Y87)+ SUM(Y88:Y91) -> 0 | Z92: =SUM(Z83:Z91) -> 76000 | AA92: =SUM(AA83:AA87)+ SUM(AA88:AA91) -> 0 | AB92: -35000 | AC92: 0 | AD92: 0 | AE92: 0 | AF92: 0 | AG92: 0 | AH92: 0 | AI92: =SUM(AI83:AI87)+ SUM(AI88:AI91) -> 0 | AJ92: 0 | AK92: 0 | AN92: =SUM(AN83:AN87)+ SUM(AN88:AN91) -> 0 | AO92: 0 | AP92: 0 | AQ92: 0 | AR92: 0 | AS92: 0 | AT92: 41000 | AU92: 3897000 | AV92: =IF(ROUND(SUM(G92:AS92),0)=ROUND(AU92,0),"ok","crossfoot error") -> ok
A93: 94
A94: 95 | C94: Total Distribution Expense | F94: =F92+F81 -> 4911053 | G94: =G81+G92 -> 10656000 | H94: 0 | I94: 0 | J94: 0 | K94: =K81+K92 -> 0 | L94: 0 | M94: 0 | N94: 0 | O94: 0 | P94: 0 | Q94: =Q81+Q92 -> 0 | R94: 0 | S94: 0 | T94: =T81+T92 -> 0 | U94: =U81+U92 -> -453000 | V94: -1000 | W94: 0 | X94: 0 | Y94: =Y81+Y92 -> 0 | Z94: 215000 | AA94: -23000 | AB94: -103000 | AC94: 0 | AD94: 0 | AE94: 0 | AF94: 0 | AG94: 0 | AH94: 0 | AI94: =AI81+AI92 -> 0 | AJ94: 0 | AK94: 0 | AN94: =AN81+AN92 -> 0 | AO94: 0 | AP94: 0 | AQ94: 0 | AR94: 0 | AS94: 0 | AT94: -365000 | AU94: 10291000 | AV94: =IF(ROUND(SUM(G94:AS94),0)=ROUND(AU94,0),"ok","crossfoot error") -> ok | AW94: =SUM(AW70:AW91)/1000 -> 10291 | AX94: ='[1]ADJ DETAIL INPUT'!$AP$34 -> 0 | AY94: =AW94-AX94 -> 10291
A95: 96
A96: 97 | C96: Customer Accounting Expenses
A97: 98 | B97: 901-OP | C97: Supervision | F97: 96815 | G97: 176000 | Z97: 4000 | AB97: -2000 | AT97: =SUM(H97:AS97) -> 2000 | AU97: =G97+AT97 -> 178000 | AW97: =ROUND(AU97/1000,0)*1000 -> 178000
A98: 99 | B98: 902-OP | C98: Meter Reading | F98: 880019 | G98: 1557000 | Z98: 39000 | AB98: -18000 | AT98: =SUM(H98:AS98) -> 21000 | AU98: =G98+AT98 -> 1578000 | AW98: =ROUND(AU98/1000,0)*1000 -> 1578000
A99: 100 | B99: 903-OP | C99: Customer Records & Collection | F99: 1610165 | G99: =3347000+2000 -> 3349000 | Z99: 65000 | AB99: -34000 | AT99: =SUM(H99:AS99) -> 31000 | AU99: =G99+AT99 -> 3380000 | AW99: =ROUND(AU99/1000,0)*1000 -> 3380000
A100: 101 | B100: 904-OP | C100: Uncollectible Accounts | G100: 896000 | M100: -268000 | T100: 56000 | AK100: 6000 | AT100: =SUM(H100:AS100) -> -206000 | AU100: =G100+AT100 -> 690000 | AW100: =ROUND(AU100/1000,0)*1000 -> 690000
A101: 102 | B101: 905-OP | C101: Misc Customer Accounts Expenses | F101: 40382 | G101: 81000 | I101: 1000 | Z101: 2000 | AB101: -1000 | AT101: =SUM(H101:AS101) -> 2000 | AU101: =G101+AT101 -> 83000 | AW101: =ROUND(AU101/1000,0)*1000 -> 83000
A102: 103 | C102: Total Customer Accounting Expenses | F102: =SUM(F97:F101) -> 2627381 | G102: 6059000 | H102: 0 | I102: 1000 | J102: 0 | K102: =SUM(K97:K101) -> 0 | L102: 0 | M102: -268000 | N102: 0 | O102: 0 | P102: 0 | Q102: =SUM(Q97:Q101) -> 0 | R102: 0 | S102: 0 | T102: =SUM(T97:T101) -> 56000 | U102: =SUM(U97:U101) -> 0 | V102: 0 | W102: 0 | X102: 0 | Y102: =SUM(Y97:Y101) -> 0 | Z102: 110000 | AA102: 0 | AB102: -55000 | AC102: 0 | AD102: 0 | AE102: 0 | AF102: 0 | AG102: 0 | AH102: 0 | AI102: =SUM(AI97:AI101) -> 0 | AJ102: =SUM(AJ97:AJ101) -> 0 | AK102: 6000 | AN102: =SUM(AN97:AN101) -> 0 | AO102: 0 | AP102: 0 | AQ102: 0 | AR102: 0 | AS102: 0 | AT102: -150000 | AU102: 5909000 | AV102: =IF(ROUND(SUM(G102:AS102),0)=ROUND(AU102,0),"ok","crossfoot error") -> ok | AW102: =SUM(AW97:AW101)/1000 -> 5909 | AX102: ='[1]ADJ DETAIL INPUT'!$AP$39 -> 6 | AY102: =AW102-AX102 -> 5903
A103: 104
A104: 105 | C104: Customer Information Expense
A105: 106 | B105: 907-OP | C105: Supervision | G105: 0 | AT105: =SUM(H105:AS105) -> 0 | AU105: =G105+AT105 -> 0 | AW105: =ROUND(AU105/1000,0)*1000 -> 0
A106: 107 | B106: 908-OP | C106: Customer Assistance Expenses | F106: 153256 | G106: 5535000 | T106: -5058000 | Z106: 6000 | AB106: -3000 | AT106: =SUM(H106:AS106) -> -5055000 | AU106: =G106+AT106 -> 480000 | AW106: =ROUND(AU106/1000,0)*1000 -> 480000
A107: 108 | B107: 909-OP | C107: Advertising | F107: 127436 | G107: 472000 | Z107: 5000 | AB107: -3000 | AT107: =SUM(H107:AS107) -> 2000 | AU107: =G107+AT107 -> 474000 | AW107: =ROUND(AU107/1000,0)*1000 -> 474000
A108: 109 | B108: 910-OP | C108: Misc Customer Service & Info Expense | F108: 18813 | G108: 71000 | V108: 1000 | Z108: 1000 | AB108: 0 | AT108: =SUM(H108:AS108) -> 2000 | AU108: =G108+AT108 -> 73000 | AW108: =ROUND(AU108/1000,0)*1000 -> 73000
A109: 110 | C109: Total Customer Information Expense | F109: =SUM(F105:F108) -> 299505 | G109: 6078000 | H109: 0 | I109: 0 | J109: 0 | K109: =SUM(K105:K108) -> 0 | L109: 0 | M109: 0 | N109: 0 | O109: 0 | P109: 0 | Q109: =SUM(Q105:Q108) -> 0 | R109: 0 | S109: 0 | T109: =SUM(T105:T108) -> -5058000 | U109: =SUM(U105:U108) -> 0 | V109: 1000 | W109: 0 | X109: 0 | Y109: =SUM(Y105:Y108) -> 0 | Z109: 12000 | AA109: 0 | AB109: -6000 | AC109: 0 | AD109: 0 | AE109: 0 | AF109: 0 | AG109: 0 | AH109: 0 | AI109: =SUM(AI105:AI108) -> 0 | AJ109: =SUM(AJ105:AJ108) -> 0 | AK109: 0 | AN109: =SUM(AN105:AN108) -> 0 | AO109: 0 | AP109: 0 | AQ109: 0 | AR109: 0 | AS109: 0 | AT109: -5051000 | AU109: 1027000 | AV109: =IF(ROUND(SUM(G109:AS109),0)=ROUND(AU109,0),"ok","crossfoot error") -> ok | AW109: =SUM(AW105:AW108)/1000 -> 1027 | AX109: ='[1]ADJ DETAIL INPUT'!$AP$40 -> 0 | AY109: =AW109-AX109 -> 1027
A110: 111
A111: 112 | C111: Sales Expenses
A112: 113 | B112: 911-OP | C112: Supervision | F112: 0 | G112: 0 | AT112: =SUM(H112:AS112) -> 0 | AU112: =G112+AT112 -> 0 | AW112: =ROUND(AU112/1000,0)*1000 -> 0
A113: 114 | B113: 912-OP | C113: Demonstrating & Selling Expenses | F113: 3177 | G113: 5000 | AT113: =SUM(H113:AS113) -> 0 | AU113: =G113+AT113 -> 5000 | AW113: =ROUND(AU113/1000,0)*1000 -> 5000
A114: 115 | B114: 913-OP | C114: Advertising Expenses | F114: 0 | G114: 0 | AT114: =SUM(H114:AS114) -> 0 | AU114: =G114+AT114 -> 0 | AW114: =ROUND(AU114/1000,0)*1000 -> 0
A115: 116 | B115: 916-OP | C115: Misc Sales Expenses | F115: 0 | G115: 0 | AT115: =SUM(H115:AS115) -> 0 | AU115: =G115+AT115 -> 0 | AW115: =ROUND(AU115/1000,0)*1000 -> 0
A116: 117 | C116: Total Sales Expenses | F116: =SUM(F112:F115) -> 3177 | G116: 5000 | H116: 0 | I116: 0 | J116: 0 | K116: =SUM(K112:K115) -> 0 | L116: 0 | M116: 0 | N116: 0 | O116: 0 | P116: 0 | Q116: =SUM(Q112:Q115) -> 0 | R116: 0 | S116: 0 | T116: =SUM(T112:T115) -> 0 | U116: =SUM(U112:U115) -> 0 | V116: 0 | W116: 0 | X116: 0 | Y116: =SUM(Y112:Y115) -> 0 | Z116: 0 | AA116: 0 | AB116: 0 | AC116: 0 | AD116: 0 | AE116: 0 | AF116: 0 | AG116: 0 | AH116: 0 | AI116: =SUM(AI112:AI115) -> 0 | AJ116: =SUM(AJ112:AJ115) -> 0 | AK116: 0 | AN116: =SUM(AN112:AN115) -> 0 | AO116: 0 | AP116: 0 | AQ116: 0 | AR116: 0 | AS116: 0 | AT116: 0 | AU116: 5000 | AV116: =IF(ROUND(SUM(G116:AS116),0)=ROUND(AU116,0),"ok","crossfoot error") -> ok | AW116: =SUM(AW112:AW115)/1000 -> 5 | AX116: ='[1]ADJ DETAIL INPUT'!$AP$41 -> 0 | AY116: =AW116-AX116 -> 5
A117: 118
A118: 119 | C118: Subtotal Expenses | F118: =F116+F109+F102+F94+F55+F32 -> 8268232 | G118: 160509000 | H118: 0 | I118: 1000 | J118: 0 | K118: =K116+K109+K102+K94+K55+K32 -> 0 | L118: 0 | M118: -268000 | N118: 0 | O118: 0 | P118: 0 | Q118: =Q116+Q109+Q102+Q94+Q55+Q32 -> 0 | R118: 0 | S118: 0 | T118: =T116+T109+T102+T94+T55+T32 -> -61866000 | U118: =U116+U109+U102+U94+U55+U32 -> -453000 | V118: 0 | W118: 0 | X118: 0 | Y118: =Y116+Y109+Y102+Y94+Y55+Y32 -> 0 | Z118: 353000 | AA118: -22000 | AB118: -173000 | AC118: 0 | AD118: 0 | AE118: 0 | AF118: 0 | AG118: 0 | AH118: 0 | AI118: =AI116+AI109+AI102+AI94+AI55+AI32 -> 0 | AJ118: 0 | AK118: 6000 | AN118: =AN116+AN109+AN102+AN94+AN55+AN32 -> 0 | AO118: 0 | AP118: 0 | AQ118: 0 | AR118: 0 | AS118: 0 | AT118: -62422000 | AU118: 98087000 | AV118: =IF(ROUND(SUM(G118:AS118),0)=ROUND(AU118,0),"ok","crossfoot error") -> ok | AW118: =AW116+AW109+AW102+AW94+AW55+AW32 -> 98087
A119: 120 | B119: =$B$1 -> Proforma | J119: =$J$1 -> Natural Gas Utility | AB119: Natural Gas Utility | AN119: =$J$1 -> Natural Gas Utility | AQ119: =#REF! -> 
A120: 121 | B120: =$B$2 -> Pro Forma Results of Operations | E120: Admin, & General, Other Taxes & Depreciation Expense | P120: =E120 -> Admin, & General, Other Taxes & Depreciation Expense | AB120: =P120 -> Admin, & General, Other Taxes & Depreciation Expense
A121: 122 | B121: =$B$3 -> Company Base Case
A122: 123
A123: 124 | G123: =G5 -> 1 | H123: 1.01 | I123: 1.02 | J123: 1.03 | K123: =K5 -> 2.01 | L123: 2.02 | M123: 2.03 | N123: 2.04 | O123: 2.05 | P123: 2.06 | Q123: =Q5 -> 2.07 | R123: 2.08 | S123: 2.09 | T123: =T5 -> 2.1 | U123: =U5 -> 2.11 | V123: 2.12 | W123: 2.13 | X123: 2.14 | Y123: =Y5 -> 2.15 | Z123: 3 | AA123: 3.01 | AB123: 3.02 | AC123: 3.03 | AD123: 3.04 | AE123: 3.05 | AF123: 4 | AG123: 4.01 | AH123: 4.02 | AI123: =AI5 -> 4.03 | AJ123: 4.04 | AK123: 4.05 | AN123: =AN$5 -> (an) | AO123: (ao) | AP123: (ap) | AQ123: (aq) | AR123: (ar) | AS123: (as) | AT123: (at) | AU123: (au) | AV123: (av) | AW123: (aw)
A124: 125 | B124: =IF(ISBLANK(B$6),"",B$6) ->  | C124: =IF(ISBLANK(C$6),"",C$6) ->  | D124: =IF(ISBLANK(D$6),"",D$6) ->  | E124: =IF(ISBLANK(E$6),"",E$6) -> Notes | F124: =IF(ISBLANK(F$6),"",F$6) -> Salaries & | G124: Balance | H124: =IF(ISBLANK(H$6),"",H$6) -> Deferred FIT | I124: Deferred Debits | J124: Working | K124: Eliminate | L124: Restate | M124: Uncollectible | N124: Regulatory | O124: Injuries & | P124: FIT/DFIT | Q124: Office Space | R124: Restate | S124: Net Gains/ | T124: =IF(ISBLANK(T$6),"",T$6) -> Revenue Normalization | U124: Restate | V124: Misc. Restating | W124: Restating | X124: Restate | Y124: Restate June 2013 | Z124: Pro Forma | AA124: Pro Forma | AB124: Pro Forma | AC124: Pro Forma | AD124: Pro Forma | AE124: Pro Forma | AF124: Planned Capital Add | AG124: Planned Capital Add | AH124: Planned Capital Add | AI124: Other | AJ124: O&M | AK124: 2014 Revenue | AN124: =IF(ISBLANK(AN$6),"",AN$6) -> Open | AO124: Open | AP124: Open | AQ124: Open | AR124: Open | AS124: Open | AT124: Net Total | AU124: Total | AV124: check | AW124: Total
A125: 126 | B125: =IF(ISBLANK(B$7),"",B$7) -> Account | C125: =IF(ISBLANK(C$7),"",C$7) -> Description | E125: =IF(ISBLANK(E$7),"",E$7) ->  | F125: =IF(ISBLANK(F$7),"",F$7) -> Wages | G125: per Books | H125: =IF(ISBLANK(H$7),"",H$7) -> Rate Base | I125: and Credits | J125: Capital | K125: B & O Taxes | L125: Property Taxes | M125: Expense | N125: Expense | O125: Damages | P125: Expense | Q125: Charges to Subs | R125: Excise Tax | S125: Losses | T125: =IF(ISBLANK(T$7),"",T$7) -> & Gas Cost | U125: Atmospheric Testing | V125: Adjustments | W125: Incentive | X125: Debt Interest | Y125: Capital EOP | Z125: Non-Exec Labor | AA125: Exec Labor | AB125: Empl. Benefits | AC125: Insurance | AD125: Property Tax | AE125: Information Tech/Serv Exp | AF125: Dec 2013 EOP | AG125: 2014 EOP | AH125: 2015 EOP | AI125: Attrition | AJ125: Offsets | AK125: Normalization | AN125: =IF(ISBLANK(AN$7),"",AN$7) ->  | AT125: of All | AW125: $000's
A126: 127 | B126: =IF(ISBLANK(B$8),"",B$8) ->  | C126: =IF(ISBLANK(C$8),"",C$8) ->  | D126: =IF(ISBLANK(D$8),"",D$8) ->  | E126: =IF(ISBLANK(E$8),"",E$8) ->  | F126: =IF(ISBLANK(F$8),"",F$8) ->  | H126: =IF(ISBLANK(H$8),"",H$8) -> G-DFIT | I126: G-DDC | J126: G-WC | K126: G-EBO | L126: G-RPT | M126: G-UE | N126: G-RE | O126: G-ID | P126: G-FIT | Q126: G-OSC | R126: G-RET | S126: G-NGL | T126: =IF(ISBLANK(T$8),"",T$8) -> G-RNGC | U126: G-RAT | V126: G-MR | W126: G-RI | X126: G_DI | Y126: G-CAP | Z126: G-PLN | AA126: G-PLE | AB126: G-PEB | AC126: G-PI | AD126: G-PPT | AE126: G-ISIT | AF126: G-CAP13 | AG126: G-CAP14 | AH126: G-CAP15 | AI126: G-OTHER | AJ126: G-OFF | AK126: G-RNG-C | AN126: =IF(ISBLANK(AN$8),"",AN$8) ->  | AT126: Adjustments | AW126: in bold
A127: 128 | C127: Administrative & General Expenses | AV127: =AV$9 -> 0
A128: 129 | B128: 920-OP | C128: Admin. & General Salaries | F128: 2686422 | G128: =5688000+1000 -> 5689000 | W128: -860000 | Z128: 94000 | AA128: 43000 | AB128: -56000 | AT128: =SUM(H128:AS128) -> -779000 | AU128: =G128+AT128 -> 4910000 | AW128: =ROUND(AU128/1000,0)*1000+1000 -> 4911000
A129: 130 | B129: 921-OP | C129: Office Supplies & Expenses | F129: 22745 | G129: 765000 | Q129: -7000 | Z129: 1000 | AB129: 0 | AE129: =ROUND(286000*0.161,-3) -> 46000 | AT129: 40000 | AU129: 805000 | AW129: =ROUND(AU129/1000,0)*1000 -> 805000
A130: 131 | B130: 922-OP | C130: Admin. Expenses Transferred - Credit | F130: 85 | G130: -21000 | AT130: 0 | AU130: -21000 | AW130: -21000
A131: 132 | B131: 923-OP | C131: Outside Services Employed | F131: 779 | G131: 1962000 | AE131: =ROUND(286000*-0.305,-3) -> -87000 | AT131: -87000 | AU131: 1875000 | AW131: 1875000
A132: 133 | B132: 924-OP | C132: Property Insurance Premium | F132: 0 | G132: 233000 | AC132: =ROUND(0.3*149000,-3) -> 45000 | AT132: 45000 | AU132: 278000 | AW132: 278000
A133: 134 | B133: 925-OP | C133: Injuries & Damages | F133: 29473 | G133: 794000 | O133: -62000 | Z133: 1000 | AB133: -1000 | AC133: =ROUND(0.7*149000,-3) -> 104000 | AT133: 42000 | AU133: 836000 | AW133: 836000
A134: 135 | B134: 926-OP | C134: Employee Pension & Benefits | G134: 183000 | AT134: 0 | AU134: 183000 | AW134: 183000
A135: 136 | B135: 927-OP | C135: Franchise Requirements | G135: 0 | AT135: 0 | AU135: 0 | AW135: 0
A136: 137 | B136: 928-OP | C136: Regulatory Commission Expenses | F136: 224868 | G136: 790000 | N136: -24000 | T136: 25000 | Z136: 9000 | AA136: -29000 | AB136: -5000 | AK136: 3000 | AT136: -21000 | AU136: 769000 | AW136: 769000
A137: 138 | B137: 930-OP | C137: Miscellaneous & General Expense | F137: 24039 | G137: 680000 | Z137: 1000 | AB137: -1000 | AI137: 0 | AJ137: -12000 | AT137: -12000 | AU137: 668000 | AW137: =ROUND(AU137/1000,0)*1000 -> 668000
A138: 139 | B138: 931-OP | C138: Rents | G138: 157000 | AT138: 0 | AU138: 157000 | AW138: 157000
A139: 140 | B139: 935-MT | C139: Maintenance of General Plant | F139: 209140 | G139: 1479000 | V139: -26000 | Y139: 180000 | Z139: 9000 | AB139: -4000 | AE139: =ROUND(286000*1.144,-3) -> 327000 | AT139: 486000 | AU139: 1965000 | AW139: 1965000
A140: 141 | C140: Total Administrative & General Expenses | F140: =SUM(F128:F139) -> 3197551 | G140: 12711000 | H140: 0 | I140: 0 | J140: 0 | K140: =SUM(K128:K139) -> 0 | L140: 0 | M140: 0 | N140: -24000 | O140: -62000 | P140: 0 | Q140: =SUM(Q128:Q139) -> -7000 | R140: 0 | S140: 0 | T140: =SUM(T128:T139) -> 25000 | U140: =SUM(U128:U139) -> 0 | V140: -26000 | W140: -860000 | X140: 0 | Y140: =SUM(Y128:Y139) -> 180000 | Z140: 115000 | AA140: 14000 | AB140: -67000 | AC140: 149000 | AD140: 0 | AE140: 286000 | AF140: 0 | AG140: 0 | AH140: 0 | AI140: =SUM(AI128:AI139) -> 0 | AJ140: =SUM(AJ128:AJ139) -> -12000 | AK140: 3000 | AN140: =SUM(AN128:AN139) -> 0 | AO140: 0 | AP140: 0 | AQ140: 0 | AR140: 0 | AS140: 0 | AT140: -286000 | AU140: 12425000 | AV140: =IF(ROUND(SUM(G140:AS140),0)=ROUND(AU140,0),"ok","crossfoot error") -> ok | AW140: =SUM(AW128:AW139)/1000 -> 12426 | AX140: ='[1]ADJ DETAIL INPUT'!$AP$44 -> 3 | AY140: =AW140-AX140 -> 12423
A141: 142
A142: 143 | C142: Total Operating & Maintenance Expenses | F142: =F140+F118 -> 11465783 | G142: 173220000 | H142: 0 | I142: 1000 | J142: 0 | K142: =K140+K118 -> 0 | L142: 0 | M142: -268000 | N142: -24000 | O142: -62000 | P142: 0 | Q142: =Q140+Q118 -> -7000 | R142: 0 | S142: 0 | T142: =T140+T118 -> -61841000 | U142: =U140+U118 -> -453000 | V142: -26000 | W142: -860000 | X142: 0 | Y142: =Y140+Y118 -> 180000 | Z142: 468000 | AA142: -8000 | AB142: -240000 | AC142: 149000 | AD142: 0 | AE142: 286000 | AF142: 0 | AG142: 0 | AH142: 0 | AI142: =AI140+AI118 -> 0 | AJ142: -12000 | AK142: 9000 | AN142: =AN140+AN118 -> 0 | AO142: 0 | AP142: 0 | AQ142: 0 | AR142: 0 | AS142: 0 | AT142: -62708000 | AU142: 110512000 | AV142: =IF(ROUND(SUM(G142:AS142),0)=ROUND(AU142,0),"ok","crossfoot error") -> ok | AW142: =AW140+AW118 -> 110513 | AX142: ='[1]ADJ DETAIL INPUT'!$AP$25+'[1]ADJ DETAIL INPUT'!$AP$28+'[1]ADJ DETAIL INPUT'!$AP$34+'[1]ADJ DETAIL INPUT'!$AP$39+'[1]ADJ DETAIL INPUT'!$AP$40+'[1]ADJ DETAIL INPUT'!$AP$41+'[1]ADJ DETAIL INPUT'!$AP$44 -> 9 | AY142: =AW142-AX142 -> 110504
A143: 144 | F143: =F142-11465783 -> 0
A144: 145 | B144: Taxes Other Than Income Taxes
A145: 146 | C145: Property Related
A146: 147 | C146: -Production | G146: 0 | AT146: =SUM(H146:AS146) -> 0 | AU146: =G146+AT146 -> 0
A147: 148 | C147: -Underground Storage | G147: 20000 | L147: 5000 | AD147: 4000 | AT147: =SUM(H147:AS147) -> 9000 | AU147: =G147+AT147 -> 29000 | AW147: =ROUND(AU147/1000,0) -> 29 | AX147: ='[1]ADJ DETAIL INPUT'!$AP$30 -> 0 | AY147: =AW147-AX147 -> 29
A148: 149 | C148: -Distribution | G148: 2154000 | AD148: 365000 | AT148: =SUM(H148:AS148) -> 365000 | AU148: =G148+AT148 -> 2519000 | AW148: =ROUND(AU148/1000,0) -> 2519 | AY148: =AW148-AX148 -> 2519 | AZ148: =AY148+AY153 -> 8889
A149: 150 | C149: -Administrative & General | G149: 0 | AD149: 0 | AT149: =SUM(H149:AS149) -> 0 | AU149: =G149+AT149 -> 0 | AW149: =ROUND(AU149/1000,0) -> 0 | AX149: ='[1]ADJ DETAIL INPUT'!$AP$47 -> 0 | AY149: =AW149-AX149 -> 0
A150: 151 | C150: Total Property Related | G150: =SUM(G146:G149) -> 2174000 | H150: 0 | I150: 0 | J150: 0 | K150: =SUM(K146:K149) -> 0 | L150: 5000 | M150: 0 | N150: 0 | O150: 0 | P150: 0 | Q150: =SUM(Q146:Q149) -> 0 | R150: 0 | S150: 0 | T150: =SUM(T146:T149) -> 0 | U150: =SUM(U146:U149) -> 0 | V150: 0 | W150: 0 | X150: 0 | Y150: =SUM(Y146:Y149) -> 0 | Z150: 0 | AA150: 0 | AB150: 0 | AC150: 0 | AD150: 369000 | AE150: 0 | AF150: 0 | AG150: 0 | AH150: 0 | AI150: =SUM(AI146:AI149) -> 0 | AJ150: 0 | AK150: 0 | AN150: =SUM(AN146:AN149) -> 0 | AO150: 0 | AP150: 0 | AQ150: 0 | AR150: 0 | AS150: 0 | AT150: 374000 | AU150: 2548000 | AV150: =IF(ROUND(SUM(G150:AS150),0)=ROUND(AU150,0),"ok","crossfoot error") -> ok | AW150: =SUM(AW146:AW149) -> 2548
A151: 152
A152: 153 | C152: State Excise
A153: 154 | C153: -Distribution | G153: 5276000 | L153: 616000 | R153: 0 | T153: 478000 | AK153: 52000 | AT153: =SUM(H153:AS153) -> 1146000 | AU153: =G153+AT153 -> 6422000 | AW153: =ROUND(AU153/1000,0) -> 6422 | AX153: ='[1]ADJ DETAIL INPUT'!$AP$36 -> 52 | AY153: =AW153-AX153 -> 6370 | AZ153: =AY153+AY148 -> 8889
A154: 155
A155: 156 | C155: Business & Occupation
A156: 157 | C156: -Distribution | G156: 5102000 | K156: -5102000 | AT156: =SUM(H156:AS156) -> -5102000 | AU156: =G156+AT156 -> 0 | AW156: =ROUND(AU156/1000,0) -> 0
A157: 158 | C157: -Open | AT157: =SUM(H157:AS157) -> 0 | AU157: =G157+AT157 -> 0 | AW157: =ROUND(AU157/1000,0) -> 0
A158: 159 | C158: -Open | AT158: =SUM(H158:AS158) -> 0 | AU158: =G158+AT158 -> 0 | AW158: =ROUND(AU158/1000,0) -> 0
A159: 160 | C159: Total Business & Occupation | G159: =SUM(G156:G158) -> 5102000 | H159: 0 | I159: 0 | J159: 0 | K159: =SUM(K156:K158) -> -5102000 | L159: 0 | M159: 0 | N159: 0 | O159: 0 | P159: 0 | Q159: =SUM(Q156:Q158) -> 0 | R159: 0 | S159: 0 | T159: =SUM(T156:T158) -> 0 | U159: =SUM(U156:U158) -> 0 | V159: 0 | W159: 0 | X159: 0 | Y159: =SUM(Y156:Y158) -> 0 | Z159: 0 | AA159: 0 | AB159: 0 | AC159: 0 | AD159: 0 | AE159: 0 | AF159: 0 | AG159: 0 | AH159: 0 | AI159: =SUM(AI156:AI158) -> 0 | AJ159: 0 | AK159: 0 | AN159: =SUM(AN156:AN158) -> 0 | AO159: 0 | AP159: 0 | AQ159: 0 | AR159: 0 | AS159: 0 | AT159: -5102000 | AU159: 0 | AV159: =IF(ROUND(SUM(G159:AS159),0)=ROUND(AU159,0),"ok","crossfoot error") -> ok | AW159: =SUM(AW156:AW158) -> 0
A160: 161
A161: 162 | C161: Miscellaneous
A162: 163 | C162: -Distribution | G162: 0 | AT162: =SUM(H162:AS162) -> 0 | AU162: =G162+AT162 -> 0
A163: 164
A164: 165 | C164: Total Taxes Other Than Income Taxes | G164: =G162+G159+G153+G150 -> 12552000 | H164: 0 | I164: 0 | J164: 0 | K164: =K162+K159+K153+K150 -> -5102000 | L164: 621000 | M164: 0 | N164: 0 | O164: 0 | P164: 0 | Q164: =Q162+Q159+Q153+Q150 -> 0 | R164: 0 | S164: 0 | T164: =T162+T159+T153+T150 -> 478000 | U164: =U162+U159+U153+U150 -> 0 | V164: 0 | W164: 0 | X164: 0 | Y164: =Y162+Y159+Y153+Y150 -> 0 | Z164: 0 | AA164: 0 | AB164: 0 | AC164: 0 | AD164: 369000 | AE164: 0 | AF164: 0 | AG164: 0 | AH164: 0 | AI164: =AI162+AI159+AI153+AI150 -> 0 | AJ164: 0 | AK164: 52000 | AN164: =AN162+AN159+AN153+AN150 -> 0 | AO164: 0 | AP164: 0 | AQ164: 0 | AR164: 0 | AS164: 0 | AT164: -3582000 | AU164: 8970000 | AV164: =IF(ROUND(SUM(G164:AS164),0)=ROUND(AU164,0),"ok","crossfoot error") -> ok | AW164: =AW162+AW159+AW153+AW150 -> 8970 | AX164: ='[1]ADJ DETAIL INPUT'!$AP$30+'[1]ADJ DETAIL INPUT'!$AP$36+'[1]ADJ DETAIL INPUT'!$AP$47 -> 52 | AY164: =AW164-AX164 -> 8918
A165: 166
A166: 167 | B166: Depreciation Expense
A167: 168 | C167: Underground Storage Plant Depreciation Expense
A168: 169 | B168: 350 | C168: Land & Land Rights Depr. Exp. | G168: 1000 | AT168: =SUM(H168:AS168) -> 0 | AU168: =G168+AT168 -> 1000 | AW168: =ROUND(AU168/1000,0)*1000 -> 1000
A169: 170 | B169: 351 | C169: Structures & Improvements Depr. Exp. | G169: 14000 | AF169: 4000 | AG169: 4000 | AH169: 0 | AT169: 8000 | AU169: 22000 | AW169: 22000
A170: 171 | B170: 352 | C170: Wells Depr. Exp. | G170: 173000 | Y170: -29000 | AT170: -29000 | AU170: 144000 | AW170: 144000
A171: 172 | B171: 353 | C171: Lines Depr. Exp. | G171: 14000 | AT171: 0 | AU171: 14000 | AW171: 14000
A172: 173 | B172: 354 | C172: Compressor Station Equip. Depr. Exp. | G172: 149000 | AT172: 0 | AU172: 149000 | AW172: 149000
A173: 174 | B173: 355 | C173: Measuring & Regulating Equip. Depr. Exp. | G173: 30000 | AT173: 0 | AU173: 30000 | AW173: 30000
A174: 175 | B174: 356 | C174: Purification Equipment Depr. Exp. | G174: 5000 | AT174: 0 | AU174: 5000 | AW174: 5000
A175: 176 | B175: 357 | C175: Other Equipment Depr. Exp. | G175: 23000 | AT175: 0 | AU175: 23000 | AW175: 23000
A176: 177 | C176: Total Underground Storage Plant Depr. Exp. | G176: =SUM(G168:G175) -> 409000 | H176: 0 | I176: 0 | J176: 0 | K176: =SUM(K168:K175) -> 0 | L176: 0 | M176: 0 | N176: 0 | O176: 0 | P176: 0 | Q176: =SUM(Q168:Q175) -> 0 | R176: 0 | S176: 0 | T176: =SUM(T168:T175) -> 0 | U176: =SUM(U168:U175) -> 0 | V176: 0 | W176: 0 | X176: 0 | Y176: =SUM(Y168:Y175) -> -29000 | Z176: 0 | AA176: 0 | AB176: 0 | AC176: 0 | AD176: 0 | AE176: 0 | AF176: 4000 | AG176: 4000 | AH176: 0 | AI176: =SUM(AI168:AI175) -> 0 | AJ176: =SUM(AJ168:AJ175) -> 0 | AK176: 0 | AN176: =SUM(AN168:AN175) -> 0 | AO176: 0 | AP176: 0 | AQ176: 0 | AR176: 0 | AS176: 0 | AT176: -21000 | AU176: 388000 | AV176: =IF(ROUND(SUM(G176:AS176),0)=ROUND(AU176,0),"ok","crossfoot error") -> ok | AW176: =SUM(AW168:AW175)/1000 -> 388 | AX176: ='[1]ADJ DETAIL INPUT'!$AP$29 -> 0 | AY176: =AW176-AX176 -> 388
A177: 178
A178: 179 | B178: =$B$1 -> Proforma | J178: =$J$1 -> Natural Gas Utility | AN178: =$J$1 -> Natural Gas Utility | AQ178: =#REF! -> 
A179: 180 | B179: =$B$2 -> Pro Forma Results of Operations | E179: Depreciation Expense & Income Tax | P179: =E179 -> Depreciation Expense & Income Tax | AB179: =E179 -> Depreciation Expense & Income Tax
A180: 181 | B180: =$B$3 -> Company Base Case
A181: 182
A182: 183 | G182: =G5 -> 1 | H182: 1.01 | I182: 1.02 | J182: 1.03 | K182: =K5 -> 2.01 | L182: 2.02 | M182: 2.03 | N182: 2.04 | O182: 2.05 | P182: 2.06 | Q182: =Q5 -> 2.07 | R182: 2.08 | S182: 2.09 | T182: =T5 -> 2.1 | U182: =U5 -> 2.11 | V182: 2.12 | W182: 2.13 | X182: 2.14 | Y182: =Y5 -> 2.15 | Z182: 3 | AA182: 3.01 | AB182: 3.02 | AC182: 3.03 | AD182: 3.04 | AE182: 3.05 | AF182: 4 | AG182: 4.01 | AH182: 4.02 | AI182: =AI5 -> 4.03 | AJ182: 4.04 | AK182: 4.05 | AN182: =AN$5 -> (an) | AO182: (ao) | AP182: (ap) | AQ182: (aq) | AR182: (ar) | AS182: (as) | AT182: (at) | AU182: (au) | AV182: (av) | AW182: (aw)
A183: 184 | B183: =IF(ISBLANK(B$6),"",B$6) ->  | C183: =IF(ISBLANK(C$6),"",C$6) ->  | D183: =IF(ISBLANK(D$6),"",D$6) ->  | E183: =IF(ISBLANK(E$6),"",E$6) -> Notes | F183: System | G183: Balance | H183: =IF(ISBLANK(H$6),"",H$6) -> Deferred FIT | I183: Deferred Debits | J183: Working | K183: Eliminate | L183: Restate | M183: Uncollectible | N183: Regulatory | O183: Injuries & | P183: FIT/DFIT | Q183: Office Space | R183: Restate | S183: Net Gains/ | T183: =IF(ISBLANK(T$6),"",T$6) -> Revenue Normalization | U183: Restate | V183: Misc. Restating | W183: Restating | X183: Restate | Y183: Restate June 2013 | Z183: Pro Forma | AA183: Pro Forma | AB183: Pro Forma | AC183: Pro Forma | AD183: Pro Forma | AE183: Pro Forma | AF183: Planned Capital Add | AG183: Planned Capital Add | AH183: Planned Capital Add | AI183: Other | AJ183: O&M | AK183: 2014 Revenue | AN183: =IF(ISBLANK(AN$6),"",AN$6) -> Open | AO183: Open | AP183: Open | AQ183: Open | AR183: Open | AS183: Open | AT183: Net Total | AU183: Total | AV183: check | AW183: Total
A184: 185 | B184: =IF(ISBLANK(B$7),"",B$7) -> Account | C184: =IF(ISBLANK(C$7),"",C$7) -> Description | E184: =IF(ISBLANK(E$7),"",E$7) ->  | F184: Current Accrual | G184: per Books | H184: =IF(ISBLANK(H$7),"",H$7) -> Rate Base | I184: and Credits | J184: Capital | K184: B & O Taxes | L184: Property Taxes | M184: Expense | N184: Expense | O184: Damages | P184: Expense | Q184: Charges to Subs | R184: Excise Tax | S184: Losses | T184: =IF(ISBLANK(T$7),"",T$7) -> & Gas Cost | U184: Atmospheric Testing | V184: Adjustments | W184: Incentive | X184: Debt Interest | Y184: Capital EOP | Z184: Non-Exec Labor | AA184: Exec Labor | AB184: Empl. Benefits | AC184: Insurance | AD184: Property Tax | AE184: Information Tech/Serv Exp | AF184: Dec 2013 EOP | AG184: 2014 EOP | AH184: 2015 EOP | AI184: Attrition | AJ184: Offsets | AK184: Normalization | AN184: =IF(ISBLANK(AN$7),"",AN$7) ->  | AT184: of All | AW184: $000's
A185: 186 | B185: =IF(ISBLANK(B$8),"",B$8) ->  | C185: =IF(ISBLANK(C$8),"",C$8) ->  | D185: =IF(ISBLANK(D$8),"",D$8) ->  | E185: =IF(ISBLANK(E$8),"",E$8) ->  | F185: =IF(ISBLANK(F$8),"",F$8) ->  | H185: =IF(ISBLANK(H$8),"",H$8) -> G-DFIT | I185: G-DDC | J185: G-WC | K185: G-EBO | L185: G-RPT | M185: G-UE | N185: G-RE | O185: G-ID | P185: G-FIT | Q185: G-OSC | R185: G-RET | S185: G-NGL | T185: =IF(ISBLANK(T$8),"",T$8) -> G-RNGC | U185: G-RAT | V185: G-MR | W185: G-RI | X185: G_DI | Y185: G-CAP | Z185: G-PLN | AA185: G-PLE | AB185: G-PEB | AC185: G-PI | AD185: G-PPT | AE185: G-ISIT | AF185: G-CAP13 | AG185: G-CAP14 | AH185: G-CAP15 | AI185: G-OTHER | AJ185: G-OFF | AK185: G-RNG-C | AN185: =IF(ISBLANK(AN$8),"",AN$8) ->  | AT185: Adjustments | AW185: in bold
A186: 187 | C186: Distribution Plant Depreciation Expense
A187: 188 | B187: 374 | C187: Land & Land Rights Depr. Exp. | G187: 0 | Y187: =ROUND(536000*(Y266/$Y$279),-3) -> 0 | AT187: =SUM(H187:AS187) -> 0 | AU187: =G187+AT187 -> 0 | AW187: =ROUND(AU187/1000,0)*1000 -> 0
A188: 189 | B188: 375 | C188: Structures & Improvements Depr. Exp. | E188: 3151000 | G188: 11000 | Y188: =ROUND(536000*(Y267/$Y$279),-3) -> 0 | AF188: 278000 | AG188: 402000 | AH188: 0 | AT188: 680000 | AU188: 691000 | AW188: 691000
A189: 190 | B189: 376-SM | C189: Mains Depr. Exp. | E189: =E268 -> 0.07521601246 | G189: =ROUND($E$188*E189,-3) -> 237000 | Y189: =ROUND(536000*(Y268/$Y$279),-3)+1000 -> -92000 | AT189: -92000 | AU189: 145000 | AW189: 145000
A190: 191 | B190: 376-LG | C190: Mains Depr. Exp. | E190: =E269 -> 0.9247839875 | G190: =ROUND($E$188*E190,-3) -> 2914000 | Y190: 411000 | AT190: 411000 | AU190: 3325000 | AW190: 3325000
A191: 192 | B191: 378 | C191: Meas & Reg Station Equip-Gen Depr. Exp. | G191: 107000 | Y191: 2000 | AT191: 2000 | AU191: 109000 | AW191: 109000
A192: 193 | B192: 379 | C192: Meas & Reg Station Equip-City Gate Depr. Exp. | G192: 55000 | Y192: -1000 | AT192: -1000 | AU192: 54000 | AW192: 54000
A193: 194 | B193: 380 | C193: Services Depr. Exp. | G193: 2612000 | Y193: 170000 | AT193: 170000 | AU193: 2782000 | AW193: =ROUND(AU193/1000,0)*1000 -> 2782000
A194: 195 | B194: 381 | C194: Meters Depr. Exp. | G194: 1396000 | Y194: 45000 | AT194: 45000 | AU194: 1441000 | AW194: =ROUND(AU194/1000,0)*1000 -> 1441000
A195: 196 | B195: 382 | C195: Meter Installations Depr. Exp. | Y195: 0 | AT195: 0 | AU195: 0 | AW195: 0
A196: 197 | B196: 383 | C196: House Regulators Depr. Exp. | Y196: 0 | AT196: 0 | AU196: 0 | AW196: 0
A197: 198 | B197: 384 | C197: House Regulator Installations Depr. Exp. | Y197: 0 | AT197: 0 | AU197: 0 | AW197: 0
A198: 199 | B198: 385 | C198: Industrial Meas & Reg Station Equip. Depr. Exp. | G198: 44000 | Y198: 2000 | AT198: 2000 | AU198: 46000 | AW198: 46000
A199: 200 | B199: 387 | C199: Other Equipment Depr. Exp. | Y199: 0 | AT199: 0 | AU199: 0 | AW199: 0
